Workbook

Sheet Visor
F2: VISOR DE DESEMPEÑO FISCAL
B12: Escoger tipo de entidad territorial | F12: SELECCIONAR
B14: Información Entidad Territorial
B15: Municipio: | F15: Tipología: | H15: =IFERROR(VLOOKUP(D16,Base!$A$2:$L$1137,Base!G1137,FALSE),"") -> 
B16: Código DANE: | D16: =IFERROR(VLOOKUP(D15,Listas!A1:B1136,2,FALSE),"") ->  | F16: Entorno de desarrollo municipal: | H16: =IFERROR(VLOOKUP(D16,Base!$A$2:$L$1137,Base!H1137,FALSE),"") -> 
B17: Región: | D17: =IFERROR(VLOOKUP(D16,Base!$A$2:$L$1137,Base!D1137,FALSE),"") ->  | F17: Entorno de desarrollo departamental: | H17: =IFERROR(VLOOKUP(D16,Base!$A$2:$L$1137,Base!I1137,FALSE),"") -> 
B18: Departamento: | D18: =IFERROR(VLOOKUP(D16,Base!$A$2:$L$1137,Base!E1137,FALSE),"") ->  | F18: Esfuerzo en cierre de brechas: | H18: =IFERROR(VLOOKUP(D16,Base!$A$2:$L$1137,Base!J1137,FALSE),"") -> 
B19: Subregión: | D19: =IFERROR(VLOOKUP(D16,Base!$A$2:$L$1137,Base!F1137,FALSE),"") ->  | F19: Categoría: | H19: =IFERROR(VLOOKUP(D16,Base!$A$2:$L$1137,Base!K1137,FALSE),"") -> 
F20: Grupo capacidades iniciales: | H20: =IFERROR(VLOOKUP(D16,Base!$A$2:$L$1137,Base!L1137,FALSE),"") -> 
B22: Resultados Desempeño Fiscal | D22: Vigencia Actual | F22: Año de comparación | H22: Contribución al cambio
B23: Indicadores | D23: 2017 | F23: SELECCIONAR | H23: =IF(F23="SELECCIONAR"," ",F23& "- 2017") -> 
B24: Autofinanciación del funcionamiento | D24: =IFERROR(VLOOKUP(D16,Base!$A$2:$HZ$1137,Base!M1137,FALSE),"") ->  | F24: =IFERROR(VLOOKUP($D$16,Base!$A$2:$HY$1135,IF(Visor!$F$23=2012,Base!$U$1137,IF(Visor!$F$23=2013,Base!$AC$1137,IF(Visor!$F$23=2014,Base!$AK$1137,IF(Visor!$F$23=2015,Base!$AS$1137,IF(Visor!$F$23=2016,Base!$BA$1137,FALSE))))),FALSE),"") ->  | H24: =IFERROR(VLOOKUP(D16,Cont!A3:M1135,IF(Visor!F23=2012,Cont!$I$1,IF(Visor!F23=2013,Cont!$J$1,IF(Visor!F23=2014,Cont!$IK$1,IF(Visor!F23=2015,Cont!$L$1,IF(Visor!F23=2016,Cont!$M$1,FALSE))))),FALSE),"") -> 
B25: Magnitud de la deuda | D25: =IFERROR(VLOOKUP(D16,Base!$A$2:$HZ$1137,Base!N1137,FALSE),"") ->  | F25: =IFERROR(VLOOKUP($D$16,Base!$A$2:$HY$1135,IF(Visor!$F$23=2012,Base!$U$1137+1,IF(Visor!$F$23=2013,Base!$AC$1137+1,IF(Visor!$F$23=2014,Base!$AK$1137+1,IF(Visor!$F$23=2015,Base!$AS$1137+1,IF(Visor!$F$23=2016,Base!$BA$1137+1,FALSE))))),FALSE),"") ->  | H25: =IFERROR(((100-D25)-(100-F25))*(1/6),"") -> 
B26: Dependencia de las transferencias | D26: =IFERROR(VLOOKUP(D16,Base!$A$2:$HZ$1137,Base!O1137,FALSE),"") ->  | F26: =IFERROR(VLOOKUP($D$16,Base!$A$2:$HY$1135,IF(Visor!$F$23=2012,Base!$U$1137+2,IF(Visor!$F$23=2013,Base!$AC$1137+2,IF(Visor!$F$23=2014,Base!$AK$1137+2,IF(Visor!$F$23=2015,Base!$AS$1137+2,IF(Visor!$F$23=2016,Base!$BA$1137+2,FALSE))))),FALSE),"") ->  | H26: =IFERROR(((100-D26)-(100-F26))*(1/6),"") -> 
B27: Generación de los recursos propios | D27: =IFERROR(VLOOKUP(D16,Base!$A$2:$HZ$1137,Base!P1137,FALSE),"") ->  | F27: =IFERROR(VLOOKUP($D$16,Base!$A$2:$HY$1135,IF(Visor!$F$23=2012,Base!$U$1137+3,IF(Visor!$F$23=2013,Base!$AC$1137+3,IF(Visor!$F$23=2014,Base!$AK$1137+3,IF(Visor!$F$23=2015,Base!$AS$1137+3,IF(Visor!$F$23=2016,Base!$BA$1137+3,FALSE))))),FALSE),"") ->  | H27: =IFERROR((D27-F27)*(1/6),"") -> 
B28: Magnitud de la inversión | D28: =IFERROR(VLOOKUP(D16,Base!$A$2:$HZ$1137,Base!Q1137,FALSE),"") ->  | F28: =IFERROR(VLOOKUP($D$16,Base!$A$2:$HY$1135,IF(Visor!$F$23=2012,Base!$U$1137+4,IF(Visor!$F$23=2013,Base!$AC$1137+4,IF(Visor!$F$23=2014,Base!$AK$1137+4,IF(Visor!$F$23=2015,Base!$AS$1137+4,IF(Visor!$F$23=2016,Base!$BA$1137+4,FALSE))))),FALSE),"") ->  | H28: =IFERROR((D28-F28)*(1/6),"") -> 
B29: Capacidad de ahorro | D29: =IFERROR(VLOOKUP(D16,Base!$A$2:$HZ$1137,Base!R1137,FALSE),"") ->  | F29: =IFERROR(VLOOKUP($D$16,Base!$A$2:$HY$1135,IF(Visor!$F$23=2012,Base!$U$1137+5,IF(Visor!$F$23=2013,Base!$AC$1137+5,IF(Visor!$F$23=2014,Base!$AK$1137+5,IF(Visor!$F$23=2015,Base!$AS$1137+5,IF(Visor!$F$23=2016,Base!$BA$1137+5,FALSE))))),FALSE),"") ->  | H29: =IFERROR((D29-F29)*(1/6),"") -> 
B30: Índice de Desempeño Fiscal | D30: =IFERROR(VLOOKUP(D16,Base!$A$2:$HZ$1137,Base!S1137,FALSE),"") ->  | F30: =IFERROR(VLOOKUP($D$16,Base!$A$2:$HY$1135,IF(Visor!$F$23=2012,Base!$U$1137+6,IF(Visor!$F$23=2013,Base!$AC$1137+6,IF(Visor!$F$23=2014,Base!$AK$1137+6,IF(Visor!$F$23=2015,Base!$AS$1137+6,IF(Visor!$F$23=2016,Base!$BA$1137+6,FALSE))))),FALSE),"") ->  | H30: =IFERROR(D30-F30,"") -> 
B31: Clasificación Desempeño Fiscal | D31: =IFERROR(VLOOKUP(D16,Base!$A$2:$HZ$1137,Base!T1137,FALSE),"") ->  | F31: =IFERROR(VLOOKUP($D$16,Base!$A$2:$HY$1135,IF(Visor!$F$23=2012,Base!$U$1137+7,IF(Visor!$F$23=2013,Base!$AC$1137+7,IF(Visor!$F$23=2014,Base!$AK$1137+7,IF(Visor!$F$23=2015,Base!$AS$1137+7,IF(Visor!$F$23=2016,Base!$BA$1137+7,FALSE))))),FALSE),"") ->  | H31: =IF(H30="","",IF(H30>0,"Mejoró",IF(H30<0,"Empeoró",FALSE))) -> 
I33: Millones de pesos constantes 2017
B34: Variables Indicadores Desempeño Fiscal | D34: 2017 | F34: =F23 -> SELECCIONAR | H34: Dif. Abs | I34: Var Rel. (%)
B35: 1. Autofinanciación del funcionamiento
B36: ICLD | D36: =IFERROR(VLOOKUP($D$16,Base!$A$2:$HZ$1134,Base!$BO$1137,FALSE),"") ->  | F36: =IFERROR(VLOOKUP($D$16,Base!$A$2:$HZ$1135,IF(Visor!$F$23=2012,Base!CB$1137,IF(Visor!$F$23=2013,Base!CO$1137,IF(Visor!$F$23=2014,Base!DB$1137,IF(Visor!$F$23=2015,Base!DO$1137,IF(Visor!$F$23=2016,Base!EB$1137,FALSE))))),FALSE),"") ->  | H36: =IFERROR(IF($F$34<>"SELECCIONAR",D36-F36,""),"") ->  | I36: =IFERROR(IF($F$34<>"SELECCIONAR",(D36/F36-1),""),"") -> 
B37: Gastos de funcionamiento | D37: =IFERROR(VLOOKUP($D$16,Base!$A$2:$HZ$1134,Base!$BP$1137,FALSE),"") ->  | F37: =IFERROR(VLOOKUP($D$16,Base!$A$2:$HZ$1135,IF(Visor!$F$23=2012,Base!CC$1137,IF(Visor!$F$23=2013,Base!CP$1137,IF(Visor!$F$23=2014,Base!DC$1137,IF(Visor!$F$23=2015,Base!DP$1137,IF(Visor!$F$23=2016,Base!EC$1137,FALSE))))),FALSE),"") ->  | H37: =IFERROR(IF($F$34<>"SELECCIONAR",D37-F37,""),"") ->  | I37: =IFERROR(IF($F$34<>"SELECCIONAR",(D37/F37-1),""),"") -> 
B38: Límite (%) | D38: =IFERROR(VLOOKUP($D$16,Base!$A$2:$HZ$1134,Base!$BI$1137,FALSE),"") ->  | F38: =IFERROR(VLOOKUP($D$16,Base!$A$3:$HZ$1135,IF(Visor!F23=2012,Base!BJ1137,IF(Visor!F23=2013,Base!BK1137,IF(Visor!F23=2014,Base!BL1137,IF(Visor!F23=2015,Base!BM1137,IF(Visor!F23=2016,Base!BN1137,FALSE))))),FALSE),"") -> 
B39: Distancia al límite (Puntos Porcentuales) | D39: =IFERROR((D38-(D24/100))*100,"") ->  | F39: =IFERROR((F38-(F24/100))*100,"") -> 
B40: Resultado | D40: =IFERROR(IF(VLOOKUP(D16,Cont!A3:H1134,3,FALSE)<100,"Incumplió","Cumplió"),"") ->  | F40: =IFERROR(IF(VLOOKUP(D16,Cont!$A$3:$L$1135,IF(Visor!F23=2012,4,IF(Visor!F23=2013,5,IF(Visor!F23=2014,6,IF(Visor!F23=2015,6,IF(Visor!F23=2016,7,FALSE))))),FALSE)<100,"Incumplió","Cumplió"),"") -> 
B41: 2. Respaldo del servicio de la deuda
B42: Intereses + Amortizaciones | D42: =IFERROR(VLOOKUP($D$16,Base!$A$2:$HZ$1134,Base!$BQ$1137,FALSE),"") ->  | F42: =IFERROR(VLOOKUP($D$16,Base!$A$2:$HZ$1135,IF(Visor!$F$23=2012,Base!CD$1137,IF(Visor!$F$23=2013,Base!CQ$1137,IF(Visor!$F$23=2014,Base!DD$1137,IF(Visor!$F$23=2015,Base!DQ$1137,IF(Visor!$F$23=2016,Base!ED$1137,FALSE))))),FALSE),"") ->  | H42: =IFERROR(IF($F$34<>"SELECCIONAR",D42-F42,""),"") ->  | I42: =IFERROR(IF($F$34<>"SELECCIONAR",(D42/F42-1),""),"") -> 
B43: Ingresos Disponibles | D43: =IFERROR(VLOOKUP($D$16,Base!$A$2:$HZ$1134,Base!$BR$1137,FALSE),"") ->  | F43: =IFERROR(VLOOKUP($D$16,Base!$A$2:$HZ$1135,IF(Visor!$F$23=2012,Base!CE$1137,IF(Visor!$F$23=2013,Base!CR$1137,IF(Visor!$F$23=2014,Base!DE$1137,IF(Visor!$F$23=2015,Base!DR$1137,IF(Visor!$F$23=2016,Base!EE$1137,FALSE))))),FALSE),"") -> 
B44: 3. Dependencia de las transferencias
B45: Regalías | D45: =IFERROR(VLOOKUP($D$16,Base!$A$2:$HZ$1134,Base!$BS$1137,FALSE),"") ->  | F45: =IFERROR(VLOOKUP($D$16,Base!$A$2:$HZ$1135,IF(Visor!$F$23=2012,Base!CF$1137,IF(Visor!$F$23=2013,Base!CS$1137,IF(Visor!$F$23=2014,Base!DF$1137,IF(Visor!$F$23=2015,Base!DS$1137,IF(Visor!$F$23=2016,Base!EF$1137,FALSE))))),FALSE),"") ->  | H45: =IFERROR(IF($F$34<>"SELECCIONAR",D45-F45,""),"") ->  | I45: =IFERROR(IF($F$34<>"SELECCIONAR",(D45/F45-1),""),"") -> 
B46: SGP | D46: =IFERROR(VLOOKUP($D$16,Base!$A$2:$HZ$1134,Base!$BT$1137,FALSE),"") ->  | F46: =IFERROR(VLOOKUP($D$16,Base!$A$2:$HZ$1135,IF(Visor!$F$23=2012,Base!CG$1137,IF(Visor!$F$23=2013,Base!CT$1137,IF(Visor!$F$23=2014,Base!DG$1137,IF(Visor!$F$23=2015,Base!DT$1137,IF(Visor!$F$23=2016,Base!EG$1137,FALSE))))),FALSE),"") ->  | H46: =IFERROR(IF($F$34<>"SELECCIONAR",D46-F46,""),"") ->  | I46: =IFERROR(IF($F$34<>"SELECCIONAR",(D46/F46-1),""),"") -> 
B47: Otras transferencias | D47: =IFERROR(VLOOKUP($D$16,Base!$A$2:$HZ$1134,Base!$BU$1137,FALSE),"") ->  | F47: =IFERROR(VLOOKUP($D$16,Base!$A$2:$HZ$1135,IF(Visor!$F$23=2012,Base!CH$1137,IF(Visor!$F$23=2013,Base!CU$1137,IF(Visor!$F$23=2014,Base!DH$1137,IF(Visor!$F$23=2015,Base!DU$1137,IF(Visor!$F$23=2016,Base!EH$1137,FALSE))))),FALSE),"") ->  | H47: =IFERROR(IF($F$34<>"SELECCIONAR",D47-F47,""),"") ->  | I47: =IFERROR(IF($F$34<>"SELECCIONAR",(D47/F47-1),""),"") -> 
B48: Ingresos Disponibles | D48: =IF(SUM(D45:D47)=0,"",SUM(D45:D47)) ->  | F48: =IF(SUM(F45:F47)=0,"",SUM(F45:F47)) ->  | H48: =IFERROR(IF($F$34<>"SELECCIONAR",D48-F48,""),"") ->  | I48: =IFERROR(IF($F$34<>"SELECCIONAR",(D48/F48-1),""),"") -> 
B49: Ingresos Totales | D49: =IFERROR(VLOOKUP($D$16,Base!$A$2:$HZ$1134,Base!$BV$1137,FALSE),"") ->  | F49: =IFERROR(VLOOKUP($D$16,Base!$A$2:$HZ$1135,IF(Visor!$F$23=2012,Base!CI$1137,IF(Visor!$F$23=2013,Base!CV$1137,IF(Visor!$F$23=2014,Base!DI$1137,IF(Visor!$F$23=2015,Base!DV$1137,IF(Visor!$F$23=2016,Base!EI$1137,FALSE))))),FALSE),"") ->  | H49: =IFERROR(IF($F$34<>"SELECCIONAR",D49-F49,""),"") ->  | I49: =IFERROR(IF($F$34<>"SELECCIONAR",(D49/F49-1),""),"") -> 
B50: 4. Generación de los recursos propios
B51: Ingresos Tributarios | D51: =IFERROR(VLOOKUP($D$16,Base!$A$2:$HZ$1134,Base!$BW$1137,FALSE),"") ->  | F51: =IFERROR(VLOOKUP($D$16,Base!$A$2:$HZ$1135,IF(Visor!$F$23=2012,Base!CJ$1137,IF(Visor!$F$23=2013,Base!CW$1137,IF(Visor!$F$23=2014,Base!DJ$1137,IF(Visor!$F$23=2015,Base!DW$1137,IF(Visor!$F$23=2016,Base!EJ$1137,FALSE))))),FALSE),"") ->  | H51: =IFERROR(IF($F$34<>"SELECCIONAR",D51-F51,""),"") ->  | I51: =IFERROR(IF($F$34<>"SELECCIONAR",(D51/F51-1),""),"") -> 
B52: Ingresos Corrientes | D52: =IFERROR(VLOOKUP($D$16,Base!$A$2:$HZ$1134,Base!$BX$1137,FALSE),"") ->  | F52: =IFERROR(VLOOKUP($D$16,Base!$A$2:$HZ$1135,IF(Visor!$F$23=2012,Base!CK$1137,IF(Visor!$F$23=2013,Base!CX$1137,IF(Visor!$F$23=2014,Base!DK$1137,IF(Visor!$F$23=2015,Base!DX$1137,IF(Visor!$F$23=2016,Base!EK$1137,FALSE))))),FALSE),"") -> 
B53: 5. Magnitud de la inversión
B54: Gasto de Capital | D54: =IFERROR(VLOOKUP($D$16,Base!$A$2:$HZ$1134,Base!$BY$1137,FALSE),"") ->  | F54: =IFERROR(VLOOKUP($D$16,Base!$A$2:$HZ$1135,IF(Visor!$F$23=2012,Base!CL$1137,IF(Visor!$F$23=2013,Base!CY$1137,IF(Visor!$F$23=2014,Base!DL$1137,IF(Visor!$F$23=2015,Base!DY$1137,IF(Visor!$F$23=2016,Base!EL$1137,FALSE))))),FALSE),"") ->  | H54: =IFERROR(IF($F$34<>"SELECCIONAR",D54-F54,""),"") ->  | I54: =IFERROR(IF($F$34<>"SELECCIONAR",(D54/F54-1),""),"") -> 
B55: Gasto Totales | D55: =IFERROR(VLOOKUP($D$16,Base!$A$2:$HZ$1134,Base!$BZ$1137,FALSE),"") ->  | F55: =IFERROR(VLOOKUP($D$16,Base!$A$2:$HZ$1135,IF(Visor!$F$23=2012,Base!CM$1137,IF(Visor!$F$23=2013,Base!CZ$1137,IF(Visor!$F$23=2014,Base!DM$1137,IF(Visor!$F$23=2015,Base!DZ$1137,IF(Visor!$F$23=2016,Base!EM$1137,FALSE))))),FALSE),"") -> 
B56: 6. Capacidad de ahorro
B57: Ingresos Corrientes | D57: =IFERROR(VLOOKUP($D$16,Base!$A$2:$HZ$1134,Base!$BX$1137,FALSE),"") ->  | F57: =IFERROR(VLOOKUP($D$16,Base!$A$2:$HZ$1135,IF(Visor!$F$23=2012,Base!CK$1137,IF(Visor!$F$23=2013,Base!CX$1137,IF(Visor!$F$23=2014,Base!DK$1137,IF(Visor!$F$23=2015,Base!DX$1137,IF(Visor!$F$23=2016,Base!EK$1137,FALSE))))),FALSE),"") ->  | H57: =IFERROR(IF($F$34<>"SELECCIONAR",D57-F57,""),"") ->  | I57: =IFERROR(IF($F$34<>"SELECCIONAR",(D57/F57-1),""),"") -> 
B58: Gastos Corrientes | D58: =IFERROR(VLOOKUP($D$16,Base!$A$2:$HZ$1134,Base!$CA$1137,FALSE),"") ->  | F58: =IFERROR(VLOOKUP($D$16,Base!$A$2:$HZ$1135,IF(Visor!$F$23=2012,Base!CN$1137,IF(Visor!$F$23=2013,Base!DA$1137,IF(Visor!$F$23=2014,Base!DN$1137,IF(Visor!$F$23=2015,Base!EA$1137,IF(Visor!$F$23=2016,Base!EN$1137,FALSE))))),FALSE),"") -> 
B60: Comparación territorial del desempeño fiscal 2017 | H60: =IF(D61<>"SELECCIONAR",D61&":","") ->  | I60: =IF(D61="Nación","Colombia",IF(D61="Región",D17,IF(D61="Departamento",D18,IF(D61="Subregión",D19,IF(D61="Tipología",H15,IF(D61="Entorno de desarrollo municipal",H16,IF(D61="Entorno de desarrollo departamental",H17,IF(D61="Esfuerzo en cierre de brechas",H18,IF(D61="Categoría",H19,IF(D61="Grupo capacidades iniciales",H20,"")))))))))) -> 
B61: Nivel de comparación | D61: SELECCIONAR | F61: Posición Ranking 2017 | H61: =IFERROR(VLOOKUP($D$16,Base!$A$2:$HZ$1135,IF($D$61="Nación",Base!EO1137,IF($D$61="Región",Base!EP1137,IF($D$61="Departamento",Base!EQ1137,IF($D$61="Subregión",Base!ER1137,IF($D$61="Tipología",Base!ES1137,IF($D$61="Entorno de desarrollo municipal",Base!ET1137,IF($D$61="Entorno de desarrollo departamental",Base!EU1137,IF($D$61="Esfuerzo en cierre de brechas",Base!EV1137,IF($D$61="Categoría",Base!EW1137,IF($D$61="Grupo capacidades iniciales",Base!EX1137,FALSE)))))))))),FALSE),"")&" de "&IFERROR(VLOOKUP($D$16,Base!$A$2:$HZ$1135,IF($D$61="Nación",Base!EY1137,IF($D$61="Región",Base!EZ1137,IF(Visor!$D$61="Departamento",Base!FA1137,IF($D$61="Subregión",Base!FB1137,IF($D$61="Tipología",Base!FC1137,IF($D$61="Entorno de desarrollo municipal",Base!FD1137,IF($D$61="Entorno de desarrollo departamental",Base!FE1137,IF($D$61="Esfuerzo en cierre de brechas",Base!FF1137,IF($D$61="Categoría",Base!FG1137,IF($D$61="Grupo capacidades iniciales",Base!FH1137,FALSE)))))))))),FALSE),"") -> de | K61: =IFERROR(VLOOKUP($D$16,Base!$A$2:$HZ$1135,IF($D$61="Nación",EO1138,IF($D$61="Región",EP1138,IF($D$61="Departamento",EQ1138,IF($D$61="Subregión",ER1138,IF($D$61="Tipología",ES1138,IF($D$61="Entorno de desarrollo municipal",ET1138,IF($D$61="Entorno de desarrollo departamental",EU1138,IF($D$61="Esfuerzo en cierre de brechas",EV1138,IF($D$61="Categoría",EW1138,IF($D$61="Grupo capacidades iniciales",EX1138,FALSE)))))))))),FALSE),"") -> 
B63: ="Promedio Desempeño Fiscal 2017 "&IF(F12="Departamentos","de departamentos ",IF(F12="Municipios","de municipios ",""))&IF(D61="Nación","en Colombia",IF(D61="Región","en "&D17,IF(D61="Departamento","en "&D18,IF(D61="Subregión","en la subregión "&D19,IF(D61="Tipología","de tipología "&H15,IF(D61="Entorno de desarrollo municipal","con entorno de desarrollo municipal "&H16,IF(D61="Entorno de desarrollo departamental","con entorno de desarrollo departamental "&H17,IF(D61="Esfuerzo en cierre de brechas","con esfuerzo en cierre de brechas "&H18,IF(D61="Categoría","de categoría "&H19,IF(D61="Grupo capacidades iniciales","con capacidades iniciales de "&H20,"")))))))))) -> Promedio Desempeño Fiscal 2017 | H63: =IF(AND(D15<>"SELECCIONAR",D61<>"SELECCIONAR"),D15,"") -> 
B64: Autofinanciación del funcionamiento | F64: =IFERROR(VLOOKUP($D$16,Base!$A$2:$HZ$1135,IF($D$61="Nación",Base!FI1137,IF($D$61="Región",Base!FI1137+1,IF($D$61="Departamento",Base!FI1137+2,IF($D$61="Subregión",Base!FI1137+3,IF($D$61="Tipología",Base!FI1137+4,IF($D$61="Entorno de desarrollo municipal",Base!FI1137+5,IF($D$61="Entorno de desarrollo departamental",Base!FI1137+6,IF($D$61="Esfuerzo en cierre de brechas",Base!FI1137+7,IF($D$61="Categoría",Base!FI1137+8,IF($D$61="Grupo capacidades iniciales",Base!FI1137+9,FALSE)))))))))),FALSE),"") ->  | H64: =IF($H$63<>"",D24,"") -> 
B65: Magnitud de la deuda | F65: =IFERROR(VLOOKUP($D$16,Base!$A$2:$HZ$1135,IF($D$61="Nación",Base!FS1137,IF($D$61="Región",Base!FS1137+1,IF($D$61="Departamento",Base!FS1137+2,IF($D$61="Subregión",Base!FS1137+3,IF($D$61="Tipología",Base!FS1137+4,IF($D$61="Entorno de desarrollo municipal",Base!FS1137+5,IF($D$61="Entorno de desarrollo departamental",Base!FS1137+6,IF($D$61="Esfuerzo en cierre de brechas",Base!FS1137+7,IF($D$61="Categoría",Base!FS1137+8,IF($D$61="Grupo capacidades iniciales",Base!FS1137+9,FALSE)))))))))),FALSE),"") -> 
B66: Dependencia de las transferencias | F66: =IFERROR(VLOOKUP($D$16,Base!$A$2:$HZ$1135,IF($D$61="Nación",Base!GC1137,IF($D$61="Región",Base!GC1137+1,IF($D$61="Departamento",Base!GC1137+2,IF($D$61="Subregión",Base!GC1137+3,IF($D$61="Tipología",Base!GC1137+4,IF($D$61="Entorno de desarrollo municipal",Base!GC1137+5,IF($D$61="Entorno de desarrollo departamental",Base!GC1137+6,IF($D$61="Esfuerzo en cierre de brechas",Base!GC1137+7,IF($D$61="Categoría",Base!GC1137+8,IF($D$61="Grupo capacidades iniciales",Base!GC1137+9,FALSE)))))))))),FALSE),"") -> 
B67: Generación de los recursos propios | F67: =IFERROR(VLOOKUP($D$16,Base!$A$2:$HZ$1135,IF($D$61="Nación",Base!GM1137,IF($D$61="Región",Base!GM1137+1,IF($D$61="Departamento",Base!GM1137+2,IF($D$61="Subregión",Base!GM1137+3,IF($D$61="Tipología",Base!GM1137+4,IF($D$61="Entorno de desarrollo municipal",Base!GM1137+5,IF($D$61="Entorno de desarrollo departamental",Base!GM1137+6,IF($D$61="Esfuerzo en cierre de brechas",Base!GM1137+7,IF($D$61="Categoría",Base!GM1137+8,IF($D$61="Grupo capacidades iniciales",Base!GM1137+9,FALSE)))))))))),FALSE),"") -> 
B68: Magnitud de la inversión | F68: =IFERROR(VLOOKUP($D$16,Base!$A$2:$HZ$1135,IF($D$61="Nación",Base!GW1137,IF($D$61="Región",Base!GW1137+1,IF($D$61="Departamento",Base!GW1137+2,IF($D$61="Subregión",Base!GW1137+3,IF($D$61="Tipología",Base!GW1137+4,IF($D$61="Entorno de desarrollo municipal",Base!GW1137+5,IF($D$61="Entorno de desarrollo departamental",Base!GW1137+6,IF($D$61="Esfuerzo en cierre de brechas",Base!GW1137+7,IF($D$61="Categoría",Base!GW1137+8,IF($D$61="Grupo capacidades iniciales",Base!GW1137+9,FALSE)))))))))),FALSE),"") -> 
B69: Capacidad de ahorro | F69: =IFERROR(VLOOKUP($D$16,Base!$A$2:$HZ$1135,IF($D$61="Nación",Base!HG1137,IF($D$61="Región",Base!HG1137+1,IF($D$61="Departamento",Base!HG1137+2,IF($D$61="Subregión",Base!HG1137+3,IF($D$61="Tipología",Base!HG1137+4,IF($D$61="Entorno de desarrollo municipal",Base!HG1137+5,IF($D$61="Entorno de desarrollo departamental",Base!HG1137+6,IF($D$61="Esfuerzo en cierre de brechas",Base!HG1137+7,IF($D$61="Categoría",Base!HG1137+8,IF($D$61="Grupo capacidades iniciales",Base!HG1137+9,FALSE)))))))))),FALSE),"") -> 
B70: Índice de Desempeño Fiscal | F70: =IFERROR(VLOOKUP($D$16,Base!$A$2:$HZ$1135,IF($D$61="Nación",Base!HQ1137,IF($D$61="Región",Base!HQ1137+1,IF($D$61="Departamento",Base!HQ1137+2,IF($D$61="Subregión",Base!HQ1137+3,IF($D$61="Tipología",Base!HQ1137+4,IF($D$61="Entorno de desarrollo municipal",Base!HQ1137+5,IF($D$61="Entorno de desarrollo departamental",Base!HQ1137+6,IF($D$61="Esfuerzo en cierre de brechas",Base!HQ1137+7,IF($D$61="Categoría",Base!HQ1137+8,IF($D$61="Grupo capacidades iniciales",Base!HQ1137+9,FALSE)))))))))),FALSE),"") -> 
B89: Las categorizaciones de las entidades territoriales por tipología, entorno de desarrollo, esfuerzo de cierre de brechas y grupo de capacidades iniciales corresponden a análisis y ejercicios técnicos desarrollados por la Dirección de Desarrollo Territorial del DNP. Para consultar sobre la metodología de estos ejercicios, referirse al programa de Desarrollo Territorial en la página web del DNP.
D204: =+IF(F12="Departamentos",1,IF(F12="Municipios",2,0)) -> 0
D205: 0
B206: ESCRIBIR NOMBRE | D206: =+IF(F12="Departamentos","SELECCIONAR",IF(F12="Municipios","ESCRIBA NOMBRE","")) -> 
B207: ANTIOQUIA
B208: ATLANTICO | D208: -
B209: BOLIVAR
B210: BOYACA
B211: CALDAS
B212: CAQUETA
B213: CAUCA
B214: CESAR
B215: CORDOBA
B216: CUNDINAMARCA
B217: CHOCO
B218: HUILA
B219: GUAJIRA
B220: MAGDALENA
B221: META
B222: NARIÑO
B223: NORTE SANTANDER
B224: QUINDIO
B225: RISARALDA
B226: SANTANDER
B227: SUCRE
B228: TOLIMA
B229: VALLE
B230: ARAUCA
B231: CASANARE
B232: PUTUMAYO
B233: SAN ANDRES
B234: AMAZONAS
B235: GUAINIA
B236: GUAVIARE
B237: VAUPES
B238: VICHADA
B240: ESCRIBIR NOMBRE
B241: ABEJORRAL
B242: ABREGO
B243: ABRIAQUÍ
B244: ACACÍAS
B245: ACANDÍ
B246: ACEVEDO
B247: ACHÍ
B248: AGRADO
B249: AGUACHICA
B250: AGUADA
B251: AGUADAS
B252: AGUADEDIOS
B253: AGUAZUL
B254: AGUSTÍNCODAZZI
B255: AIPE
B256: ALBÁN (CUNDINAMARCA)
B257: ALBÁN (NARIÑO)
B258: ALBANIA (CAQUETA)
B259: ALBANIA (LA GUAJIRA)
B260: ALBANIA (SANTANDER)
B261: ALCALÁ
B262: ALDANA
B263: ALEJANDRÍA
B264: ALGARROBO
B265: ALGECIRAS
B266: ALMAGUER
B267: ALMEIDA
B268: ALPUJARRA
B269: ALTAMIRA
B270: ALTOBAUDO
B271: ALTOSDELROSARIO
B272: ALVARADO
B273: AMAGÁ
B274: AMALFI
B275: AMBALEMA
B276: ANAPOIMA
B277: ANCUYÁ
B278: ANDALUCÍA
B279: ANDES
B280: ANGELÓPOLIS
B281: ANGOSTURA
B282: ANOLAIMA
B283: ANORÍ
B284: ANSERMA
B285: ANSERMANUEVO
B286: ANZA
B287: ANZOÁTEGUI
B288: APARTADÓ
B289: APÍA
B290: APULO
B291: AQUITANIA
B292: ARACATACA
B293: ARANZAZU
B294: ARATOCA
B295: ARAUCA
B296: ARAUQUITA
B297: ARBELÁEZ
B298: ARBOLEDA
B299: ARBOLEDAS
B300: ARBOLETES
B301: ARCABUCO
B302: ARENAL
B303: ARGELIA (ANTIOQUIA)
B304: ARGELIA (CAUCA)
B305: ARGELIA (VALLE DEL CAUCA)
B306: ARIGUANÍ
B307: ARJONA
B308: ARMENIA (ANTIOQUIA)
B309: ARMENIA (QUINDIO)
B310: ARMERO
B311: ARROYOHONDO
B312: ASTREA
B313: ATACO
B314: ATRATO
B315: AYAPEL
B316: BAGADÓ
B317: BAHÍASOLANO
B318: BAJOBAUDÓ
B319: BALBOA (CAUCA)
B320: BALBOA (RISARALDA)
B321: BARANOA
B322: BARAYA
B323: BARBACOAS
B324: BARBOSA (ANTIOQUIA)
B325: BARBOSA (SANTANDER)
B326: BARICHARA
B327: BARRANCABERMEJA
B328: BARRANCADEUPÍA
B329: BARRANCAS
B330: BARRANCODELOBA
B331: BARRANQUILLA
B332: BECERRIL
B333: BELALCÁZAR
B334: BELÉN (BOYACÁ)
B335: BELÉN (NARIÑO)
B336: BELÉNDELOSANDAQUIES
B337: BELÉNDEUMBRÍA
B338: BELLO
B339: BELMIRA
B340: BELTRÁN
B341: BERBEO
B342: BETANIA
B343: BETÉITIVA
B344: BETULIA (ANTIOQUIA)
B345: BETULIA (SANTANDER)
B346: BITUIMA
B347: BOAVITA
B348: BOCHALEMA
... 993 more rows

Sheet Base (hidden)
A1: cod | B1: nombre | C1: et | D1: region | E1: depar | F1: subreg | G1: tipo | H1: entomun | I1: entodpto | J1: esfuerzo | K1: cat | L1: capini | M1: i171 | N1: i172 | O1: i173 | P1: i174 | Q1: i175 | R1: i176 | S1: i17t | T1: c17 | U1: i121 | V1: i122 | W1: i123 | X1: i124 | Y1: i125 | Z1: i126 | AA1: i12t | AB1: c12 | AC1: i131 | AD1: i132 | AE1: i133 | AF1: i134 | AG1: i135 | AH1: i136 | AI1: i13t | AJ1: c13 | AK1: i141 | AL1: i142 | AM1: i143 | AN1: i144 | AO1: i145 | AP1: i146 | AQ1: i14t | AR1: c14 | AS1: i151 | AT1: i152 | AU1: i153 | AV1: i154 | AW1: i155 | AX1: i156 | AY1: i15t | AZ1: c15 | BA1: i161 | BB1: i162 | BC1: i163 | BD1: i164 | BE1: i165 | BF1: i166 | BG1: i16t | BH1: c16 | BI1: L17 | BJ1: L12 | BK1: L13 | BL1: L14 | BM1: L15 | BN1: L16 | BO1: var171 | BP1: var172 | BQ1: var173 | BR1: var174 | BS1: var175 | BT1: var176 | BU1: var177 | BV1: var178 | BW1: var179 | BX1: var1710 | BY1: var1711 | BZ1: var1712 | CA1: var1713 | CB1: var121 | CC1: var122 | CD1: var123 | CE1: var124 | CF1: var125 | CG1: var126 | CH1: var127 | CI1: var128 | CJ1: var129 | CK1: var1210 | CL1: var1211 | CM1: var1212 | CN1: var1213 | CO1: var131 | CP1: var132 | CQ1: var133 | CR1: var134 | CS1: var135 | CT1: var136 | CU1: var137 | CV1: var138 | CW1: var139 | CX1: var1310 | CY1: var1311 | CZ1: var1312 | DA1: var1313 | DB1: var141 | DC1: var142 | DD1: var143 | DE1: var144 | DF1: var145 | DG1: var146 | DH1: var147 | DI1: var148 | DJ1: var149 | DK1: var1410 | DL1: var1411 | DM1: var1412 | DN1: var1413 | DO1: var151 | DP1: var152 | DQ1: var153 | DR1: var154 | DS1: var155 | DT1: var156 | DU1: var157 | DV1: var158 | DW1: var159 | DX1: var1510 | DY1: var1511 | DZ1: var1512 | EA1: var1513 | EB1: var161 | EC1: var162 | ED1: var163 | EE1: var164 | EF1: var165 | EG1: var166 | EH1: var167 | EI1: var168 | EJ1: var169 | EK1: var1610 | EL1: var1611 | EM1: var1612 | EN1: var1613 | EO1: r1 | EP1: r2 | EQ1: r3 | ER1: r4 | ES1: r5 | ET1: r6 | EU1: r7 | EV1: r8 | EW1: r9 | EX1: r10 | EY1: t1 | EZ1: t2 | FA1: t3 | FB1: t4 | FC1: t5 | FD1: t6 | FE1: t7 | FF1: t8 | FG1: t9 | FH1: t10 | FI1: p1ian1 | FJ1: p2ian1 | FK1: p3ian1 | FL1: p4ian1 | FM1: p5ian1 | FN1: p6ian1 | FO1: p7ian1 | FP1: p8ian1 | FQ1: p9ian1 | FR1: p10ian1 | FS1: p1ian2 | FT1: p2ian2 | FU1: p3ian2 | FV1: p4ian2 | FW1: p5ian2 | FX1: p6ian2 | FY1: p7ian2 | FZ1: p8ian2 | GA1: p9ian2 | GB1: p10ian2 | GC1: p1ian3 | GD1: p2ian3 | GE1: p3ian3 | GF1: p4ian3 | GG1: p5ian3 | GH1: p6ian3 | GI1: p7ian3 | GJ1: p8ian3 | GK1: p9ian3 | GL1: p10ian3 | GM1: p1ian4 | GN1: p2ian4 | GO1: p3ian4 | GP1: p4ian4 | GQ1: p5ian4 | GR1: p6ian4 | GS1: p7ian4 | GT1: p8ian4 | GU1: p9ian4 | GV1: p10ian4 | GW1: p1ian5 | GX1: p2ian5 | GY1: p3ian5 | GZ1: p4ian5 | HA1: p5ian5 | HB1: p6ian5 | HC1: p7ian5 | HD1: p8ian5 | HE1: p9ian5 | HF1: p10ian5 | HG1: p1ian6 | HH1: p2ian6 | HI1: p3ian6 | HJ1: p4ian6 | HK1: p5ian6 | HL1: p6ian6 | HM1: p7ian6 | HN1: p8ian6 | HO1: p9ian6 | HP1: p10ian6 | HQ1: p1iant | HR1: p2iant | HS1: p3iant | HT1: p4iant | HU1: p5iant | HV1: p6iant | HW1: p7iant | HX1: p8iant | HY1: p9iant | HZ1: p10iant
A2: 5 | B2: ANTIOQUIA | C2: 2 | D2: EJE CAFETERO | E2: NA | F2: NA | G2: B | H2: NA | I2: Robusto | J2: alto | K2: E | L2: NA | M2: 40.4 | N2: 7.439649181 | O2: 33.13490667 | P2: 79.78876955 | Q2: 70.30306256 | R2: 49.28789006 | S2: =AVERAGE(VLOOKUP($A2,Cont!$A$3:$L$1135,3,FALSE),(100-Base!N2),(100-Base!O2),Base!P2,Base!Q2,Base!R2) -> 76.46752772 | T2: =IF(OR(S2=999),"6. Sin info.",IF(S2=8888,"0. No evaluado",IF(S2<40,"1. Deterioro (<40)",IF(AND(S2>=40,S2<60),"2. Riesgo (>=40 y <60)",IF(AND(S2>=60,S2<70),"3. Vulnerable (>=60 y <70)",IF(AND(S2>=70,S2<80),"4. Sostenible (>=70 y <80)","5. Solvente (>=80)")))))) -> 4. Sostenible (>=70 y <80) | U2: 37.56618267 | V2: 4.060726326 | W2: 38.68223955 | X2: 60.2298703 | Y2: 71.23429772 | Z2: 46.19281155 | AA2: =AVERAGE(VLOOKUP($A2,Cont!$A$3:$L$1135,4,FALSE),(100-Base!V2),(100-Base!W2),Base!X2,Base!Y2,Base!Z2) -> 72.48566895 | AB2: =IF(OR(AA2=999),"6. Sin info.",IF(AA2=8888,"0. No evaluado",IF(AA2<40,"1. Deterioro (<40)",IF(AND(AA2>=40,AA2<60),"2. Riesgo (>=40 y <60)",IF(AND(AA2>=60,AA2<70),"3. Vulnerable (>=60 y <70)",IF(AND(AA2>=70,AA2<80),"4. Sostenible (>=70 y <80)","5. Solvente (>=80)")))))) -> 4. Sostenible (>=70 y <80) | AC2: 41.8 | AD2: 5.22 | AE2: 46.38 | AF2: 62.75 | AG2: 74.5 | AH2: 47.36 | AI2: =AVERAGE(VLOOKUP($A2,Cont!$A$3:$L$1135,5,FALSE),(100-Base!AD2),(100-Base!AE2),Base!AF2,Base!AG2,Base!AH2) -> 72.16833333 | AJ2: =IF(OR(AI2=999),"6. Sin info.",IF(AI2=8888,"0. No evaluado",IF(AI2<40,"1. Deterioro (<40)",IF(AND(AI2>=40,AI2<60),"2. Riesgo (>=40 y <60)",IF(AND(AI2>=60,AI2<70),"3. Vulnerable (>=60 y <70)",IF(AND(AI2>=70,AI2<80),"4. Sostenible (>=70 y <80)","5. Solvente (>=80)")))))) -> 4. Sostenible (>=70 y <80) | AK2: 44.36166222 | AL2: 4.601098062 | AM2: 43.51445911 | AN2: 63.46528988 | AO2: 75.45955626 | AP2: 48.39913439 | AQ2: =AVERAGE(VLOOKUP($A2,Cont!$A$3:$L$1135,6,FALSE),(100-Base!AL2),(100-Base!AM2),Base!AN2,Base!AO2,Base!AP2) -> 73.20140389 | AR2: =IF(OR(AQ2=999),"6. Sin info.",IF(AQ2=8888,"0. No evaluado",IF(AQ2<40,"1. Deterioro (<40)",IF(AND(AQ2>=40,AQ2<60),"2. Riesgo (>=40 y <60)",IF(AND(AQ2>=60,AQ2<70),"3. Vulnerable (>=60 y <70)",IF(AND(AQ2>=70,AQ2<80),"4. Sostenible (>=70 y <80)","5. Solvente (>=80)")))))) -> 4. Sostenible (>=70 y <80) | AS2: 53.96955487 | AT2: 5.315630512 | AU2: 40.94836307 | AV2: 67.82085144 | AW2: 74.47373121 | AX2: 42.00485514 | AY2: =AVERAGE(VLOOKUP($A2,Cont!$A$3:$L$1135,7,FALSE),(100-Base!AT2),(100-Base!AU2),Base!AV2,Base!AW2,Base!AX2) -> 71.68272241 | AZ2: =IF(OR(AY2=999),"6. Sin info.",IF(AY2=8888,"0. No evaluado",IF(AY2<40,"1. Deterioro (<40)",IF(AND(AY2>=40,AY2<60),"2. Riesgo (>=40 y <60)",IF(AND(AY2>=60,AY2<70),"3. Vulnerable (>=60 y <70)",IF(AND(AY2>=70,AY2<80),"4. Sostenible (>=70 y <80)","5. Solvente (>=80)")))))) -> 4. Sostenible (>=70 y <80) | BA2: 38.7 | BB2: 8.376163294 | BC2: 35.8782256 | BD2: 90.43495548 | BE2: 68.94920898 | BF2: 45.65229896 | BG2: =AVERAGE(VLOOKUP($A2,Cont!$A$3:$L$1135,3,FALSE),(100-Base!BB2),(100-Base!BC2),Base!BD2,Base!BE2,Base!BF2) -> 76.79701242 | BH2: =IF(OR(BG2=999),"6. Sin info.",IF(BG2=8888,"0. No evaluado",IF(BG2<40,"1. Deterioro (<40)",IF(AND(BG2>=40,BG2<60),"2. Riesgo (>=40 y <60)",IF(AND(BG2>=60,BG2<70),"3. Vulnerable (>=60 y <70)",IF(AND(BG2>=70,BG2<80),"4. Sostenible (>=70 y <80)","5. Solvente (>=80)")))))) -> 4. Sostenible (>=70 y <80) | BI2: 0.5 | BJ2: 0.5 | BK2: 0.5 | BL2: 0.5 | BM2: 0.5 | BN2: 0.5 | BO2: 1347661.169 | BP2: 543823.259 | BQ2: 165424.752 | BR2: 2223555.815 | BS2: 8419.260608 | BT2: 1263330.898 | BU2: 0 | BV2: 3838097.904 | BW2: 1246505.98 | BX2: 2215136.555 | BY2: 2659345.501 | BZ2: 3782687.986 | CA2: 1123342.485 | CB2: 1303937.797 | CC2: 489839.6548 | CD2: 81945.81802 | CE2: 2018008.884 | CF2: 58870.63029 | CG2: 1379537.255 | CH2: 0 | CI2: 3718522.77 | CJ2: 1179986.429 | CK2: 1959138.254 | CL2: 2610475.071 | CM2: 3664632.283 | CN2: 1054157.212 | CO2: 1336084.493 | CP2: 558502.6233 | CQ2: 128901.1911 | CR2: 2469471.547 | CS2: 429038.5029 | CT2: 1485263.286 | CU2: 0 | CV2: 4127177.799 | CW2: 1280277.001 | CX2: 2040433.044 | CY2: 3138006.568 | CZ2: 4212145.377 | DA2: 1074138.81 | DB2: 1333623.094 | DC2: 591617.3721 | DD2: 108385.5906 | DE2: 2355646.177 | DF2: 287215.9645 | DG2: 1463301.642 | DH2: 0 | DI2: 4022841.239 | DJ2: 1312735.23 | DK2: 2068430.213 | DL2: 3281932.883 | DM2: 4349260.777 | DN2: 1067327.894 | DO2: 1074961.899 | DP2: 580152.1521 | DQ2: 106253.9938 | DR2: 1998897.413 | DS2: 187001.0047 | DT2: 1294711.638 | DU2: 0 | DV2: 3618490.495 | DW2: 1228843.617 | DX2: 1811896.408 | DY2: 3065778.55 | DZ2: 4116590.569 | EA2: 1050811.95 | EB2: 1386698.985 | EC2: 536676.6213 | ED2: 190591.3246 | EE2: 2275401.253 | EF2: 125737.8003 | EG2: 1310639.624 | EH2: 0 | EI2: 4003479.55 | EJ2: 1944047.187 | EK2: 2149663.453 | EL2: 2594228.764 | EM2: 3762521.431 | EN2: 1168292.667 | EO2: 8 | EP2: 2 | ES2: 2 | EU2: 3 | EV2: 4 | EW2: 3 | EY2: 32 | EZ2: 4 | FC2: 4 | FE2: 5 | FF2: 21 | FG2: 3 | FI2: 52.89375 | FJ2: 47.75 | FM2: 42.075 | FO2: 42.26 | FP2: 54.25714 | FQ2: 43.83333 | FS2: 5.035376 | FT2: 5.40389 | FW2: 3.632047 | FY2: 5.990863 | FZ2: 5.816873 | GA2: 7.699504 | GC2: 62.68224 | GD2: 46.92319 | GG2: 46.24986 | GI2: 44.27166 | GJ2: 65.9015 | GK2: 34.65042 | GM2: 74.7691 | GN2: 81.97777 | GQ2: 65.25327 | GS2: 68.73356 | GT2: 77.85677 | GU2: 83.44574 | GW2: 84.34762 | GX2: 76.79386 | HA2: 72.41777 | HC2: 73.10487 | HD2: 85.97284 | HE2: 74.59515 | HG2: 44.54409 | HH2: 50.22984 | HK2: 52.54674 | HM2: 53.21169 | HN2: 42.02943 | HO2: 53.91224 | HQ2: 71.92803 | HR2: 76.1124 | HU2: 73.38931 | HW2: 74.13126 | HX2: 71.82767 | HY2: 78.2672
A3: 8 | B3: ATLANTICO | C3: 2 | D3: CARIBE | E3: NA | F3: NA | G3: C | H3: NA | I3: Intermedio | J3: medioalto | K3: 1 | L3: NA | M3: 29.9 | N3: 7.474454791 | O3: 35.87720827 | P3: 71.81924743 | Q3: 82.14747127 | R3: 66.21020507 | S3: =AVERAGE(VLOOKUP($A3,Cont!$A$3:$L$1135,3,FALSE),(100-Base!N3),(100-Base!O3),Base!P3,Base!Q3,Base!R3) -> 79.47087678 | T3: 4. Sostenible (>=70 y <80) | U3: 53.55669422 | V3: 8.640123271 | W3: 40.34123332 | X3: 79.13515504 | Y3: 74.41960125 | Z3: 58.60128031 | AA3: =AVERAGE(VLOOKUP($A3,Cont!$A$3:$L$1135,4,FALSE),(100-Base!V3),(100-Base!W3),Base!X3,Base!Y3,Base!Z3) -> 77.19578 | AB3: 4. Sostenible (>=70 y <80) | AC3: 48.21 | AD3: 12.14 | AE3: 48.04 | AF3: 80.4 | AG3: 75.49 | AH3: 52.35 | AI3: =AVERAGE(VLOOKUP($A3,Cont!$A$3:$L$1135,5,FALSE),(100-Base!AD3),(100-Base!AE3),Base!AF3,Base!AG3,Base!AH3) -> 74.67666667 | AJ3: 4. Sostenible (>=70 y <80) | AK3: 39.34192809 | AL3: 5.802420425 | AM3: 51.51042648 | AN3: 79.14434627 | AO3: 83.87385766 | AP3: 68.65659761 | AQ3: =AVERAGE(VLOOKUP($A3,Cont!$A$3:$L$1135,6,FALSE),(100-Base!AL3),(100-Base!AM3),Base!AN3,Base!AO3,Base!AP3) -> 79.06032577 | AR3: 4. Sostenible (>=70 y <80) | AS3: 39.72431088 | AT3: 5.344657617 | AU3: 48.82776926 | AV3: 79.95115631 | AW3: 85.95910553 | AX3: 67.58942977 | AY3: =AVERAGE(VLOOKUP($A3,Cont!$A$3:$L$1135,7,FALSE),(100-Base!AT3),(100-Base!AU3),Base!AV3,Base!AW3,Base!AX3) -> 79.88787745 | AZ3: 4. Sostenible (>=70 y <80) | BA3: 40.2 | BB3: 6.533336489 | BC3: 40.39517345 | BD3: 77.25677019 | BE3: 82.61561937 | BF3: 66.27588168 | BG3: =AVERAGE(VLOOKUP($A3,Cont!$A$3:$L$1135,3,FALSE),(100-Base!BB3),(100-Base!BC3),Base!BD3,Base!BE3,Base!BF3) -> 79.86996022 | BH3: 4. Sostenible (>=70 y <80) | BI3: 0.55 | BJ3: 0.55 | BK3: 0.55 | BL3: 0.55 | BM3: 0.55 | BN3: 0.55 | BO3: 235828.251 | BP3: 70519.481 | BQ3: 47984.629 | BR3: 641981.6608 | BS3: 14876.33306 | BT3: 376758.308 | BU3: 0 | BV3: 1091597.312 | BW3: 450382.327 | BX3: 627105.3277 | BY3: 975035.6723 | BZ3: 1186933.277 | CA3: 211897.6042 | CB3: 154246.2656 | CC3: 82609.2008 | CD3: 38185.18194 | CE3: 441951.8187 | CF3: 161.7802636 | CG3: 307220.6051 | CH3: 0 | CI3: 761955.8454 | CJ3: 349611.2319 | CK3: 441790.0385 | CL3: 532087.2568 | CM3: 714982.6764 | CN3: 182895.4196 | CO3: 179875.4124 | CP3: 86718.67174 | CQ3: 89679.62356 | CR3: 738474.1672 | CS3: 221449.1194 | CT3: 317802.8222 | CU3: 0 | CV3: 1122559.188 | CW3: 415704.4935 | CX3: 517025.0478 | CY3: 758847.6825 | CZ3: 1005209.411 | DA3: 246361.7282 | DB3: 249799.0856 | DC3: 98275.77663 | DD3: 49073.03794 | DE3: 845733.9239 | DF3: 269832.2204 | DG3: 351424.8429 | DH3: 0 | DI3: 1206080.217 | DJ3: 455793.6384 | DK3: 575901.7035 | DL3: 938837.9379 | DM3: 1119345.126 | DN3: 180507.1883 | DO3: 227511.5635 | DP3: 90377.40076 | DQ3: 40868.95284 | DR3: 764669.0905 | DS3: 203719.0502 | DT3: 350938.5083 | DU3: 0 | DV3: 1135946.911 | DW3: 448486.062 | DX3: 560950.0403 | DY3: 1113032.837 | DZ3: 1294839.876 | EA3: 181807.1075 | EB3: 218261.0645 | EC3: 87639.63826 | ED3: 44449.55374 | EE3: 680349.9837 | EF3: 101101.4996 | EG3: 333840.4645 | EH3: 0 | EI3: 1076717.655 | EJ3: 447508.6702 | EK3: 579248.4841 | EL3: 928342.9657 | EM3: 1123689.41 | EN3: 195346.4441 | EO3: 4 | EP3: 2 | ES3: 2 | EU3: 4 | EV3: 2 | EW3: 1 | EY3: 32 | EZ3: 8 | FC3: 7 | FE3: 21 | FF3: 11 | FG3: 3 | FI3: 52.89375 | FJ3: 48.925 | FM3: 49.32857 | FO3: 49.96191 | FP3: 50.29091 | FQ3: 39.6 | FS3: 5.035376 | FT3: 8.596195 | FW3: 4.045146 | FY3: 3.915744 | FZ3: 3.543429 | GA3: 6.299618 | GC3: 62.68224 | GD3: 62.5849 | GG3: 52.43681 | GI3: 63.56422 | GJ3: 56.53639 | GK3: 48.03237 | GM3: 74.7691 | GN3: 80.31817 | GQ3: 85.13231 | GS3: 77.63528 | GT3: 68.87447 | GU3: 83.87862 | GW3: 84.34762 | GX3: 84.12232 | HA3: 82.25257 | HC3: 85.7773 | HD3: 81.24493 | HE3: 81.68346 | HG3: 44.54409 | HH3: 47.63265 | HK3: 50.73832 | HM3: 45.71564 | HN3: 49.34483 | HO3: 52.6953 | HQ3: 71.92803 | HR3: 72.91257 | HU3: 76.33704 | HW3: 73.4017 | HX3: 72.11962 | HY3: 77.3209
A4: 13 | B4: BOLIVAR | C4: 2 | D4: CARIBE | E4: NA | F4: NA | G4: C | H4: NA | I4: Intermedio | J4: alto | K4: 3 | L4: NA | M4: 66.4 | N4: 1.217684291 | O4: 59.07852689 | P4: 78.83066071 | Q4: 83.53001389 | R4: 46.81626444 | S4: =AVERAGE(VLOOKUP($A4,Cont!$A$3:$L$1135,3,FALSE),(100-Base!N4),(100-Base!O4),Base!P4,Base!Q4,Base!R4) -> 70.59123242 | T4: 4. Sostenible (>=70 y <80) | U4: 56.82366941 | V4: 0.5454152159 | W4: 70.16500756 | X4: 89.14741127 | Y4: 82.32082739 | Z4: 46.246547 | AA4: =AVERAGE(VLOOKUP($A4,Cont!$A$3:$L$1135,4,FALSE),(100-Base!V4),(100-Base!W4),Base!X4,Base!Y4,Base!Z4) -> 74.50072715 | AB4: 4. Sostenible (>=70 y <80) | AC4: 61.58 | AD4: 0.37 | AE4: 72.76 | AF4: 92.12 | AG4: 85 | AH4: 41.99 | AI4: =AVERAGE(VLOOKUP($A4,Cont!$A$3:$L$1135,5,FALSE),(100-Base!AD4),(100-Base!AE4),Base!AF4,Base!AG4,Base!AH4) -> 73.67120148 | AJ4: 4. Sostenible (>=70 y <80) | AK4: 71.66204103 | AL4: 0.3697391385 | AM4: 65.56220298 | AN4: 91.56501681 | AO4: 74.86200481 | AP4: 0.2416681024 | AQ4: =AVERAGE(VLOOKUP($A4,Cont!$A$3:$L$1135,6,FALSE),(100-Base!AL4),(100-Base!AM4),Base!AN4,Base!AO4,Base!AP4) -> 61.93027417 | AR4: 3. Vulnerable (>=60 y <70) | AS4: 59.36992612 | AT4: 1.133828152 | AU4: 66.90928687 | AV4: 89.02203518 | AW4: 85.6126677 | AX4: 45.83503351 | AY4: =AVERAGE(VLOOKUP($A4,Cont!$A$3:$L$1135,7,FALSE),(100-Base!AT4),(100-Base!AU4),Base!AV4,Base!AW4,Base!AX4) -> 75.4044369 | AZ4: 4. Sostenible (>=70 y <80) | BA4: 50.6 | BB4: 5.567809184 | BC4: 57.56249272 | BD4: 91.39679351 | BE4: 81.58858485 | BF4: 28.84877934 | BG4: =AVERAGE(VLOOKUP($A4,Cont!$A$3:$L$1135,3,FALSE),(100-Base!BB4),(100-Base!BC4),Base!BD4,Base!BE4,Base!BF4) -> 68.89508708 | BH4: 3. Vulnerable (>=60 y <70) | BI4: 0.55 | BJ4: 0.6 | BK4: 0.6 | BL4: 0.6 | BM4: 0.6 | BN4: 0.6 | BO4: 209792.624 | BP4: 139308.633 | BQ4: 4563.282 | BR4: 374750.831 | BS4: 5647.422 | BT4: 676446.659 | BU4: 569.251 | BV4: 1155518.541 | BW4: 290966.656 | BX4: 369103.409 | BY4: 995580.119 | BZ4: 1191883.1 | CA4: 196302.981 | CB4: 187223.7763 | CC4: 106387.4197 | CD4: 2334.217993 | CE4: 427970.8239 | CF4: 108382.6016 | CG4: 678182.0144 | CH4: 13430.36247 | CI4: 1140162.321 | CJ4: 284904.6269 | CK4: 319588.2223 | CL4: 799916.9957 | CM4: 971706.7006 | CN4: 171789.7049 | CO4: 188442.316 | CP4: 116044.882 | CQ4: 2331.617329 | CR4: 624601.057 | CS4: 295924.5268 | CT4: 606041.1152 | CU4: 2081.074043 | CV4: 1242426.342 | CW4: 302769.3674 | CX4: 328676.5302 | CY4: 1080126.452 | CZ4: 1270790.957 | DA4: 190664.5043 | DB4: 203205.3158 | DC4: 145621.0768 | DD4: 2619.193809 | DE4: 708389.6554 | DF4: 344774.4557 | DG4: 643850.9063 | DH4: 111.8883062 | DI4: 1508090.341 | DJ4: 332944.3188 | DK4: 363615.1997 | DL4: 1080244.397 | DM4: 1442980.854 | DN4: 362736.4578 | DO4: 198189.7538 | DP4: 117665.1104 | DQ4: 5704.34872 | DR4: 503105.5358 | DS4: 151737.9064 | DT4: 569553.5504 | DU4: 2.256541035 | DV4: 1078017.305 | DW4: 312794.6051 | DX4: 351367.6295 | DY4: 1132499.357 | DZ4: 1322817.546 | EA4: 190318.1545 | EB4: 202855.4228 | EC4: 102683.1466 | ED4: 23468.03043 | EE4: 421494.8763 | EF4: 100317.4214 | EG4: 616494.8454 | EH4: 0 | EI4: 1245276.625 | EJ4: 293545.8953 | EK4: 321177.4549 | EL4: 1012673.947 | EM4: 1241195.627 | EN4: 228521.6796 | EO4: 21 | EP4: 6 | ES4: 7 | EU4: 16 | EV4: 14 | EW4: 7 | EY4: 32 | EZ4: 8 | FC4: 7 | FE4: 21 | FF4: 21 | FG4: 8 | FI4: 52.89375 | FJ4: 48.925 | FM4: 49.32857 | FO4: 49.96191 | FP4: 54.25714 | FQ4: 48.8625 | FS4: 5.035376 | FT4: 8.596195 | FW4: 4.045146 | FY4: 3.915744 | FZ4: 5.816873 | GA4: 3.116657 | GC4: 62.68224 | GD4: 62.5849 | GG4: 52.43681 | GI4: 63.56422 | GJ4: 65.9015 | GK4: 63.28132 | GM4: 74.7691 | GN4: 80.31817 | GQ4: 85.13231 | GS4: 77.63528 | GT4: 77.85677 | GU4: 77.6348 | GW4: 84.34762 | GX4: 84.12232 | HA4: 82.25257 | HC4: 85.7773 | HD4: 85.97284 | HE4: 82.64339 | HG4: 44.54409 | HH4: 47.63265 | HK4: 50.73832 | HM4: 45.71564 | HN4: 42.02943 | HO4: 47.25354 | HQ4: 71.92803 | HR4: 72.91257 | HU4: 76.33704 | HW4: 73.4017 | HX4: 71.82767 | HY4: 72.99451
A5: 15 | B5: BOYACA | C5: 2 | D5: CENTRO ORIENTE | E5: NA | F5: NA | G5: C | H5: NA | I5: Intermedio | J5: medioalto | K5: 1 | L5: NA | M5: 51.4 | N5: 3.918372273 | O5: 62.68850616 | P5: 89.21849552 | Q5: 86.3664327 | R5: 49.41123861 | S5: =AVERAGE(VLOOKUP($A5,Cont!$A$3:$L$1135,3,FALSE),(100-Base!N5),(100-Base!O5),Base!P5,Base!Q5,Base!R5) -> 76.39821473 | T5: 4. Sostenible (>=70 y <80) | U5: 31.01074189 | V5: 11.08975789 | W5: 67.73195091 | X5: 90.83908617 | Y5: 83.59204997 | Z5: 47.69210627 | AA5: =AVERAGE(VLOOKUP($A5,Cont!$A$3:$L$1135,4,FALSE),(100-Base!V5),(100-Base!W5),Base!X5,Base!Y5,Base!Z5) -> 73.88358894 | AB5: 4. Sostenible (>=70 y <80) | AC5: 54.72 | AD5: 7.17 | AE5: 67.08 | AF5: 91.75 | AG5: 83.94 | AH5: 45.47 | AI5: =AVERAGE(VLOOKUP($A5,Cont!$A$3:$L$1135,5,FALSE),(100-Base!AD5),(100-Base!AE5),Base!AF5,Base!AG5,Base!AH5) -> 74.485 | AJ5: 4. Sostenible (>=70 y <80) | AK5: 48.39516821 | AL5: 4.377695333 | AM5: 59.77699131 | AN5: 89.98481311 | AO5: 88.51374706 | AP5: 50.4369888 | AQ5: =AVERAGE(VLOOKUP($A5,Cont!$A$3:$L$1135,6,FALSE),(100-Base!AL5),(100-Base!AM5),Base!AN5,Base!AO5,Base!AP5) -> 77.46347705 | AR5: 4. Sostenible (>=70 y <80) | AS5: 48.03405039 | AT5: 3.092390186 | AU5: 54.53534541 | AV5: 74.78818488 | AW5: 89.43045175 | AX5: 61.95963321 | AY5: =AVERAGE(VLOOKUP($A5,Cont!$A$3:$L$1135,7,FALSE),(100-Base!AT5),(100-Base!AU5),Base!AV5,Base!AW5,Base!AX5) -> 78.09175571 | AZ5: 4. Sostenible (>=70 y <80) | BA5: 52.7 | BB5: 3.775063806 | BC5: 52.42676808 | BD5: 91.08753452 | BE5: 75.52208722 | BF5: -3.609164656 | BG5: =AVERAGE(VLOOKUP($A5,Cont!$A$3:$L$1135,3,FALSE),(100-Base!BB5),(100-Base!BC5),Base!BD5,Base!BE5,Base!BF5) -> 67.79977087 | BH5: 3. Vulnerable (>=60 y <70) | BI5: 0.55 | BJ5: 0.55 | BK5: 0.55 | BL5: 0.55 | BM5: 0.55 | BN5: 0.55 | BO5: 184314.823 | BP5: 94668.309 | BQ5: 14081.568 | BR5: 359372.8982 | BS5: 40358.65753 | BT5: 601306.867 | BU5: 0 | BV5: 1023577.628 | BW5: 284619.706 | BX5: 319014.2407 | BY5: 1022349.978 | BZ5: 1183735.331 | CA5: 161385.353 | CB5: 170138.8982 | CC5: 52761.33456 | CD5: 42521.40865 | CE5: 383429.5489 | CF5: 102920.3598 | CG5: 577451.6556 | CH5: 138.5314763 | CI5: 1004711.274 | CJ5: 254811.984 | CK5: 280509.1891 | CL5: 747523.7172 | CM5: 894252.1657 | CN5: 146728.4485 | CO5: 173137.557 | CP5: 94732.53239 | CQ5: 32319.26522 | CR5: 450832.6183 | CS5: 168520.3407 | CT5: 559518.0977 | CU5: 0 | CV5: 1085313.257 | CW5: 259020.6832 | CX5: 282312.2776 | CY5: 804660.3042 | CZ5: 958604.1527 | DA5: 153943.8485 | DB5: 175058.1084 | DC5: 84719.66601 | DD5: 23524.97532 | DE5: 537382.6531 | DF5: 252167.0602 | DG5: 546427.2893 | DH5: 139.229849 | DI5: 1336188.995 | DJ5: 256650.7182 | DK5: 285215.5929 | DL5: 1089339.62 | DM5: 1230701.056 | DN5: 141361.4363 | DO5: 182082.864 | DP5: 87461.77465 | DQ5: 20189.1625 | DR5: 652866.0965 | DS5: 263476.1969 | DT5: 514925.2705 | DU5: 0 | DV5: 1427333.924 | DW5: 291217.6349 | DX5: 389389.8996 | DY5: 1253309.613 | DZ5: 1401435.024 | EA5: 148125.3423 | EB5: 182373.2567 | EC5: 96020.66528 | ED5: 17649.85951 | EE5: 467538.0448 | EF5: 158084.5464 | EG5: 549496.9078 | EH5: 0 | EI5: 1349656.826 | EJ5: 281873.5622 | EK5: 309453.4984 | EL5: 989220.6421 | EM5: 1309842.827 | EN5: 320622.1847 | EO5: 9 | EP5: 2 | ES5: 4 | EU5: 6 | EV5: 5 | EW5: 2 | EY5: 32 | EZ5: 4 | FC5: 7 | FE5: 21 | FF5: 11 | FG5: 3 | FI5: 52.89375 | FJ5: 44.2 | FM5: 49.32857 | FO5: 49.96191 | FP5: 50.29091 | FQ5: 39.6 | FS5: 5.035376 | FT5: 7.764167 | FW5: 4.045146 | FY5: 3.915744 | FZ5: 3.543429 | GA5: 6.299618 | GC5: 62.68224 | GD5: 52.76932 | GG5: 52.43681 | GI5: 63.56422 | GJ5: 56.53639 | GK5: 48.03237 | GM5: 74.7691 | GN5: 88.79459 | GQ5: 85.13231 | GS5: 77.63528 | GT5: 68.87447 | GU5: 83.87862 | GW5: 84.34762 | GX5: 80.98303 | HA5: 82.25257 | HC5: 85.7773 | HD5: 81.24493 | HE5: 81.68346 | HG5: 44.54409 | HH5: 47.41685 | HK5: 50.73832 | HM5: 45.71564 | HN5: 49.34483 | HO5: 52.6953 | HQ5: 71.92803 | HR5: 76.11017 | HU5: 76.33704 | HW5: 73.4017 | HX5: 72.11962 | HY5: 77.3209
A6: 17 | B6: CALDAS | C6: 2 | D6: EJE CAFETERO | E6: NA | F6: NA | G6: D | H6: NA | I6: Intermedio | J6: alto | K6: 2 | L6: NA | M6: 57.2 | N6: 7.087372263 | O6: 53.69245926 | P6: 85.24067898 | Q6: 79.3218214 | R6: 42.76381787 | S6: =AVERAGE(VLOOKUP($A6,Cont!$A$3:$L$1135,3,FALSE),(100-Base!N6),(100-Base!O6),Base!P6,Base!Q6,Base!R6) -> 74.42441445 | T6: 4. Sostenible (>=70 y <80) | U6: 55.11303963 | V6: 8.312599023 | W6: 58.19258816 | X6: 87.25181005 | Y6: 81.3870185 | Z6: 43.69581497 | AA6: =AVERAGE(VLOOKUP($A6,Cont!$A$3:$L$1135,4,FALSE),(100-Base!V6),(100-Base!W6),Base!X6,Base!Y6,Base!Z6) -> 74.30490939 | AB6: 4. Sostenible (>=70 y <80) | AC6: 55.38 | AD6: 0.93 | AE6: 71.25 | AF6: 88.58 | AG6: 83.9 | AH6: 36.67 | AI6: =AVERAGE(VLOOKUP($A6,Cont!$A$3:$L$1135,5,FALSE),(100-Base!AD6),(100-Base!AE6),Base!AF6,Base!AG6,Base!AH6) -> 72.82833333 | AJ6: 4. Sostenible (>=70 y <80) | AK6: 53.21348314 | AL6: 1.111957726 | AM6: 71.46616749 | AN6: 85.67964833 | AO6: 86.18509319 | AP6: 47.80607331 | AQ6: =AVERAGE(VLOOKUP($A6,Cont!$A$3:$L$1135,6,FALSE),(100-Base!AL6),(100-Base!AM6),Base!AN6,Base!AO6,Base!AP6) -> 74.51544827 | AR6: 4. Sostenible (>=70 y <80) | AS6: 53.56202246 | AT6: 2.946000062 | AU6: 61.46751561 | AV6: 85.23360646 | AW6: 79.32073116 | AX6: 26.20293599 | AY6: =AVERAGE(VLOOKUP($A6,Cont!$A$3:$L$1135,7,FALSE),(100-Base!AT6),(100-Base!AU6),Base!AV6,Base!AW6,Base!AX6) -> 71.05729299 | AZ6: 4. Sostenible (>=70 y <80) | BA6: 51.9 | BB6: 5.629489142 | BC6: 62.00874703 | BD6: 83.51930418 | BE6: 80.85991215 | BF6: 45.22617237 | BG6: =AVERAGE(VLOOKUP($A6,Cont!$A$3:$L$1135,3,FALSE),(100-Base!BB6),(100-Base!BC6),Base!BD6,Base!BE6,Base!BF6) -> 73.66119209 | BH6: 4. Sostenible (>=70 y <80) | BI6: 0.6 | BJ6: 0.6 | BK6: 0.6 | BL6: 0.6 | BM6: 0.6 | BN6: 0.6 | BO6: 101578.884 | BP6: 58069.193 | BQ6: 16014.697 | BR6: 225960.9966 | BS6: 408.359904 | BT6: 341877.328 | BU6: 0 | BV6: 637493.0346 | BW6: 192262.599 | BX6: 225552.6367 | BY6: 495220.8958 | BZ6: 624318.6137 | CA6: 129097.718 | CB6: 89870.47271 | CC6: 49530.34924 | CD6: 14241.41976 | CE6: 171323.3096 | CF6: 552.19099 | CG6: 286148.0645 | CH6: 0 | CI6: 492674.8655 | CJ6: 149000.892 | CK6: 170771.1186 | CL6: 420430.5765 | CM6: 516581.8631 | CN6: 96151.28661 | CO6: 96417.719 | CP6: 53391.53301 | CQ6: 2972.171032 | CR6: 321140.0446 | CS6: 146039.4181 | CT6: 360569.6445 | CU6: 0 | CV6: 710998.0704 | CW6: 155112.6213 | CX6: 175100.6265 | CY6: 578048.1818 | CZ6: 688938.9835 | DA6: 110890.8017 | DB6: 95220.95391 | DC6: 50670.38625 | DD6: 3857.698471 | DE6: 346928.5189 | DF6: 159276.3922 | DG6: 338762.8515 | DH6: 0 | DI6: 696888.1376 | DJ6: 160779.6823 | DK6: 187652.1267 | DL6: 611023.1402 | DM6: 708966.1537 | DN6: 97943.01346 | DO6: 99168.76375 | DP6: 53116.79551 | DQ6: 8269.782624 | DR6: 280712.2493 | DS6: 85458.11766 | DT6: 314926.3484 | DU6: 0 | DV6: 651375.6958 | DW6: 166422.1411 | DX6: 195254.1317 | DY6: 552701.729 | DZ6: 696793.5386 | EA6: 144091.8181 | EB6: 108575.1382 | EC6: 56310.18039 | ED6: 14846.14852 | EE6: 263721.0615 | EF6: 46919.84052 | EG6: 311019.6824 | EH6: 9192.053624 | EI6: 592064.175 | EJ6: 181070.8712 | EK6: 216801.2209 | EL6: 501676.9563 | EM6: 620427.2834 | EN6: 118750.3271 | EO6: 16 | EP6: 4 | ES6: 6 | EU6: 11 | EV6: 10 | EW6: 6 | EY6: 32 | EZ6: 4 | FC6: 14 | FE6: 21 | FF6: 21 | FG6: 7 | FI6: 52.89375 | FJ6: 47.75 | FM6: 50.27857 | FO6: 49.96191 | FP6: 54.25714 | FQ6: 48.04286 | FS6: 5.035376 | FT6: 5.40389 | FW6: 3.851042 | FY6: 3.915744 | FZ6: 5.816873 | GA6: 4.869848 | GC6: 62.68224 | GD6: 46.92319 | GG6: 69.12792 | GI6: 63.56422 | GJ6: 65.9015 | GK6: 59.92875 | GM6: 74.7691 | GN6: 81.97777 | GQ6: 73.88676 | GS6: 77.63528 | GT6: 77.85677 | GU6: 88.03505 | GW6: 84.34762 | GX6: 76.79386 | HA6: 87.53967 | HC6: 85.7773 | HD6: 85.97284 | HE6: 85.42656 | HG6: 44.54409 | HH6: 50.22984 | HK6: 43.2043 | HM6: 45.71564 | HN6: 42.02943 | HO6: 47.76458 | HQ6: 71.92803 | HR6: 76.1124 | HU6: 71.93402 | HW6: 73.4017 | HX6: 71.82767 | HY6: 76.07127
A7: 18 | B7: CAQUETA | C7: 2 | D7: CENTRO SUR | E7: NA | F7: NA | G7: E | H7: NA | I7: Incipiente | J7: alto | K7: 4 | L7: NA | M7: 59.5 | N7: 1.170221872e-06 | O7: 65.0491687 | P7: 80.25893118 | Q7: 90.76892598 | R7: 41.08776829 | S7: =AVERAGE(VLOOKUP($A7,Cont!$A$3:$L$1135,3,FALSE),(100-Base!N7),(100-Base!O7),Base!P7,Base!Q7,Base!R7) -> 74.51107593 | T7: 4. Sostenible (>=70 y <80) | U7: 64.31142738 | V7: 6.814882106 | W7: 78.36773321 | X7: 92.39448452 | Y7: 84.53437863 | Z7: 34.59782857 | AA7: =AVERAGE(VLOOKUP($A7,Cont!$A$3:$L$1135,4,FALSE),(100-Base!V7),(100-Base!W7),Base!X7,Base!Y7,Base!Z7) -> 71.05734607 | AB7: 4. Sostenible (>=70 y <80) | AC7: 67.92 | AD7: 0 | AE7: 85.27 | AF7: 90.87 | AG7: 88.13 | AH7: 35.06 | AI7: =AVERAGE(VLOOKUP($A7,Cont!$A$3:$L$1135,5,FALSE),(100-Base!AD7),(100-Base!AE7),Base!AF7,Base!AG7,Base!AH7) -> 71.465 | AJ7: 4. Sostenible (>=70 y <80) | AK7: 68.01425044 | AL7: 0.2305106347 | AM7: 73.85732192 | AN7: 88.70350411 | AO7: 77.46256521 | AP7: -29.27101828 | AQ7: =AVERAGE(VLOOKUP($A7,Cont!$A$3:$L$1135,6,FALSE),(100-Base!AL7),(100-Base!AM7),Base!AN7,Base!AO7,Base!AP7) -> 60.46786975 | AR7: 3. Vulnerable (>=60 y <70) | AS7: 63.50252759 | AT7: 0.4343690877 | AU7: 79.08246671 | AV7: 91.4057813 | AW7: 88.55189163 | AX7: 36.06394799 | AY7: =AVERAGE(VLOOKUP($A7,Cont!$A$3:$L$1135,7,FALSE),(100-Base!AT7),(100-Base!AU7),Base!AV7,Base!AW7,Base!AX7) -> 72.75079752 | AZ7: 4. Sostenible (>=70 y <80) | BA7: 68.6 | BB7: 4.239924518 | BC7: 72.85528846 | BD7: 92.04469071 | BE7: 88.71960258 | BF7: 33.37196699 | BG7: =AVERAGE(VLOOKUP($A7,Cont!$A$3:$L$1135,3,FALSE),(100-Base!BB7),(100-Base!BC7),Base!BD7,Base!BE7,Base!BF7) -> 72.84017455 | BH7: 4. Sostenible (>=70 y <80) | BI7: 0.7 | BJ7: 0.7 | BK7: 0.7 | BL7: 0.7 | BM7: 0.7 | BN7: 0.7 | BO7: 32823.214 | BP7: 19523.097 | BQ7: 8253.252 | BR7: 71439.44419 | BS7: 3615.384832 | BT7: 212103.425 | BU7: 472.952 | BV7: 332351.3062 | BW7: 53593.351 | BX7: 67824.05936 | BY7: 303485.6644 | BZ7: 343442.3314 | CA7: 39956.66701 | CB7: 29669.52619 | CC7: 19080.89579 | CD7: 3718.867085 | CE7: 54569.7934 | CF7: 155.4141694 | CG7: 199346.1535 | CH7: 105.0877479 | CI7: 254705.1538 | CJ7: 50275.88519 | CK7: 54414.37923 | CL7: 194523.3938 | CM7: 230111.5793 | CN7: 35588.18558 | CO7: 28567.50462 | CP7: 19404.28341 | CQ7: 0 | CR7: 190597.0781 | CS7: 133199.1003 | CT7: 205419.3623 | CU7: 0 | CV7: 397092.1093 | CW7: 52157.71344 | CX7: 57397.97785 | CY7: 276753.5162 | CZ7: 314029.7124 | DA7: 37276.19613 | DB7: 32426.29288 | DC7: 22054.50005 | DD7: 452.7773117 | DE7: 196423.6107 | DF7: 129950.7318 | DG7: 201516.5419 | DH7: 0 | DI7: 448794.06 | DJ7: 58963.77288 | DK7: 66472.87891 | DL7: 295347.3304 | DM7: 381277.4979 | DN7: 85930.16745 | DO7: 34793.24268 | DP7: 22094.58853 | DQ7: 609.3541726 | DR7: 140285.6379 | DS7: 75264.44268 | DT7: 183042.839 | DU7: 0 | DV7: 326630.2634 | DW7: 59433.14293 | DX7: 65021.19518 | DY7: 321562.1615 | DZ7: 363134.1153 | EA7: 41571.99245 | EB7: 31356.97614 | EC7: 21510.06214 | ED7: 2613.219004 | EE7: 61633.62091 | EF7: 3990.33595 | EG7: 218069.2578 | EH7: 0 | EI7: 304795.4355 | EJ7: 53057.58336 | EK7: 57643.28496 | EL7: 302065.3443 | EM7: 340471.9312 | EN7: 38406.58693 | EO7: 15 | EP7: 1 | ES7: 1 | EU7: 1 | EV7: 9 | EW7: 1 | EY7: 32 | EZ7: 5 | FC7: 6 | FE7: 6 | FF7: 21 | FG7: 11 | FI7: 52.89375 | FJ7: 60.72 | FM7: 72.01667 | FO7: 72.01667 | FP7: 54.25714 | FQ7: 65.00909 | FS7: 5.035376 | FT7: 2.377105 | FW7: 8.157851 | FY7: 8.157851 | FZ7: 5.816873 | GA7: 5.464771 | GC7: 62.68224 | GD7: 68.11833 | GG7: 74.93749 | GI7: 74.93749 | GJ7: 65.9015 | GK7: 75.63924 | GM7: 74.7691 | GN7: 67.60859 | GQ7: 69.76711 | GS7: 69.76711 | GT7: 77.85677 | GU7: 59.39222 | GW7: 84.34762 | GX7: 86.33873 | HA7: 88.71269 | HC7: 88.71269 | HD7: 85.97284 | HE7: 88.28681 | HG7: 44.54409 | HH7: 32.23902 | HK7: 33.22071 | HM7: 33.22071 | HN7: 42.02943 | HO7: 35.74619 | HQ7: 71.92803 | HR7: 69.2596 | HU7: 64.9342 | HW7: 64.9342 | HX7: 71.82767 | HY7: 65.31616
A8: 19 | B8: CAUCA | C8: 2 | D8: PACÍFICO | E8: NA | F8: NA | G8: D | H8: NA | I8: Intermedio | J8: alto | K8: 3 | L8: NA | M8: 35.8 | N8: 3.948464589 | O8: 77.46823227 | P8: 73.08436384 | Q8: 91.04431855 | R8: 46.39291569 | S8: =AVERAGE(VLOOKUP($A8,Cont!$A$3:$L$1135,3,FALSE),(100-Base!N8),(100-Base!O8),Base!P8,Base!Q8,Base!R8) -> 71.51748354 | T8: 4. Sostenible (>=70 y <80) | U8: 66.12291567 | V8: 2.286455496 | W8: 82.33531928 | X8: 94.44229801 | Y8: 90.62795085 | Z8: 38.58842848 | AA8: =AVERAGE(VLOOKUP($A8,Cont!$A$3:$L$1135,4,FALSE),(100-Base!V8),(100-Base!W8),Base!X8,Base!Y8,Base!Z8) -> 73.17281709 | AB8: 4. Sostenible (>=70 y <80) | AC8: 62.67 | AD8: 0.68 | AE8: 83.26 | AF8: 90.19 | AG8: 87.59 | AH8: 3.58 | AI8: =AVERAGE(VLOOKUP($A8,Cont!$A$3:$L$1135,5,FALSE),(100-Base!AD8),(100-Base!AE8),Base!AF8,Base!AG8,Base!AH8) -> 66.23666667 | AJ8: 3. Vulnerable (>=60 y <70) | AK8: 57.34568342 | AL8: 0.8168995821 | AM8: 87.17803312 | AN8: 92.1757436 | AO8: 93.32452771 | AP8: 46.81943089 | AQ8: =AVERAGE(VLOOKUP($A8,Cont!$A$3:$L$1135,6,FALSE),(100-Base!AL8),(100-Base!AM8),Base!AN8,Base!AO8,Base!AP8) -> 74.05412825 | AR8: 4. Sostenible (>=70 y <80) | AS8: 51.29958788 | AT8: 1.273533901 | AU8: 83.11172304 | AV8: 91.31635176 | AW8: 92.78800866 | AX8: 41.90108047 | AY8: =AVERAGE(VLOOKUP($A8,Cont!$A$3:$L$1135,7,FALSE),(100-Base!AT8),(100-Base!AU8),Base!AV8,Base!AW8,Base!AX8) -> 73.60336399 | AZ8: 4. Sostenible (>=70 y <80) | BA8: 49.3 | BB8: 2.957235081 | BC8: 78.09055038 | BD8: 92.46655592 | BE8: 90.59726371 | BF8: 32.38838314 | BG8: =AVERAGE(VLOOKUP($A8,Cont!$A$3:$L$1135,3,FALSE),(100-Base!BB8),(100-Base!BC8),Base!BD8,Base!BE8,Base!BF8) -> 72.40073622 | BH8: 4. Sostenible (>=70 y <80) | BI8: 0.7 | BJ8: 0.7 | BK8: 0.7 | BL8: 0.7 | BM8: 0.7 | BN8: 0.7 | BO8: 88299.844 | BP8: 31620.143 | BQ8: 6793.816 | BR8: 172062.2244 | BS8: 6320.668112 | BT8: 785470.83 | BU8: 0 | BV8: 1022085.408 | BW8: 121131.162 | BX8: 165741.5562 | BY8: 903249.6689 | BZ8: 992098.8847 | CA8: 88849.21579 | CB8: 65169.87805 | CC8: 43092.22351 | CD8: 2857.117001 | CE8: 124958.3474 | CF8: 4809.520855 | CG8: 679216.9444 | CH8: 0 | CI8: 830781.3357 | CJ8: 113471.3128 | CK8: 120148.8265 | CL8: 713505.5364 | CM8: 787290.8189 | CN8: 73785.28253 | CO8: 71417.30327 | CP8: 44755.78405 | CQ8: 3412.652668 | CR8: 502278.881 | CS8: 368022.4009 | CT8: 752476.4281 | CU8: 0 | CV8: 1345776.34 | CW8: 121087.2113 | CX8: 134256.4801 | CY8: 913305.6545 | CZ8: 1042754.941 | DA8: 129449.2865 | DB8: 85928.48446 | DC8: 49276.27667 | DD8: 4451.158269 | DE8: 544884.3856 | DF8: 395707.6095 | DG8: 810182.1463 | DH8: 0 | DI8: 1383249.556 | DJ8: 137504.8026 | DK8: 149176.7761 | DL8: 1109093.093 | DM8: 1188426.152 | DN8: 79333.05849 | DO8: 94025.794 | DP8: 48234.84482 | DQ8: 5525.861931 | DR8: 433899.691 | DS8: 269868.4859 | DT8: 808559.0555 | DU8: 0 | DV8: 1297563.686 | DW8: 149787.3227 | DX8: 164031.2051 | DY8: 1226114.991 | DZ8: 1321415.326 | EA8: 95300.36043 | EB8: 93807.59009 | EC8: 46239.07423 | ED8: 7503.23501 | EE8: 253724.672 | EF8: 91860.83322 | EG8: 732258.1642 | EH8: 0 | EI8: 1055337.673 | EJ8: 149669.917 | EK8: 161863.8388 | EL8: 1054464.547 | EM8: 1163903.306 | EN8: 109438.7585 | EO8: 20 | EP8: 3 | ES8: 9 | EU8: 15 | EV8: 13 | EW8: 6 | EY8: 32 | EZ8: 4 | FC8: 14 | FE8: 21 | FF8: 21 | FG8: 8 | FI8: 52.89375 | FJ8: 51.05 | FM8: 50.27857 | FO8: 49.96191 | FP8: 54.25714 | FQ8: 48.8625 | FS8: 5.035376 | FT8: 1.772935 | FW8: 3.851042 | FY8: 3.915744 | FZ8: 5.816873 | GA8: 3.116657 | GC8: 62.68224 | GD8: 61.40865 | GG8: 69.12792 | GI8: 63.56422 | GJ8: 65.9015 | GK8: 63.28132 | GM8: 74.7691 | GN8: 86.80247 | GQ8: 73.88676 | GS8: 77.63528 | GT8: 77.85677 | GU8: 77.6348 | GW8: 84.34762 | GX8: 86.64083 | HA8: 87.53967 | HC8: 85.7773 | HD8: 85.97284 | HE8: 82.64339 | HG8: 44.54409 | HH8: 41.68883 | HK8: 43.2043 | HM8: 45.71564 | HN8: 42.02943 | HO8: 47.25354 | HQ8: 71.92803 | HR8: 73.71398 | HU8: 71.93402 | HW8: 73.4017 | HX8: 71.82767 | HY8: 72.99451
A9: 20 | B9: CESAR | C9: 2 | D9: CARIBE | E9: NA | F9: NA | G9: D | H9: NA | I9: Intermedio | J9: alto | K9: 3 | L9: NA | M9: 52.6 | N9: 9.531328623 | O9: 74.42509854 | P9: 90.9867606 | Q9: 90.01638072 | R9: 42.39111181 | S9: =AVERAGE(VLOOKUP($A9,Cont!$A$3:$L$1135,3,FALSE),(100-Base!N9),(100-Base!O9),Base!P9,Base!Q9,Base!R9) -> 73.23963766 | T9: 4. Sostenible (>=70 y <80) | U9: 53.10728147 | V9: 4.325153649 | W9: 71.39187445 | X9: 87.89690155 | Y9: 91.80160645 | Z9: 53.94419187 | AA9: =AVERAGE(VLOOKUP($A9,Cont!$A$3:$L$1135,4,FALSE),(100-Base!V9),(100-Base!W9),Base!X9,Base!Y9,Base!Z9) -> 76.32094529 | AB9: 4. Sostenible (>=70 y <80) | AC9: 55.74 | AD9: 1.39 | AE9: 73.08 | AF9: 91.64 | AG9: 93.71 | AH9: 53.97 | AI9: =AVERAGE(VLOOKUP($A9,Cont!$A$3:$L$1135,5,FALSE),(100-Base!AD9),(100-Base!AE9),Base!AF9,Base!AG9,Base!AH9) -> 77.475 | AJ9: 4. Sostenible (>=70 y <80) | AK9: 52.60029041 | AL9: 0.9797532138 | AM9: 87.29746686 | AN9: 93.72399869 | AO9: 95.1740571 | AP9: 58.39010536 | AQ9: =AVERAGE(VLOOKUP($A9,Cont!$A$3:$L$1135,6,FALSE),(100-Base!AL9),(100-Base!AM9),Base!AN9,Base!AO9,Base!AP9) -> 76.50182351 | AR9: 4. Sostenible (>=70 y <80) | AS9: 49.34636896 | AT9: 1.53579239 | AU9: 80.11643356 | AV9: 95.97156347 | AW9: 94.92741341 | AX9: 58.35134177 | AY9: =AVERAGE(VLOOKUP($A9,Cont!$A$3:$L$1135,7,FALSE),(100-Base!AT9),(100-Base!AU9),Base!AV9,Base!AW9,Base!AX9) -> 77.93301545 | AZ9: 4. Sostenible (>=70 y <80) | BA9: 47.2 | BB9: 6.741882774 | BC9: 75.80355277 | BD9: 95.37865317 | BE9: 93.58193345 | BF9: 47.90579814 | BG9: =AVERAGE(VLOOKUP($A9,Cont!$A$3:$L$1135,3,FALSE),(100-Base!BB9),(100-Base!BC9),Base!BD9,Base!BE9,Base!BF9) -> 75.7201582 | BH9: 4. Sostenible (>=70 y <80) | BI9: 0.6 | BJ9: 0.7 | BK9: 0.7 | BL9: 0.7 | BM9: 0.7 | BN9: 0.6 | BO9: 86331.655 | BP9: 45453.016 | BQ9: 21487.16932 | BR9: 225437.2939 | BS9: 75966.70157 | BT9: 472725.697 | BU9: 1803.746 | BV9: 739664.6499 | BW9: 135998.45 | BX9: 149470.5923 | BY9: 776387.9486 | BZ9: 862496.2951 | CA9: 86108.34641 | CB9: 77758.00352 | CC9: 41295.16179 | CD9: 16786.88627 | CE9: 388122.3104 | CF9: 256243.5889 | CG9: 431829.9798 | CH9: 0 | CI9: 963798.1548 | CJ9: 115917.31 | CK9: 131878.7215 | CL9: 680112.3394 | CM9: 740850.1503 | CN9: 60737.81094 | CO9: 86313.54969 | CP9: 48113.2093 | CQ9: 8346.281391 | CR9: 601815.61 | CS9: 462491.5285 | CT9: 493711.1198 | CU9: 0 | CV9: 1308414.906 | CW9: 127681.0517 | CX9: 139324.0815 | CY9: 955235.2451 | CZ9: 1019371.292 | DA9: 64136.04648 | DB9: 88097.47951 | DC9: 46339.53007 | DD9: 8550.998163 | DE9: 872770.6163 | DF9: 712908.2708 | DG9: 484731.2261 | DH9: 0 | DI9: 1371906.357 | DJ9: 149829.3826 | DK9: 159862.3455 | DL9: 1311834.96 | DM9: 1378353.513 | DN9: 66518.55354 | DO9: 87894.87864 | DP9: 43372.93111 | DQ9: 10505.47574 | DR9: 684042.2755 | DS9: 511021.9704 | DT9: 470357.4833 | DU9: 0 | DV9: 1224941.452 | DW9: 166050.2762 | DX9: 173020.3051 | DY9: 1348528.905 | DZ9: 1420589.481 | EA9: 72060.63592 | EB9: 89885.03235 | EC9: 42459.57049 | ED9: 22526.12731 | EE9: 334122.2039 | EF9: 188149.852 | EG9: 448227.0775 | EH9: 0 | EI9: 839508.0524 | EJ9: 139226.4632 | EK9: 145972.3519 | EL9: 1108786.148 | EM9: 1184829.28 | EN9: 76043.13166 | EO9: 18 | EP9: 5 | ES9: 7 | EU9: 13 | EV9: 11 | EW9: 5 | EY9: 32 | EZ9: 8 | FC9: 14 | FE9: 21 | FF9: 21 | FG9: 8 | FI9: 52.89375 | FJ9: 48.925 | FM9: 50.27857 | FO9: 49.96191 | FP9: 54.25714 | FQ9: 48.8625 | FS9: 5.035376 | FT9: 8.596195 | FW9: 3.851042 | FY9: 3.915744 | FZ9: 5.816873 | GA9: 3.116657 | GC9: 62.68224 | GD9: 62.5849 | GG9: 69.12792 | GI9: 63.56422 | GJ9: 65.9015 | GK9: 63.28132 | GM9: 74.7691 | GN9: 80.31817 | GQ9: 73.88676 | GS9: 77.63528 | GT9: 77.85677 | GU9: 77.6348 | GW9: 84.34762 | GX9: 84.12232 | HA9: 87.53967 | HC9: 85.7773 | HD9: 85.97284 | HE9: 82.64339 | HG9: 44.54409 | HH9: 47.63265 | HK9: 43.2043 | HM9: 45.71564 | HN9: 42.02943 | HO9: 47.25354 | HQ9: 71.92803 | HR9: 72.91257 | HU9: 71.93402 | HW9: 73.4017 | HX9: 71.82767 | HY9: 72.99451
A10: 23 | B10: CORDOBA | C10: 2 | D10: CARIBE | E10: NA | F10: NA | G10: D | H10: NA | I10: Intermedio | J10: alto | K10: 2 | L10: NA | M10: 46.8 | N10: 6.157392866 | O10: 66.45752129 | P10: 95.82316048 | Q10: 89.22204431 | R10: 40.27947535 | S10: =AVERAGE(VLOOKUP($A10,Cont!$A$3:$L$1135,3,FALSE),(100-Base!N10),(100-Base!O10),Base!P10,Base!Q10,Base!R10) -> 75.45162766 | T10: 4. Sostenible (>=70 y <80) | U10: 54.53581723 | V10: 8.35570573 | W10: 75.12553959 | X10: 94.25335903 | Y10: 85.58891136 | Z10: 30.48791376 | AA10: =AVERAGE(VLOOKUP($A10,Cont!$A$3:$L$1135,4,FALSE),(100-Base!V10),(100-Base!W10),Base!X10,Base!Y10,Base!Z10) -> 71.14148981 | AB10: 4. Sostenible (>=70 y <80) | AC10: 54.59 | AD10: 1.84 | AE10: 81.95 | AF10: 95.4 | AG10: 90.89 | AH10: 38.38 | AI10: =AVERAGE(VLOOKUP($A10,Cont!$A$3:$L$1135,5,FALSE),(100-Base!AD10),(100-Base!AE10),Base!AF10,Base!AG10,Base!AH10) -> 73.48 | AJ10: 4. Sostenible (>=70 y <80) | AK10: 55.23815411 | AL10: 1.015665402 | AM10: 83.88224081 | AN10: 94.47514559 | AO10: 90.78561756 | AP10: 45.26830679 | AQ10: =AVERAGE(VLOOKUP($A10,Cont!$A$3:$L$1135,6,FALSE),(100-Base!AL10),(100-Base!AM10),Base!AN10,Base!AO10,Base!AP10) -> 74.27186062 | AR10: 4. Sostenible (>=70 y <80) | AS10: 54.00450348 | AT10: 4.320581116 | AU10: 78.8263293 | AV10: 96.14769183 | AW10: 90.59550996 | AX10: 49.48778252 | AY10: =AVERAGE(VLOOKUP($A10,Cont!$A$3:$L$1135,7,FALSE),(100-Base!AT10),(100-Base!AU10),Base!AV10,Base!AW10,Base!AX10) -> 75.51401232 | AZ10: 4. Sostenible (>=70 y <80) | BA10: 55.2 | BB10: 9.888067556 | BC10: 69.9261027 | BD10: 95.89902043 | BE10: 86.86665995 | BF10: 26.43325136 | BG10: =AVERAGE(VLOOKUP($A10,Cont!$A$3:$L$1135,3,FALSE),(100-Base!BB10),(100-Base!BC10),Base!BD10,Base!BE10,Base!BF10) -> 71.56412691 | BH10: 4. Sostenible (>=70 y <80) | BI10: 0.55 | BJ10: 0.6 | BK10: 0.6 | BL10: 0.6 | BM10: 0.6 | BN10: 0.6 | BO10: 123551.483 | BP10: 57810.251 | BQ10: 23494.04181 | BR10: 231150.1631 | BS10: 22629.16882 | BT10: 663802.437 | BU10: 1.894 | BV10: 1032890.614 | BW10: 199811.407 | BX10: 208520.9943 | BY10: 944955.1149 | BZ10: 1069484.947 | CA10: 124529.8318 | CB10: 104264.3533 | CC10: 56861.41718 | CD10: 21610.26698 | CE10: 258628.8661 | CF10: 74788.83531 | CG10: 627281.9775 | CH10: 0 | CI10: 934530.1434 | CJ10: 173275.4042 | CK10: 183840.0308 | CL10: 758963.9015 | CM10: 886754.9422 | CN10: 127791.0407 | CO10: 108232.8307 | CP10: 59082.16546 | CQ10: 10914.12713 | CR10: 593597.9567 | CS10: 399667.0686 | CT10: 694521.8182 | CU10: 0 | CV10: 1335236.241 | CW10: 185006.3684 | CX10: 193930.8881 | CY10: 1191662.044 | CZ10: 1311167.28 | DA10: 119505.2368 | DB10: 118916.3896 | DC10: 65687.21855 | DD10: 7543.942293 | DE10: 742758.6171 | DF10: 539794.1276 | DG10: 719871.7036 | DH10: 947.4084328 | DI10: 1502836.867 | DJ10: 191750.997 | DK10: 202964.4895 | DL10: 1094484.872 | DM10: 1205570.774 | DN10: 111085.9017 | DO10: 123717.3385 | DP10: 66812.93438 | DQ10: 21807.62015 | DR10: 504738.1743 | DS10: 289294.9655 | DT10: 620932.5486 | DU10: 735.808539 | DV10: 1155658.623 | DW10: 207143.6609 | DX10: 215443.2087 | DY10: 1048336.36 | DZ10: 1157161.562 | EA10: 108825.1424 | EB10: 123225.2384 | EC10: 68021.08711 | ED10: 24182.61141 | EE10: 244563.5739 | EF10: 40936.78279 | EG10: 643540.3887 | EH10: 0 | EI10: 978857.8873 | EJ10: 195276.098 | EK10: 203626.7911 | EL10: 990819.2 | EM10: 1140620.81 | EN10: 149801.6096 | EO10: 12 | EP10: 4 | ES10: 4 | EU10: 9 | EV10: 7 | EW10: 4 | EY10: 32 | EZ10: 8 | FC10: 14 | FE10: 21 | FF10: 21 | FG10: 7 | FI10: 52.89375 | FJ10: 48.925 | FM10: 50.27857 | FO10: 49.96191 | FP10: 54.25714 | FQ10: 48.04286 | FS10: 5.035376 | FT10: 8.596195 | FW10: 3.851042 | FY10: 3.915744 | FZ10: 5.816873 | GA10: 4.869848 | GC10: 62.68224 | GD10: 62.5849 | GG10: 69.12792 | GI10: 63.56422 | GJ10: 65.9015 | GK10: 59.92875 | GM10: 74.7691 | GN10: 80.31817 | GQ10: 73.88676 | GS10: 77.63528 | GT10: 77.85677 | GU10: 88.03505 | GW10: 84.34762 | GX10: 84.12232 | HA10: 87.53967 | HC10: 85.7773 | HD10: 85.97284 | HE10: 85.42656 | HG10: 44.54409 | HH10: 47.63265 | HK10: 43.2043 | HM10: 45.71564 | HN10: 42.02943 | HO10: 47.76458 | HQ10: 71.92803 | HR10: 72.91257 | HU10: 71.93402 | HW10: 73.4017 | HX10: 71.82767 | HY10: 76.07127
A11: 25 | B11: CUNDINAMARCA | C11: 2 | D11: CENTRO ORIENTE | E11: NA | F11: NA | G11: A | H11: NA | I11: Robusto | J11: medioalto | K11: E | L11: NA | M11: 43 | N11: 15.42612925 | O11: 36.3588964 | P11: 82.65472647 | Q11: 75.85327106 | R11: 55.87147692 | S11: =AVERAGE(VLOOKUP($A11,Cont!$A$3:$L$1135,3,FALSE),(100-Base!N11),(100-Base!O11),Base!P11,Base!Q11,Base!R11) -> 77.0990748 | T11: 4. Sostenible (>=70 y <80) | U11: 37.61337681 | V11: 13.8959244 | W11: 36.00575076 | X11: 78.06316442 | Y11: 72.70734265 | Z11: 56.01803471 | AA11: =AVERAGE(VLOOKUP($A11,Cont!$A$3:$L$1135,4,FALSE),(100-Base!V11),(100-Base!W11),Base!X11,Base!Y11,Base!Z11) -> 76.1478111 | AB11: 4. Sostenible (>=70 y <80) | AC11: 36.54 | AD11: 6.58 | AE11: 46.24 | AF11: 84.89 | AG11: 76.57 | AH11: 59.89 | AI11: =AVERAGE(VLOOKUP($A11,Cont!$A$3:$L$1135,5,FALSE),(100-Base!AD11),(100-Base!AE11),Base!AF11,Base!AG11,Base!AH11) -> 78.08833333 | AJ11: 4. Sostenible (>=70 y <80) | AK11: 34.95377757 | AL11: 7.555326105 | AM11: 44.76949719 | AN11: 81.23527496 | AO11: 78.10128273 | AP11: 60.37141722 | AQ11: =AVERAGE(VLOOKUP($A11,Cont!$A$3:$L$1135,6,FALSE),(100-Base!AL11),(100-Base!AM11),Base!AN11,Base!AO11,Base!AP11) -> 77.89719193 | AR11: 4. Sostenible (>=70 y <80) | AS11: 38.71224042 | AT11: 8.706194902 | AU11: 38.68505611 | AV11: 81.69572411 | AW11: 77.79866774 | AX11: 59.95587822 | AY11: =AVERAGE(VLOOKUP($A11,Cont!$A$3:$L$1135,7,FALSE),(100-Base!AT11),(100-Base!AU11),Base!AV11,Base!AW11,Base!AX11) -> 78.67650318 | AZ11: 4. Sostenible (>=70 y <80) | BA11: 40.5 | BB11: 10.28736024 | BC11: 38.55399013 | BD11: 81.06226401 | BE11: 74.10265032 | BF11: 55.17483181 | BG11: =AVERAGE(VLOOKUP($A11,Cont!$A$3:$L$1135,3,FALSE),(100-Base!BB11),(100-Base!BC11),Base!BD11,Base!BE11,Base!BF11) -> 76.91639929 | BH11: 4. Sostenible (>=70 y <80) | BI11: 0.5 | BJ11: 0.5 | BK11: 0.5 | BL11: 0.5 | BM11: 0.5 | BN11: 0.5 | BO11: 882943.489 | BP11: 379516.42 | BQ11: 213610.425 | BR11: 1384731.202 | BS11: 16812.47744 | BT11: 789738.306 | BU11: 48.162 | BV11: 2218436.271 | BW11: 1130649.48 | BX11: 1367918.724 | BY11: 1896250.436 | BZ11: 2499892.766 | CA11: 603642.33 | CB11: 712279.7553 | CC11: 267912.4683 | CD11: 172382.4496 | CE11: 1240525.241 | CF11: 16283.47924 | CG11: 724005.7842 | CH11: 0 | CI11: 2056030.628 | CJ11: 955681.8591 | CK11: 1224241.761 | CL11: 1434413.192 | CM11: 1972858.779 | CN11: 538445.5865 | CO11: 808769.2107 | CP11: 295555.7524 | CQ11: 96591.36275 | CR11: 1469043.653 | CS11: 223675.2196 | CT11: 889865.4193 | CU11: 0 | CV11: 2408418.281 | CW11: 1057229.612 | CX11: 1245368.433 | CY11: 1632822.77 | CZ11: 2132339.904 | DA11: 499517.1339 | DB11: 868616.2309 | DC11: 303614.1853 | DD11: 114308.0081 | DE11: 1512946.052 | DF11: 269357.6544 | DG11: 794456.2062 | DH11: 0 | DI11: 2376202.387 | DJ11: 1010232.455 | DK11: 1243588.398 | DL11: 1757618.815 | DM11: 2250435.273 | DN11: 492816.4578 | DO11: 852446.6403 | DP11: 330001.1929 | DQ11: 117059.9947 | DR11: 1344559.792 | DS11: 96556.76536 | DT11: 722136.2149 | DU11: 0 | DV11: 2116302.975 | DW11: 1019565.048 | DX11: 1248003.027 | DY11: 1751247.464 | DZ11: 2250999.353 | EA11: 499751.8548 | EB11: 857276.3976 | EC11: 346932.8662 | ED11: 134247.1068 | EE11: 1304971.379 | EF11: 61858.66974 | EG11: 749654.8372 | EH11: 0 | EI11: 2104875.537 | EJ11: 1007695.307 | EK11: 1243112.71 | EL11: 1594449.815 | EM11: 2151677.178 | EN11: 557227.363 | EO11: 6 | EP11: 1 | ES11: 1 | EU11: 2 | EV11: 4 | EW11: 2 | EY11: 32 | EZ11: 4 | FC11: 1 | FE11: 5 | FF11: 11 | FG11: 3 | FI11: 52.89375 | FJ11: 44.2 | FM11: 43 | FO11: 42.26 | FP11: 50.29091 | FQ11: 43.83333 | FS11: 5.035376 | FT11: 7.764167 | FW11: 15.42613 | FY11: 5.990863 | FZ11: 3.543429 | GA11: 7.699504 | GC11: 62.68224 | GD11: 52.76932 | GG11: 36.3589 | GI11: 44.27166 | GJ11: 56.53639 | GK11: 34.65042 | GM11: 74.7691 | GN11: 88.79459 | GQ11: 82.65472 | GS11: 68.73356 | GT11: 68.87447 | GU11: 83.44574 | GW11: 84.34762 | GX11: 80.98303 | HA11: 75.85327 | HC11: 73.10487 | HD11: 81.24493 | HE11: 74.59515 | HG11: 44.54409 | HH11: 47.41685 | HK11: 55.87148 | HM11: 53.21169 | HN11: 49.34483 | HO11: 53.91224 | HQ11: 71.92803 | HR11: 76.11017 | HU11: 77.09908 | HW11: 74.13126 | HX11: 72.11962 | HY11: 78.2672
A12: 27 | B12: CHOCO | C12: 2 | D12: PACÍFICO | E12: NA | F12: NA | G12: E | H12: NA | I12: Incipiente | J12: alto | K12: 4 | L12: NA | M12: 81.6 | N12: 2.910543275 | O12: 77.44551924 | P12: 95.68515911 | Q12: 87.65481352 | R12: 10.14460027 | S12: =AVERAGE(VLOOKUP($A12,Cont!$A$3:$L$1135,3,FALSE),(100-Base!N12),(100-Base!O12),Base!P12,Base!Q12,Base!R12) -> 62.41030729 | T12: 3. Vulnerable (>=60 y <70) | U12: 117.7931318 | V12: 3.026405377 | W12: 82.16428134 | X12: 93.66431723 | Y12: 80.72049967 | Z12: -14.55832467 | AA12: =AVERAGE(VLOOKUP($A12,Cont!$A$3:$L$1135,4,FALSE),(100-Base!V12),(100-Base!W12),Base!X12,Base!Y12,Base!Z12) -> 45.77263425 | AB12: 2. Riesgo (>=40 y <60) | AC12: 90.19 | AD12: 1.58 | AE12: 78.02 | AF12: 93.24 | AG12: 81.07 | AH12: -38.06 | AI12: =AVERAGE(VLOOKUP($A12,Cont!$A$3:$L$1135,5,FALSE),(100-Base!AD12),(100-Base!AE12),Base!AF12,Base!AG12,Base!AH12) -> 48.22724274 | AJ12: 2. Riesgo (>=40 y <60) | AK12: 90.91645654 | AL12: 5.121843837 | AM12: 85.57004701 | AN12: 92.13883368 | AO12: 93.88192158 | AP12: 18.34538748 | AQ12: =AVERAGE(VLOOKUP($A12,Cont!$A$3:$L$1135,6,FALSE),(100-Base!AL12),(100-Base!AM12),Base!AN12,Base!AO12,Base!AP12) -> 57.32545502 | AR12: 2. Riesgo (>=40 y <60) | AS12: 116.6241985 | AT12: 0.6346655817 | AU12: 88.65067133 | AV12: 79.28117174 | AW12: 90.05904036 | AX12: 12.25864208 | AY12: =AVERAGE(VLOOKUP($A12,Cont!$A$3:$L$1135,7,FALSE),(100-Base!AT12),(100-Base!AU12),Base!AV12,Base!AW12,Base!AX12) -> 48.71891954 | AZ12: 2. Riesgo (>=40 y <60) | BA12: 116.5 | BB12: 4.33679402 | BC12: 68.12275036 | BD12: 87.10167395 | BE12: 83.88788609 | BF12: -40.96958703 | BG12: =AVERAGE(VLOOKUP($A12,Cont!$A$3:$L$1135,3,FALSE),(100-Base!BB12),(100-Base!BC12),Base!BD12,Base!BE12,Base!BF12) -> 53.14896033 | BH12: 2. Riesgo (>=40 y <60) | BI12: 0.7 | BJ12: 0.7 | BK12: 0.7 | BL12: 0.7 | BM12: 0.7 | BN12: 0.7 | BO12: 37398.327 | BP12: 30500.798 | BQ12: 2968.174 | BR12: 101980.0676 | BS12: 37098.95066 | BT12: 342721.422 | BU12: 0 | BV12: 490435.5686 | BW12: 62081.6 | BX12: 64881.11697 | BY12: 413943.0679 | BZ12: 472242.2549 | CA12: 58299.187 | CB12: 36308.84335 | CC12: 42769.32368 | CD12: 2518.027476 | CE12: 83201.92317 | CF12: 20894.83399 | CG12: 303848.7858 | CH12: 0 | CI12: 395236.9746 | CJ12: 58359.50967 | CK12: 62307.08919 | CL12: 298849.2595 | CM12: 370227.2171 | CN12: 71377.95753 | CO12: 33482.11466 | CP12: 30196.16756 | CQ12: 3758.0433 | CR12: 238496.3476 | CS12: 179212.2961 | CT12: 279941.926 | CU12: 0 | CV12: 588503.8807 | CW12: 55276.2727 | CX12: 59284.05156 | CY12: 350566.4103 | CZ12: 432413.7383 | DA12: 81847.32797 | DB12: 34886.00337 | DC12: 31717.11809 | DD12: 12216.84512 | DE12: 238524.3578 | DF12: 177814.3108 | DG12: 281255.1521 | DH12: 0 | DI12: 536483.8269 | DJ12: 55937.52927 | DK12: 60710.04703 | DL12: 760690.9024 | DM12: 810263.4561 | DN12: 49572.55367 | DO12: 36465.20423 | DP12: 42527.25216 | DQ12: 3396.127391 | DR12: 535103.641 | DS12: 455534.829 | DT12: 293403.3151 | DU12: 0 | DV12: 844819.4693 | DW12: 63083.09384 | DX12: 79568.81201 | DY12: 632479.1593 | DZ12: 702293.9263 | EA12: 69814.76266 | EB12: 34601.04716 | EC12: 40318.88574 | ED12: 3250.752559 | EE12: 74957.50418 | EF12: 0 | EG12: 307010.4853 | EH12: 0 | EI12: 450672.4753 | EJ12: 65289.24089 | EK12: 74957.50418 | EL12: 550157.7971 | EM12: 655825.0812 | EN12: 105667.2841 | EO12: 29 | EP12: 4 | ES12: 4 | EU12: 4 | EV12: 19 | EW12: 8 | EY12: 32 | EZ12: 4 | FC12: 6 | FE12: 6 | FF12: 21 | FG12: 11 | FI12: 52.89375 | FJ12: 51.05 | FM12: 72.01667 | FO12: 72.01667 | FP12: 54.25714 | FQ12: 65.00909 | FS12: 5.035376 | FT12: 1.772935 | FW12: 8.157851 | FY12: 8.157851 | FZ12: 5.816873 | GA12: 5.464771 | GC12: 62.68224 | GD12: 61.40865 | GG12: 74.93749 | GI12: 74.93749 | GJ12: 65.9015 | GK12: 75.63924 | GM12: 74.7691 | GN12: 86.80247 | GQ12: 69.76711 | GS12: 69.76711 | GT12: 77.85677 | GU12: 59.39222 | GW12: 84.34762 | GX12: 86.64083 | HA12: 88.71269 | HC12: 88.71269 | HD12: 85.97284 | HE12: 88.28681 | HG12: 44.54409 | HH12: 41.68883 | HK12: 33.22071 | HM12: 33.22071 | HN12: 42.02943 | HO12: 35.74619 | HQ12: 71.92803 | HR12: 73.71398 | HU12: 64.9342 | HW12: 64.9342 | HX12: 71.82767 | HY12: 65.31616
A13: 41 | B13: HUILA | C13: 2 | D13: CENTRO SUR | E13: NA | F13: NA | G13: C | H13: NA | I13: Intermedio | J13: medioalto | K13: 3 | L13: NA | M13: 59.2 | N13: 2.645145925 | O13: 62.06221022 | P13: 85.54743176 | Q13: 83.36755205 | R13: 38.79970735 | S13: =AVERAGE(VLOOKUP($A13,Cont!$A$3:$L$1135,3,FALSE),(100-Base!N13),(100-Base!O13),Base!P13,Base!Q13,Base!R13) -> 73.83455584 | T13: 4. Sostenible (>=70 y <80) | U13: 65.51285422 | V13: 42.78425488 | W13: 60.44997155 | X13: 90.58505051 | Y13: 81.23831767 | Z13: 37.57080371 | AA13: =AVERAGE(VLOOKUP($A13,Cont!$A$3:$L$1135,4,FALSE),(100-Base!V13),(100-Base!W13),Base!X13,Base!Y13,Base!Z13) -> 67.69332424 | AB13: 3. Vulnerable (>=60 y <70) | AC13: 50.84 | AD13: 0.67 | AE13: 73.09 | AF13: 89.26 | AG13: 82.41 | AH13: 25.22 | AI13: =AVERAGE(VLOOKUP($A13,Cont!$A$3:$L$1135,5,FALSE),(100-Base!AD13),(100-Base!AE13),Base!AF13,Base!AG13,Base!AH13) -> 70.52166667 | AJ13: 4. Sostenible (>=70 y <80) | AK13: 58.27075194 | AL13: 5.54586156 | AM13: 68.41644064 | AN13: 96.46358841 | AO13: 88.91048225 | AP13: 43.68714574 | AQ13: =AVERAGE(VLOOKUP($A13,Cont!$A$3:$L$1135,6,FALSE),(100-Base!AL13),(100-Base!AM13),Base!AN13,Base!AO13,Base!AP13) -> 75.84981904 | AR13: 4. Sostenible (>=70 y <80) | AS13: 61.43382939 | AT13: 6.25876627 | AU13: 60.83788067 | AV13: 95.24225302 | AW13: 88.18470964 | AX13: 37.62080118 | AY13: =AVERAGE(VLOOKUP($A13,Cont!$A$3:$L$1135,7,FALSE),(100-Base!AT13),(100-Base!AU13),Base!AV13,Base!AW13,Base!AX13) -> 75.65851948 | AZ13: 4. Sostenible (>=70 y <80) | BA13: 47.7 | BB13: 4.538916938 | BC13: 70.03913482 | BD13: 95.69527272 | BE13: 87.39779338 | BF13: 42.03421896 | BG13: =AVERAGE(VLOOKUP($A13,Cont!$A$3:$L$1135,3,FALSE),(100-Base!BB13),(100-Base!BC13),Base!BD13,Base!BE13,Base!BF13) -> 75.09153888 | BH13: 4. Sostenible (>=70 y <80) | BI13: 0.6 | BJ13: 0.7 | BK13: 0.7 | BL13: 0.7 | BM13: 0.7 | BN13: 0.6 | BO13: 107360.115 | BP13: 63521.815 | BQ13: 5982.611 | BR13: 226173.1931 | BS13: 22862.0329 | BT13: 428900.288 | BU13: 0 | BV13: 727918.5181 | BW13: 173927.476 | BX13: 203311.1602 | BY13: 623671.0622 | BZ13: 748098.0872 | CA13: 124427.025 | CB13: 99664.14858 | CC13: 65292.82837 | CD13: 112993.2782 | CE13: 264100.1428 | CF13: 79143.63745 | CG13: 378275.0295 | CH13: 9011.365353 | CI13: 771596.7772 | CJ13: 167542.9438 | CK13: 184956.5053 | CL13: 499972.9381 | CM13: 615439.7979 | CN13: 115466.8598 | CO13: 111686.8455 | CP13: 56780.9907 | CQ13: 3432.572889 | CR13: 510759.6662 | CS13: 318093.5105 | CT13: 400509.1417 | CU13: 9105.068689 | CV13: 995680.2622 | CW13: 171980.8429 | CX13: 192666.1557 | CY13: 674952.8211 | CZ13: 819026.5919 | DA13: 144073.7707 | DB13: 109787.4911 | DC13: 63973.99659 | DD13: 20780.64616 | DE13: 374705.4617 | DF13: 187442.0458 | DG13: 416326.2906 | DH13: 0 | DI13: 882490.1308 | DJ13: 180641.0107 | DK13: 187263.4159 | DL13: 845475.0325 | DM13: 950928.407 | DN13: 105453.3745 | DO13: 105832.3857 | DP13: 65016.88729 | DQ13: 16739.10983 | DR13: 267450.5815 | DS13: 80407.06026 | DT13: 350898.6748 | DU13: 0 | DV13: 708942.742 | DW13: 178144.4593 | DX13: 187043.5212 | DY13: 870825.8989 | DZ13: 987502.1445 | EA13: 116676.2543 | EB13: 123791.9241 | EC13: 59088.10516 | ED13: 16286.91993 | EE13: 358828.3317 | EF13: 159949.5028 | EG13: 395856.2852 | EH13: 0 | EI13: 793564.6113 | EJ13: 190317.6376 | EK13: 198878.8288 | EL13: 799491.991 | EM13: 914773.6574 | EN13: 115281.6664 | EO13: 17 | EP13: 2 | ES13: 6 | EU13: 12 | EV13: 7 | EW13: 4 | EY13: 32 | EZ13: 5 | FC13: 7 | FE13: 21 | FF13: 11 | FG13: 8 | FI13: 52.89375 | FJ13: 60.72 | FM13: 49.32857 | FO13: 49.96191 | FP13: 50.29091 | FQ13: 48.8625 | FS13: 5.035376 | FT13: 2.377105 | FW13: 4.045146 | FY13: 3.915744 | FZ13: 3.543429 | GA13: 3.116657 | GC13: 62.68224 | GD13: 68.11833 | GG13: 52.43681 | GI13: 63.56422 | GJ13: 56.53639 | GK13: 63.28132 | GM13: 74.7691 | GN13: 67.60859 | GQ13: 85.13231 | GS13: 77.63528 | GT13: 68.87447 | GU13: 77.6348 | GW13: 84.34762 | GX13: 86.33873 | HA13: 82.25257 | HC13: 85.7773 | HD13: 81.24493 | HE13: 82.64339 | HG13: 44.54409 | HH13: 32.23902 | HK13: 50.73832 | HM13: 45.71564 | HN13: 49.34483 | HO13: 47.25354 | HQ13: 71.92803 | HR13: 69.2596 | HU13: 76.33704 | HW13: 73.4017 | HX13: 72.11962 | HY13: 72.99451
A14: 44 | B14: GUAJIRA | C14: 2 | D14: CARIBE | E14: NA | F14: NA | G14: E | H14: NA | I14: Incipiente | J14: alto | K14: 4 | L14: NA | M14: 70.6 | N14: 41.81056947 | O14: 79.05385139 | P14: 95.14694375 | Q14: 88.59523462 | R14: 25.83200984 | S14: =AVERAGE(VLOOKUP($A14,Cont!$A$3:$L$1135,3,FALSE),(100-Base!N14),(100-Base!O14),Base!P14,Base!Q14,Base!R14) -> 64.45162789 | T14: 3. Vulnerable (>=60 y <70) | U14: 67.49742196 | V14: 0.9859948503 | W14: 80.75313292 | X14: 90.59169014 | Y14: 85.73460062 | Z14: 31.77055869 | AA14: =AVERAGE(VLOOKUP($A14,Cont!$A$3:$L$1135,4,FALSE),(100-Base!V14),(100-Base!W14),Base!X14,Base!Y14,Base!Z14) -> 71.05962028 | AB14: 4. Sostenible (>=70 y <80) | AC14: 81.51 | AD14: 0.69 | AE14: 89.58 | AF14: 94.92 | AG14: 94.6 | AH14: 41.49 | AI14: =AVERAGE(VLOOKUP($A14,Cont!$A$3:$L$1135,5,FALSE),(100-Base!AD14),(100-Base!AE14),Base!AF14,Base!AG14,Base!AH14) -> 67.06182311 | AJ14: 3. Vulnerable (>=60 y <70) | AK14: 62.61186899 | AL14: 3.12991633 | AM14: 70.81433668 | AN14: 90.68725932 | AO14: 94.78494509 | AP14: 45.85833517 | AQ14: =AVERAGE(VLOOKUP($A14,Cont!$A$3:$L$1135,6,FALSE),(100-Base!AL14),(100-Base!AM14),Base!AN14,Base!AO14,Base!AP14) -> 76.23104776 | AR14: 4. Sostenible (>=70 y <80) | AS14: 63.99471812 | AT14: 6.036686196 | AU14: 85.45898719 | AV14: 88.6309209 | AW14: 94.08072313 | AX14: 42.43161886 | AY14: =AVERAGE(VLOOKUP($A14,Cont!$A$3:$L$1135,7,FALSE),(100-Base!AT14),(100-Base!AU14),Base!AV14,Base!AW14,Base!AX14) -> 72.27459825 | AZ14: 4. Sostenible (>=70 y <80) | BA14: 56.6 | BB14: 15.89558021 | BC14: 84.13720274 | BD14: 94.64469628 | BE14: 92.4954403 | BF14: 38.04291761 | BG14: =AVERAGE(VLOOKUP($A14,Cont!$A$3:$L$1135,3,FALSE),(100-Base!BB14),(100-Base!BC14),Base!BD14,Base!BE14,Base!BF14) -> 70.52504521 | BH14: 4. Sostenible (>=70 y <80) | BI14: 0.7 | BJ14: 0.7 | BK14: 0.7 | BL14: 0.7 | BM14: 0.7 | BN14: 0.7 | BO14: 24129.396 | BP14: 17045.306 | BQ14: 52129.63176 | BR14: 124680.5112 | BS14: 58811.35923 | BT14: 304617.126 | BU14: 0 | BV14: 459722.6812 | BW14: 62672.485 | BX14: 65869.152 | BY14: 379509.4462 | BZ14: 428363.2724 | CA14: 48853.82618 | CB14: 25050.07162 | CC14: 16908.15254 | CD14: 6252.51422 | CE14: 634132.5432 | CF14: 546179.7577 | CG14: 272885.5329 | CH14: 2543.445902 | CI14: 1017432.645 | CJ14: 79677.91496 | CK14: 87952.78555 | CL14: 360656.3706 | CM14: 420666.0648 | CN14: 60009.6942 | CO14: 22887.5127 | CP14: 18655.77603 | CQ14: 4204.012104 | CR14: 610199.1053 | CS14: 532571.66 | CT14: 364924.6646 | CU14: 0 | CV14: 1001918.264 | CW14: 73682.65063 | CX14: 77627.44524 | CY14: 796183.2518 | CZ14: 841605.4014 | DA14: 45422.14961 | DB14: 27752.10782 | DC14: 17376.11339 | DD14: 16598.31913 | DE14: 530311.912 | DF14: 445305.5817 | DG14: 284265.841 | DH14: 0 | DI14: 1030259.488 | DJ14: 77089.91119 | DK14: 85006.33029 | DL14: 836495.0047 | DM14: 882518.8471 | DN14: 46023.84243 | DO14: 27171.39099 | DP14: 17388.25508 | DQ14: 32970.50812 | DR14: 546169.0168 | DS14: 452485.2651 | DT14: 268011.9992 | DU14: 0 | DV14: 843091.289 | DW14: 83032.77457 | DX14: 93683.7517 | DY14: 857196.2531 | DZ14: 911128.4795 | EA14: 53932.22205 | EB14: 27820.77445 | EC14: 15759.29782 | ED14: 40965.85193 | EE14: 257718.5066 | EF14: 191213.7641 | EG14: 288685.5314 | EH14: 0 | EI14: 570377.0506 | EJ14: 62943.21155 | EK14: 66504.7425 | EL14: 507853.7714 | EM14: 549058.1695 | EN14: 41204.3981 | EO14: 26 | EP14: 7 | ES14: 3 | EU14: 3 | EV14: 18 | EW14: 6 | EY14: 32 | EZ14: 8 | FC14: 6 | FE14: 6 | FF14: 21 | FG14: 11 | FI14: 52.89375 | FJ14: 48.925 | FM14: 72.01667 | FO14: 72.01667 | FP14: 54.25714 | FQ14: 65.00909 | FS14: 5.035376 | FT14: 8.596195 | FW14: 8.157851 | FY14: 8.157851 | FZ14: 5.816873 | GA14: 5.464771 | GC14: 62.68224 | GD14: 62.5849 | GG14: 74.93749 | GI14: 74.93749 | GJ14: 65.9015 | GK14: 75.63924 | GM14: 74.7691 | GN14: 80.31817 | GQ14: 69.76711 | GS14: 69.76711 | GT14: 77.85677 | GU14: 59.39222 | GW14: 84.34762 | GX14: 84.12232 | HA14: 88.71269 | HC14: 88.71269 | HD14: 85.97284 | HE14: 88.28681 | HG14: 44.54409 | HH14: 47.63265 | HK14: 33.22071 | HM14: 33.22071 | HN14: 42.02943 | HO14: 35.74619 | HQ14: 71.92803 | HR14: 72.91257 | HU14: 64.9342 | HW14: 64.9342 | HX14: 71.82767 | HY14: 65.31616
A15: 47 | B15: MAGDALENA | C15: 2 | D15: CARIBE | E15: NA | F15: NA | G15: D | H15: NA | I15: Intermedio | J15: alto | K15: 3 | L15: NA | M15: 36.1 | N15: -1.254792622e-07 | O15: 55.71494922 | P15: 96.45363994 | Q15: 87.58739896 | R15: 54.24405819 | S15: =AVERAGE(VLOOKUP($A15,Cont!$A$3:$L$1135,3,FALSE),(100-Base!N15),(100-Base!O15),Base!P15,Base!Q15,Base!R15) -> 80.428358 | T15: 5. Solvente (>=80) | U15: 60.81349721 | V15: 2.567860283 | W15: 70.51306995 | X15: 58.23963801 | Y15: 82.30451208 | Z15: 56.30683953 | AA15: =AVERAGE(VLOOKUP($A15,Cont!$A$3:$L$1135,4,FALSE),(100-Base!V15),(100-Base!W15),Base!X15,Base!Y15,Base!Z15) -> 70.62834323 | AB15: 4. Sostenible (>=70 y <80) | AC15: 60.28 | AD15: 2.01 | AE15: 63.99 | AF15: 92.02 | AG15: 87.59 | AH15: 34.25 | AI15: =AVERAGE(VLOOKUP($A15,Cont!$A$3:$L$1135,5,FALSE),(100-Base!AD15),(100-Base!AE15),Base!AF15,Base!AG15,Base!AH15) -> 74.64333333 | AJ15: 4. Sostenible (>=70 y <80) | AK15: 62.27884997 | AL15: 1.261209696 | AM15: 75.56559678 | AN15: 58.15138894 | AO15: 89.63472757 | AP15: 56.75760988 | AQ15: =AVERAGE(VLOOKUP($A15,Cont!$A$3:$L$1135,6,FALSE),(100-Base!AL15),(100-Base!AM15),Base!AN15,Base!AO15,Base!AP15) -> 71.28615332 | AR15: 4. Sostenible (>=70 y <80) | AS15: 54.1239833 | AT15: 2.150170969 | AU15: 71.87710377 | AV15: 62.09572156 | AW15: 89.48997633 | AX15: 56.75559652 | AY15: =AVERAGE(VLOOKUP($A15,Cont!$A$3:$L$1135,7,FALSE),(100-Base!AT15),(100-Base!AU15),Base!AV15,Base!AW15,Base!AX15) -> 72.38566995 | AZ15: 4. Sostenible (>=70 y <80) | BA15: 59.2 | BB15: 2.642688095 | BC15: 66.21099522 | BD15: 97.08999444 | BE15: 86.41401409 | BF15: 46.83166065 | BG15: =AVERAGE(VLOOKUP($A15,Cont!$A$3:$L$1135,3,FALSE),(100-Base!BB15),(100-Base!BC15),Base!BD15,Base!BE15,Base!BF15) -> 76.91366431 | BH15: 4. Sostenible (>=70 y <80) | BI15: 0.6 | BJ15: 0.7 | BK15: 0.7 | BL15: 0.7 | BM15: 0.7 | BN15: 0.6 | BO15: 103103.257 | BP15: 37179.466 | BQ15: 5300.892 | BR15: 333919.7192 | BS15: 39233.95018 | BT15: 549262.493 | BU15: 0 | BV15: 1056263.088 | BW15: 185172.275 | BX15: 294685.769 | BY15: 908743.2242 | BZ15: 1043579.473 | CA15: 134836.249 | CB15: 81464.8935 | CC15: 49541.65073 | CD15: 8248.276069 | CE15: 321212.0272 | CF15: 89113.58807 | CG15: 487730.2484 | CH15: 7.12987651 | CI15: 818076.6583 | CJ15: 135173.2908 | CK15: 232098.4391 | CL15: 471679.262 | CM15: 573090.4054 | CN15: 101411.1434 | CO15: 86560.36379 | CP15: 52178.69114 | CQ15: 7568.003928 | CR15: 376849.8535 | CS15: 205209.2893 | CT15: 554261.4023 | CU15: 5.125336027 | CV15: 1186832.865 | CW15: 157943.4307 | CX15: 171640.5642 | CY15: 796774.7012 | CZ15: 909631.461 | DA15: 112856.7598 | DB15: 88084.45396 | DC15: 54857.98493 | DD15: 8037.621443 | DE15: 637294.6126 | DF15: 362513.545 | DG15: 540253.6996 | DH15: 15.27149273 | DI15: 1194700.439 | DJ15: 159789.0073 | DK15: 274781.0676 | DL15: 1027524.247 | DM15: 1146346.148 | DN15: 118821.9012 | DO15: 100890.0852 | DP15: 54605.73287 | DQ15: 7466.014018 | DR15: 347228.6868 | DS15: 63758.83072 | DT15: 691912.4613 | DU15: 4.634164909 | DV15: 1051344.439 | DW15: 176022.6571 | DX15: 283469.8561 | DY15: 1043776.427 | DZ15: 1166361.232 | EA15: 122584.8403 | EB15: 101479.9172 | EC15: 60101.13194 | ED15: 12602.57809 | EE15: 476884.8095 | EF15: 189057.802 | EG15: 523851.6737 | EH15: 0.8066975 | EI15: 1076724.916 | EJ15: 279451.2255 | EK15: 287827.0075 | EL15: 973369.3298 | EM15: 1126402.17 | EN15: 153032.8401 | EO15: 2 | EP15: 1 | ES15: 1 | EU15: 2 | EV15: 1 | EW15: 1 | EY15: 32 | EZ15: 8 | FC15: 14 | FE15: 21 | FF15: 21 | FG15: 8 | FI15: 52.89375 | FJ15: 48.925 | FM15: 50.27857 | FO15: 49.96191 | FP15: 54.25714 | FQ15: 48.8625 | FS15: 5.035376 | FT15: 8.596195 | FW15: 3.851042 | FY15: 3.915744 | FZ15: 5.816873 | GA15: 3.116657 | GC15: 62.68224 | GD15: 62.5849 | GG15: 69.12792 | GI15: 63.56422 | GJ15: 65.9015 | GK15: 63.28132 | GM15: 74.7691 | GN15: 80.31817 | GQ15: 73.88676 | GS15: 77.63528 | GT15: 77.85677 | GU15: 77.6348 | GW15: 84.34762 | GX15: 84.12232 | HA15: 87.53967 | HC15: 85.7773 | HD15: 85.97284 | HE15: 82.64339 | HG15: 44.54409 | HH15: 47.63265 | HK15: 43.2043 | HM15: 45.71564 | HN15: 42.02943 | HO15: 47.25354 | HQ15: 71.92803 | HR15: 72.91257 | HU15: 71.93402 | HW15: 73.4017 | HX15: 71.82767 | HY15: 72.99451
A16: 50 | B16: META | C16: 2 | D16: LLANO | E16: NA | F16: NA | G16: C | H16: NA | I16: Intermedio | J16: alto | K16: 2 | L16: NA | M16: 52.8 | N16: 5.321608585 | O16: 67.36236035 | P16: 92.01847696 | Q16: 86.19092283 | R16: 54.88901798 | S16: =AVERAGE(VLOOKUP($A16,Cont!$A$3:$L$1135,3,FALSE),(100-Base!N16),(100-Base!O16),Base!P16,Base!Q16,Base!R16) -> 76.73574147 | T16: 4. Sostenible (>=70 y <80) | U16: 59.81302083 | V16: 7.795166695 | W16: 60.31665133 | X16: 95.03083577 | Y16: 85.51638112 | Z16: 49.12053265 | AA16: =AVERAGE(VLOOKUP($A16,Cont!$A$3:$L$1135,4,FALSE),(100-Base!V16),(100-Base!W16),Base!X16,Base!Y16,Base!Z16) -> 76.92598859 | AB16: 4. Sostenible (>=70 y <80) | AC16: 59.89 | AD16: 2.88 | AE16: 79.98 | AF16: 94.37 | AG16: 90.24 | AH16: 39.46 | AI16: =AVERAGE(VLOOKUP($A16,Cont!$A$3:$L$1135,5,FALSE),(100-Base!AD16),(100-Base!AE16),Base!AF16,Base!AG16,Base!AH16) -> 73.535 | AJ16: 4. Sostenible (>=70 y <80) | AK16: 52.74506646 | AL16: 1.85436989 | AM16: 86.00095524 | AN16: 95.6280877 | AO16: 94.03482314 | AP16: 52.1445785 | AQ16: =AVERAGE(VLOOKUP($A16,Cont!$A$3:$L$1135,6,FALSE),(100-Base!AL16),(100-Base!AM16),Base!AN16,Base!AO16,Base!AP16) -> 75.65869404 | AR16: 4. Sostenible (>=70 y <80) | AS16: 52.78219779 | AT16: 4.621714747 | AU16: 80.79771813 | AV16: 95.80124615 | AW16: 94.22648202 | AX16: 51.6043889 | AY16: =AVERAGE(VLOOKUP($A16,Cont!$A$3:$L$1135,7,FALSE),(100-Base!AT16),(100-Base!AU16),Base!AV16,Base!AW16,Base!AX16) -> 76.03544736 | AZ16: 4. Sostenible (>=70 y <80) | BA16: 46.2 | BB16: 5.807775404 | BC16: 71.633434 | BD16: 90.99206322 | BE16: 93.95064788 | BF16: 56.38051921 | BG16: =AVERAGE(VLOOKUP($A16,Cont!$A$3:$L$1135,3,FALSE),(100-Base!BB16),(100-Base!BC16),Base!BD16,Base!BE16,Base!BF16) -> 77.31367015 | BH16: 4. Sostenible (>=70 y <80) | BI16: 0.55 | BJ16: 0.6 | BK16: 0.6 | BL16: 0.6 | BM16: 0.55 | BN16: 0.55 | BO16: 148450.703 | BP16: 78385.305 | BQ16: 47917.07504 | BR16: 900424.6419 | BS16: 638358.1266 | BT16: 286850.767 | BU16: 805.755 | BV16: 1374676.665 | BW16: 241149.616 | BX16: 262066.5153 | BY16: 737888.4106 | BZ16: 856109.1892 | CA16: 118220.7786 | CB16: 122890.9539 | CC16: 73504.79187 | CD16: 41397.67255 | CE16: 531068.4706 | CF16: 269728.1476 | CG16: 388530.5875 | CH16: 93.48074113 | CI16: 1091493.313 | CJ16: 248353.8931 | CK16: 261340.323 | CL16: 785093.1814 | CM16: 918061.7457 | CN16: 132968.5643 | CO16: 127683.2726 | CP16: 76474.49073 | CQ16: 43435.62443 | CR16: 1508967.166 | CS16: 1241414.504 | CT16: 304863.3736 | CU16: 0 | CV16: 1933445.58 | CW16: 252500.7575 | CX16: 267552.6621 | CY16: 1498403.752 | CZ16: 1660389.605 | DA16: 161985.8528 | DB16: 136010.4963 | DC16: 71738.82668 | DD16: 39943.9549 | DE16: 2154044.623 | DF16: 1904723.81 | DG16: 303288.8804 | DH16: 0 | DI16: 2567428.099 | DJ16: 238420.7258 | DK16: 249320.8131 | DL16: 1880853.925 | DM16: 2000167.451 | DN16: 119313.526 | DO16: 139351.9904 | DP16: 73553.04319 | DQ16: 76085.50244 | DR16: 1646261.528 | DS16: 1377545.409 | DT16: 257028.1823 | DU16: 0 | DV16: 2023044.26 | DW16: 257433.3965 | DX16: 268716.1192 | DY16: 2122423.981 | DZ16: 2252470.783 | EA16: 130046.8106 | EB16: 155371.2771 | EC16: 71737.34368 | ED16: 70023.7454 | EE16: 1205689.623 | EF16: 912496.3913 | EG16: 269612.2859 | EH16: 0 | EI16: 1650219.194 | EJ16: 266782.5711 | EK16: 293193.2321 | EL16: 1986210.841 | EM16: 2114100.206 | EN16: 127889.3656 | EO16: 7 | EP16: 1 | ES16: 3 | EU16: 5 | EV16: 3 | EW16: 3 | EY16: 32 | EZ16: 7 | FC16: 7 | FE16: 21 | FF16: 21 | FG16: 7 | FI16: 52.89375 | FJ16: 60.8 | FM16: 49.32857 | FO16: 49.96191 | FP16: 54.25714 | FQ16: 48.04286 | FS16: 5.035376 | FT16: 2.958997 | FW16: 4.045146 | FY16: 3.915744 | FZ16: 5.816873 | GA16: 4.869848 | GC16: 62.68224 | GD16: 74.30805 | GG16: 52.43681 | GI16: 63.56422 | GJ16: 65.9015 | GK16: 59.92875 | GM16: 74.7691 | GN16: 54.53196 | GQ16: 85.13231 | GS16: 77.63528 | GT16: 77.85677 | GU16: 88.03505 | GW16: 84.34762 | GX16: 88.11153 | HA16: 82.25257 | HC16: 85.7773 | HD16: 85.97284 | HE16: 85.42656 | HG16: 44.54409 | HH16: 46.54466 | HK16: 50.73832 | HM16: 45.71564 | HN16: 42.02943 | HO16: 47.76458 | HQ16: 71.92803 | HR16: 66.90749 | HU16: 76.33704 | HW16: 73.4017 | HX16: 71.82767 | HY16: 76.07127
A17: 52 | B17: NARIÑO | C17: 2 | D17: PACÍFICO | E17: NA | F17: NA | G17: D | H17: NA | I17: Intermedio | J17: alto | K17: 2 | L17: NA | M17: 38.7 | N17: -6.799530935e-08 | O17: 56.26336301 | P17: 90.54666343 | Q17: 90.2350773 | R17: 53.64046685 | S17: =AVERAGE(VLOOKUP($A17,Cont!$A$3:$L$1135,3,FALSE),(100-Base!N17),(100-Base!O17),Base!P17,Base!Q17,Base!R17) -> 79.69314077 | T17: 4. Sostenible (>=70 y <80) | U17: 63.43605695 | V17: 2.492572209 | W17: 73.21318067 | X17: 72.76582729 | Y17: 84.34400757 | Z17: 33.05298342 | AA17: =AVERAGE(VLOOKUP($A17,Cont!$A$3:$L$1135,4,FALSE),(100-Base!V17),(100-Base!W17),Base!X17,Base!Y17,Base!Z17) -> 67.64448717 | AB17: 3. Vulnerable (>=60 y <70) | AC17: 52.79 | AD17: 1.49 | AE17: 71.04 | AF17: 60.92 | AG17: 85.34 | AH17: 38.11 | AI17: =AVERAGE(VLOOKUP($A17,Cont!$A$3:$L$1135,5,FALSE),(100-Base!AD17),(100-Base!AE17),Base!AF17,Base!AG17,Base!AH17) -> 68.64 | AJ17: 3. Vulnerable (>=60 y <70) | AK17: 51.22852201 | AL17: 2.107397804 | AM17: 63.45032869 | AN17: 64.04617806 | AO17: 82.72082616 | AP17: -8.254355608 | AQ17: =AVERAGE(VLOOKUP($A17,Cont!$A$3:$L$1135,6,FALSE),(100-Base!AL17),(100-Base!AM17),Base!AN17,Base!AO17,Base!AP17) -> 62.15915369 | AR17: 3. Vulnerable (>=60 y <70) | AS17: 47.74357941 | AT17: 2.502435552 | AU17: 69.43297855 | AV17: 67.94846337 | AW17: 88.46637888 | AX17: 43.43811305 | AY17: =AVERAGE(VLOOKUP($A17,Cont!$A$3:$L$1135,7,FALSE),(100-Base!AT17),(100-Base!AU17),Base!AV17,Base!AW17,Base!AX17) -> 71.3195902 | AZ17: 4. Sostenible (>=70 y <80) | BA17: 45 | BB17: 3.043427511 | BC17: 60.44329811 | BD17: 78.20439153 | BE17: 87.10538884 | BF17: 45.49311097 | BG17: =AVERAGE(VLOOKUP($A17,Cont!$A$3:$L$1135,3,FALSE),(100-Base!BB17),(100-Base!BC17),Base!BD17,Base!BE17,Base!BF17) -> 74.55269429 | BH17: 4. Sostenible (>=70 y <80) | BI17: 0.6 | BJ17: 0.6 | BK17: 0.6 | BL17: 0.6 | BM17: 0.6 | BN17: 0.6 | BO17: 146385.762 | BP17: 56689.884 | BQ17: 7612.429 | BR17: 239722.418 | BS17: 0 | BT17: 600003.016 | BU17: 0 | BV17: 1066418.685 | BW17: 217060.651 | BX17: 239722.418 | BY17: 949004.9166 | BZ17: 1060139.11 | CA17: 111134.1938 | CB17: 138425.7887 | CC17: 87811.86213 | CD17: 5192.788044 | CE17: 208330.4959 | CF17: 11101.25374 | CG17: 644848.3626 | CH17: 0 | CI17: 895944.706 | CJ17: 143515.4897 | CK17: 197229.2421 | CL17: 711338.2527 | CM17: 843377.3461 | CN17: 132039.0934 | CO17: 111866.5283 | CP17: 59056.05634 | CQ17: 7310.967168 | CR17: 489527.7175 | CS17: 271315.8758 | CT17: 603868.0093 | CU17: 0 | CV17: 1231912.944 | CW17: 132935.2423 | CX17: 218211.8416 | CY17: 786127.0611 | CZ17: 921179.4169 | DA17: 135052.3558 | DB17: 110457.6727 | DC17: 56585.83316 | DD17: 10837.14674 | DE17: 514243.0497 | DF17: 300210.4323 | DG17: 608602.0104 | DH17: 0 | DI17: 1432321.095 | DJ17: 137079.7112 | DK17: 214032.6173 | DL17: 1109218.823 | DM17: 1340918.454 | DN17: 231699.6307 | DO17: 120622.7093 | DP17: 57589.59898 | DQ17: 10181.78841 | DR17: 406875.066 | DS17: 179183.8097 | DT17: 542419.7445 | DU17: 0 | DV17: 1039280.681 | DW17: 154712.7224 | DX17: 227691.2563 | DY17: 987831.4069 | DZ17: 1116617.848 | EA17: 128786.467 | EB17: 132386.4564 | EC17: 59508.29672 | ED17: 8322.153717 | EE17: 273446.7533 | EF17: 17224.84963 | EG17: 621577.6486 | EH17: 0 | EI17: 1056862.412 | EJ17: 200376.7807 | EK17: 256221.9037 | EL17: 943418.5742 | EM17: 1083077.163 | EN17: 139658.5887 | EO17: 3 | EP17: 2 | ES17: 2 | EU17: 3 | EV17: 2 | EW17: 1 | EY17: 32 | EZ17: 4 | FC17: 14 | FE17: 21 | FF17: 21 | FG17: 7 | FI17: 52.89375 | FJ17: 51.05 | FM17: 50.27857 | FO17: 49.96191 | FP17: 54.25714 | FQ17: 48.04286 | FS17: 5.035376 | FT17: 1.772935 | FW17: 3.851042 | FY17: 3.915744 | FZ17: 5.816873 | GA17: 4.869848 | GC17: 62.68224 | GD17: 61.40865 | GG17: 69.12792 | GI17: 63.56422 | GJ17: 65.9015 | GK17: 59.92875 | GM17: 74.7691 | GN17: 86.80247 | GQ17: 73.88676 | GS17: 77.63528 | GT17: 77.85677 | GU17: 88.03505 | GW17: 84.34762 | GX17: 86.64083 | HA17: 87.53967 | HC17: 85.7773 | HD17: 85.97284 | HE17: 85.42656 | HG17: 44.54409 | HH17: 41.68883 | HK17: 43.2043 | HM17: 45.71564 | HN17: 42.02943 | HO17: 47.76458 | HQ17: 71.92803 | HR17: 73.71398 | HU17: 71.93402 | HW17: 73.4017 | HX17: 71.82767 | HY17: 76.07127
A18: 54 | B18: NORTE SANTANDER | C18: 2 | D18: CENTRO ORIENTE | E18: NA | F18: NA | G18: D | H18: NA | I18: Intermedio | J18: alto | K18: 2 | L18: NA | M18: 44.9 | N18: 4.206140875 | O18: 66.49845845 | P18: 92.706979 | Q18: 85.17594948 | R18: 41.92024956 | S18: =AVERAGE(VLOOKUP($A18,Cont!$A$3:$L$1135,3,FALSE),(100-Base!N18),(100-Base!O18),Base!P18,Base!Q18,Base!R18) -> 74.84976312 | T18: 4. Sostenible (>=70 y <80) | U18: 30.68398811 | V18: 10.56556493 | W18: 66.21721985 | X18: 83.02765498 | Y18: 81.63164926 | Z18: 46.20960514 | AA18: =AVERAGE(VLOOKUP($A18,Cont!$A$3:$L$1135,4,FALSE),(100-Base!V18),(100-Base!W18),Base!X18,Base!Y18,Base!Z18) -> 72.34768743 | AB18: 4. Sostenible (>=70 y <80) | AC18: 59.69 | AD18: 3.45 | AE18: 63.13 | AF18: 90.75 | AG18: 75.99 | AH18: -18.24 | AI18: =AVERAGE(VLOOKUP($A18,Cont!$A$3:$L$1135,5,FALSE),(100-Base!AD18),(100-Base!AE18),Base!AF18,Base!AG18,Base!AH18) -> 63.65333333 | AJ18: 3. Vulnerable (>=60 y <70) | AK18: 58.80321035 | AL18: 3.962206099 | AM18: 74.42537649 | AN18: 90.71068039 | AO18: 87.5668785 | AP18: 43.50563859 | AQ18: =AVERAGE(VLOOKUP($A18,Cont!$A$3:$L$1135,6,FALSE),(100-Base!AL18),(100-Base!AM18),Base!AN18,Base!AO18,Base!AP18) -> 73.89926915 | AR18: 4. Sostenible (>=70 y <80) | AS18: 60.09959283 | AT18: 3.734590804 | AU18: 75.65353156 | AV18: 92.17815466 | AW18: 90.24918373 | AX18: 49.93076651 | AY18: =AVERAGE(VLOOKUP($A18,Cont!$A$3:$L$1135,7,FALSE),(100-Base!AT18),(100-Base!AU18),Base!AV18,Base!AW18,Base!AX18) -> 75.45350008 | AZ18: 4. Sostenible (>=70 y <80) | BA18: 58.7 | BB18: 5.501608816 | BC18: 71.16239931 | BD18: 93.33360522 | BE18: 88.24769655 | BF18: 45.92165965 | BG18: =AVERAGE(VLOOKUP($A18,Cont!$A$3:$L$1135,3,FALSE),(100-Base!BB18),(100-Base!BC18),Base!BD18,Base!BE18,Base!BF18) -> 75.13982555 | BH18: 4. Sostenible (>=70 y <80) | BI18: 0.6 | BJ18: 0.6 | BK18: 0.6 | BL18: 0.6 | BM18: 0.6 | BN18: 0.6 | BO18: 111951.513 | BP18: 50220.627 | BQ18: 11517.571 | BR18: 273827.5142 | BS18: 55353.41773 | BT18: 505142.842 | BU18: 0 | BV18: 842871.0572 | BW18: 202514.32 | BX18: 218474.0965 | BY18: 729079.3383 | BZ18: 855968.5483 | CA18: 126889.21 | CB18: 107442.6812 | CC18: 32967.69951 | CD18: 28448.39729 | CE18: 269255.8085 | CF18: 38655.07321 | CG18: 429926.1326 | CH18: 20537.00509 | CI18: 738657.1228 | CJ18: 191462.3829 | CK18: 230600.7353 | CL18: 551256.6321 | CM18: 675297.6782 | CN18: 124041.0461 | CO18: 99840.04122 | CP18: 59593.88525 | CQ18: 13105.7693 | CR18: 380006.773 | CS18: 183719.5278 | CT18: 489943.9406 | CU18: 0 | CV18: 1067074.882 | CW18: 178121.8373 | CX18: 196287.2452 | CY18: 734510.8363 | CZ18: 966599.7878 | DA18: 232088.9515 | DB18: 96988.97649 | DC18: 57032.63186 | DD18: 17110.83265 | DE18: 431851.1511 | DF18: 237798.7423 | DG18: 460774.324 | DH18: 0 | DI18: 938622.1464 | DJ18: 176026.2604 | DK18: 194052.4088 | DL18: 772118.2773 | DM18: 881746.9465 | DN18: 109628.6692 | DO18: 93883.20152 | DP18: 56423.42184 | DQ18: 16009.91661 | DR18: 428692.8772 | DS18: 232988.8992 | DT18: 413447.7235 | DU18: 0 | DV18: 854469.8974 | DW18: 180396.3222 | DX18: 195703.978 | DY18: 906928.1484 | DZ18: 1004915.624 | EA18: 97987.47605 | EB18: 113956.5901 | EC18: 66896.89221 | ED18: 23529.91726 | EE18: 427691.5724 | EF18: 198720.9596 | EG18: 436754.7524 | EH18: 0 | EI18: 892993.6568 | EJ18: 213706.5279 | EK18: 228970.6129 | EL18: 929787.0281 | EM18: 1053610.535 | EN18: 123823.5073 | EO18: 13 | EP18: 4 | ES18: 5 | EU18: 10 | EV18: 8 | EW18: 5 | EY18: 32 | EZ18: 4 | FC18: 14 | FE18: 21 | FF18: 21 | FG18: 7 | FI18: 52.89375 | FJ18: 44.2 | FM18: 50.27857 | FO18: 49.96191 | FP18: 54.25714 | FQ18: 48.04286 | FS18: 5.035376 | FT18: 7.764167 | FW18: 3.851042 | FY18: 3.915744 | FZ18: 5.816873 | GA18: 4.869848 | GC18: 62.68224 | GD18: 52.76932 | GG18: 69.12792 | GI18: 63.56422 | GJ18: 65.9015 | GK18: 59.92875 | GM18: 74.7691 | GN18: 88.79459 | GQ18: 73.88676 | GS18: 77.63528 | GT18: 77.85677 | GU18: 88.03505 | GW18: 84.34762 | GX18: 80.98303 | HA18: 87.53967 | HC18: 85.7773 | HD18: 85.97284 | HE18: 85.42656 | HG18: 44.54409 | HH18: 47.41685 | HK18: 43.2043 | HM18: 45.71564 | HN18: 42.02943 | HO18: 47.76458 | HQ18: 71.92803 | HR18: 76.11017 | HU18: 71.93402 | HW18: 73.4017 | HX18: 71.82767 | HY18: 76.07127
A19: 63 | B19: QUINDIO | C19: 2 | D19: EJE CAFETERO | E19: NA | F19: NA | G19: B | H19: NA | I19: Robusto | J19: medioalto | K19: 3 | L19: NA | M19: 51.8 | N19: 5.0124968 | O19: 47.42946956 | P19: 82.69060633 | Q19: 73.72142687 | R19: 44.09613434 | S19: =AVERAGE(VLOOKUP($A19,Cont!$A$3:$L$1135,3,FALSE),(100-Base!N19),(100-Base!O19),Base!P19,Base!Q19,Base!R19) -> 74.6777002 | T19: 4. Sostenible (>=70 y <80) | U19: 49.83003989 | V19: 4.252946259 | W19: 52.4050442 | X19: 78.18500429 | Y19: 80.9506147 | Z19: 56.21704466 | AA19: =AVERAGE(VLOOKUP($A19,Cont!$A$3:$L$1135,4,FALSE),(100-Base!V19),(100-Base!W19),Base!X19,Base!Y19,Base!Z19) -> 76.4491122 | AB19: 4. Sostenible (>=70 y <80) | AC19: 64.45 | AD19: 2.36 | AE19: 58.37 | AF19: 81.54 | AG19: 82.37 | AH19: 52.17 | AI19: =AVERAGE(VLOOKUP($A19,Cont!$A$3:$L$1135,5,FALSE),(100-Base!AD19),(100-Base!AE19),Base!AF19,Base!AG19,Base!AH19) -> 75.89166667 | AJ19: 4. Sostenible (>=70 y <80) | AK19: 62.27033857 | AL19: 2.351502495 | AM19: 56.46896204 | AN19: 82.68575867 | AO19: 76.1911914 | AP19: 43.06249287 | AQ19: =AVERAGE(VLOOKUP($A19,Cont!$A$3:$L$1135,6,FALSE),(100-Base!AL19),(100-Base!AM19),Base!AN19,Base!AO19,Base!AP19) -> 73.85316307 | AR19: 4. Sostenible (>=70 y <80) | AS19: 39.35890743 | AT19: 2.822462535 | AU19: 47.66326971 | AV19: 83.45682183 | AW19: 76.26070451 | AX19: 32.82964299 | AY19: =AVERAGE(VLOOKUP($A19,Cont!$A$3:$L$1135,7,FALSE),(100-Base!AT19),(100-Base!AU19),Base!AV19,Base!AW19,Base!AX19) -> 73.67690618 | AZ19: 4. Sostenible (>=70 y <80) | BA19: 54.4 | BB19: 4.455476194 | BC19: 49.48716516 | BD19: 82.51243832 | BE19: 73.10524199 | BF19: 42.00605495 | BG19: =AVERAGE(VLOOKUP($A19,Cont!$A$3:$L$1135,3,FALSE),(100-Base!BB19),(100-Base!BC19),Base!BD19,Base!BE19,Base!BF19) -> 73.94684898 | BH19: 4. Sostenible (>=70 y <80) | BI19: 0.7 | BJ19: 0.7 | BK19: 0.7 | BL19: 0.7 | BM19: 0.7 | BN19: 0.7 | BO19: 66243 | BP19: 34291.03 | BQ19: 7068.13 | BR19: 141010.1648 | BS19: 0 | BT19: 144704.582 | BU19: 0 | BV19: 305094.2448 | BW19: 116340.342 | BX19: 141010.1648 | BY19: 221148.609 | BZ19: 299978.7421 | CA19: 78830.13312 | CB19: 52647.94705 | CC19: 26234.49301 | CD19: 4471.74901 | CE19: 105144.7335 | CF19: 158.0582222 | CG19: 134162.0952 | CH19: 0 | CI19: 256311.4972 | CJ19: 82083.83658 | CK19: 104986.6753 | CL19: 195334.2685 | CM19: 241300.5377 | CN19: 45966.26915 | CO19: 55748.4688 | CP19: 35931.44781 | CQ19: 4007.530331 | CR19: 169813.8284 | CS19: 56537.39044 | CT19: 153134.8422 | CU19: 0 | CV19: 359200.2734 | CW19: 92363.05434 | CX19: 113276.4379 | CY19: 253127.0025 | CZ19: 307311.7906 | DA19: 54184.78811 | DB19: 60815.66879 | DC19: 37870.12286 | DD19: 4686.601813 | DE19: 199302.4384 | DF19: 60028.69302 | DG19: 144377.9486 | DH19: 0 | DI19: 361980.5186 | DJ19: 115159.553 | DK19: 139273.7454 | DL19: 253766.8007 | DM19: 333065.7995 | DN19: 79298.99872 | DO19: 75828.95531 | DP19: 29845.44832 | DQ19: 5186.621314 | DR19: 183762.2232 | DS19: 39170.48321 | DT19: 133805.5682 | DU19: 0 | DV19: 362912.6922 | DW19: 120671.6821 | DX19: 144591.74 | DY19: 311999.6903 | DZ19: 409122.4915 | EA19: 97122.79255 | EB19: 69928.01487 | EC19: 38068.23926 | ED19: 6317.961139 | EE19: 141802.1523 | EF19: 5317.048078 | EG19: 137291.4697 | EH19: 0 | EI19: 288172.7359 | EJ19: 112617.1874 | EK19: 136485.1042 | EL19: 215153.6839 | EM19: 294306.7803 | EN19: 79153.09635 | EO19: 14 | EP19: 3 | ES19: 3 | EU19: 4 | EV19: 6 | EW19: 3 | EY19: 32 | EZ19: 4 | FC19: 4 | FE19: 5 | FF19: 11 | FG19: 8 | FI19: 52.89375 | FJ19: 47.75 | FM19: 42.075 | FO19: 42.26 | FP19: 50.29091 | FQ19: 48.8625 | FS19: 5.035376 | FT19: 5.40389 | FW19: 3.632047 | FY19: 5.990863 | FZ19: 3.543429 | GA19: 3.116657 | GC19: 62.68224 | GD19: 46.92319 | GG19: 46.24986 | GI19: 44.27166 | GJ19: 56.53639 | GK19: 63.28132 | GM19: 74.7691 | GN19: 81.97777 | GQ19: 65.25327 | GS19: 68.73356 | GT19: 68.87447 | GU19: 77.6348 | GW19: 84.34762 | GX19: 76.79386 | HA19: 72.41777 | HC19: 73.10487 | HD19: 81.24493 | HE19: 82.64339 | HG19: 44.54409 | HH19: 50.22984 | HK19: 52.54674 | HM19: 53.21169 | HN19: 49.34483 | HO19: 47.25354 | HQ19: 71.92803 | HR19: 76.1124 | HU19: 73.38931 | HW19: 74.13126 | HX19: 72.11962 | HY19: 72.99451
A20: 66 | B20: RISARALDA | C20: 2 | D20: EJE CAFETERO | E20: NA | F20: NA | G20: B | H20: NA | I20: Robusto | J20: medioalto | K20: 2 | L20: NA | M20: 41.6 | N20: 2.07604256 | O20: 53.43594731 | P20: 80.19100686 | Q20: 83.82914798 | R20: 64.77153025 | S20: =AVERAGE(VLOOKUP($A20,Cont!$A$3:$L$1135,3,FALSE),(100-Base!N20),(100-Base!O20),Base!P20,Base!Q20,Base!R20) -> 78.8799492 | T20: 4. Sostenible (>=70 y <80) | U20: 33.79362775 | V20: 6.237151095 | W20: 50.72468088 | X20: 79.20398917 | Y20: 80.32878636 | Z20: 60.84912478 | AA20: =AVERAGE(VLOOKUP($A20,Cont!$A$3:$L$1135,4,FALSE),(100-Base!V20),(100-Base!W20),Base!X20,Base!Y20,Base!Z20) -> 77.23667806 | AB20: 4. Sostenible (>=70 y <80) | AC20: 38.04 | AD20: 7.14 | AE20: 52.19 | AF20: 78.92 | AG20: 69.11 | AH20: 33.51 | AI20: =AVERAGE(VLOOKUP($A20,Cont!$A$3:$L$1135,5,FALSE),(100-Base!AD20),(100-Base!AE20),Base!AF20,Base!AG20,Base!AH20) -> 70.36833333 | AJ20: 4. Sostenible (>=70 y <80) | AK20: 39.89565949 | AL20: 5.929550695 | AM20: 58.52583421 | AN20: 76.46743605 | AO20: 80.29680653 | AP20: 59.73760479 | AQ20: =AVERAGE(VLOOKUP($A20,Cont!$A$3:$L$1135,6,FALSE),(100-Base!AL20),(100-Base!AM20),Base!AN20,Base!AO20,Base!AP20) -> 75.34107708 | AR20: 4. Sostenible (>=70 y <80) | AS20: 38.27444763 | AT20: 3.674171688 | AU20: 54.8298531 | AV20: 77.87640575 | AW20: 86.80409246 | AX20: 65.74431801 | AY20: =AVERAGE(VLOOKUP($A20,Cont!$A$3:$L$1135,7,FALSE),(100-Base!AT20),(100-Base!AU20),Base!AV20,Base!AW20,Base!AX20) -> 78.65346524 | AZ20: 4. Sostenible (>=70 y <80) | BA20: 44.8 | BB20: 4.596271466 | BC20: 51.67036099 | BD20: 79.13870127 | BE20: 82.25433275 | BF20: 54.46688419 | BG20: =AVERAGE(VLOOKUP($A20,Cont!$A$3:$L$1135,3,FALSE),(100-Base!BB20),(100-Base!BC20),Base!BD20,Base!BE20,Base!BF20) -> 76.59888096 | BH20: 4. Sostenible (>=70 y <80) | BI20: 0.6 | BJ20: 0.6 | BK20: 0.6 | BL20: 0.6 | BM20: 0.6 | BN20: 0.6 | BO20: 104543.809 | BP20: 43442.015 | BQ20: 4511.216 | BR20: 217298.8207 | BS20: 19317.87469 | BT20: 217783.973 | BU20: 0 | BV20: 443712.2567 | BW20: 158762.914 | BX20: 197980.946 | BY20: 361559.1219 | BZ20: 431304.7796 | CA20: 69745.65767 | CB20: 97689.36776 | CC20: 33012.78129 | CD20: 11794.71713 | CE20: 189104.2393 | CF20: 257.6864792 | CG20: 205694.0697 | CH20: 0 | CI20: 406018.8308 | CJ20: 149574.0032 | CK20: 188846.5528 | CL20: 301919.0992 | CM20: 375854.1774 | CN20: 73935.07824 | CO20: 92414.24313 | CP20: 35150.09905 | CQ20: 21455.85906 | CR20: 300366.7702 | CS20: 113130.1082 | CT20: 169772.0838 | CU20: 0 | CV20: 542106.4821 | CW20: 147764.0066 | CX20: 187236.662 | CY20: 278503.7582 | CZ20: 402995.9384 | DA20: 124492.1802 | DB20: 93886.63867 | DC20: 37456.69367 | DD20: 17001.23668 | DE20: 286720.4878 | DF20: 106396.9908 | DG20: 163985.8907 | DH20: 0 | DI20: 461988.9406 | DJ20: 137888.7548 | DK20: 180323.497 | DL20: 295878.617 | DM20: 368481.176 | DN20: 72602.55903 | DO20: 103517.6897 | DP20: 39620.82394 | DQ20: 10382.6533 | DR20: 282585.0065 | DS20: 92000.59048 | DT20: 151282.0404 | DU20: 0 | DV20: 443704.706 | DW20: 148420.2922 | DX20: 190584.416 | DY20: 429458.2265 | DZ20: 494744.2255 | EA20: 65285.99477 | EB20: 99677.46356 | EC20: 44634.67468 | ED20: 10728.05979 | EE20: 233407.8801 | EF20: 41053.14284 | EG20: 171129.1978 | EH20: 0 | EI20: 410646.1356 | EJ20: 152227.0409 | EK20: 192354.7372 | EL20: 405972.5841 | EM20: 493557.6894 | EN20: 87585.10526 | EO20: 5 | EP20: 1 | ES20: 1 | EU20: 1 | EV20: 3 | EW20: 2 | EY20: 32 | EZ20: 4 | FC20: 4 | FE20: 5 | FF20: 11 | FG20: 7 | FI20: 52.89375 | FJ20: 47.75 | FM20: 42.075 | FO20: 42.26 | FP20: 50.29091 | FQ20: 48.04286 | FS20: 5.035376 | FT20: 5.40389 | FW20: 3.632047 | FY20: 5.990863 | FZ20: 3.543429 | GA20: 4.869848 | GC20: 62.68224 | GD20: 46.92319 | GG20: 46.24986 | GI20: 44.27166 | GJ20: 56.53639 | GK20: 59.92875 | GM20: 74.7691 | GN20: 81.97777 | GQ20: 65.25327 | GS20: 68.73356 | GT20: 68.87447 | GU20: 88.03505 | GW20: 84.34762 | GX20: 76.79386 | HA20: 72.41777 | HC20: 73.10487 | HD20: 81.24493 | HE20: 85.42656 | HG20: 44.54409 | HH20: 50.22984 | HK20: 52.54674 | HM20: 53.21169 | HN20: 49.34483 | HO20: 47.76458 | HQ20: 71.92803 | HR20: 76.1124 | HU20: 73.38931 | HW20: 74.13126 | HX20: 72.11962 | HY20: 76.07127
A21: 68 | B21: SANTANDER | C21: 2 | D21: CENTRO ORIENTE | E21: NA | F21: NA | G21: C | H21: NA | I21: Intermedio | J21: alto | K21: 1 | L21: NA | M21: 37.5 | N21: 7.506025663 | O21: 45.53140241 | P21: 90.59813229 | Q21: 76.53648418 | R21: 42.46445809 | S21: =AVERAGE(VLOOKUP($A21,Cont!$A$3:$L$1135,3,FALSE),(100-Base!N21),(100-Base!O21),Base!P21,Base!Q21,Base!R21) -> 76.09360775 | T21: 4. Sostenible (>=70 y <80) | U21: 46.5980451 | V21: 12.71186748 | W21: 51.83690998 | X21: 89.71933165 | Y21: 62.5788752 | Z21: 13.07058702 | AA21: =AVERAGE(VLOOKUP($A21,Cont!$A$3:$L$1135,4,FALSE),(100-Base!V21),(100-Base!W21),Base!X21,Base!Y21,Base!Z21) -> 66.80333607 | AB21: 3. Vulnerable (>=60 y <70) | AC21: 59.4 | AD21: 1.82 | AE21: 49.99 | AF21: 91.77 | AG21: 71.55 | AH21: 27.67 | AI21: =AVERAGE(VLOOKUP($A21,Cont!$A$3:$L$1135,5,FALSE),(100-Base!AD21),(100-Base!AE21),Base!AF21,Base!AG21,Base!AH21) -> 73.19666667 | AJ21: 4. Sostenible (>=70 y <80) | AK21: 56.99942331 | AL21: 1.426252378 | AM21: 51.89350501 | AN21: 85.93974364 | AO21: 79.06484339 | AP21: 38.67197693 | AQ21: =AVERAGE(VLOOKUP($A21,Cont!$A$3:$L$1135,6,FALSE),(100-Base!AL21),(100-Base!AM21),Base!AN21,Base!AO21,Base!AP21) -> 75.05946776 | AR21: 4. Sostenible (>=70 y <80) | AS21: 56.25260454 | AT21: 4.21198927 | AU21: 42.91573778 | AV21: 92.6746564 | AW21: 80.62615208 | AX21: 45.423961 | AY21: =AVERAGE(VLOOKUP($A21,Cont!$A$3:$L$1135,7,FALSE),(100-Base!AT21),(100-Base!AU21),Base!AV21,Base!AW21,Base!AX21) -> 78.59950707 | AZ21: 4. Sostenible (>=70 y <80) | BA21: 46.4 | BB21: 5.164208619 | BC21: 49.04739425 | BD21: 92.64582957 | BE21: 77.84740617 | BF21: 47.79572232 | BG21: =AVERAGE(VLOOKUP($A21,Cont!$A$3:$L$1135,3,FALSE),(100-Base!BB21),(100-Base!BC21),Base!BD21,Base!BE21,Base!BF21) -> 77.34622587 | BH21: 4. Sostenible (>=70 y <80) | BI21: 0.6 | BJ21: 0.55 | BK21: 0.55 | BL21: 0.6 | BM21: 0.6 | BN21: 0.6 | BO21: 280359.686 | BP21: 105120.491 | BQ21: 47381.39394 | BR21: 631244.7633 | BS21: 38365.27411 | BT21: 565227.586 | BU21: 0 | BV21: 1325662.791 | BW21: 537137.744 | BX21: 592879.4892 | BY21: 1112699.913 | BZ21: 1453816.34 | CA21: 341116.427 | CB21: 250176.5744 | CC21: 116577.393 | CD21: 89907.29198 | CE21: 707270.5258 | CF21: 190637.2012 | CG21: 513106.419 | CH21: 1910.113912 | CI21: 1361295.908 | CJ21: 463519.9659 | CK21: 516633.3246 | CL21: 751034.8306 | CM21: 1200141.147 | CN21: 449106.3163 | CO21: 254207.6662 | CP21: 151006.9335 | CQ21: 13080.29978 | CR21: 717304.8372 | CS21: 162493.8617 | CT21: 544775.8027 | CU21: 0 | CV21: 1414897.159 | CW21: 509169.2734 | CX21: 554810.9755 | CY21: 1009398.167 | CZ21: 1410665.206 | DA21: 401267.0384 | DB21: 279836.4229 | DC21: 159505.1473 | DD21: 12994.41844 | DE21: 911088.2922 | DF21: 258936.5198 | DG21: 557577.3277 | DH21: 0 | DI21: 1573441.315 | DJ21: 560457.5613 | DK21: 652151.7723 | DL21: 1510479.534 | DM21: 1910431.323 | DN21: 399951.7894 | DO21: 271857.8189 | DP21: 152927.1038 | DQ21: 32700.13113 | DR21: 776358.326 | DS21: 132371.9766 | DT21: 496124.637 | DU21: 0 | DV21: 1464489.8 | DW21: 596812.1195 | DX21: 643986.3493 | DY21: 1462644.252 | DZ21: 1814106.58 | EA21: 351462.2253 | EB21: 272983.813 | EC21: 126636.8766 | ED21: 54875.45379 | EE21: 1062611.096 | EF21: 360701.9532 | EG21: 537442.3042 | EH21: 0 | EI21: 1831176.296 | EJ21: 650289.5479 | EK21: 701909.1425 | EL21: 1287675.855 | EM21: 1654102.453 | EN21: 366426.5978 | EO21: 11 | EP21: 3 | ES21: 5 | EU21: 8 | EV21: 6 | EW21: 3 | EY21: 32 | EZ21: 4 | FC21: 7 | FE21: 21 | FF21: 21 | FG21: 3 | FI21: 52.89375 | FJ21: 44.2 | FM21: 49.32857 | FO21: 49.96191 | FP21: 54.25714 | FQ21: 39.6 | FS21: 5.035376 | FT21: 7.764167 | FW21: 4.045146 | FY21: 3.915744 | FZ21: 5.816873 | GA21: 6.299618 | GC21: 62.68224 | GD21: 52.76932 | GG21: 52.43681 | GI21: 63.56422 | GJ21: 65.9015 | GK21: 48.03237 | GM21: 74.7691 | GN21: 88.79459 | GQ21: 85.13231 | GS21: 77.63528 | GT21: 77.85677 | GU21: 83.87862 | GW21: 84.34762 | GX21: 80.98303 | HA21: 82.25257 | HC21: 85.7773 | HD21: 85.97284 | HE21: 81.68346 | HG21: 44.54409 | HH21: 47.41685 | HK21: 50.73832 | HM21: 45.71564 | HN21: 42.02943 | HO21: 52.6953 | HQ21: 71.92803 | HR21: 76.11017 | HU21: 76.33704 | HW21: 73.4017 | HX21: 71.82767 | HY21: 77.3209
A22: 70 | B22: SUCRE | C22: 2 | D22: CARIBE | E22: NA | F22: NA | G22: D | H22: NA | I22: Intermedio | J22: alto | K22: 3 | L22: NA | M22: 54.5 | N22: 2.578133828 | O22: 79.07296533 | P22: 95.1422419 | Q22: 90.06259254 | R22: 53.25668365 | S22: =AVERAGE(VLOOKUP($A22,Cont!$A$3:$L$1135,3,FALSE),(100-Base!N22),(100-Base!O22),Base!P22,Base!Q22,Base!R22) -> 76.13506982 | T22: 4. Sostenible (>=70 y <80) | U22: 45.05089675 | V22: 0 | W22: 80.51692451 | X22: 95.78177626 | Y22: 90.78322588 | Z22: 55.82212055 | AA22: =AVERAGE(VLOOKUP($A22,Cont!$A$3:$L$1135,4,FALSE),(100-Base!V22),(100-Base!W22),Base!X22,Base!Y22,Base!Z22) -> 76.97836636 | AB22: 4. Sostenible (>=70 y <80) | AC22: 48.06 | AD22: 0.5 | AE22: 80.42 | AF22: 96.7 | AG22: 93.61 | AH22: 59.86 | AI22: =AVERAGE(VLOOKUP($A22,Cont!$A$3:$L$1135,5,FALSE),(100-Base!AD22),(100-Base!AE22),Base!AF22,Base!AG22,Base!AH22) -> 78.20833333 | AJ22: 4. Sostenible (>=70 y <80) | AK22: 44.5573173 | AL22: 0.9264193434 | AM22: 71.35205014 | AN22: 96.17072255 | AO22: 95.16021916 | AP22: 65.51044157 | AQ22: =AVERAGE(VLOOKUP($A22,Cont!$A$3:$L$1135,6,FALSE),(100-Base!AL22),(100-Base!AM22),Base!AN22,Base!AO22,Base!AP22) -> 80.76048563 | AR22: 5. Solvente (>=80) | AS22: 46.21163312 | AT22: 1.674816854 | AU22: 77.95882599 | AV22: 95.59104786 | AW22: 93.80774648 | AX22: 70.00612135 | AY22: =AVERAGE(VLOOKUP($A22,Cont!$A$3:$L$1135,7,FALSE),(100-Base!AT22),(100-Base!AU22),Base!AV22,Base!AW22,Base!AX22) -> 79.96187881 | AZ22: 4. Sostenible (>=70 y <80) | BA22: 48.8 | BB22: 1.554315444 | BC22: 76.30196339 | BD22: 96.73548488 | BE22: 93.28127891 | BF22: 67.77327095 | BG22: =AVERAGE(VLOOKUP($A22,Cont!$A$3:$L$1135,3,FALSE),(100-Base!BB22),(100-Base!BC22),Base!BD22,Base!BE22,Base!BF22) -> 79.98895932 | BH22: 4. Sostenible (>=70 y <80) | BI22: 0.7 | BJ22: 0.7 | BK22: 0.7 | BL22: 0.7 | BM22: 0.7 | BN22: 0.7 | BO22: 61551.816 | BP22: 33567.163 | BQ22: 2983 | BR22: 115703.8462 | BS22: 1499.822 | BT22: 445207.324 | BU22: 0 | BV22: 564930.3072 | BW22: 108656.269 | BX22: 114204.0242 | BY22: 483807.1427 | BZ22: 537189.891 | CA22: 53382.74833 | CB22: 51241.71831 | CC22: 23084.85361 | CD22: 0 | CE22: 114624.1993 | CF22: 12352.89791 | CG22: 416540.339 | CH22: 0 | CI22: 532674.6389 | CJ22: 97957.26906 | CK22: 102271.3014 | CL22: 445025.9281 | CM22: 490207.2204 | CN22: 45181.29223 | CO22: 59400.28351 | CP22: 28548.14238 | CQ22: 1827.431433 | CR22: 363934.8559 | CS22: 243717.8711 | CT22: 464176.0231 | CU22: 0 | CV22: 880196.5807 | CW22: 116244.4327 | CX22: 120216.9848 | CY22: 706386.4777 | CZ22: 754642.1731 | DA22: 48255.69535 | DB22: 64980.75394 | DC22: 28953.68072 | DD22: 3505.94407 | DE22: 378440.2922 | DF22: 250831.4122 | DG22: 423311.6916 | DH22: 0 | DI22: 944812.5212 | DJ22: 122722.382 | DK22: 127608.88 | DL22: 865362.8929 | DM22: 909374.6321 | DN22: 44011.73923 | DO22: 63980.20039 | DP22: 29566.29548 | DQ22: 5485.04597 | DR22: 327501.2504 | DS22: 178997.3871 | DT22: 414226.1613 | DU22: 0 | DV22: 760944.7314 | DW22: 141956.3941 | DX22: 148503.8633 | DY22: 674777.1276 | DZ22: 719319.1848 | EA22: 44542.06146 | EB22: 62624.02061 | EC22: 30579.37388 | ED22: 3105.0047 | EE22: 199766.702 | EF22: 55342.99797 | EG22: 432317.8339 | EH22: 0 | EI22: 639119.6375 | EJ22: 139708.9703 | EK22: 144423.704 | EL22: 646193.5002 | EM22: 692736.536 | EN22: 46543.03576 | EO22: 10 | EP22: 3 | ES22: 3 | EU22: 7 | EV22: 5 | EW22: 2 | EY22: 32 | EZ22: 8 | FC22: 14 | FE22: 21 | FF22: 21 | FG22: 8 | FI22: 52.89375 | FJ22: 48.925 | FM22: 50.27857 | FO22: 49.96191 | FP22: 54.25714 | FQ22: 48.8625 | FS22: 5.035376 | FT22: 8.596195 | FW22: 3.851042 | FY22: 3.915744 | FZ22: 5.816873 | GA22: 3.116657 | GC22: 62.68224 | GD22: 62.5849 | GG22: 69.12792 | GI22: 63.56422 | GJ22: 65.9015 | GK22: 63.28132 | GM22: 74.7691 | GN22: 80.31817 | GQ22: 73.88676 | GS22: 77.63528 | GT22: 77.85677 | GU22: 77.6348 | GW22: 84.34762 | GX22: 84.12232 | HA22: 87.53967 | HC22: 85.7773 | HD22: 85.97284 | HE22: 82.64339 | HG22: 44.54409 | HH22: 47.63265 | HK22: 43.2043 | HM22: 45.71564 | HN22: 42.02943 | HO22: 47.25354 | HQ22: 71.92803 | HR22: 72.91257 | HU22: 71.93402 | HW22: 73.4017 | HX22: 71.82767 | HY22: 72.99451
A23: 73 | B23: TOLIMA | C23: 2 | D23: CENTRO SUR | E23: NA | F23: NA | G23: D | H23: NA | I23: Intermedio | J23: alto | K23: 2 | L23: NA | M23: 54.3 | N23: 9.240377658 | O23: 55.79114541 | P23: 79.71836642 | Q23: 84.0109462 | R23: 36.08751943 | S23: =AVERAGE(VLOOKUP($A23,Cont!$A$3:$L$1135,3,FALSE),(100-Base!N23),(100-Base!O23),Base!P23,Base!Q23,Base!R23) -> 72.46421816 | T23: 4. Sostenible (>=70 y <80) | U23: 66.41989846 | V23: 6.817719084 | W23: 68.16257626 | X23: 84.48181832 | Y23: 75.26516599 | Z23: 3.198395664 | AA23: =AVERAGE(VLOOKUP($A23,Cont!$A$3:$L$1135,4,FALSE),(100-Base!V23),(100-Base!W23),Base!X23,Base!Y23,Base!Z23) -> 64.66084744 | AB23: 3. Vulnerable (>=60 y <70) | AC23: 82.35 | AD23: 2.17 | AE23: 73.9 | AF23: 84.45 | AG23: 82.03 | AH23: 27.4 | AI23: =AVERAGE(VLOOKUP($A23,Cont!$A$3:$L$1135,5,FALSE),(100-Base!AD23),(100-Base!AE23),Base!AF23,Base!AG23,Base!AH23) -> 62.77541075 | AJ23: 3. Vulnerable (>=60 y <70) | AK23: 74.87920185 | AL23: 9.547508165 | AM23: 61.67469102 | AN23: 83.02356717 | AO23: 81.74066885 | AP23: 9.901861969 | AQ23: =AVERAGE(VLOOKUP($A23,Cont!$A$3:$L$1135,6,FALSE),(100-Base!AL23),(100-Base!AM23),Base!AN23,Base!AO23,Base!AP23) -> 64.5299821 | AR23: 3. Vulnerable (>=60 y <70) | AS23: 76.40583095 | AT23: 8.312472789 | AU23: 71.25444365 | AV23: 84.28570544 | AW23: 84.83436068 | AX23: 29.46673711 | AY23: =AVERAGE(VLOOKUP($A23,Cont!$A$3:$L$1135,7,FALSE),(100-Base!AT23),(100-Base!AU23),Base!AV23,Base!AW23,Base!AX23) -> 63.0008849 | AZ23: 3. Vulnerable (>=60 y <70) | BA23: 71.1 | BB23: 13.56559359 | BC23: 67.74239143 | BD23: 84.188315 | BE23: 82.10488518 | BF23: 21.92546638 | BG23: =AVERAGE(VLOOKUP($A23,Cont!$A$3:$L$1135,3,FALSE),(100-Base!BB23),(100-Base!BC23),Base!BD23,Base!BE23,Base!BF23) -> 67.81844692 | BH23: 3. Vulnerable (>=60 y <70) | BI23: 0.6 | BJ23: 0.7 | BK23: 0.7 | BL23: 0.7 | BM23: 0.6 | BN23: 0.6 | BO23: 149648.523 | BP23: 81288.632 | BQ23: 24689.4531 | BR23: 267190.9527 | BS23: 6158.024704 | BT23: 555848.379 | BU23: 1417.79 | BV23: 1009881.03 | BW23: 208091.186 | BX23: 261032.928 | BY23: 876585.0931 | BZ23: 1043417.712 | CA23: 166832.6194 | CB23: 128670.6124 | CC23: 85462.8901 | CD23: 19538.04494 | CE23: 286577.4418 | CF23: 69970.79983 | CG23: 559878.3617 | CH23: 0 | CI23: 924039.5479 | CJ23: 182993.2297 | CK23: 216606.6419 | CL23: 638027.4267 | CM23: 847706.1312 | CN23: 209678.7045 | CO23: 134341.0476 | CP23: 110626.1726 | CQ23: 8794.862203 | CR23: 405326.2095 | CS23: 178491.7228 | CT23: 556360.9651 | CU23: 0 | CV23: 994329.0533 | CW23: 191565.6095 | CX23: 226834.4867 | CY23: 751673.9067 | CZ23: 916354.5654 | DA23: 164680.6588 | DB23: 137800.4001 | DC23: 103183.8398 | DD23: 41148.97604 | DE23: 430991.7869 | DF23: 197663.8712 | DG23: 579679.6272 | DH23: 0 | DI23: 1260393.016 | DJ23: 193717.1588 | DK23: 233327.9157 | DL23: 941100.1428 | DM23: 1151324.25 | DN23: 210224.1075 | DO23: 133747.0648 | DP23: 102190.5563 | DQ23: 31607.10722 | DR23: 380237.1144 | DS23: 148659.1725 | DT23: 549319.9789 | DU23: 0 | DV23: 979558.7759 | DW23: 195187.089 | DX23: 231577.9419 | DY23: 913697.0149 | DZ23: 1077036.535 | EA23: 163339.4686 | EB23: 144726.5611 | EC23: 102879.1647 | ED23: 49347.16207 | EE23: 363767.0682 | EF23: 126161.025 | EG23: 570063.3129 | EH23: 9.5950162 | EI23: 1027766.983 | EJ23: 200036.5241 | EK23: 237606.0431 | EL23: 851140.7615 | EM23: 1036650.572 | EN23: 185509.81 | EO23: 19 | EP23: 3 | ES23: 8 | EU23: 14 | EV23: 12 | EW23: 7 | EY23: 32 | EZ23: 5 | FC23: 14 | FE23: 21 | FF23: 21 | FG23: 7 | FI23: 52.89375 | FJ23: 60.72 | FM23: 50.27857 | FO23: 49.96191 | FP23: 54.25714 | FQ23: 48.04286 | FS23: 5.035376 | FT23: 2.377105 | FW23: 3.851042 | FY23: 3.915744 | FZ23: 5.816873 | GA23: 4.869848 | GC23: 62.68224 | GD23: 68.11833 | GG23: 69.12792 | GI23: 63.56422 | GJ23: 65.9015 | GK23: 59.92875 | GM23: 74.7691 | GN23: 67.60859 | GQ23: 73.88676 | GS23: 77.63528 | GT23: 77.85677 | GU23: 88.03505 | GW23: 84.34762 | GX23: 86.33873 | HA23: 87.53967 | HC23: 85.7773 | HD23: 85.97284 | HE23: 85.42656 | HG23: 44.54409 | HH23: 32.23902 | HK23: 43.2043 | HM23: 45.71564 | HN23: 42.02943 | HO23: 47.76458 | HQ23: 71.92803 | HR23: 69.2596 | HU23: 71.93402 | HW23: 73.4017 | HX23: 71.82767 | HY23: 76.07127
A24: 76 | B24: VALLE | C24: 2 | D24: PACÍFICO | E24: NA | F24: NA | G24: C | H24: NA | I24: Intermedio | J24: medioalto | K24: E | L24: NA | M24: 48.1 | N24: 0.232733545 | O24: 34.45746425 | P24: 87.89372571 | Q24: 77.62912243 | R24: 56.57733959 | S24: =AVERAGE(VLOOKUP($A24,Cont!$A$3:$L$1135,3,FALSE),(100-Base!N24),(100-Base!O24),Base!P24,Base!Q24,Base!R24) -> 81.23499832 | T24: 5. Solvente (>=80) | U24: 53.68559452 | V24: 3.99941219 | W24: 42.78359383 | X24: 82.00412348 | Y24: 68.11412705 | Z24: 52.4913965 | AA24: =AVERAGE(VLOOKUP($A24,Cont!$A$3:$L$1135,4,FALSE),(100-Base!V24),(100-Base!W24),Base!X24,Base!Y24,Base!Z24) -> 74.74257533 | AB24: 4. Sostenible (>=70 y <80) | AC24: 53.42 | AD24: 4.67 | AE24: 49.07 | AF24: 83.17 | AG24: 71.53 | AH24: 49.19 | AI24: =AVERAGE(VLOOKUP($A24,Cont!$A$3:$L$1135,5,FALSE),(100-Base!AD24),(100-Base!AE24),Base!AF24,Base!AG24,Base!AH24) -> 75.025 | AJ24: 4. Sostenible (>=70 y <80) | AK24: 52.60838264 | AL24: 6.290632848 | AM24: 44.75305237 | AN24: 84.63446551 | AO24: 78.93729784 | AP24: 57.53299375 | AQ24: =AVERAGE(VLOOKUP($A24,Cont!$A$3:$L$1135,6,FALSE),(100-Base!AL24),(100-Base!AM24),Base!AN24,Base!AO24,Base!AP24) -> 78.34351198 | AR24: 4. Sostenible (>=70 y <80) | AS24: 53.69608029 | AT24: 5.126820428 | AU24: 43.38064142 | AV24: 89.23763715 | AW24: 79.50261756 | AX24: 56.6406426 | AY24: =AVERAGE(VLOOKUP($A24,Cont!$A$3:$L$1135,7,FALSE),(100-Base!AT24),(100-Base!AU24),Base!AV24,Base!AW24,Base!AX24) -> 79.47890591 | AZ24: 4. Sostenible (>=70 y <80) | BA24: 49.4 | BB24: 2.053668855 | BC24: 35.67618602 | BD24: 84.84038516 | BE24: 76.31712413 | BF24: 51.1731061 | BG24: =AVERAGE(VLOOKUP($A24,Cont!$A$3:$L$1135,3,FALSE),(100-Base!BB24),(100-Base!BC24),Base!BD24,Base!BE24,Base!BF24) -> 79.10012675 | BH24: 4. Sostenible (>=70 y <80) | BI24: 0.55 | BJ24: 0.5 | BK24: 0.5 | BL24: 0.55 | BM24: 0.55 | BN24: 0.55 | BO24: 496940.363 | BP24: 239122.542 | BQ24: 2376.353 | BR24: 1021061.661 | BS24: 18974.56435 | BT24: 600477.269 | BU24: 0 | BV24: 1797729.017 | BW24: 880771.684 | BX24: 1002087.097 | BY24: 1509953.433 | BZ24: 1945086.31 | CA24: 435132.877 | CB24: 431671.1143 | CC24: 231745.2041 | CD24: 32471.7527 | CE24: 811913.1303 | CF24: 845.4138368 | CG24: 641429.1081 | CH24: 0 | CI24: 1501216.855 | CJ24: 665108.9717 | CK24: 811067.7164 | CL24: 823129.6841 | CM24: 1208456.63 | CN24: 385326.9455 | CO24: 455044.6967 | CP24: 243076.2051 | CQ24: 39200.33036 | CR24: 839646.3304 | CS24: 49398.54538 | CT24: 761940.8087 | CU24: 0 | CV24: 1653479.693 | CW24: 657216.1603 | CX24: 790247.785 | CY24: 1008837.704 | CZ24: 1410374.67 | DA24: 401536.9659 | DB24: 455129.6352 | DC24: 239436.34 | DD24: 60052.11883 | DE24: 954627.623 | DF24: 103882.1696 | DG24: 644307.0225 | DH24: 0 | DI24: 1671817.122 | DJ24: 720023.8674 | DK24: 850745.4535 | DL24: 1354002.456 | DM24: 1715288.581 | DN24: 361286.1249 | DO24: 424019.4688 | DP24: 227681.8344 | DQ24: 47746.38581 | DR24: 931306.0588 | DS24: 126283.5123 | DT24: 578461.4183 | DU24: 0 | DV24: 1624560.982 | DW24: 718383.0642 | DX24: 805022.5465 | DY24: 1353860.396 | DZ24: 1702913.041 | EA24: 349052.6109 | EB24: 498178.2499 | EC24: 246214.3122 | ED24: 18908.57096 | EE24: 920721.5134 | EF24: 2.28998 | EG24: 585803.4478 | EH24: 0 | EI24: 1642007.745 | EJ24: 781141.7354 | EK24: 920719.2234 | EL24: 1448684.676 | EM24: 1898243.274 | EN24: 449558.5983 | EO24: 1 | EP24: 1 | ES24: 1 | EU24: 1 | EV24: 1 | EW24: 1 | EY24: 32 | EZ24: 4 | FC24: 7 | FE24: 21 | FF24: 11 | FG24: 3 | FI24: 52.89375 | FJ24: 51.05 | FM24: 49.32857 | FO24: 49.96191 | FP24: 50.29091 | FQ24: 43.83333 | FS24: 5.035376 | FT24: 1.772935 | FW24: 4.045146 | FY24: 3.915744 | FZ24: 3.543429 | GA24: 7.699504 | GC24: 62.68224 | GD24: 61.40865 | GG24: 52.43681 | GI24: 63.56422 | GJ24: 56.53639 | GK24: 34.65042 | GM24: 74.7691 | GN24: 86.80247 | GQ24: 85.13231 | GS24: 77.63528 | GT24: 68.87447 | GU24: 83.44574 | GW24: 84.34762 | GX24: 86.64083 | HA24: 82.25257 | HC24: 85.7773 | HD24: 81.24493 | HE24: 74.59515 | HG24: 44.54409 | HH24: 41.68883 | HK24: 50.73832 | HM24: 45.71564 | HN24: 49.34483 | HO24: 53.91224 | HQ24: 71.92803 | HR24: 73.71398 | HU24: 76.33704 | HW24: 73.4017 | HX24: 72.11962 | HY24: 78.2672
A25: 81 | B25: ARAUCA | C25: 2 | D25: LLANO | E25: NA | F25: NA | G25: E | H25: NA | I25: Incipiente | J25: medioalto | K25: 4 | L25: NA | M25: 92 | N25: 2.192339631 | O25: 80.98857357 | P25: 68.46599014 | Q25: 91.34432281 | R25: 37.19248578 | S25: =AVERAGE(VLOOKUP($A25,Cont!$A$3:$L$1135,3,FALSE),(100-Base!N25),(100-Base!O25),Base!P25,Base!Q25,Base!R25) -> 56.74809203 | T25: 2. Riesgo (>=40 y <60) | U25: 54.61640985 | V25: 58.18534892 | W25: 68.35272194 | X25: 70.54461117 | Y25: 89.62752991 | Z25: 36.9979176 | AA25: =AVERAGE(VLOOKUP($A25,Cont!$A$3:$L$1135,4,FALSE),(100-Base!V25),(100-Base!W25),Base!X25,Base!Y25,Base!Z25) -> 61.77199797 | AB25: 3. Vulnerable (>=60 y <70) | AC25: 64.85 | AD25: 0 | AE25: 83.59 | AF25: 69.23 | AG25: 94.98 | AH25: 35.64 | AI25: =AVERAGE(VLOOKUP($A25,Cont!$A$3:$L$1135,5,FALSE),(100-Base!AD25),(100-Base!AE25),Base!AF25,Base!AG25,Base!AH25) -> 69.37666667 | AJ25: 3. Vulnerable (>=60 y <70) | AK25: 58.06423273 | AL25: 1.499421712 | AM25: 85.49788696 | AN25: 73.44090395 | AO25: 95.57595404 | AP25: 50.9793917 | AQ25: =AVERAGE(VLOOKUP($A25,Cont!$A$3:$L$1135,6,FALSE),(100-Base!AL25),(100-Base!AM25),Base!AN25,Base!AO25,Base!AP25) -> 72.16649017 | AR25: 4. Sostenible (>=70 y <80) | AS25: 70.39359906 | AT25: 1.609931358 | AU25: 61.69162871 | AV25: 75.57970662 | AW25: 95.02328749 | AX25: 39.74044418 | AY25: =AVERAGE(VLOOKUP($A25,Cont!$A$3:$L$1135,7,FALSE),(100-Base!AT25),(100-Base!AU25),Base!AV25,Base!AW25,Base!AX25) -> 74.28831356 | AZ25: 4. Sostenible (>=70 y <80) | BA25: 63.7 | BB25: 2.947493898 | BC25: 83.00167028 | BD25: 70.80959494 | BE25: 92.84059635 | BF25: 34.54817591 | BG25: =AVERAGE(VLOOKUP($A25,Cont!$A$3:$L$1135,3,FALSE),(100-Base!BB25),(100-Base!BC25),Base!BD25,Base!BE25,Base!BF25) -> 56.48597828 | BH25: 2. Riesgo (>=40 y <60) | BI25: 0.7 | BJ25: 0.7 | BK25: 0.7 | BL25: 0.7 | BM25: 0.7 | BN25: 0.7 | BO25: 34474.775 | BP25: 31707.828 | BQ25: 5062.44096 | BR25: 230914.9955 | BS25: 167959.6714 | BT25: 170640.615 | BU25: 17492.759 | BV25: 439683.0685 | BW25: 43102.986 | BX25: 62955.32411 | BY25: 417277.1261 | BZ25: 456817.8003 | CA25: 39540.67414 | CB25: 26556.64769 | CC25: 14504.28754 | CD25: 159882.2299 | CE25: 274780.9077 | CF25: 215955.3555 | CG25: 149147.4786 | CH25: 14361.64158 | CI25: 555156.3492 | CJ25: 41498.25709 | CK25: 58825.55223 | CL25: 320243.3749 | CM25: 357304.6978 | CN25: 37061.32289 | CO25: 34801.09497 | CP25: 22569.13516 | CQ25: 0 | CR25: 535651.602 | CS25: 475003.8029 | CT25: 156754.2346 | CU25: 16633.20903 | CV25: 775648.3378 | CW25: 41988.77874 | CX25: 60647.79907 | CY25: 738147.2312 | CZ25: 777178.0697 | DA25: 39030.83853 | DB25: 34099.86349 | DC25: 19799.8241 | DD25: 7029.175919 | DE25: 468792.4593 | DF25: 398407.0296 | DG25: 164152.824 | DH25: 16443.03036 | DI25: 677213.0922 | DJ25: 51691.69583 | DK25: 70385.42971 | DL25: 745401.863 | DM25: 779905.2288 | DN25: 34503.3658 | DO25: 36997.42871 | DP25: 26043.82163 | DQ25: 5923.98195 | DR25: 367965.4179 | DS25: 293809.802 | DT25: 156818.6153 | DU25: 15598.77455 | DV25: 755738.1756 | DW25: 56046.60277 | DX25: 74155.61589 | DY25: 853213.0453 | DZ25: 897898.8882 | EA25: 44685.84286 | EB25: 42168.45574 | EC25: 26871.18012 | ED25: 11200.93478 | EE25: 380015.5373 | EF25: 308654.531 | EG25: 168555.7495 | EH25: 17073.32894 | EI25: 595510.4371 | EJ25: 50530.4395 | EK25: 71361.00628 | EL25: 605680.7803 | EM25: 652387.8606 | EN25: 46707.0803 | EO25: 32 | EP25: 7 | ES25: 6 | EU25: 6 | EV25: 11 | EW25: 11 | EY25: 32 | EZ25: 7 | FC25: 6 | FE25: 6 | FF25: 11 | FG25: 11 | FI25: 52.89375 | FJ25: 60.8 | FM25: 72.01667 | FO25: 72.01667 | FP25: 50.29091 | FQ25: 65.00909 | FS25: 5.035376 | FT25: 2.958997 | FW25: 8.157851 | FY25: 8.157851 | FZ25: 3.543429 | GA25: 5.464771 | GC25: 62.68224 | GD25: 74.30805 | GG25: 74.93749 | GI25: 74.93749 | GJ25: 56.53639 | GK25: 75.63924 | GM25: 74.7691 | GN25: 54.53196 | GQ25: 69.76711 | GS25: 69.76711 | GT25: 68.87447 | GU25: 59.39222 | GW25: 84.34762 | GX25: 88.11153 | HA25: 88.71269 | HC25: 88.71269 | HD25: 81.24493 | HE25: 88.28681 | HG25: 44.54409 | HH25: 46.54466 | HK25: 33.22071 | HM25: 33.22071 | HN25: 49.34483 | HO25: 35.74619 | HQ25: 71.92803 | HR25: 66.90749 | HU25: 64.9342 | HW25: 64.9342 | HX25: 72.11962 | HY25: 65.31616
A26: 85 | B26: CASANARE | C26: 2 | D26: LLANO | E26: NA | F26: NA | G26: D | H26: NA | I26: Intermedio | J26: alto | K26: 4 | L26: NA | M26: 68.7 | N26: 11.16537767 | O26: 77.3274955 | P26: 77.9569861 | Q26: 87.20119232 | R26: 35.38492015 | S26: =AVERAGE(VLOOKUP($A26,Cont!$A$3:$L$1135,3,FALSE),(100-Base!N26),(100-Base!O26),Base!P26,Base!Q26,Base!R26) -> 68.67503757 | T26: 3. Vulnerable (>=60 y <70) | U26: 62.73309762 | V26: 18.44981284 | W26: 66.06930394 | X26: 85.44716823 | Y26: 93.00046311 | Z26: 38.3240998 | AA26: =AVERAGE(VLOOKUP($A26,Cont!$A$3:$L$1135,4,FALSE),(100-Base!V26),(100-Base!W26),Base!X26,Base!Y26,Base!Z26) -> 72.04210239 | AB26: 4. Sostenible (>=70 y <80) | AC26: 69.42 | AD26: 0 | AE26: 72.47 | AF26: 82.05 | AG26: 87.6 | AH26: 26.71 | AI26: =AVERAGE(VLOOKUP($A26,Cont!$A$3:$L$1135,5,FALSE),(100-Base!AD26),(100-Base!AE26),Base!AF26,Base!AG26,Base!AH26) -> 70.64833333 | AJ26: 4. Sostenible (>=70 y <80) | AK26: 68.18710801 | AL26: 0 | AM26: 81.86312906 | AN26: 86.98873945 | AO26: 91.02590937 | AP26: 47.25120957 | AQ26: =AVERAGE(VLOOKUP($A26,Cont!$A$3:$L$1135,6,FALSE),(100-Base!AL26),(100-Base!AM26),Base!AN26,Base!AO26,Base!AP26) -> 73.90045489 | AR26: 4. Sostenible (>=70 y <80) | AS26: 63.95846087 | AT26: 0.09388671974 | AU26: 77.87203173 | AV26: 87.68416488 | AW26: 91.14014231 | AX26: 21.28739151 | AY26: =AVERAGE(VLOOKUP($A26,Cont!$A$3:$L$1135,7,FALSE),(100-Base!AT26),(100-Base!AU26),Base!AV26,Base!AW26,Base!AX26) -> 70.35763004 | AZ26: 4. Sostenible (>=70 y <80) | BA26: 63.1 | BB26: 3.816390689 | BC26: 73.41774182 | BD26: 83.32987033 | BE26: 89.39318248 | BF26: 35.50989119 | BG26: =AVERAGE(VLOOKUP($A26,Cont!$A$3:$L$1135,3,FALSE),(100-Base!BB26),(100-Base!BC26),Base!BD26,Base!BE26,Base!BF26) -> 71.83313525 | BH26: 4. Sostenible (>=70 y <80) | BI26: 0.7 | BJ26: 0.7 | BK26: 0.7 | BL26: 0.7 | BM26: 0.7 | BN26: 0.7 | BO26: 71681.374 | BP26: 49221.661 | BQ26: 39652.937 | BR26: 355141.9234 | BS26: 238489.4981 | BT26: 176648.01 | BU26: 16270.617 | BV26: 557897.4494 | BW26: 90938.715 | BX26: 116652.4253 | BY26: 513547.4393 | BZ26: 588922.497 | CA26: 75375.05777 | CB26: 69196.19048 | CC26: 43408.91372 | CD26: 163957.6864 | CE26: 888668.5621 | CF26: 772336.6028 | CG26: 161470.2661 | CH26: 13383.30479 | CI26: 1433631.228 | CJ26: 99402.36499 | CK26: 116331.9593 | CL26: 953301.649 | CM26: 1025050.432 | CN26: 71748.78314 | CO26: 78234.05623 | CP26: 54309.84046 | CQ26: 0 | CR26: 756345.0833 | CS26: 632381.6619 | CT26: 179504.9897 | CU26: 15669.82616 | CV26: 1141934.397 | CW26: 101709.9178 | CX26: 123963.4214 | CY26: 641978.5143 | CZ26: 732829.0755 | DA26: 90850.56122 | DB26: 79186.59523 | DC26: 53995.04922 | DD26: 0 | DE26: 820612.5277 | DF26: 673211.0068 | DG26: 166498.4543 | DH26: 15169.37564 | DI26: 1044278.232 | DJ26: 128222.7249 | DK26: 147401.5208 | DL26: 788658.6027 | DM26: 866411.122 | DN26: 77752.51933 | DO26: 75529.69063 | DP26: 48307.62763 | DQ26: 720.2659297 | DR26: 767161.3473 | DS26: 598394.519 | DT26: 271238.0618 | DU26: 14386.58351 | DV26: 1135220.346 | DW26: 147981.7802 | DX26: 168766.8283 | DY26: 1366514.776 | DZ26: 1499355.561 | EA26: 132840.7679 | EB26: 75622.70382 | EC26: 47709.52659 | ED26: 15151.16761 | EE26: 397002.5305 | EF26: 269297.3074 | EG26: 166796.0748 | EH26: 15857.12889 | EI26: 615587.5949 | EJ26: 106416.5968 | EK26: 127705.2231 | EL26: 694098.4444 | EM26: 776455.6817 | EN26: 82357.2373 | EO26: 23 | EP26: 3 | ES26: 10 | EU26: 17 | EV26: 16 | EW26: 3 | EY26: 32 | EZ26: 7 | FC26: 14 | FE26: 21 | FF26: 21 | FG26: 11 | FI26: 52.89375 | FJ26: 60.8 | FM26: 50.27857 | FO26: 49.96191 | FP26: 54.25714 | FQ26: 65.00909 | FS26: 5.035376 | FT26: 2.958997 | FW26: 3.851042 | FY26: 3.915744 | FZ26: 5.816873 | GA26: 5.464771 | GC26: 62.68224 | GD26: 74.30805 | GG26: 69.12792 | GI26: 63.56422 | GJ26: 65.9015 | GK26: 75.63924 | GM26: 74.7691 | GN26: 54.53196 | GQ26: 73.88676 | GS26: 77.63528 | GT26: 77.85677 | GU26: 59.39222 | GW26: 84.34762 | GX26: 88.11153 | HA26: 87.53967 | HC26: 85.7773 | HD26: 85.97284 | HE26: 88.28681 | HG26: 44.54409 | HH26: 46.54466 | HK26: 43.2043 | HM26: 45.71564 | HN26: 42.02943 | HO26: 35.74619 | HQ26: 71.92803 | HR26: 66.90749 | HU26: 71.93402 | HW26: 73.4017 | HX26: 71.82767 | HY26: 65.31616
A27: 86 | B27: PUTUMAYO | C27: 2 | D27: CENTRO SUR | E27: NA | F27: NA | G27: D | H27: NA | I27: Intermedio | J27: medioalto | K27: 4 | L27: NA | M27: 60.4 | N27: 0 | O27: 82.24373456 | P27: 55.42450419 | Q27: 87.95144601 | R27: 19.06964773 | S27: =AVERAGE(VLOOKUP($A27,Cont!$A$3:$L$1135,3,FALSE),(100-Base!N27),(100-Base!O27),Base!P27,Base!Q27,Base!R27) -> 63.36697723 | T27: 3. Vulnerable (>=60 y <70) | U27: 86.87364363 | V27: 0 | W27: 85.7350302 | X27: 51.54092101 | Y27: 87.64347469 | Z27: 20.16716392 | AA27: =AVERAGE(VLOOKUP($A27,Cont!$A$3:$L$1135,4,FALSE),(100-Base!V27),(100-Base!W27),Base!X27,Base!Y27,Base!Z27) -> 52.89517511 | AB27: 2. Riesgo (>=40 y <60) | AC27: 88.95 | AD27: 0 | AE27: 89.92 | AF27: 51.61 | AG27: 90.36 | AH27: 21.38 | AI27: =AVERAGE(VLOOKUP($A27,Cont!$A$3:$L$1135,5,FALSE),(100-Base!AD27),(100-Base!AE27),Base!AF27,Base!AG27,Base!AH27) -> 51.71188215 | AJ27: 2. Riesgo (>=40 y <60) | AK27: 84.09826172 | AL27: 0 | AM27: 86.84670768 | AN27: 55.48712001 | AO27: 91.5011329 | AP27: 27.70046318 | AQ27: =AVERAGE(VLOOKUP($A27,Cont!$A$3:$L$1135,6,FALSE),(100-Base!AL27),(100-Base!AM27),Base!AN27,Base!AO27,Base!AP27) -> 56.80796712 | AR27: 2. Riesgo (>=40 y <60) | AS27: 83.7925607 | AT27: 0 | AU27: 84.41952976 | AV27: 57.60125693 | AW27: 91.63665558 | AX27: 24.44767754 | AY27: =AVERAGE(VLOOKUP($A27,Cont!$A$3:$L$1135,7,FALSE),(100-Base!AT27),(100-Base!AU27),Base!AV27,Base!AW27,Base!AX27) -> 57.21514299 | AZ27: 2. Riesgo (>=40 y <60) | BA27: 65.8 | BB27: 0 | BC27: 87.325145 | BD27: 61.26242016 | BE27: 90.77740671 | BF27: 29.57776087 | BG27: =AVERAGE(VLOOKUP($A27,Cont!$A$3:$L$1135,3,FALSE),(100-Base!BB27),(100-Base!BC27),Base!BD27,Base!BE27,Base!BF27) -> 65.71540712 | BH27: 3. Vulnerable (>=60 y <70) | BI27: 0.7 | BJ27: 0.7 | BK27: 0.7 | BL27: 0.7 | BM27: 0.7 | BN27: 0.7 | BO27: 34945.695 | BP27: 21091.138 | BQ27: 0 | BR27: 78971.3566 | BS27: 24462.26637 | BT27: 268446.463 | BU27: 16270.617 | BV27: 375930.5776 | BW27: 30211.393 | BX27: 54509.09023 | BY27: 322024.1336 | BZ27: 366138.5323 | CA27: 44114.39874 | CB27: 24321.18736 | CC27: 21128.70163 | CD27: 0 | CE27: 103701.8929 | CF27: 56969.52777 | CG27: 235180.852 | CH27: 16707.70378 | CI27: 360247.2441 | CJ27: 24086.2914 | CK27: 46732.36513 | CL27: 264619.9258 | CM27: 301927.6983 | CN27: 37307.77245 | CO27: 30228.68731 | CP27: 26887.69554 | CQ27: 0 | CR27: 192962.0303 | CS27: 140850.0586 | CT27: 226980.0696 | CU27: 17420.31908 | CV27: 428432.3488 | CW27: 26893.32646 | CX27: 52111.97162 | CY27: 384031.5396 | CZ27: 424999.8502 | DA27: 40968.31057 | DB27: 32790.89771 | DC27: 27576.57498 | DD27: 0 | DE27: 214559.9057 | DF27: 159923.4209 | DG27: 233190.0151 | DH27: 17007.52321 | DI27: 472235.4711 | DJ27: 30316.2119 | DK27: 54636.48482 | DL27: 425288.5578 | DM27: 464790.4833 | DN27: 39501.92546 | DO27: 34574.73685 | DP27: 28971.05736 | DQ27: 0 | DR27: 176570.8486 | DS27: 113109.9476 | DT27: 241754.0134 | DU27: 16401.31072 | DV27: 439785.9954 | DW27: 36554.28009 | DX27: 63460.90108 | DY27: 525343.4043 | DZ27: 573289.605 | EA27: 47946.18354 | EB27: 34997.03883 | EC27: 23019.24327 | ED27: 0 | EE27: 161655.3455 | EF27: 104623.3301 | EG27: 255881.4003 | EH27: 15857.12889 | EI27: 430989.1032 | EJ27: 34939.1929 | EK27: 57032.01539 | EL27: 395324.0751 | EM27: 435487.2974 | EN27: 40163.22226 | EO27: 28 | EP27: 4 | ES27: 13 | EU27: 20 | EV27: 10 | EW27: 7 | EY27: 32 | EZ27: 5 | FC27: 14 | FE27: 21 | FF27: 11 | FG27: 11 | FI27: 52.89375 | FJ27: 60.72 | FM27: 50.27857 | FO27: 49.96191 | FP27: 50.29091 | FQ27: 65.00909 | FS27: 5.035376 | FT27: 2.377105 | FW27: 3.851042 | FY27: 3.915744 | FZ27: 3.543429 | GA27: 5.464771 | GC27: 62.68224 | GD27: 68.11833 | GG27: 69.12792 | GI27: 63.56422 | GJ27: 56.53639 | GK27: 75.63924 | GM27: 74.7691 | GN27: 67.60859 | GQ27: 73.88676 | GS27: 77.63528 | GT27: 68.87447 | GU27: 59.39222 | GW27: 84.34762 | GX27: 86.33873 | HA27: 87.53967 | HC27: 85.7773 | HD27: 81.24493 | HE27: 88.28681 | HG27: 44.54409 | HH27: 32.23902 | HK27: 43.2043 | HM27: 45.71564 | HN27: 49.34483 | HO27: 35.74619 | HQ27: 71.92803 | HR27: 69.2596 | HU27: 71.93402 | HW27: 73.4017 | HX27: 72.11962 | HY27: 65.31616
A28: 88 | B28: SAN ANDRES | C28: 2 | D28: CARIBE | E28: NA | F28: NA | G28: B | H28: NA | I28: Robusto | J28: medioalto | K28: 3 | L28: NA | M28: 34.5 | N28: 0 | O28: 50.99909573 | P28: 18.34268975 | Q28: 61.81745769 | R28: 52.03141851 | S28: =AVERAGE(VLOOKUP($A28,Cont!$A$3:$L$1135,3,FALSE),(100-Base!N28),(100-Base!O28),Base!P28,Base!Q28,Base!R28) -> 63.53207837 | T28: 3. Vulnerable (>=60 y <70) | U28: 58.35599356 | V28: 9.659266452 | W28: 57.23786833 | X28: 29.87806297 | Y28: 44.40141608 | Z28: 37.45208613 | AA28: =AVERAGE(VLOOKUP($A28,Cont!$A$3:$L$1135,4,FALSE),(100-Base!V28),(100-Base!W28),Base!X28,Base!Y28,Base!Z28) -> 57.47240506 | AB28: 2. Riesgo (>=40 y <60) | AC28: 55.91 | AD28: 10.83 | AE28: 52.88 | AF28: 35.32 | AG28: 46.33 | AH28: -11.69 | AI28: =AVERAGE(VLOOKUP($A28,Cont!$A$3:$L$1135,5,FALSE),(100-Base!AD28),(100-Base!AE28),Base!AF28,Base!AG28,Base!AH28) -> 51.04166667 | AJ28: 2. Riesgo (>=40 y <60) | AK28: 56.12682544 | AL28: 0 | AM28: 53.45197132 | AN28: 30.03442047 | AO28: 60.56795398 | AP28: 34.56318374 | AQ28: =AVERAGE(VLOOKUP($A28,Cont!$A$3:$L$1135,6,FALSE),(100-Base!AL28),(100-Base!AM28),Base!AN28,Base!AO28,Base!AP28) -> 61.95226448 | AR28: 3. Vulnerable (>=60 y <70) | AS28: 54.22648917 | AT28: 0.3465820078 | AU28: 59.11266519 | AV28: 34.10074851 | AW28: 46.92928126 | AX28: -9.3732076 | AY28: =AVERAGE(VLOOKUP($A28,Cont!$A$3:$L$1135,7,FALSE),(100-Base!AT28),(100-Base!AU28),Base!AV28,Base!AW28,Base!AX28) -> 52.03292916 | AZ28: 2. Riesgo (>=40 y <60) | BA28: 38.7 | BB28: 0 | BC28: 52.85611914 | BD28: 24.0574092 | BE28: 56.73622877 | BF28: 50.35042678 | BG28: =AVERAGE(VLOOKUP($A28,Cont!$A$3:$L$1135,3,FALSE),(100-Base!BB28),(100-Base!BC28),Base!BD28,Base!BE28,Base!BF28) -> 63.04799093 | BH28: 3. Vulnerable (>=60 y <70) | BI28: 0.7 | BJ28: 0.7 | BK28: 0.7 | BL28: 0.7 | BM28: 0.7 | BN28: 0.6 | BO28: 193999.774 | BP28: 66977.387 | BQ28: 0 | BR28: 324900.5055 | BS28: 47251.89077 | BT28: 46241.721 | BU28: 101730.751 | BV28: 382799.6555 | BW28: 50928.224 | BX28: 277648.6147 | BY28: 215624.788 | BZ28: 348808.89 | CA28: 133184.102 | CB28: 71704.87373 | CC28: 41844.09149 | CD28: 13428.98269 | CE28: 139026.9412 | CF28: 922.1981731 | CG28: 52213.51638 | CH28: 59359.76391 | CI28: 196540.3006 | CJ28: 41263.02208 | CK28: 138104.743 | CL28: 68984.97549 | CM28: 155366.6112 | CN28: 86381.63573 | CO28: 81933.52913 | CP28: 45810.75169 | CQ28: 22296.86493 | CR28: 205955.0215 | CS28: 71316.5253 | CT28: 51112.0852 | CU28: 48284.39455 | CV28: 322857.7388 | CW28: 47552.24146 | CX28: 134638.4962 | CY28: 129829.7212 | CZ28: 280204.0857 | DA28: 150374.3645 | DB28: 97763.91836 | DC28: 54871.78381 | DD28: 0 | DE28: 199884.3879 | DF28: 48316.58546 | DG28: 48264.11071 | DH28: 60320.57813 | DI28: 293536.9275 | DJ28: 45522.51108 | DK28: 151567.8024 | DL28: 152343.071 | DM28: 251524.2154 | DN28: 99181.14438 | DO28: 102302.6557 | DP28: 55475.13852 | DQ28: 774.3678379 | DR28: 223430.5472 | DS28: 61887.72903 | DT28: 51438.42596 | DU28: 51491.59313 | DV28: 278819.6959 | DW28: 55087.31052 | DX28: 161542.8182 | DY28: 156238.2955 | DZ28: 332922.8484 | EA28: 176684.5529 | EB28: 154036.1646 | EC28: 59546.02934 | ED28: 0 | EE28: 260681.2338 | EF28: 30781.10654 | EG28: 56701.00399 | EH28: 82688.72648 | EI28: 321951.0622 | EJ28: 55308.01436 | EK28: 229900.1272 | EL28: 149689.3225 | EM28: 263833.7545 | EN28: 114144.432 | EO28: 27 | EP28: 8 | ES28: 4 | EU28: 5 | EV28: 9 | EW28: 8 | EY28: 32 | EZ28: 8 | FC28: 4 | FE28: 5 | FF28: 11 | FG28: 8 | FI28: 52.89375 | FJ28: 48.925 | FM28: 42.075 | FO28: 42.26 | FP28: 50.29091 | FQ28: 48.8625 | FS28: 5.035376 | FT28: 8.596195 | FW28: 3.632047 | FY28: 5.990863 | FZ28: 3.543429 | GA28: 3.116657 | GC28: 62.68224 | GD28: 62.5849 | GG28: 46.24986 | GI28: 44.27166 | GJ28: 56.53639 | GK28: 63.28132 | GM28: 74.7691 | GN28: 80.31817 | GQ28: 65.25327 | GS28: 68.73356 | GT28: 68.87447 | GU28: 77.6348 | GW28: 84.34762 | GX28: 84.12232 | HA28: 72.41777 | HC28: 73.10487 | HD28: 81.24493 | HE28: 82.64339 | HG28: 44.54409 | HH28: 47.63265 | HK28: 52.54674 | HM28: 53.21169 | HN28: 49.34483 | HO28: 47.25354 | HQ28: 71.92803 | HR28: 72.91257 | HU28: 73.38931 | HW28: 74.13126 | HX28: 72.11962 | HY28: 72.99451
A29: 91 | B29: AMAZONAS | C29: 2 | D29: CENTRO SUR | E29: NA | F29: NA | G29: D | H29: NA | I29: Intermedio | J29: alto | K29: 4 | L29: NA | M29: 70.2 | N29: 0 | O29: 75.44538317 | P29: 37.09372348 | Q29: 85.59476383 | R29: 26.15046628 | S29: =AVERAGE(VLOOKUP($A29,Cont!$A$3:$L$1135,3,FALSE),(100-Base!N29),(100-Base!O29),Base!P29,Base!Q29,Base!R29) -> 62.12115062 | T29: 3. Vulnerable (>=60 y <70) | U29: 63.37333932 | V29: 0 | W29: 86.97289537 | X29: 37.18832196 | Y29: 85.27937072 | Z29: 33.82462128 | AA29: =AVERAGE(VLOOKUP($A29,Cont!$A$3:$L$1135,4,FALSE),(100-Base!V29),(100-Base!W29),Base!X29,Base!Y29,Base!Z29) -> 61.55323643 | AB29: 3. Vulnerable (>=60 y <70) | AC29: 65.16 | AD29: 0 | AE29: 86.27 | AF29: 37.18 | AG29: 83.92 | AH29: 23.89 | AI29: =AVERAGE(VLOOKUP($A29,Cont!$A$3:$L$1135,5,FALSE),(100-Base!AD29),(100-Base!AE29),Base!AF29,Base!AG29,Base!AH29) -> 59.78666667 | AJ29: 2. Riesgo (>=40 y <60) | AK29: 67.05077006 | AL29: 0 | AM29: 87.03583664 | AN29: 37.35007926 | AO29: 85.38708056 | AP29: 31.54329334 | AQ29: =AVERAGE(VLOOKUP($A29,Cont!$A$3:$L$1135,6,FALSE),(100-Base!AL29),(100-Base!AM29),Base!AN29,Base!AO29,Base!AP29) -> 61.20743609 | AR29: 3. Vulnerable (>=60 y <70) | AS29: 55.02409418 | AT29: 0 | AU29: 92.10913948 | AV29: 40.55670499 | AW29: 90.57902206 | AX29: 30.76462119 | AY29: =AVERAGE(VLOOKUP($A29,Cont!$A$3:$L$1135,7,FALSE),(100-Base!AT29),(100-Base!AU29),Base!AV29,Base!AW29,Base!AX29) -> 61.63186813 | AZ29: 3. Vulnerable (>=60 y <70) | BA29: 52.5 | BB29: 0 | BC29: 84.57029552 | BD29: 41.97930648 | BE29: 82.62909105 | BF29: 32.38007277 | BG29: =AVERAGE(VLOOKUP($A29,Cont!$A$3:$L$1135,3,FALSE),(100-Base!BB29),(100-Base!BC29),Base!BD29,Base!BE29,Base!BF29) -> 61.95858468 | BH29: 3. Vulnerable (>=60 y <70) | BI29: 0.7 | BJ29: 0.7 | BK29: 0.7 | BL29: 0.7 | BM29: 0.7 | BN29: 0.7 | BO29: 23567.256 | BP29: 16541.803 | BQ29: 0 | BR29: 44492.10339 | BS29: 11353.63994 | BT29: 81360.067 | BU29: 18280.595 | BV29: 147118.7464 | BW29: 12292.29 | BX29: 33138.46346 | BY29: 145414.2407 | BZ29: 169886.8415 | CA29: 24472.60074 | CB29: 19350.39295 | CC29: 12262.99018 | CD29: 0 | CE29: 28607.98059 | CF29: 1077.309313 | CG29: 90799.59335 | CH29: 16953.41192 | CI29: 125131.3 | CJ29: 10238.19467 | CK29: 27530.67128 | CL29: 105543.3434 | CM29: 123761.8694 | CN29: 18218.52598 | CO29: 21052.29275 | CP29: 13717.27537 | CQ29: 0 | CR29: 40550.06147 | CS29: 9251.385032 | CT29: 101086.6467 | CU29: 18965.0225 | CV29: 149874.4036 | CW29: 11637.96906 | CX29: 31298.67644 | CY29: 124366.5284 | CZ29: 148188.1559 | DA29: 23821.62743 | DB29: 20938.39416 | DC29: 14039.35452 | DD29: 0 | DE29: 46519.8451 | DF29: 14601.18185 | DG29: 98694.1349 | DH29: 19146.73567 | DI29: 152169.5632 | DJ29: 11921.64602 | DK29: 31918.66324 | DL29: 127677.9414 | DM29: 149528.407 | DN29: 21850.46567 | DO29: 22487.48315 | DP29: 12373.53391 | DQ29: 0 | DR29: 125311.5614 | DS29: 93077.71906 | DT29: 87819.54835 | DU29: 18424.85577 | DV29: 216397.7669 | DW29: 13072.99001 | DX29: 32233.84237 | DY29: 214571.3961 | DZ29: 236888.6047 | EA29: 22317.2236 | EB29: 22854.40219 | EC29: 11993.77129 | ED29: 0 | EE29: 130726.8194 | EF29: 96587.38849 | EG29: 94261.02903 | EH29: 19348.11284 | EI29: 248546.5246 | EJ29: 14331.49633 | EK29: 34139.43091 | EL29: 109809.8777 | EM29: 132894.936 | EN29: 23085.05834 | EO29: 31 | EP29: 5 | ES29: 14 | EU29: 21 | EV29: 21 | EW29: 10 | EY29: 32 | EZ29: 5 | FC29: 14 | FE29: 21 | FF29: 21 | FG29: 11 | FI29: 52.89375 | FJ29: 60.72 | FM29: 50.27857 | FO29: 49.96191 | FP29: 54.25714 | FQ29: 65.00909 | FS29: 5.035376 | FT29: 2.377105 | FW29: 3.851042 | FY29: 3.915744 | FZ29: 5.816873 | GA29: 5.464771 | GC29: 62.68224 | GD29: 68.11833 | GG29: 69.12792 | GI29: 63.56422 | GJ29: 65.9015 | GK29: 75.63924 | GM29: 74.7691 | GN29: 67.60859 | GQ29: 73.88676 | GS29: 77.63528 | GT29: 77.85677 | GU29: 59.39222 | GW29: 84.34762 | GX29: 86.33873 | HA29: 87.53967 | HC29: 85.7773 | HD29: 85.97284 | HE29: 88.28681 | HG29: 44.54409 | HH29: 32.23902 | HK29: 43.2043 | HM29: 45.71564 | HN29: 42.02943 | HO29: 35.74619 | HQ29: 71.92803 | HR29: 69.2596 | HU29: 71.93402 | HW29: 73.4017 | HX29: 71.82767 | HY29: 65.31616
A30: 94 | B30: GUAINIA | C30: 2 | D30: LLANO | E30: NA | F30: NA | G30: D | H30: NA | I30: Intermedio | J30: medioalto | K30: 4 | L30: NA | M30: 41.3 | N30: 0 | O30: 75.35921302 | P30: 35.37080809 | Q30: 89.6666233 | R30: 58.76193076 | S30: =AVERAGE(VLOOKUP($A30,Cont!$A$3:$L$1135,3,FALSE),(100-Base!N30),(100-Base!O30),Base!P30,Base!Q30,Base!R30) -> 68.07335819 | T30: 3. Vulnerable (>=60 y <70) | U30: 53.71439211 | V30: 0 | W30: 77.09267337 | X30: 27.19233389 | Y30: 86.8611955 | Z30: 40.86099096 | AA30: =AVERAGE(VLOOKUP($A30,Cont!$A$3:$L$1135,4,FALSE),(100-Base!V30),(100-Base!W30),Base!X30,Base!Y30,Base!Z30) -> 62.97030783 | AB30: 3. Vulnerable (>=60 y <70) | AC30: 37.06 | AD30: 0 | AE30: 85.16 | AF30: 35.42 | AG30: 93.22 | AH30: 60.23 | AI30: =AVERAGE(VLOOKUP($A30,Cont!$A$3:$L$1135,5,FALSE),(100-Base!AD30),(100-Base!AE30),Base!AF30,Base!AG30,Base!AH30) -> 67.285 | AJ30: 3. Vulnerable (>=60 y <70) | AK30: 40.87142848 | AL30: 0 | AM30: 89.17431894 | AN30: 30.8922918 | AO30: 92.79088863 | AP30: 59.01072065 | AQ30: =AVERAGE(VLOOKUP($A30,Cont!$A$3:$L$1135,6,FALSE),(100-Base!AL30),(100-Base!AM30),Base!AN30,Base!AO30,Base!AP30) -> 65.58659702 | AR30: 3. Vulnerable (>=60 y <70) | AS30: 41.62587733 | AT30: 0 | AU30: 76.31689419 | AV30: 42.54658872 | AW30: 94.4061125 | AX30: 64.3681788 | AY30: =AVERAGE(VLOOKUP($A30,Cont!$A$3:$L$1135,7,FALSE),(100-Base!AT30),(100-Base!AU30),Base!AV30,Base!AW30,Base!AX30) -> 70.83399764 | AZ30: 4. Sostenible (>=70 y <80) | BA30: 39.1 | BB30: 0 | BC30: 83.68443531 | BD30: 40.33497456 | BE30: 93.52052998 | BF30: 63.51849864 | BG30: =AVERAGE(VLOOKUP($A30,Cont!$A$3:$L$1135,3,FALSE),(100-Base!BB30),(100-Base!BC30),Base!BD30,Base!BE30,Base!BF30) -> 68.94826131 | BH30: 3. Vulnerable (>=60 y <70) | BI30: 0.7 | BJ30: 0.7 | BK30: 0.7 | BL30: 0.7 | BM30: 0.7 | BN30: 0.7 | BO30: 21542.925 | BP30: 8897.432 | BQ30: 0 | BR30: 29849.106 | BS30: 0 | BT30: 71631.547 | BU30: 18871.283 | BV30: 120095.243 | BW30: 10557.87 | BX30: 29849.106 | BY30: 106811.547 | BZ30: 119120.742 | CA30: 12309.195 | CB30: 13340.73044 | CC30: 7165.89226 | CD30: 0 | CE30: 19880.24175 | CF30: 1851.926122 | CG30: 56152.66821 | CH30: 12994.35829 | CI30: 92095.5903 | CJ30: 4902.319781 | CK30: 18028.31563 | CL30: 70485.39659 | CM30: 81147.1638 | CN30: 10661.76721 | CO30: 16562.9382 | CP30: 6137.440652 | CQ30: 0 | CR30: 69460.62736 | CS30: 46549.50912 | CT30: 76714.71024 | CU30: 14627.76384 | CV30: 161921.6576 | CW30: 8115.208778 | CX30: 22911.11824 | CY30: 125325.9555 | CZ30: 134436.9719 | DA30: 9111.016369 | DB30: 19361.55906 | DC30: 7913.345763 | DD30: 0 | DE30: 92163.70308 | DF30: 65615.12616 | DG30: 68812.9678 | DH30: 17559.68275 | DI30: 170438.9543 | DJ30: 8201.463852 | DK30: 26548.57692 | DL30: 140066.7747 | DM30: 150948.8451 | DN30: 10882.07036 | DO30: 19174.41632 | DP30: 7981.519017 | DQ30: 0 | DR30: 76848.63944 | DS30: 45492.13061 | DT30: 63290.70594 | DU30: 17316.91689 | DV30: 165231.7641 | DW30: 13341.12196 | DX30: 31356.50883 | DY30: 188561.1311 | DZ30: 199734.0193 | EA30: 11172.8947 | EB30: 20978.17473 | EC30: 8198.885134 | ED30: 0 | EE30: 75024.91599 | EF30: 43594.43357 | EG30: 64705.49272 | EH30: 18337.60296 | EI30: 151327.4587 | EJ30: 12677.47709 | EK30: 31430.48242 | EL30: 165497.4188 | EM30: 176963.7306 | EN30: 11466.31187 | EO30: 24 | EP30: 4 | ES30: 11 | EU30: 18 | EV30: 8 | EW30: 4 | EY30: 32 | EZ30: 7 | FC30: 14 | FE30: 21 | FF30: 11 | FG30: 11 | FI30: 52.89375 | FJ30: 60.8 | FM30: 50.27857 | FO30: 49.96191 | FP30: 50.29091 | FQ30: 65.00909 | FS30: 5.035376 | FT30: 2.958997 | FW30: 3.851042 | FY30: 3.915744 | FZ30: 3.543429 | GA30: 5.464771 | GC30: 62.68224 | GD30: 74.30805 | GG30: 69.12792 | GI30: 63.56422 | GJ30: 56.53639 | GK30: 75.63924 | GM30: 74.7691 | GN30: 54.53196 | GQ30: 73.88676 | GS30: 77.63528 | GT30: 68.87447 | GU30: 59.39222 | GW30: 84.34762 | GX30: 88.11153 | HA30: 87.53967 | HC30: 85.7773 | HD30: 81.24493 | HE30: 88.28681 | HG30: 44.54409 | HH30: 46.54466 | HK30: 43.2043 | HM30: 45.71564 | HN30: 49.34483 | HO30: 35.74619 | HQ30: 71.92803 | HR30: 66.90749 | HU30: 71.93402 | HW30: 73.4017 | HX30: 72.11962 | HY30: 65.31616
A31: 95 | B31: GUAVIARE | C31: 2 | D31: LLANO | E31: NA | F31: NA | G31: E | H31: NA | I31: Incipiente | J31: alto | K31: 4 | L31: NA | M31: 61.9 | N31: 1.279989659 | O31: 69.75009427 | P31: 52.88468556 | Q31: 86.94333346 | R31: 46.73589712 | S31: =AVERAGE(VLOOKUP($A31,Cont!$A$3:$L$1135,3,FALSE),(100-Base!N31),(100-Base!O31),Base!P31,Base!Q31,Base!R31) -> 69.2556387 | T31: 3. Vulnerable (>=60 y <70) | U31: 56.30081301 | V31: 2.00643573 | W31: 82.29640896 | X31: 45.78725462 | Y31: 83.27620096 | Z31: 41.21588403 | AA31: =AVERAGE(VLOOKUP($A31,Cont!$A$3:$L$1135,4,FALSE),(100-Base!V31),(100-Base!W31),Base!X31,Base!Y31,Base!Z31) -> 64.32941582 | AB31: 3. Vulnerable (>=60 y <70) | AC31: 55.29 | AD31: 0.76 | AE31: 78.58 | AF31: 51.03 | AG31: 80.22 | AH31: 28.33 | AI31: =AVERAGE(VLOOKUP($A31,Cont!$A$3:$L$1135,5,FALSE),(100-Base!AD31),(100-Base!AE31),Base!AF31,Base!AG31,Base!AH31) -> 63.37333333 | AJ31: 3. Vulnerable (>=60 y <70) | AK31: 60.95511842 | AL31: 0.5339124448 | AM31: 85.95625351 | AN31: 51.18481652 | AO31: 86.45538991 | AP31: 44.55891955 | AQ31: =AVERAGE(VLOOKUP($A31,Cont!$A$3:$L$1135,6,FALSE),(100-Base!AL31),(100-Base!AM31),Base!AN31,Base!AO31,Base!AP31) -> 65.95149334 | AR31: 3. Vulnerable (>=60 y <70) | AS31: 64.21644152 | AT31: 0.4665528469 | AU31: 77.33240311 | AV31: 55.57116833 | AW31: 91.87394097 | AX31: 45.94286196 | AY31: =AVERAGE(VLOOKUP($A31,Cont!$A$3:$L$1135,7,FALSE),(100-Base!AT31),(100-Base!AU31),Base!AV31,Base!AW31,Base!AX31) -> 69.26483588 | AZ31: 3. Vulnerable (>=60 y <70) | BA31: 58.7 | BB31: 0.8834259883 | BC31: 82.07690936 | BD31: 52.98523 | BE31: 90.6572416 | BF31: 46.65850202 | BG31: =AVERAGE(VLOOKUP($A31,Cont!$A$3:$L$1135,3,FALSE),(100-Base!BB31),(100-Base!BC31),Base!BD31,Base!BE31,Base!BF31) -> 67.89010638 | BH31: 3. Vulnerable (>=60 y <70) | BI31: 0.7 | BJ31: 0.7 | BK31: 0.7 | BL31: 0.7 | BM31: 0.7 | BN31: 0.7 | BO31: 28119.544 | BP31: 17401.682 | BQ31: 989.637 | BR31: 77316.01526 | BS31: 32930.9447 | BT31: 74023.93 | BU31: 18932.977 | BV31: 180484.1313 | BW31: 23472.905 | BX31: 44385.07056 | BY31: 157425.6539 | BZ31: 181066.9635 | CA31: 23641.30965 | CB31: 23952.21222 | CC31: 13485.29021 | CD31: 792.4731686 | CE31: 39496.56382 | CF31: 6230.031699 | CG31: 81323.64718 | CH31: 15510.33659 | CI31: 125235.1309 | CJ31: 15231.83177 | CK31: 33266.53212 | CL31: 97376.34867 | CM31: 116931.7855 | CN31: 19555.43682 | CO31: 32236.85902 | CP31: 17823.12395 | CQ31: 714.8473184 | CR31: 94198.93094 | CS31: 53226.98134 | CT31: 82820.88598 | CU31: 17618.66117 | CV31: 195561.5807 | CW31: 20908.30456 | CX31: 40971.9496 | CY31: 119126.0326 | CZ31: 148492.567 | DA31: 29366.5344 | DB31: 29792.92528 | DC31: 18160.31289 | DD31: 814.9058444 | DE31: 152629.1159 | DF31: 109752.0519 | DG31: 83492.61321 | DH31: 17204.60233 | DI31: 244832.9922 | DJ31: 21946.54655 | DK31: 42877.06403 | DL31: 151733.785 | DM31: 175505.2926 | DN31: 23771.50756 | DO31: 26411.85578 | DP31: 16960.75392 | DQ31: 710.3811752 | DR31: 152261.6664 | DS31: 110945.1903 | DT31: 70411.78719 | DU31: 16349.93872 | DV31: 255658.5719 | DW31: 22960.05188 | DX31: 41316.47615 | DY31: 252515.8913 | DZ31: 274850.4023 | EA31: 22334.5067 | EB31: 27500.92774 | EC31: 16141.43615 | ED31: 828.4481464 | EE31: 93776.74615 | EF31: 52219.688 | EG31: 75406.31112 | EH31: 17788.00255 | EI31: 177167.9792 | EJ31: 22019.10284 | EK31: 41557.05814 | EL31: 215098.5021 | EM31: 237265.6595 | EN31: 22167.15733 | EO31: 22 | EP31: 2 | ES31: 2 | EU31: 2 | EV31: 15 | EW31: 2 | EY31: 32 | EZ31: 7 | FC31: 6 | FE31: 6 | FF31: 21 | FG31: 11 | FI31: 52.89375 | FJ31: 60.8 | FM31: 72.01667 | FO31: 72.01667 | FP31: 54.25714 | FQ31: 65.00909 | FS31: 5.035376 | FT31: 2.958997 | FW31: 8.157851 | FY31: 8.157851 | FZ31: 5.816873 | GA31: 5.464771 | GC31: 62.68224 | GD31: 74.30805 | GG31: 74.93749 | GI31: 74.93749 | GJ31: 65.9015 | GK31: 75.63924 | GM31: 74.7691 | GN31: 54.53196 | GQ31: 69.76711 | GS31: 69.76711 | GT31: 77.85677 | GU31: 59.39222 | GW31: 84.34762 | GX31: 88.11153 | HA31: 88.71269 | HC31: 88.71269 | HD31: 85.97284 | HE31: 88.28681 | HG31: 44.54409 | HH31: 46.54466 | HK31: 33.22071 | HM31: 33.22071 | HN31: 42.02943 | HO31: 35.74619 | HQ31: 71.92803 | HR31: 66.90749 | HU31: 64.9342 | HW31: 64.9342 | HX31: 71.82767 | HY31: 65.31616
A32: 97 | B32: VAUPES | C32: 2 | D32: LLANO | E32: NA | F32: NA | G32: D | H32: NA | I32: Intermedio | J32: alto | K32: 4 | L32: NA | M32: 42.4 | N32: 0 | O32: 72.03086679 | P32: 28.86577725 | Q32: 88.4647686 | R32: 54.51685651 | S32: =AVERAGE(VLOOKUP($A32,Cont!$A$3:$L$1135,3,FALSE),(100-Base!N32),(100-Base!O32),Base!P32,Base!Q32,Base!R32) -> 66.63608926 | T32: 3. Vulnerable (>=60 y <70) | U32: 56.90384615 | V32: 3.824876934 | W32: 87.55852215 | X32: 25.88740416 | Y32: 82.51307496 | Z32: 25.56840963 | AA32: =AVERAGE(VLOOKUP($A32,Cont!$A$3:$L$1135,4,FALSE),(100-Base!V32),(100-Base!W32),Base!X32,Base!Y32,Base!Z32) -> 57.09758161 | AB32: 2. Riesgo (>=40 y <60) | AC32: 50.96 | AD32: 0 | AE32: 78.71 | AF32: 24.89 | AG32: 85.29 | AH32: 43.98 | AI32: =AVERAGE(VLOOKUP($A32,Cont!$A$3:$L$1135,5,FALSE),(100-Base!AD32),(100-Base!AE32),Base!AF32,Base!AG32,Base!AH32) -> 62.575 | AJ32: 3. Vulnerable (>=60 y <70) | AK32: 54.11614102 | AL32: 0.9326035178 | AM32: 87.92085599 | AN32: 26.24339856 | AO32: 83.95052329 | AP32: 50.21565083 | AQ32: =AVERAGE(VLOOKUP($A32,Cont!$A$3:$L$1135,6,FALSE),(100-Base!AL32),(100-Base!AM32),Base!AN32,Base!AO32,Base!AP32) -> 61.92601886 | AR32: 3. Vulnerable (>=60 y <70) | AS32: 62.04659394 | AT32: 1.030197331 | AU32: 75.08679194 | AV32: 28.87682957 | AW32: 93.28931892 | AX32: 43.68842162 | AY32: =AVERAGE(VLOOKUP($A32,Cont!$A$3:$L$1135,7,FALSE),(100-Base!AT32),(100-Base!AU32),Base!AV32,Base!AW32,Base!AX32) -> 64.95626347 | AZ32: 3. Vulnerable (>=60 y <70) | BA32: 40.4 | BB32: 2.542771623 | BC32: 84.28940414 | BD32: 28.30166243 | BE32: 88.48719691 | BF32: 58.82667311 | BG32: =AVERAGE(VLOOKUP($A32,Cont!$A$3:$L$1135,3,FALSE),(100-Base!BB32),(100-Base!BC32),Base!BD32,Base!BE32,Base!BF32) -> 64.79722611 | BH32: 3. Vulnerable (>=60 y <70) | BI32: 0.7 | BJ32: 0.7 | BK32: 0.7 | BL32: 0.7 | BM32: 0.7 | BN32: 0.7 | BO32: 20809.927 | BP32: 8819.156 | BQ32: 0 | BR32: 36142.18414 | BS32: 9416.252136 | BT32: 50594.472 | BU32: 18594.302 | BV32: 109126.8641 | BW32: 7714.648 | BX32: 26725.932 | BY32: 93223.92122 | BZ32: 105379.7152 | CA32: 12155.794 | CB32: 12915.99298 | CC32: 7349.696776 | CD32: 803.3784892 | CE32: 21004.03498 | CF32: 2202.797765 | CG32: 28595.77001 | CH32: 13666.82077 | CI32: 50783.62157 | CJ32: 4867.152264 | CK32: 18801.23722 | CL32: 66031.7871 | CM32: 80025.84697 | CN32: 13994.05987 | CO32: 21879.72934 | CP32: 11150.52488 | CQ32: 0 | CR32: 25932.1755 | CS32: 56.96225606 | CT32: 61445.28893 | CU32: 18901.71784 | CV32: 102153.997 | CW32: 6441.337626 | CX32: 25875.21325 | CY32: 84010.64009 | CZ32: 98505.41565 | DA32: 14494.77557 | DB32: 17997.25909 | DC32: 9739.422107 | DD32: 641.602491 | DE32: 68796.91945 | DF32: 43048.92885 | DG32: 44876.35793 | DH32: 17563.21915 | DI32: 119981.2089 | DJ32: 6757.147795 | DK32: 25747.9906 | DL32: 67049.98832 | DM32: 79868.45786 | DN32: 12818.46954 | DO32: 17479.32907 | DP32: 10845.32833 | DQ32: 591.3788945 | DR32: 57404.31341 | DS32: 32609.93614 | DT32: 50448.29977 | DU32: 17108.67594 | DV32: 133401.5063 | DW32: 7159.829008 | DX32: 24794.37727 | DY32: 194095.8657 | DZ32: 208057.9729 | EA32: 13962.11149 | EB32: 20406.23245 | EC32: 8251.316308 | ED32: 679.9814567 | EE32: 26741.74316 | EF32: 0 | EG32: 45663.05994 | EH32: 18441.36091 | EI32: 76052.76311 | EJ32: 7568.357877 | EK32: 26741.74316 | EL32: 84626.23796 | EM32: 95636.70329 | EN32: 11010.46533 | EO32: 25 | EP32: 5 | ES32: 12 | EU32: 19 | EV32: 17 | EW32: 5 | EY32: 32 | EZ32: 7 | FC32: 14 | FE32: 21 | FF32: 21 | FG32: 11 | FI32: 52.89375 | FJ32: 60.8 | FM32: 50.27857 | FO32: 49.96191 | FP32: 54.25714 | FQ32: 65.00909 | FS32: 5.035376 | FT32: 2.958997 | FW32: 3.851042 | FY32: 3.915744 | FZ32: 5.816873 | GA32: 5.464771 | GC32: 62.68224 | GD32: 74.30805 | GG32: 69.12792 | GI32: 63.56422 | GJ32: 65.9015 | GK32: 75.63924 | GM32: 74.7691 | GN32: 54.53196 | GQ32: 73.88676 | GS32: 77.63528 | GT32: 77.85677 | GU32: 59.39222 | GW32: 84.34762 | GX32: 88.11153 | HA32: 87.53967 | HC32: 85.7773 | HD32: 85.97284 | HE32: 88.28681 | HG32: 44.54409 | HH32: 46.54466 | HK32: 43.2043 | HM32: 45.71564 | HN32: 42.02943 | HO32: 35.74619 | HQ32: 71.92803 | HR32: 66.90749 | HU32: 71.93402 | HW32: 73.4017 | HX32: 71.82767 | HY32: 65.31616
A33: 99 | B33: VICHADA | C33: 2 | D33: LLANO | E33: NA | F33: NA | G33: E | H33: NA | I33: Incipiente | J33: alto | K33: 4 | L33: NA | M33: 66.5 | N33: 0.7536635655 | O33: 77.33775878 | P33: 26.16095499 | Q33: 86.9695138 | R33: 38.33149545 | S33: =AVERAGE(VLOOKUP($A33,Cont!$A$3:$L$1135,3,FALSE),(100-Base!N33),(100-Base!O33),Base!P33,Base!Q33,Base!R33) -> 62.22842365 | T33: 3. Vulnerable (>=60 y <70) | U33: 27.39177636 | V33: 0 | W33: 81.44914649 | X33: 36.05529121 | Y33: 85.54323864 | Z33: 53.24679099 | AA33: =AVERAGE(VLOOKUP($A33,Cont!$A$3:$L$1135,4,FALSE),(100-Base!V33),(100-Base!W33),Base!X33,Base!Y33,Base!Z33) -> 65.56602906 | AB33: 3. Vulnerable (>=60 y <70) | AC33: 58.76 | AD33: 0 | AE33: 64.42 | AF33: 35.65 | AG33: 90.24 | AH33: 40.64 | AI33: =AVERAGE(VLOOKUP($A33,Cont!$A$3:$L$1135,5,FALSE),(100-Base!AD33),(100-Base!AE33),Base!AF33,Base!AG33,Base!AH33) -> 67.01833333 | AJ33: 3. Vulnerable (>=60 y <70) | AK33: 54.66625294 | AL33: 1.594583585 | AM33: 75.39417289 | AN33: 54.00158252 | AO33: 91.54920889 | AP33: 58.66481163 | AQ33: =AVERAGE(VLOOKUP($A33,Cont!$A$3:$L$1135,6,FALSE),(100-Base!AL33),(100-Base!AM33),Base!AN33,Base!AO33,Base!AP33) -> 71.20447443 | AR33: 4. Sostenible (>=70 y <80) | AS33: 42.90552893 | AT33: 0.1434478783 | AU33: 70.73456553 | AV33: 44.2564169 | AW33: 93.97176543 | AX33: 63.05254032 | AY33: =AVERAGE(VLOOKUP($A33,Cont!$A$3:$L$1135,7,FALSE),(100-Base!AT33),(100-Base!AU33),Base!AV33,Base!AW33,Base!AX33) -> 71.73378487 | AZ33: 4. Sostenible (>=70 y <80) | BA33: 44.6 | BB33: 0.1240890763 | BC33: 72.0686538 | BD33: 42.0868943 | BE33: 91.87809293 | BF33: 62.43031914 | BG33: =AVERAGE(VLOOKUP($A33,Cont!$A$3:$L$1135,3,FALSE),(100-Base!BB33),(100-Base!BC33),Base!BD33,Base!BE33,Base!BF33) -> 70.70042725 | BH33: 4. Sostenible (>=70 y <80) | BI33: 0.7 | BJ33: 0.7 | BK33: 0.7 | BL33: 0.7 | BM33: 0.7 | BN33: 0.7 | BO33: 22303.757 | BP33: 14829.514 | BQ33: 411.807 | BR33: 54640.69366 | BS33: 22726.34266 | BT33: 66932.835 | BU33: 20282.767 | BV33: 142158.1727 | BW33: 8349.099 | BX33: 31914.351 | BY33: 131357.7968 | BZ33: 151038.8998 | CA33: 19681.103 | CB33: 18303.45236 | CC33: 5013.640737 | CD33: 0 | CE33: 35581.96107 | CF33: 1096.849721 | CG33: 64931.21534 | CH33: 19565.65908 | CI33: 105088.5465 | CJ33: 12433.70732 | CK33: 34485.11135 | CL33: 95402.05594 | CM33: 111524.9521 | CN33: 16122.89619 | CO33: 19364.80846 | CP33: 11377.86831 | CQ33: 0 | CR33: 118337.4374 | CS33: 87084.01671 | CT33: 68518.27214 | CU33: 19252.56396 | CV33: 271442.4657 | CW33: 11141.95179 | CX33: 31253.42071 | CY33: 171568.0821 | CZ33: 190121.4185 | DA33: 18553.33631 | DB33: 20051.54282 | DC33: 10961.42712 | DD33: 1734.514378 | DE33: 108775.3815 | DF33: 67207.30209 | DG33: 78344.54059 | DH33: 18185.92208 | DI33: 217175.6231 | DJ33: 22447.42072 | DK33: 41568.07944 | DL33: 186138.8856 | DM33: 203321.1296 | DN33: 17182.24394 | DO33: 22624.88119 | DP33: 9707.324943 | DQ33: 115.292737 | DR33: 80374.11081 | DS33: 41951.33472 | DT33: 62698.48859 | DU33: 20728.95062 | DV33: 177252.472 | DW33: 17004.54525 | DX33: 38422.77609 | DY33: 221299.552 | DZ33: 235495.7754 | EA33: 14196.2416 | EB33: 21457.00747 | EC33: 9569.067604 | ED33: 106.5579739 | EE33: 85872.163 | EF33: 46122.05417 | EG33: 61654.34627 | EH33: 19845.9368 | EI33: 177084.3918 | EJ33: 16729.58629 | EK33: 39750.10883 | EL33: 168938.9475 | EM33: 183872.9365 | EN33: 14933.98903 | EO33: 30 | EP33: 6 | ES33: 5 | EU33: 5 | EV33: 20 | EW33: 9 | EY33: 32 | EZ33: 7 | FC33: 6 | FE33: 6 | FF33: 21 | FG33: 11 | FI33: 52.89375 | FJ33: 60.8 | FM33: 72.01667 | FO33: 72.01667 | FP33: 54.25714 | FQ33: 65.00909 | FS33: 5.035376 | FT33: 2.958997 | FW33: 8.157851 | FY33: 8.157851 | FZ33: 5.816873 | GA33: 5.464771 | GC33: 62.68224 | GD33: 74.30805 | GG33: 74.93749 | GI33: 74.93749 | GJ33: 65.9015 | GK33: 75.63924 | GM33: 74.7691 | GN33: 54.53196 | GQ33: 69.76711 | GS33: 69.76711 | GT33: 77.85677 | GU33: 59.39222 | GW33: 84.34762 | GX33: 88.11153 | HA33: 88.71269 | HC33: 88.71269 | HD33: 85.97284 | HE33: 88.28681 | HG33: 44.54409 | HH33: 46.54466 | HK33: 33.22071 | HM33: 33.22071 | HN33: 42.02943 | HO33: 35.74619 | HQ33: 71.92803 | HR33: 66.90749 | HU33: 64.9342 | HW33: 64.9342 | HX33: 71.82767 | HY33: 65.31616
A34: 5001 | B34: MEDELLÍN | C34: 1 | D34: EJE CAFETERO | E34: ANTIOQUIA | F34: Valle del aburra | G34: A | H34: Robusto | I34: Robusto | J34: bajo | K34: E | L34: Ciudades | M34: 35.96253449 | N34: 7.003974787 | O34: 25.1558663 | P34: 78.84794872 | Q34: 87.24190769 | R34: 67.74527228 | S34: =AVERAGE(VLOOKUP($A34,Cont!$A$3:$L$1135,3,FALSE),(100-Base!N34),(100-Base!O34),Base!P34,Base!Q34,Base!R34) -> 83.61254793 | T34: 5. Solvente (>=80) | U34: 38.69148154 | V34: 7.429648678 | W34: 25.31786437 | X34: 76.84441306 | Y34: 85.73479886 | Z34: 66.44548548 | AA34: =AVERAGE(VLOOKUP($A34,Cont!$A$3:$L$1135,4,FALSE),(100-Base!V34),(100-Base!W34),Base!X34,Base!Y34,Base!Z34) -> 82.71286406 | AB34: 5. Solvente (>=80) | AC34: 28.42 | AD34: 3.58 | AE34: 28.56 | AF34: 78.54 | AG34: 88.72 | AH34: 70.52 | AI34: =AVERAGE(VLOOKUP($A34,Cont!$A$3:$L$1135,5,FALSE),(100-Base!AD34),(100-Base!AE34),Base!AF34,Base!AG34,Base!AH34) -> 84.27333333 | AJ34: 5. Solvente (>=80) | AK34: 35.07223189 | AL34: 8.640641813 | AM34: 19.13619025 | AN34: 79.1372621 | AO34: 90.28226582 | AP34: 68.90145655 | AQ34: =AVERAGE(VLOOKUP($A34,Cont!$A$3:$L$1135,6,FALSE),(100-Base!AL34),(100-Base!AM34),Base!AN34,Base!AO34,Base!AP34) -> 85.09069207 | AR34: 5. Solvente (>=80) | AS34: 37.10338858 | AT34: 7.058759853 | AU34: 26.91482995 | AV34: 80.24483997 | AW34: 86.09475796 | AX34: 66.95779912 | AY34: =AVERAGE(VLOOKUP($A34,Cont!$A$3:$L$1135,7,FALSE),(100-Base!AT34),(100-Base!AU34),Base!AV34,Base!AW34,Base!AX34) -> 83.22063454 | AZ34: 5. Solvente (>=80) | BA34: 38.43148906 | BB34: 13.96764314 | BC34: 28.1919083 | BD34: 79.258745 | BE34: 83.98355732 | BF34: 65.79416946 | BG34: =AVERAGE(VLOOKUP($A34,Cont!$A$3:$L$1135,3,FALSE),(100-Base!BB34),(100-Base!BC34),Base!BD34,Base!BE34,Base!BF34) -> 81.14615339 | BH34: 5. Solvente (>=80) | BI34: 0.5 | BJ34: 0.5 | BK34: 0.5 | BL34: 0.5 | BM34: 0.5 | BN34: 0.5 | BO34: 1468475.025 | BP34: 528100.8373 | BQ34: 150578.5391 | BR34: 2149901.215 | BS34: 19.87504959 | BT34: 1306877 | BU34: 5720.857422 | BV34: 5217938.897 | BW34: 1630773.406 | BX34: 2068250.896 | BY34: 4561797.625 | BZ34: 5228906.32 | CA34: 667108.6953 | CB34: 1277630.08 | CC34: 494334.0068 | CD34: 138220.7162 | CE34: 1860393.704 | CF34: 0 | CG34: 1023446.931 | CH34: 0 | CI34: 4042390.449 | CJ34: 1367327.055 | CK34: 1779344.784 | CL34: 3588312.87 | CM34: 4185363.374 | CN34: 597050.5038 | CO34: 1552692.173 | CP34: 441256.5194 | CQ34: 75510.78136 | CR34: 2107662.638 | CS34: 126719.4792 | CT34: 1183353.968 | CU34: 40.20349153 | CV34: 4587194.219 | CW34: 1489032.083 | CX34: 1895951.171 | CY34: 4395996.423 | CZ34: 4954925.269 | DA34: 558928.8461 | DB34: 1388308.439 | DC34: 486910.7551 | DD34: 175073.6984 | DE34: 2026165.442 | DF34: 0 | DG34: 1198564.654 | DH34: 4078.945897 | DI34: 6284655.327 | DJ34: 1538566.334 | DK34: 1944174.329 | DL34: 5617106.884 | DM34: 6221716.783 | DN34: 604609.8984 | DO34: 1511439.483 | DP34: 507530.9943 | DQ34: 144384.3816 | DR34: 2045463.803 | DS34: 0 | DT34: 1232425.601 | DU34: 4321.117627 | DV34: 4595038.096 | DW34: 1579757.358 | DX34: 1968671.527 | DY34: 4027544.981 | DZ34: 4678037.53 | EA34: 650492.4113 | EB34: 1578069.534 | EC34: 530874.7936 | ED34: 290009.4323 | EE34: 2076294.686 | EF34: 92.8566072 | EG34: 1244581.287 | EH34: 5072.066293 | EI34: 4432996.152 | EJ34: 1579401.525 | EK34: 1992715.788 | EL34: 3574157.647 | EM34: 4255782.633 | EN34: 681624.9858 | EO34: 24 | EP34: 4 | EQ34: 4 | ER34: 1 | ES34: 2 | ET34: 14 | EU34: 13 | EV34: 19 | EW34: 2 | EX34: 2 | EY34: 1101 | EZ34: 178 | FA34: 125 | FB34: 10 | FC34: 6 | FD34: 69 | FE34: 269 | FF34: 121 | FG34: 6 | FH34: 13 | FI34: 54.42346 | FJ34: 60.12363 | FK34: 62.73397 | FL34: 42.20321 | FM34: 33.33715 | FN34: 37.72821 | FO34: 54.82962 | FP34: 44.00282 | FQ34: 33.33715 | FR34: 36.82384 | FS34: 3.922798 | FT34: 5.870482 | FU34: 6.887506 | FV34: 10.403 | FW34: 6.509073 | FX34: 6.96879 | FY34: 4.749686 | FZ34: 6.295687 | GA34: 6.509073 | GB34: 7.744392 | GC34: 68.74329 | GD34: 59.84842 | GE34: 57.68191 | GF34: 28.47429 | GG34: 37.96053 | GH34: 39.87551 | GI34: 55.19832 | GJ34: 45.93587 | GK34: 37.96053 | GL34: 50.78794 | GM34: 52.64082 | GN34: 60.20657 | GO34: 59.73359 | GP34: 83.59334 | GQ34: 84.38897 | GR34: 84.88793 | GS34: 58.88792 | GT34: 81.9105 | GU34: 84.38897 | GV34: 83.55934 | GW34: 86.5405 | GX34: 83.90293 | GY34: 82.96947 | GZ34: 76.05038 | HA34: 82.7096 | HB34: 80.68295 | HC34: 83.43092 | HD34: 81.29807 | HE34: 82.7096 | HF34: 84.79874 | HG34: 44.5238 | HH34: 41.49112 | HI34: 40.66115 | HJ34: 59.16648 | HK34: 63.7135 | HL34: 60.16801 | HM34: 45.49012 | HN34: 55.8005 | HO34: 63.7135 | HP34: 59.72442 | HQ34: 68.33787 | HR34: 69.88535 | HS34: 69.66396 | HT34: 79.98882 | HU34: 81.05708 | HV34: 79.81577 | HW34: 71.24734 | HX34: 77.65618 | HY34: 81.05708 | HZ34: 78.25836
A35: 5002 | B35: ABEJORRAL | C35: 1 | D35: EJE CAFETERO | E35: ANTIOQUIA | F35: Oriente | G35: C | H35: Intermedio | I35: Robusto | J35: medioalto | K35: 6 | L35: G3- Nivel Medio | M35: 56.31081048 | N35: 4.265143809 | O35: 68.48176028 | P35: 58.99688529 | Q35: 87.95489936 | R35: 37.11734051 | S35: =AVERAGE(VLOOKUP($A35,Cont!$A$3:$L$1135,3,FALSE),(100-Base!N35),(100-Base!O35),Base!P35,Base!Q35,Base!R35) -> 68.55370351 | T35: 3. Vulnerable (>=60 y <70) | U35: 59.90085408 | V35: 5.659511046 | W35: 64.8920275 | X35: 54.59208473 | Y35: 85.17869242 | Z35: 41.63947432 | AA35: =AVERAGE(VLOOKUP($A35,Cont!$A$3:$L$1135,4,FALSE),(100-Base!V35),(100-Base!W35),Base!X35,Base!Y35,Base!Z35) -> 68.47645215 | AB35: 3. Vulnerable (>=60 y <70) | AC35: 58.77 | AD35: 3.96 | AE35: 68.1 | AF35: 60.56 | AG35: 88.69 | AH35: 45.59 | AI35: =AVERAGE(VLOOKUP($A35,Cont!$A$3:$L$1135,5,FALSE),(100-Base!AD35),(100-Base!AE35),Base!AF35,Base!AG35,Base!AH35) -> 70.46333333 | AJ35: 4. Sostenible (>=70 y <80) | AK35: 56.63639532 | AL35: 5.309004827 | AM35: 70.09170758 | AN35: 55.87314629 | AO35: 88.66587392 | AP35: 44.16094403 | AQ35: =AVERAGE(VLOOKUP($A35,Cont!$A$3:$L$1135,6,FALSE),(100-Base!AL35),(100-Base!AM35),Base!AN35,Base!AO35,Base!AP35) -> 68.88320864 | AR35: 3. Vulnerable (>=60 y <70) | AS35: 55.97946712 | AT35: 4.283061427 | AU35: 70.03688695 | AV35: 57.47649288 | AW35: 90.30240163 | AX35: 50.53253685 | AY35: =AVERAGE(VLOOKUP($A35,Cont!$A$3:$L$1135,7,FALSE),(100-Base!AT35),(100-Base!AU35),Base!AV35,Base!AW35,Base!AX35) -> 70.66524716 | AZ35: 4. Sostenible (>=70 y <80) | BA35: 58.68424296 | BB35: 5.383913175 | BC35: 65.4309784 | BD35: 51.16367989 | BE35: 88.14250334 | BF35: 42.47284105 | BG35: =AVERAGE(VLOOKUP($A35,Cont!$A$3:$L$1135,3,FALSE),(100-Base!BB35),(100-Base!BC35),Base!BD35,Base!BE35,Base!BF35) -> 68.49402212 | BH35: 3. Vulnerable (>=60 y <70) | BI35: 0.8 | BJ35: 0.8 | BK35: 0.8 | BL35: 0.8 | BM35: 0.8 | BN35: 0.8 | BO35: 3641.006632 | BP35: 2050.280344 | BQ35: 250.3547592 | BR35: 5869.784711 | BS35: 24.365336 | BT35: 12760.3457 | BU35: 1255.354004 | BV35: 20501.90443 | BW35: 2465.414642 | BX35: 4178.889496 | BY35: 19188.51611 | BZ35: 21816.31297 | CA35: 2627.796852 | CB35: 2956.185151 | CC35: 1770.780154 | CD35: 339.0758638 | CE35: 5991.257214 | CF35: 52.82889514 | CG35: 9086.659383 | CH35: 1126.968823 | CI35: 15820.82961 | CJ35: 2032.260706 | CK35: 3722.628868 | CL35: 12485.71406 | CM35: 14658.25984 | CN35: 2172.545777 | CO35: 3486.339576 | CP35: 2048.766274 | CQ35: 372.8203782 | CR35: 9425.393054 | CS35: 2390.71768 | CT35: 11473.77191 | CU35: 1261.447898 | CV35: 22211.94663 | CW35: 2753.619979 | CX35: 4546.76027 | CY35: 19398.11157 | CZ35: 21871.92743 | DA35: 2473.81586 | DB35: 3052.259448 | DC35: 1728.689727 | DD35: 392.3612462 | DE35: 7390.485768 | DF35: 753.403827 | DG35: 12320.47949 | DH35: 1132.480967 | DI35: 20268.25252 | DJ35: 2367.35051 | DK35: 4237.00949 | DL35: 18508.27586 | DM35: 20874.18196 | DN35: 2365.9061 | DO35: 3159.336351 | DP35: 1523.694696 | DQ35: 354.825133 | DR35: 8284.380897 | DS35: 1626.03715 | DT35: 12127.36901 | DU35: 1196.059222 | DV35: 21345.13081 | DW35: 2534.974039 | DX35: 4410.453467 | DY35: 20315.99028 | DZ35: 22497.72969 | EA35: 2181.739551 | EB35: 3504.269146 | EC35: 1641.513873 | ED35: 378.0392665 | EE35: 7021.64493 | EF35: 767.2515536 | EG35: 12138.78323 | EH35: 1162.034737 | EI35: 21500.62534 | EJ35: 2157.541088 | EK35: 4216.938839 | EL35: 18032.77643 | EM35: 20458.66154 | EN35: 2425.885109 | EO35: 515 | EP35: 97 | EQ35: 66 | ER35: 32 | ES35: 125 | ET35: 373 | EU35: 167 | EV35: 176 | EW35: 392 | EX35: 85 | EY35: 1101 | EZ35: 178 | FA35: 125 | FB35: 60 | FC35: 158 | FD35: 712 | FE35: 269 | FF35: 551 | FG35: 972 | FH35: 218 | FI35: 54.42346 | FJ35: 60.12363 | FK35: 62.73397 | FL35: 53.14977 | FM35: 52.42073 | FN35: 54.66744 | FO35: 54.82962 | FP35: 56.51045 | FQ35: 55.87918 | FR35: 56.21923 | FS35: 3.922798 | FT35: 5.870482 | FU35: 6.887506 | FV35: 4.075324 | FW35: 4.66997 | FX35: 3.81103 | FY35: 4.749686 | FZ35: 3.412083 | GA35: 3.588773 | GB35: 3.439309 | GC35: 68.74329 | GD35: 59.84842 | GE35: 57.68191 | GF35: 61.18362 | GG35: 57.81246 | GH35: 67.46651 | GI35: 55.19832 | GJ35: 73.12246 | GK35: 71.2836 | GL35: 70.97762 | GM35: 52.64082 | GN35: 60.20657 | GO35: 59.73359 | GP35: 53.99952 | GQ35: 70.1471 | GR35: 55.17067 | GS35: 58.88792 | GT35: 44.53401 | GU35: 48.60859 | GV35: 47.92092 | GW35: 86.5405 | GX35: 83.90293 | GY35: 82.96947 | GZ35: 85.67176 | HA35: 83.38324 | HB35: 86.25111 | HC35: 83.43092 | HD35: 87.57653 | HE35: 87.09678 | HF35: 86.70963 | HG35: 44.5238 | HH35: 41.49112 | HI35: 40.66115 | HJ35: 44.6183 | HK35: 47.50193 | HL35: 45.04333 | HM35: 45.49012 | HN35: 41.90516 | HO35: 43.07114 | HP35: 42.23924 | HQ35: 68.33787 | HR35: 69.88535 | HS35: 69.66396 | HT35: 69.83844 | HU35: 72.9791 | HV35: 69.07786 | HW35: 71.24734 | HX35: 66.0789 | HY35: 67.12634 | HZ35: 66.92496
A36: 5004 | B36: ABRIAQUÍ | C36: 1 | D36: EJE CAFETERO | E36: ANTIOQUIA | F36: Occidente | G36: D | H36: Intermedio | I36: Robusto | J36: medioalto | K36: 6 | L36: G3- Nivel Medio | M36: 69.14091657 | N36: 8.476081175 | O36: 48.28487924 | P36: 30.76970199 | Q36: 82.74898032 | R36: 22.06390391 | S36: =AVERAGE(VLOOKUP($A36,Cont!$A$3:$L$1135,3,FALSE),(100-Base!N36),(100-Base!O36),Base!P36,Base!Q36,Base!R36) -> 63.13693764 | T36: 3. Vulnerable (>=60 y <70) | U36: 62.03792441 | V36: 13.0079264 | W36: 79.22607339 | X36: 17.49152339 | Y36: 73.60642056 | Z36: 19.21703294 | AA36: =AVERAGE(VLOOKUP($A36,Cont!$A$3:$L$1135,4,FALSE),(100-Base!V36),(100-Base!W36),Base!X36,Base!Y36,Base!Z36) -> 53.01349618 | AB36: 2. Riesgo (>=40 y <60) | AC36: 55.65 | AD36: 2.43 | AE36: 84.76 | AF36: 19.35 | AG36: 78.02 | AH36: 33.39 | AI36: =AVERAGE(VLOOKUP($A36,Cont!$A$3:$L$1135,5,FALSE),(100-Base!AD36),(100-Base!AE36),Base!AF36,Base!AG36,Base!AH36) -> 57.26166667 | AJ36: 2. Riesgo (>=40 y <60) | AK36: 59.02418135 | AL36: 5.790515026 | AM36: 69.95157552 | AN36: 25.40233711 | AO36: 76.76182436 | AP36: 23.58037572 | AQ36: =AVERAGE(VLOOKUP($A36,Cont!$A$3:$L$1135,6,FALSE),(100-Base!AL36),(100-Base!AM36),Base!AN36,Base!AO36,Base!AP36) -> 58.33374111 | AR36: 2. Riesgo (>=40 y <60) | AS36: 91.67377663 | AT36: 0 | AU36: 58.31787319 | AV36: 30.43747173 | AW36: 79.85079683 | AX36: 15.21119845 | AY36: =AVERAGE(VLOOKUP($A36,Cont!$A$3:$L$1135,7,FALSE),(100-Base!AT36),(100-Base!AU36),Base!AV36,Base!AW36,Base!AX36) -> 51.46878511 | AZ36: 2. Riesgo (>=40 y <60) | BA36: 68.63195815 | BB36: 2.795133992 | BC36: 56.00246284 | BD36: 23.55123361 | BE36: 82.20826761 | BF36: 20.94088705 | BG36: =AVERAGE(VLOOKUP($A36,Cont!$A$3:$L$1135,3,FALSE),(100-Base!BB36),(100-Base!BC36),Base!BD36,Base!BE36,Base!BF36) -> 61.31713191 | BH36: 3. Vulnerable (>=60 y <70) | BI36: 0.8 | BJ36: 0.8 | BK36: 0.8 | BL36: 0.8 | BM36: 0.8 | BN36: 0.8 | BO36: 1016.517087 | BP36: 702.829231 | BQ36: 251.0390244 | BR36: 2961.734547 | BS36: 681.0594835 | BT36: 2439.498047 | BU36: 622.9020386 | BV36: 7752.860995 | BW36: 396.1187649 | BX36: 1287.36627 | BY36: 4812.698486 | BZ36: 5816.0215 | CA36: 1003.323013 | CB36: 926.5523531 | CC36: 574.8138484 | CD36: 277.4282156 | CE36: 2132.762802 | CF36: 12.49653369 | CG36: 2229.644388 | CH36: 681.7848301 | CI36: 3690.61046 | CJ36: 192.7610525 | CK36: 1102.025525 | CL36: 2482.72639 | CM36: 3372.975307 | CN36: 890.2489171 | CO36: 1091.912688 | CP36: 607.5985729 | CQ36: 76.80875108 | CR36: 3155.698469 | CS36: 547.9984061 | CT36: 2337.708607 | CU36: 835.1654149 | CV36: 4389.961317 | CW36: 259.4578938 | CX36: 1341.166831 | CY36: 3170.13751 | CZ36: 4063.476218 | DA36: 893.3387086 | DB36: 1086.799294 | DC36: 641.4743863 | DD36: 221.8144818 | DE36: 3830.652037 | DF36: 1168.118077 | DG36: 2399.804636 | DH36: 707.8160542 | DI36: 6112.426684 | DJ36: 365.9763354 | DK36: 1440.71915 | DL36: 3636.86755 | DM36: 4737.859712 | DN36: 1100.992162 | DO36: 952.3220361 | DP36: 790.2186738 | DQ36: 0 | DR36: 2824.077879 | DS36: 401.8998895 | DT36: 2171.104101 | DU36: 716.2261224 | DV36: 5640.175108 | DW36: 388.9407279 | DX36: 1277.835188 | DY36: 4293.729978 | DZ36: 5377.19111 | EA36: 1083.461133 | EB36: 918.7157022 | EC36: 563.8753071 | ED36: 67.1505408 | EE36: 2402.40865 | EF36: 441.7225694 | EG36: 2151.478887 | EH36: 630.5189296 | EI36: 5756.390384 | EJ36: 249.7233599 | EK36: 1060.340889 | EL36: 3873.421021 | EM36: 4711.717122 | EN36: 838.2961013 | EO36: 851 | EP36: 157 | EQ36: 105 | ER36: 34 | ES36: 235 | ET36: 598 | EU36: 242 | EV36: 382 | EW36: 723 | EX36: 171 | EY36: 1101 | EZ36: 178 | FA36: 125 | FB36: 53 | FC36: 261 | FD36: 712 | FE36: 269 | FF36: 551 | FG36: 972 | FH36: 218 | FI36: 54.42346 | FJ36: 60.12363 | FK36: 62.73397 | FL36: 56.23077 | FM36: 53.26068 | FN36: 54.66744 | FO36: 54.82962 | FP36: 56.51045 | FQ36: 55.87918 | FR36: 56.21923 | FS36: 3.922798 | FT36: 5.870482 | FU36: 6.887506 | FV36: 4.91842 | FW36: 3.766216 | FX36: 3.81103 | FY36: 4.749686 | FZ36: 3.412083 | GA36: 3.588773 | GB36: 3.439309 | GC36: 68.74329 | GD36: 59.84842 | GE36: 57.68191 | GF36: 71.18067 | GG36: 66.82138 | GH36: 67.46651 | GI36: 55.19832 | GJ36: 73.12246 | GK36: 71.2836 | GL36: 70.97762 | GM36: 52.64082 | GN36: 60.20657 | GO36: 59.73359 | GP36: 44.51445 | GQ36: 55.8371 | GR36: 55.17067 | GS36: 58.88792 | GT36: 44.53401 | GU36: 48.60859 | GV36: 47.92092 | GW36: 86.5405 | GX36: 83.90293 | GY36: 82.96947 | GZ36: 86.62191 | HA36: 86.16039 | HB36: 86.25111 | HC36: 83.43092 | HD36: 87.57653 | HE36: 87.09678 | HF36: 86.70963 | HG36: 44.5238 | HH36: 41.49112 | HI36: 40.66115 | HJ36: 39.58741 | HK36: 46.25377 | HL36: 45.04333 | HM36: 45.49012 | HN36: 41.90516 | HO36: 43.07114 | HP36: 42.23924 | HQ36: 68.33787 | HR36: 69.88535 | HS36: 69.66396 | HT36: 65.70256 | HU36: 69.59016 | HV36: 69.07786 | HW36: 71.24734 | HX36: 66.0789 | HY36: 67.12634 | HZ36: 66.92496
A37: 5021 | B37: ALEJANDRÍA | C37: 1 | D37: EJE CAFETERO | E37: ANTIOQUIA | F37: Oriente | G37: C | H37: Intermedio | I37: Robusto | J37: medioalto | K37: 6 | L37: G2- Nivel Medio Alto | M37: 51.02652742 | N37: 11.78411665 | O37: 49.34671792 | P37: 57.70503794 | Q37: 83.21785423 | R37: 40.07167064 | S37: =AVERAGE(VLOOKUP($A37,Cont!$A$3:$L$1135,3,FALSE),(100-Base!N37),(100-Base!O37),Base!P37,Base!Q37,Base!R37) -> 69.97728804 | T37: 3. Vulnerable (>=60 y <70) | U37: 66.23535503 | V37: 18.47776191 | W37: 68.99636784 | X37: 22.517443 | Y37: 84.91697833 | Z37: 29.63695028 | AA37: =AVERAGE(VLOOKUP($A37,Cont!$A$3:$L$1135,4,FALSE),(100-Base!V37),(100-Base!W37),Base!X37,Base!Y37,Base!Z37) -> 58.26620698 | AB37: 2. Riesgo (>=40 y <60) | AC37: 62.82 | AD37: 11.64 | AE37: 72.58 | AF37: 33.38 | AG37: 86.91 | AH37: 28.48 | AI37: =AVERAGE(VLOOKUP($A37,Cont!$A$3:$L$1135,5,FALSE),(100-Base!AD37),(100-Base!AE37),Base!AF37,Base!AG37,Base!AH37) -> 60.75833333 | AJ37: 3. Vulnerable (>=60 y <70) | AK37: 54.80854493 | AL37: 13.01941582 | AM37: 63.95972274 | AN37: 44.34215942 | AO37: 90.5038431 | AP37: 41.68238324 | AQ37: =AVERAGE(VLOOKUP($A37,Cont!$A$3:$L$1135,6,FALSE),(100-Base!AL37),(100-Base!AM37),Base!AN37,Base!AO37,Base!AP37) -> 66.5915412 | AR37: 3. Vulnerable (>=60 y <70) | AS37: 91.25405282 | AT37: 14.52499116 | AU37: 38.80411574 | AV37: 63.18612766 | AW37: 89.0369722 | AX37: 31.03099292 | AY37: =AVERAGE(VLOOKUP($A37,Cont!$A$3:$L$1135,7,FALSE),(100-Base!AT37),(100-Base!AU37),Base!AV37,Base!AW37,Base!AX37) -> 62.27578696 | AZ37: 3. Vulnerable (>=60 y <70) | BA37: 54.27281223 | BB37: 17.56977731 | BC37: 57.9550167 | BD37: 48.08855122 | BE37: 78.86616153 | BF37: 35.94625793 | BG37: =AVERAGE(VLOOKUP($A37,Cont!$A$3:$L$1135,3,FALSE),(100-Base!BB37),(100-Base!BC37),Base!BD37,Base!BE37,Base!BF37) -> 64.56269611 | BH37: 3. Vulnerable (>=60 y <70) | BI37: 0.8 | BJ37: 0.8 | BK37: 0.8 | BL37: 0.8 | BM37: 0.8 | BN37: 0.8 | BO37: 2475.593827 | BP37: 1263.209563 | BQ37: 556.1597748 | BR37: 4719.571195 | BS37: 470.792608 | BT37: 4037.213867 | BU37: 856.8931274 | BV37: 10871.84686 | BW37: 1643.369881 | BX37: 2847.879387 | BY37: 8462.969727 | BZ37: 10169.65627 | CA37: 1706.686539 | CB37: 1355.241612 | CC37: 897.649093 | CD37: 536.8979575 | CE37: 2905.643877 | CF37: 0 | CG37: 4049.451926 | CH37: 682.7704371 | CI37: 6858.654319 | CJ37: 408.7402591 | CK37: 1815.216138 | CL37: 7190.832546 | CM37: 8468.073979 | CN37: 1277.241433 | CO37: 1549.598505 | CP37: 973.4142467 | CQ37: 451.4681539 | CR37: 3878.691542 | CS37: 556.8013017 | CT37: 5600.351244 | CU37: 925.1261985 | CV37: 9758.228014 | CW37: 638.0696141 | CX37: 1911.265459 | CY37: 9077.597521 | CZ37: 10444.45288 | DA37: 1366.855361 | DB37: 1700.493761 | DC37: 932.015887 | DD37: 599.6005972 | DE37: 4605.433958 | DF37: 923.3447254 | DG37: 5113.49492 | DH37: 844.4181158 | DI37: 10758.73607 | DJ37: 1029.301431 | DK37: 2321.270421 | DL37: 12901.63184 | DM37: 14255.34142 | DN37: 1353.709588 | DO37: 1615.127363 | DP37: 1337.172312 | DQ37: 603.2768929 | DR37: 4153.371851 | DS37: 239.1306083 | DT37: 4519.325501 | DU37: 766.8596279 | DV37: 14238.99463 | DW37: 1667.929542 | DX37: 2639.708311 | DY37: 14785.96935 | DZ37: 16606.54932 | EA37: 1820.580644 | EB37: 1959.251928 | EC37: 1044.880402 | ED37: 621.7254064 | EE37: 3538.607208 | EF37: 72.2509508 | EG37: 4152.252108 | EH37: 849.4306086 | EI37: 8754.95161 | EJ37: 1110.936956 | EK37: 2310.190114 | EL37: 5522.103572 | EM37: 7001.866789 | EN37: 1479.763217 | EO37: 428 | EP37: 86 | EQ37: 59 | ER37: 24 | ES37: 117 | ET37: 311 | EU37: 145 | EV37: 131 | EW37: 308 | EX37: 115 | EY37: 1101 | EZ37: 178 | FA37: 125 | FB37: 60 | FC37: 158 | FD37: 712 | FE37: 269 | FF37: 551 | FG37: 972 | FH37: 217 | FI37: 54.42346 | FJ37: 60.12363 | FK37: 62.73397 | FL37: 53.14977 | FM37: 52.42073 | FN37: 54.66744 | FO37: 54.82962 | FP37: 56.51045 | FQ37: 55.87918 | FR37: 53.15378 | FS37: 3.922798 | FT37: 5.870482 | FU37: 6.887506 | FV37: 4.075324 | FW37: 4.66997 | FX37: 3.81103 | FY37: 4.749686 | FZ37: 3.412083 | GA37: 3.588773 | GB37: 3.74221 | GC37: 68.74329 | GD37: 59.84842 | GE37: 57.68191 | GF37: 61.18362 | GG37: 57.81246 | GH37: 67.46651 | GI37: 55.19832 | GJ37: 73.12246 | GK37: 71.2836 | GL37: 63.64019 | GM37: 52.64082 | GN37: 60.20657 | GO37: 59.73359 | GP37: 53.99952 | GQ37: 70.1471 | GR37: 55.17067 | GS37: 58.88792 | GT37: 44.53401 | GU37: 48.60859 | GV37: 57.61211 | GW37: 86.5405 | GX37: 83.90293 | GY37: 82.96947 | GZ37: 85.67176 | HA37: 83.38324 | HB37: 86.25111 | HC37: 83.43092 | HD37: 87.57653 | HE37: 87.09678 | HF37: 84.95947 | HG37: 44.5238 | HH37: 41.49112 | HI37: 40.66115 | HJ37: 44.6183 | HK37: 47.50193 | HL37: 45.04333 | HM37: 45.49012 | HN37: 41.90516 | HO37: 43.07114 | HP37: 46.6811 | HQ37: 68.33787 | HR37: 69.88535 | HS37: 69.66396 | HT37: 69.83844 | HU37: 72.9791 | HV37: 69.07786 | HW37: 71.24734 | HX37: 66.0789 | HY37: 67.12634 | HZ37: 70.13554
A38: 5030 | B38: AMAGÁ | C38: 1 | D38: EJE CAFETERO | E38: ANTIOQUIA | F38: Suroeste | G38: C | H38: Intermedio | I38: Robusto | J38: mediobajo | K38: 6 | L38: G2- Nivel Medio Alto | M38: 45.14862307 | N38: 3.567465876 | O38: 52.81606367 | P38: 80.71739121 | Q38: 80.48949129 | R38: 53.60548564 | S38: =AVERAGE(VLOOKUP($A38,Cont!$A$3:$L$1135,3,FALSE),(100-Base!N38),(100-Base!O38),Base!P38,Base!Q38,Base!R38) -> 76.40480643 | T38: 4. Sostenible (>=70 y <80) | U38: 57.03917003 | V38: 10.17126296 | W38: 65.30309623 | X38: 77.07214209 | Y38: 79.12606986 | Z38: 40.55151548 | AA38: =AVERAGE(VLOOKUP($A38,Cont!$A$3:$L$1135,4,FALSE),(100-Base!V38),(100-Base!W38),Base!X38,Base!Y38,Base!Z38) -> 70.21256137 | AB38: 4. Sostenible (>=70 y <80) | AC38: 49.04 | AD38: 5.04 | AE38: 69.83 | AF38: 75.68 | AG38: 83.26 | AH38: 50.32 | AI38: =AVERAGE(VLOOKUP($A38,Cont!$A$3:$L$1135,5,FALSE),(100-Base!AD38),(100-Base!AE38),Base!AF38,Base!AG38,Base!AH38) -> 72.39833333 | AJ38: 4. Sostenible (>=70 y <80) | AK38: 56.64481296 | AL38: 3.919971912 | AM38: 66.51995231 | AN38: 77.72978726 | AO38: 81.70093613 | AP38: 49.04757327 | AQ38: =AVERAGE(VLOOKUP($A38,Cont!$A$3:$L$1135,6,FALSE),(100-Base!AL38),(100-Base!AM38),Base!AN38,Base!AO38,Base!AP38) -> 73.00639541 | AR38: 4. Sostenible (>=70 y <80) | AS38: 61.71409443 | AT38: 4.293869873 | AU38: 60.34750666 | AV38: 77.88627552 | AW38: 82.47670417 | AX38: 52.98089636 | AY38: =AVERAGE(VLOOKUP($A38,Cont!$A$3:$L$1135,7,FALSE),(100-Base!AT38),(100-Base!AU38),Base!AV38,Base!AW38,Base!AX38) -> 74.78374992 | AZ38: 4. Sostenible (>=70 y <80) | BA38: 48.08434063 | BB38: 4.129204528 | BC38: 55.35967852 | BD38: 78.79825748 | BE38: 80.4690538 | BF38: 53.59357335 | BG38: =AVERAGE(VLOOKUP($A38,Cont!$A$3:$L$1135,3,FALSE),(100-Base!BB38),(100-Base!BC38),Base!BD38,Base!BE38,Base!BF38) -> 75.56200026 | BH38: 4. Sostenible (>=70 y <80) | BI38: 0.8 | BJ38: 0.8 | BK38: 0.8 | BL38: 0.8 | BM38: 0.8 | BN38: 0.8 | BO38: 8323.193265 | BP38: 3757.807155 | BQ38: 452.9437027 | BR38: 12696.51115 | BS38: 549.678208 | BT38: 11240.43262 | BU38: 981.6260986 | BV38: 24181.53879 | BW38: 8188.639709 | BX38: 10144.82701 | BY38: 19416.98828 | BZ38: 24123.63151 | CA38: 4706.643227 | CB38: 4969.333914 | CC38: 2834.466821 | CD38: 801.4410903 | CE38: 7879.464857 | CF38: 209.4589066 | CG38: 10217.13912 | CH38: 740.0714948 | CI38: 17099.75509 | CJ38: 4593.622581 | CK38: 5960.159477 | CL38: 13431.17593 | CM38: 16974.40041 | CN38: 3543.224484 | CO38: 6056.948389 | CP38: 2970.119435 | CQ38: 578.3747389 | CR38: 11474.84766 | CS38: 2535.199282 | CT38: 12690.74135 | CU38: 903.5381419 | CV38: 23097.31645 | CW38: 5295.434563 | CX38: 6997.338513 | CY38: 17296.19871 | CZ38: 20772.48742 | DA38: 3476.288704 | DB38: 6247.338027 | DC38: 3538.79294 | DD38: 518.9616154 | DE38: 13238.91158 | DF38: 3186.442676 | DG38: 11835.36808 | DH38: 933.0830346 | DI38: 23985.12512 | DJ38: 6357.31534 | DK38: 8178.737604 | DL38: 18605.84112 | DM38: 22773.1064 | DN38: 4167.265285 | DO38: 6472.918402 | DP38: 3442.627516 | DQ38: 591.0805783 | DR38: 13765.68436 | DS38: 3105.477063 | DT38: 10928.87072 | DU38: 946.9635489 | DV38: 24825.07148 | DW38: 6935.994257 | DX38: 8905.284286 | DY38: 19707.77764 | DZ38: 23894.96205 | EA38: 4187.184679 | EB38: 8616.754491 | EC38: 3521.458381 | ED38: 559.6461304 | EE38: 13553.36425 | EF38: 1919.932764 | EG38: 10342.80292 | EH38: 917.1650943 | EI38: 23807.7625 | EJ38: 7581.930173 | EK38: 9621.951569 | EL38: 18396.99567 | EM38: 22862.19957 | EN38: 4465.203898 | EO38: 138 | EP38: 22 | EQ38: 19 | ER38: 1 | ES38: 40 | ET38: 79 | EU38: 58 | EV38: 45 | EW38: 62 | EX38: 31 | EY38: 1101 | EZ38: 178 | FA38: 125 | FB38: 24 | FC38: 158 | FD38: 712 | FE38: 269 | FF38: 321 | FG38: 972 | FH38: 217 | FI38: 54.42346 | FJ38: 60.12363 | FK38: 62.73397 | FL38: 68.4238 | FM38: 52.42073 | FN38: 54.66744 | FO38: 54.82962 | FP38: 52.54627 | FQ38: 55.87918 | FR38: 53.15378 | FS38: 3.922798 | FT38: 5.870482 | FU38: 6.887506 | FV38: 6.101318 | FW38: 4.66997 | FX38: 3.81103 | FY38: 4.749686 | FZ38: 3.963986 | GA38: 3.588773 | GB38: 3.74221 | GC38: 68.74329 | GD38: 59.84842 | GE38: 57.68191 | GF38: 61.53848 | GG38: 57.81246 | GH38: 67.46651 | GI38: 55.19832 | GJ38: 65.08167 | GK38: 71.2836 | GL38: 63.64019 | GM38: 52.64082 | GN38: 60.20657 | GO38: 59.73359 | GP38: 59.97665 | GQ38: 70.1471 | GR38: 55.17067 | GS38: 58.88792 | GT38: 59.3712 | GU38: 48.60859 | GV38: 57.61211 | GW38: 86.5405 | GX38: 83.90293 | GY38: 82.96947 | GZ38: 81.83112 | HA38: 83.38324 | HB38: 86.25111 | HC38: 83.43092 | HD38: 85.8471 | HE38: 87.09678 | HF38: 84.95947 | HG38: 44.5238 | HH38: 41.49112 | HI38: 40.66115 | HJ38: 32.88157 | HK38: 47.50193 | HL38: 45.04333 | HM38: 45.49012 | HN38: 46.74914 | HO38: 43.07114 | HP38: 46.6811 | HQ38: 68.33787 | HR38: 69.88535 | HS38: 69.66396 | HT38: 67.48973 | HU38: 72.9791 | HV38: 69.07786 | HW38: 71.24734 | HX38: 70.45395 | HY38: 67.12634 | HZ38: 70.13554
A39: 5031 | B39: AMALFI | C39: 1 | D39: EJE CAFETERO | E39: ANTIOQUIA | F39: Nordeste | G39: D | H39: Intermedio | I39: Robusto | J39: medioalto | K39: 6 | L39: G2- Nivel Medio Alto | M39: 69.43664468 | N39: 10.91656686 | O39: 52.86535123 | P39: 65.91440719 | Q39: 84.23974526 | R39: 33.60569447 | S39: =AVERAGE(VLOOKUP($A39,Cont!$A$3:$L$1135,3,FALSE),(100-Base!N39),(100-Base!O39),Base!P39,Base!Q39,Base!R39) -> 69.99632147 | T39: 3. Vulnerable (>=60 y <70) | U39: 51.73553662 | V39: 16.28760916 | W39: 54.87790842 | X39: 51.90210232 | Y39: 81.42311444 | Z39: 39.67218004 | AA39: =AVERAGE(VLOOKUP($A39,Cont!$A$3:$L$1135,4,FALSE),(100-Base!V39),(100-Base!W39),Base!X39,Base!Y39,Base!Z39) -> 66.97197987 | AB39: 3. Vulnerable (>=60 y <70) | AC39: 65.48 | AD39: 10.35 | AE39: 53.82 | AF39: 54.92 | AG39: 85.01 | AH39: 42.92 | AI39: =AVERAGE(VLOOKUP($A39,Cont!$A$3:$L$1135,5,FALSE),(100-Base!AD39),(100-Base!AE39),Base!AF39,Base!AG39,Base!AH39) -> 69.78 | AJ39: 3. Vulnerable (>=60 y <70) | AK39: 58.51164251 | AL39: 9.264715022 | AM39: 50.8602565 | AN39: 63.32053293 | AO39: 87.76766188 | AP39: 45.13373058 | AQ39: =AVERAGE(VLOOKUP($A39,Cont!$A$3:$L$1135,6,FALSE),(100-Base!AL39),(100-Base!AM39),Base!AN39,Base!AO39,Base!AP39) -> 72.68282565 | AR39: 4. Sostenible (>=70 y <80) | AS39: 58.10324035 | AT39: 10.44146356 | AU39: 55.71191605 | AV39: 66.02370853 | AW39: 86.09565041 | AX39: 44.50376359 | AY39: =AVERAGE(VLOOKUP($A39,Cont!$A$3:$L$1135,7,FALSE),(100-Base!AT39),(100-Base!AU39),Base!AV39,Base!AW39,Base!AX39) -> 71.74495715 | AZ39: 4. Sostenible (>=70 y <80) | BA39: 75.40920157 | BB39: 13.37248176 | BC39: 56.70266173 | BD39: 63.93683843 | BE39: 83.26155525 | BF39: 37.34820046 | BG39: =AVERAGE(VLOOKUP($A39,Cont!$A$3:$L$1135,3,FALSE),(100-Base!BB39),(100-Base!BC39),Base!BD39,Base!BE39,Base!BF39) -> 69.07857511 | BH39: 3. Vulnerable (>=60 y <70) | BI39: 0.8 | BJ39: 0.8 | BK39: 0.8 | BL39: 0.8 | BM39: 0.8 | BN39: 0.8 | BO39: 5743.127673 | BP39: 3987.835156 | BQ39: 1286.538452 | BR39: 11785.1928 | BS39: 713.0327505 | BT39: 14464.21875 | BU39: 1603.176636 | BV39: 31741.82663 | BW39: 5277.659851 | BX39: 8006.838074 | BY39: 28414.87109 | BZ39: 33730.95563 | CA39: 5316.084534 | CB39: 5724.923229 | CC39: 2961.819753 | CD39: 1489.356812 | CE39: 9144.109471 | CF39: 140.8004685 | CG39: 10810.88856 | CH39: 1382.514228 | CI39: 22475.71675 | CJ39: 3263.818024 | CK39: 6288.411987 | CL39: 16627.74758 | CM39: 20421.40944 | CN39: 3793.661862 | CO39: 5578.568261 | CP39: 3652.581014 | CQ39: 1414.089591 | CR39: 13660.84307 | CS39: 3183.562209 | CT39: 13729.28038 | CU39: 1486.773848 | CV39: 34189.11255 | CW39: 4152.579655 | CX39: 7560.736842 | CY39: 24479.67696 | CZ39: 28795.43527 | DA39: 4315.758318 | DB39: 6079.564332 | DC39: 3557.252948 | DD39: 1352.825783 | DE39: 14601.91468 | DF39: 3026.418184 | DG39: 13810.5736 | DH39: 1336.64698 | DI39: 35732.49529 | DJ39: 5548.100166 | DK39: 8761.929045 | DL39: 34492.94021 | DM39: 39300.2838 | DN39: 4807.343596 | DO39: 5834.010044 | DP39: 3675.060054 | DQ39: 1409.864864 | DR39: 13502.55976 | DS39: 2384.824889 | DT39: 13943.11922 | DU39: 1305.837173 | DV39: 31651.72314 | DW39: 5600.506122 | DX39: 8482.568203 | DY39: 29148.85015 | DZ39: 33856.35475 | EA39: 4707.506215 | EB39: 6173.058439 | EC39: 3435.021004 | ED39: 1717.232061 | EE39: 12841.53601 | EF39: 2318.103486 | EG39: 14130.77646 | EH39: 1518.905221 | EI39: 31687.72792 | EJ39: 4767.389659 | EK39: 7456.405065 | EL39: 23237.66348 | EM39: 27909.23543 | EN39: 4671.571954 | EO39: 427 | EP39: 85 | EQ39: 58 | ER39: 5 | ES39: 117 | ET39: 310 | EU39: 144 | EV39: 130 | EW39: 307 | EX39: 114 | EY39: 1101 | EZ39: 178 | FA39: 125 | FB39: 10 | FC39: 261 | FD39: 712 | FE39: 269 | FF39: 551 | FG39: 972 | FH39: 217 | FI39: 54.42346 | FJ39: 60.12363 | FK39: 62.73397 | FL39: 65.56158 | FM39: 53.26068 | FN39: 54.66744 | FO39: 54.82962 | FP39: 56.51045 | FQ39: 55.87918 | FR39: 53.15378 | FS39: 3.922798 | FT39: 5.870482 | FU39: 6.887506 | FV39: 5.813573 | FW39: 3.766216 | FX39: 3.81103 | FY39: 4.749686 | FZ39: 3.412083 | GA39: 3.588773 | GB39: 3.74221 | GC39: 68.74329 | GD39: 59.84842 | GE39: 57.68191 | GF39: 61.7078 | GG39: 66.82138 | GH39: 67.46651 | GI39: 55.19832 | GJ39: 73.12246 | GK39: 71.2836 | GL39: 63.64019 | GM39: 52.64082 | GN39: 60.20657 | GO39: 59.73359 | GP39: 55.01408 | GQ39: 55.8371 | GR39: 55.17067 | GS39: 58.88792 | GT39: 44.53401 | GU39: 48.60859 | GV39: 57.61211 | GW39: 86.5405 | GX39: 83.90293 | GY39: 82.96947 | GZ39: 84.10492 | HA39: 86.16039 | HB39: 86.25111 | HC39: 83.43092 | HD39: 87.57653 | HE39: 87.09678 | HF39: 84.95947 | HG39: 44.5238 | HH39: 41.49112 | HI39: 40.66115 | HJ39: 46.4878 | HK39: 46.25377 | HL39: 45.04333 | HM39: 45.49012 | HN39: 41.90516 | HO39: 43.07114 | HP39: 46.6811 | HQ39: 68.33787 | HR39: 69.88535 | HS39: 69.66396 | HT39: 69.6809 | HU39: 69.59016 | HV39: 69.07786 | HW39: 71.24734 | HX39: 66.0789 | HY39: 67.12634 | HZ39: 70.13554
A40: 5034 | B40: ANDES | C40: 1 | D40: EJE CAFETERO | E40: ANTIOQUIA | F40: Suroeste | G40: C | H40: Intermedio | I40: Robusto | J40: mediobajo | K40: 6 | L40: G3- Nivel Medio | M40: 67.69019129 | N40: 10.63584697 | O40: 72.14503858 | P40: 67.58294859 | Q40: 80.27278729 | R40: 30.20353471 | S40: =AVERAGE(VLOOKUP($A40,Cont!$A$3:$L$1135,3,FALSE),(100-Base!N40),(100-Base!O40),Base!P40,Base!Q40,Base!R40) -> 65.87973084 | T40: 3. Vulnerable (>=60 y <70) | U40: 64.16468622 | V40: 14.06593213 | W40: 59.60835032 | X40: 71.29703577 | Y40: 79.85556288 | Z40: 30.13082218 | AA40: =AVERAGE(VLOOKUP($A40,Cont!$A$3:$L$1135,4,FALSE),(100-Base!V40),(100-Base!W40),Base!X40,Base!Y40,Base!Z40) -> 67.9348564 | AB40: 3. Vulnerable (>=60 y <70) | AC40: 59.65 | AD40: 10.61 | AE40: 65.28 | AF40: 69.59 | AG40: 84.73 | AH40: 39.08 | AI40: =AVERAGE(VLOOKUP($A40,Cont!$A$3:$L$1135,5,FALSE),(100-Base!AD40),(100-Base!AE40),Base!AF40,Base!AG40,Base!AH40) -> 69.585 | AJ40: 3. Vulnerable (>=60 y <70) | AK40: 61.81871606 | AL40: 8.420332381 | AM40: 63.76754967 | AN40: 72.73667707 | AO40: 85.06004327 | AP40: 39.52764121 | AQ40: =AVERAGE(VLOOKUP($A40,Cont!$A$3:$L$1135,6,FALSE),(100-Base!AL40),(100-Base!AM40),Base!AN40,Base!AO40,Base!AP40) -> 70.85607992 | AR40: 4. Sostenible (>=70 y <80) | AS40: 67.13198925 | AT40: 10.00448607 | AU40: 66.65405206 | AV40: 66.23330626 | AW40: 84.90360734 | AX40: 23.24904009 | AY40: =AVERAGE(VLOOKUP($A40,Cont!$A$3:$L$1135,7,FALSE),(100-Base!AT40),(100-Base!AU40),Base!AV40,Base!AW40,Base!AX40) -> 66.28790259 | AZ40: 3. Vulnerable (>=60 y <70) | BA40: 63.6747882 | BB40: 12.47810564 | BC40: 66.38599443 | BD40: 65.77421717 | BE40: 79.44105636 | BF40: 32.30670145 | BG40: =AVERAGE(VLOOKUP($A40,Cont!$A$3:$L$1135,3,FALSE),(100-Base!BB40),(100-Base!BC40),Base!BD40,Base!BE40,Base!BF40) -> 66.44297915 | BH40: 3. Vulnerable (>=60 y <70) | BI40: 0.8 | BJ40: 0.8 | BK40: 0.8 | BL40: 0.8 | BM40: 0.8 | BN40: 0.8 | BO40: 9376.594353 | BP40: 6347.034654 | BQ40: 1771.938339 | BR40: 16660.05861 | BS40: 1433.325184 | BT40: 28648.66211 | BU40: 1145.2771 | BV40: 43284.00817 | BW40: 8321.292236 | BX40: 12312.70966 | BY40: 34969.521 | BZ40: 43563.35712 | CA40: 8593.836121 | CB40: 8527.917252 | CC40: 5471.911346 | CD40: 1678.094243 | CE40: 11930.2029 | CF40: 71.63697286 | CG40: 18211.0424 | CH40: 1009.092698 | CI40: 32364.21066 | CJ40: 6517.010588 | CK40: 9140.647318 | CL40: 25317.02228 | CM40: 31703.51741 | CN40: 6386.495129 | CO40: 8821.310009 | CP40: 5261.62099 | CQ40: 1622.322966 | CR40: 15284.42453 | CS40: 2163.245107 | CT40: 25851.34943 | CU40: 1151.28424 | CV40: 44681.22485 | CW40: 7064.34555 | CX40: 10151.69228 | CY40: 34319.36334 | CZ40: 40503.41567 | DA40: 6184.052336 | DB40: 8939.540948 | DC40: 5526.309436 | DD40: 1477.258949 | DE40: 17543.95055 | DF40: 3627.299197 | DG40: 23165.79202 | DH40: 998.025075 | DI40: 43581.91029 | DJ40: 8038.864881 | DK40: 11052.01008 | DL40: 38051.73304 | DM40: 44735.14423 | DN40: 6683.411189 | DO40: 7041.395435 | DP40: 5422.660865 | DQ40: 1326.335416 | DR40: 13257.40678 | DS40: 1828.885864 | DT40: 23581.34884 | DU40: 1115.687817 | DV40: 39796.41538 | DW40: 5792.446483 | DX40: 8745.518877 | DY40: 37750.47046 | DZ40: 44462.73853 | EA40: 6712.269689 | EB40: 10574.9421 | EC40: 5309.364876 | ED40: 2005.063417 | EE40: 16068.65237 | EF40: 1013.873031 | EG40: 24625.19393 | EH40: 1176.253031 | EI40: 40393.03805 | EJ40: 7877.467966 | EK40: 11976.52865 | EL40: 31327.14731 | EM40: 39434.45461 | EN40: 8107.307297 | EO40: 678 | EP40: 125 | EQ40: 80 | ER40: 16 | ES40: 142 | ET40: 490 | EU40: 205 | EV40: 251 | EW40: 552 | EX40: 123 | EY40: 1101 | EZ40: 178 | FA40: 125 | FB40: 24 | FC40: 158 | FD40: 712 | FE40: 269 | FF40: 321 | FG40: 972 | FH40: 218 | FI40: 54.42346 | FJ40: 60.12363 | FK40: 62.73397 | FL40: 68.4238 | FM40: 52.42073 | FN40: 54.66744 | FO40: 54.82962 | FP40: 52.54627 | FQ40: 55.87918 | FR40: 56.21923 | FS40: 3.922798 | FT40: 5.870482 | FU40: 6.887506 | FV40: 6.101318 | FW40: 4.66997 | FX40: 3.81103 | FY40: 4.749686 | FZ40: 3.963986 | GA40: 3.588773 | GB40: 3.439309 | GC40: 68.74329 | GD40: 59.84842 | GE40: 57.68191 | GF40: 61.53848 | GG40: 57.81246 | GH40: 67.46651 | GI40: 55.19832 | GJ40: 65.08167 | GK40: 71.2836 | GL40: 70.97762 | GM40: 52.64082 | GN40: 60.20657 | GO40: 59.73359 | GP40: 59.97665 | GQ40: 70.1471 | GR40: 55.17067 | GS40: 58.88792 | GT40: 59.3712 | GU40: 48.60859 | GV40: 47.92092 | GW40: 86.5405 | GX40: 83.90293 | GY40: 82.96947 | GZ40: 81.83112 | HA40: 83.38324 | HB40: 86.25111 | HC40: 83.43092 | HD40: 85.8471 | HE40: 87.09678 | HF40: 86.70963 | HG40: 44.5238 | HH40: 41.49112 | HI40: 40.66115 | HJ40: 32.88157 | HK40: 47.50193 | HL40: 45.04333 | HM40: 45.49012 | HN40: 46.74914 | HO40: 43.07114 | HP40: 42.23924 | HQ40: 68.33787 | HR40: 69.88535 | HS40: 69.66396 | HT40: 67.48973 | HU40: 72.9791 | HV40: 69.07786 | HW40: 71.24734 | HX40: 70.45395 | HY40: 67.12634 | HZ40: 66.92496
A41: 5036 | B41: ANGELÓPOLIS | C41: 1 | D41: EJE CAFETERO | E41: ANTIOQUIA | F41: Suroeste | G41: D | H41: Intermedio | I41: Robusto | J41: medioalto | K41: 6 | L41: G3- Nivel Medio | M41: 67.40390436 | N41: 3.64436922 | O41: 64.08643754 | P41: 50.93585311 | Q41: 82.71353912 | R41: 52.36027402 | S41: =AVERAGE(VLOOKUP($A41,Cont!$A$3:$L$1135,3,FALSE),(100-Base!N41),(100-Base!O41),Base!P41,Base!Q41,Base!R41) -> 69.71314325 | T41: 3. Vulnerable (>=60 y <70) | U41: 58.70243171 | V41: 8.850959697 | W41: 65.04902305 | X41: 41.17567386 | Y41: 76.31800463 | Z41: 42.75143836 | AA41: =AVERAGE(VLOOKUP($A41,Cont!$A$3:$L$1135,4,FALSE),(100-Base!V41),(100-Base!W41),Base!X41,Base!Y41,Base!Z41) -> 64.39085568 | AB41: 3. Vulnerable (>=60 y <70) | AC41: 54.82 | AD41: 4.58 | AE41: 72.27 | AF41: 46.42 | AG41: 80.6 | AH41: 34.81 | AI41: =AVERAGE(VLOOKUP($A41,Cont!$A$3:$L$1135,5,FALSE),(100-Base!AD41),(100-Base!AE41),Base!AF41,Base!AG41,Base!AH41) -> 64.16333333 | AJ41: 3. Vulnerable (>=60 y <70) | AK41: 70.26827726 | AL41: 3.587922601 | AM41: 67.88426681 | AN41: 40.98516847 | AO41: 78.80571758 | AP41: 32.72354081 | AQ41: =AVERAGE(VLOOKUP($A41,Cont!$A$3:$L$1135,6,FALSE),(100-Base!AL41),(100-Base!AM41),Base!AN41,Base!AO41,Base!AP41) -> 63.50703957 | AR41: 3. Vulnerable (>=60 y <70) | AS41: 71.75876508 | AT41: 5.582674168 | AU41: 60.66945987 | AV41: 45.0603137 | AW41: 81.46584576 | AX41: 31.946768 | AY41: =AVERAGE(VLOOKUP($A41,Cont!$A$3:$L$1135,7,FALSE),(100-Base!AT41),(100-Base!AU41),Base!AV41,Base!AW41,Base!AX41) -> 65.37013224 | AZ41: 3. Vulnerable (>=60 y <70) | BA41: 70.49726341 | BB41: 6.190296405 | BC41: 68.36986373 | BD41: 40.56758568 | BE41: 83.5868138 | BF41: 51.38063153 | BG41: =AVERAGE(VLOOKUP($A41,Cont!$A$3:$L$1135,3,FALSE),(100-Base!BB41),(100-Base!BC41),Base!BD41,Base!BE41,Base!BF41) -> 66.82914514 | BH41: 3. Vulnerable (>=60 y <70) | BI41: 0.8 | BJ41: 0.8 | BK41: 0.8 | BL41: 0.8 | BM41: 0.8 | BN41: 0.8 | BO41: 2432.694933 | BP41: 1639.731366 | BQ41: 156.3050766 | BR41: 4288.947337 | BS41: 0 | BT41: 4422.70459 | BU41: 922.6044922 | BV41: 8340.780495 | BW41: 1401.298065 | BX41: 2751.103554 | BY41: 6271.143066 | BZ41: 7581.761261 | CA41: 1310.618195 | CB41: 1641.912076 | CC41: 963.8423151 | CD41: 269.245051 | CE41: 3041.987086 | CF41: 50.37113071 | CG41: 3153.748925 | CH41: 727.6410935 | CI41: 6044.304687 | CJ41: 796.6360925 | CK41: 1934.725088 | CL41: 3569.378128 | CM41: 4676.980413 | CN41: 1107.602285 | CO41: 1790.55874 | CP41: 981.4975851 | CQ41: 208.6670856 | CR41: 4560.395345 | CS41: 1241.09153 | CT41: 3765.082566 | CU41: 832.632584 | CV41: 8079.096296 | CW41: 1040.166662 | CX41: 2240.886577 | CY41: 6069.963355 | CZ41: 7530.793769 | DA41: 1460.830413 | DB41: 1837.619872 | DC41: 1291.263826 | DD41: 166.869911 | DE41: 4650.878225 | DF41: 1164.431929 | DG41: 3643.441567 | DH41: 790.8809211 | DI41: 8247.499281 | DJ41: 1002.540473 | DK41: 2446.10553 | DL41: 6118.955945 | DM41: 7764.609134 | DN41: 1645.653189 | DO41: 1782.320282 | DP41: 1129.929377 | DQ41: 207.5676486 | DR41: 3718.06858 | DS41: 417.1265635 | DT41: 3739.490453 | DU41: 686.9703391 | DV41: 7983.567551 | DW41: 1048.358143 | DX41: 2326.566474 | DY41: 6959.323422 | DZ41: 8542.627433 | EA41: 1583.303742 | EB41: 1675.774103 | EC41: 553.7973133 | ED41: 208.9877384 | EE41: 3376.053822 | EF41: 54.77728547 | EG41: 4031.68823 | EH41: 687.441587 | EI41: 6982.472748 | EJ41: 737.4526112 | EK41: 1817.837071 | EL41: 4501.001353 | EM41: 5384.822257 | EN41: 883.8209037 | EO41: 445 | EP41: 89 | EQ41: 61 | ER41: 10 | ES41: 125 | ET41: 325 | EU41: 153 | EV41: 139 | EW41: 324 | EX41: 67 | EY41: 1101 | EZ41: 178 | FA41: 125 | FB41: 24 | FC41: 261 | FD41: 712 | FE41: 269 | FF41: 551 | FG41: 972 | FH41: 218 | FI41: 54.42346 | FJ41: 60.12363 | FK41: 62.73397 | FL41: 68.4238 | FM41: 53.26068 | FN41: 54.66744 | FO41: 54.82962 | FP41: 56.51045 | FQ41: 55.87918 | FR41: 56.21923 | FS41: 3.922798 | FT41: 5.870482 | FU41: 6.887506 | FV41: 6.101318 | FW41: 3.766216 | FX41: 3.81103 | FY41: 4.749686 | FZ41: 3.412083 | GA41: 3.588773 | GB41: 3.439309 | GC41: 68.74329 | GD41: 59.84842 | GE41: 57.68191 | GF41: 61.53848 | GG41: 66.82138 | GH41: 67.46651 | GI41: 55.19832 | GJ41: 73.12246 | GK41: 71.2836 | GL41: 70.97762 | GM41: 52.64082 | GN41: 60.20657 | GO41: 59.73359 | GP41: 59.97665 | GQ41: 55.8371 | GR41: 55.17067 | GS41: 58.88792 | GT41: 44.53401 | GU41: 48.60859 | GV41: 47.92092 | GW41: 86.5405 | GX41: 83.90293 | GY41: 82.96947 | GZ41: 81.83112 | HA41: 86.16039 | HB41: 86.25111 | HC41: 83.43092 | HD41: 87.57653 | HE41: 87.09678 | HF41: 86.70963 | HG41: 44.5238 | HH41: 41.49112 | HI41: 40.66115 | HJ41: 32.88157 | HK41: 46.25377 | HL41: 45.04333 | HM41: 45.49012 | HN41: 41.90516 | HO41: 43.07114 | HP41: 42.23924 | HQ41: 68.33787 | HR41: 69.88535 | HS41: 69.66396 | HT41: 67.48973 | HU41: 69.59016 | HV41: 69.07786 | HW41: 71.24734 | HX41: 66.0789 | HY41: 67.12634 | HZ41: 66.92496
A42: 5038 | B42: ANGOSTURA | C42: 1 | D42: EJE CAFETERO | E42: ANTIOQUIA | F42: Norte | G42: D | H42: Intermedio | I42: Robusto | J42: medioalto | K42: 6 | L42: G3- Nivel Medio | M42: 77.58862538 | N42: 8.193643902 | O42: 63.1621553 | P42: 49.94207439 | Q42: 82.33960934 | R42: 31.82734981 | S42: =AVERAGE(VLOOKUP($A42,Cont!$A$3:$L$1135,3,FALSE),(100-Base!N42),(100-Base!O42),Base!P42,Base!Q42,Base!R42) -> 65.45887239 | T42: 3. Vulnerable (>=60 y <70) | U42: 68.68767643 | V42: 27.50225348 | W42: 69.58858618 | X42: 54.13294822 | Y42: 80.43734955 | Z42: 40.31582611 | AA42: =AVERAGE(VLOOKUP($A42,Cont!$A$3:$L$1135,4,FALSE),(100-Base!V42),(100-Base!W42),Base!X42,Base!Y42,Base!Z42) -> 62.9658807 | AB42: 3. Vulnerable (>=60 y <70) | AC42: 59.02 | AD42: 19.63 | AE42: 70.71 | AF42: 48.17 | AG42: 82.02 | AH42: 21.35 | AI42: =AVERAGE(VLOOKUP($A42,Cont!$A$3:$L$1135,5,FALSE),(100-Base!AD42),(100-Base!AE42),Base!AF42,Base!AG42,Base!AH42) -> 60.2 | AJ42: 3. Vulnerable (>=60 y <70) | AK42: 61.89779593 | AL42: 14.737536 | AM42: 70.7374603 | AN42: 43.92068019 | AO42: 81.3092204 | AP42: 21.0599292 | AQ42: =AVERAGE(VLOOKUP($A42,Cont!$A$3:$L$1135,6,FALSE),(100-Base!AL42),(100-Base!AM42),Base!AN42,Base!AO42,Base!AP42) -> 60.13580558 | AR42: 3. Vulnerable (>=60 y <70) | AS42: 74.56488305 | AT42: 9.963617631 | AU42: 68.72326606 | AV42: 48.39408193 | AW42: 82.87470952 | AX42: 27.36767281 | AY42: =AVERAGE(VLOOKUP($A42,Cont!$A$3:$L$1135,7,FALSE),(100-Base!AT42),(100-Base!AU42),Base!AV42,Base!AW42,Base!AX42) -> 63.32493009 | AZ42: 3. Vulnerable (>=60 y <70) | BA42: 62.3448427 | BB42: 6.93739571 | BC42: 74.12692876 | BD42: 46.09340498 | BE42: 84.06865039 | BF42: 32.5595917 | BG42: =AVERAGE(VLOOKUP($A42,Cont!$A$3:$L$1135,3,FALSE),(100-Base!BB42),(100-Base!BC42),Base!BD42,Base!BE42,Base!BF42) -> 63.60955377 | BH42: 3. Vulnerable (>=60 y <70) | BI42: 0.8 | BJ42: 0.8 | BK42: 0.8 | BL42: 0.8 | BM42: 0.8 | BN42: 0.8 | BO42: 2915.65207 | BP42: 2262.214362 | BQ42: 484.83284 | BR42: 5917.182218 | BS42: 43.09952545 | BT42: 8464.053711 | BU42: 1580.176514 | BV42: 15970.52808 | BW42: 1902.783691 | BX42: 3809.981293 | BY42: 12109.92676 | BZ42: 14707.29198 | CA42: 2597.365219 | CB42: 2560.994266 | CC42: 1759.087455 | CD42: 1567.977951 | CE42: 5701.270817 | CF42: 234.1744043 | CG42: 6925.243714 | CH42: 1129.807857 | CI42: 11911.76087 | CJ42: 1742.443211 | CK42: 3218.821933 | CL42: 7899.256132 | CM42: 9820.383412 | CN42: 1921.12728 | CO42: 2890.123015 | CP42: 1705.607544 | CQ42: 1332.94798 | CR42: 6791.065362 | CS42: 975.414675 | CT42: 8706.767825 | CU42: 1319.418896 | CV42: 15559.57113 | CW42: 1651.436385 | CX42: 3428.284516 | CY42: 12301.9346 | CZ42: 14998.35232 | DA42: 2696.41772 | DB42: 3181.50418 | DC42: 1969.280965 | DD42: 1190.528858 | DE42: 8078.208308 | DF42: 1813.336389 | DG42: 8784.447269 | DH42: 1556.479377 | DI42: 17182.21573 | DJ42: 1740.048737 | DK42: 3961.798246 | DL42: 13605.11596 | DM42: 16732.5623 | DN42: 3127.44634 | DO42: 2946.321828 | DP42: 2275.207878 | DQ42: 630.425231 | DR42: 6327.272424 | DS42: 305.8361542 | DT42: 8752.625928 | DU42: 1502.215746 | DV42: 15366.96203 | DW42: 1870.138122 | DX42: 3864.394334 | DY42: 13582.99281 | DZ42: 16389.7926 | EA42: 2806.799524 | EB42: 3173.21817 | EC42: 1974.979882 | ED42: 483.2895307 | EE42: 6966.440303 | EF42: 375.9336642 | EG42: 9106.487585 | EH42: 1571.458049 | EI42: 14912.0967 | EJ42: 1725.061965 | EK42: 3742.535328 | EL42: 13318.87695 | EM42: 15842.85806 | EN42: 2523.981106 | EO42: 709 | EP42: 129 | EQ42: 82 | ER42: 87 | ES42: 202 | ET42: 513 | EU42: 212 | EV42: 290 | EW42: 582 | EX42: 132 | EY42: 1101 | EZ42: 178 | FA42: 125 | FB42: 133 | FC42: 261 | FD42: 712 | FE42: 269 | FF42: 551 | FG42: 972 | FH42: 218 | FI42: 54.42346 | FJ42: 60.12363 | FK42: 62.73397 | FL42: 56.92537 | FM42: 53.26068 | FN42: 54.66744 | FO42: 54.82962 | FP42: 56.51045 | FQ42: 55.87918 | FR42: 56.21923 | FS42: 3.922798 | FT42: 5.870482 | FU42: 6.887506 | FV42: 4.573634 | FW42: 3.766216 | FX42: 3.81103 | FY42: 4.749686 | FZ42: 3.412083 | GA42: 3.588773 | GB42: 3.439309 | GC42: 68.74329 | GD42: 59.84842 | GE42: 57.68191 | GF42: 71.53587 | GG42: 66.82138 | GH42: 67.46651 | GI42: 55.19832 | GJ42: 73.12246 | GK42: 71.2836 | GL42: 70.97762 | GM42: 52.64082 | GN42: 60.20657 | GO42: 59.73359 | GP42: 54.84887 | GQ42: 55.8371 | GR42: 55.17067 | GS42: 58.88792 | GT42: 44.53401 | GU42: 48.60859 | GV42: 47.92092 | GW42: 86.5405 | GX42: 83.90293 | GY42: 82.96947 | GZ42: 86.50879 | HA42: 86.16039 | HB42: 86.25111 | HC42: 83.43092 | HD42: 87.57653 | HE42: 87.09678 | HF42: 86.70963 | HG42: 44.5238 | HH42: 41.49112 | HI42: 40.66115 | HJ42: 41.70697 | HK42: 46.25377 | HL42: 45.04333 | HM42: 45.49012 | HN42: 41.90516 | HO42: 43.07114 | HP42: 42.23924 | HQ42: 68.33787 | HR42: 69.88535 | HS42: 69.66396 | HT42: 67.77946 | HU42: 69.59016 | HV42: 69.07786 | HW42: 71.24734 | HX42: 66.0789 | HY42: 67.12634 | HZ42: 66.92496
A43: 5040 | B43: ANORÍ | C43: 1 | D43: EJE CAFETERO | E43: ANTIOQUIA | F43: Nordeste | G43: D | H43: Intermedio | I43: Robusto | J43: medioalto | K43: 6 | L43: G3- Nivel Medio | M43: 70.23774546 | N43: 5.493388454 | O43: 58.23946173 | P43: 49.35806507 | Q43: 86.09282473 | R43: 38.31006674 | S43: =AVERAGE(VLOOKUP($A43,Cont!$A$3:$L$1135,3,FALSE),(100-Base!N43),(100-Base!O43),Base!P43,Base!Q43,Base!R43) -> 68.33801773 | T43: 3. Vulnerable (>=60 y <70) | U43: 69.67153336 | V43: 3.701479768 | W43: 66.55926882 | X43: 40.18383117 | Y43: 84.01644747 | Z43: 51.32092323 | AA43: =AVERAGE(VLOOKUP($A43,Cont!$A$3:$L$1135,4,FALSE),(100-Base!V43),(100-Base!W43),Base!X43,Base!Y43,Base!Z43) -> 67.54340888 | AB43: 3. Vulnerable (>=60 y <70) | AC43: 43.39 | AD43: 1.09 | AE43: 69.34 | AF43: 48.73 | AG43: 88.34 | AH43: 52.61 | AI43: =AVERAGE(VLOOKUP($A43,Cont!$A$3:$L$1135,5,FALSE),(100-Base!AD43),(100-Base!AE43),Base!AF43,Base!AG43,Base!AH43) -> 69.875 | AJ43: 3. Vulnerable (>=60 y <70) | AK43: 58.64854173 | AL43: 2.302339697 | AM43: 66.08289011 | AN43: 48.40925972 | AO43: 90.22589395 | AP43: 44.60798089 | AQ43: =AVERAGE(VLOOKUP($A43,Cont!$A$3:$L$1135,6,FALSE),(100-Base!AL43),(100-Base!AM43),Base!AN43,Base!AO43,Base!AP43) -> 69.14298413 | AR43: 3. Vulnerable (>=60 y <70) | AS43: 51.0525281 | AT43: 4.426899192 | AU43: 56.9498258 | AV43: 50.52509881 | AW43: 91.15041391 | AX43: 52.78258911 | AY43: =AVERAGE(VLOOKUP($A43,Cont!$A$3:$L$1135,7,FALSE),(100-Base!AT43),(100-Base!AU43),Base!AV43,Base!AW43,Base!AX43) -> 72.18022947 | AZ43: 4. Sostenible (>=70 y <80) | BA43: 73.71109696 | BB43: 5.99677721 | BC43: 60.52906309 | BD43: 47.88961145 | BE43: 85.92662931 | BF43: 41.13837537 | BG43: =AVERAGE(VLOOKUP($A43,Cont!$A$3:$L$1135,3,FALSE),(100-Base!BB43),(100-Base!BC43),Base!BD43,Base!BE43,Base!BF43) -> 68.07146264 | BH43: 3. Vulnerable (>=60 y <70) | BI43: 0.8 | BJ43: 0.8 | BK43: 0.8 | BL43: 0.8 | BM43: 0.8 | BN43: 0.8 | BO43: 3564.491748 | BP43: 2503.618641 | BQ43: 465.0245132 | BR43: 8465.167122 | BS43: 0 | BT43: 12851.09863 | BU43: 1443.710571 | BV43: 24544.88551 | BW43: 2542.080383 | BX43: 5150.283707 | BY43: 19668.60156 | BZ43: 22845.80814 | CA43: 3177.206581 | CB43: 3000.50191 | CC43: 2090.495689 | CD43: 313.5767131 | CE43: 8471.658167 | CF43: 653.931757 | CG43: 9184.314225 | CH43: 2494.001246 | CI43: 18528.2192 | CJ43: 2026.057304 | CK43: 5041.971471 | CL43: 12901.30725 | CM43: 15355.69241 | CN43: 2454.385163 | CO43: 3767.606858 | CP43: 1634.597214 | CQ43: 95.5515165 | CR43: 8793.796202 | CS43: 1653.701182 | CT43: 10586.73913 | CU43: 1385.32582 | CV43: 19651.50565 | CW43: 2150.369025 | CX43: 4413.048331 | CY43: 15843.93652 | CZ43: 17935.1394 | DA43: 2091.202886 | DB43: 3199.6927 | DC43: 1876.573108 | DD43: 219.4715887 | DE43: 9532.545915 | DF43: 2636.053095 | DG43: 11529.34119 | DH43: 1242.54525 | DI43: 23316.08001 | DJ43: 2065.009272 | DK43: 4265.731978 | DL43: 21811.97079 | DM43: 24174.84586 | DN43: 2362.875072 | DO43: 4172.042204 | DP43: 1628.140626 | DQ43: 402.7331459 | DR43: 9097.409109 | DS43: 1175.07117 | DT43: 11911.81839 | DU43: 1255.342471 | DV43: 25183.97889 | DW43: 2757.855307 | DX43: 5458.386601 | DY43: 26546.18928 | DZ43: 29123.49631 | EA43: 2577.308908 | EB43: 3992.088128 | EC43: 2313.427313 | ED43: 487.9687155 | EE43: 8137.182664 | EF43: 1366.408166 | EG43: 11030.60987 | EH43: 1163.192218 | EI43: 22402.80876 | EJ43: 2453.549108 | EK43: 5123.343109 | EL43: 18412.60917 | EM43: 21428.29216 | EN43: 3015.682989 | EO43: 528 | EP43: 100 | EQ43: 68 | ER43: 6 | ES43: 150 | ET43: 384 | EU43: 172 | EV43: 180 | EW43: 405 | EX43: 86 | EY43: 1101 | EZ43: 178 | FA43: 125 | FB43: 10 | FC43: 261 | FD43: 712 | FE43: 269 | FF43: 551 | FG43: 972 | FH43: 218 | FI43: 54.42346 | FJ43: 60.12363 | FK43: 62.73397 | FL43: 65.56158 | FM43: 53.26068 | FN43: 54.66744 | FO43: 54.82962 | FP43: 56.51045 | FQ43: 55.87918 | FR43: 56.21923 | FS43: 3.922798 | FT43: 5.870482 | FU43: 6.887506 | FV43: 5.813573 | FW43: 3.766216 | FX43: 3.81103 | FY43: 4.749686 | FZ43: 3.412083 | GA43: 3.588773 | GB43: 3.439309 | GC43: 68.74329 | GD43: 59.84842 | GE43: 57.68191 | GF43: 61.7078 | GG43: 66.82138 | GH43: 67.46651 | GI43: 55.19832 | GJ43: 73.12246 | GK43: 71.2836 | GL43: 70.97762 | GM43: 52.64082 | GN43: 60.20657 | GO43: 59.73359 | GP43: 55.01408 | GQ43: 55.8371 | GR43: 55.17067 | GS43: 58.88792 | GT43: 44.53401 | GU43: 48.60859 | GV43: 47.92092 | GW43: 86.5405 | GX43: 83.90293 | GY43: 82.96947 | GZ43: 84.10492 | HA43: 86.16039 | HB43: 86.25111 | HC43: 83.43092 | HD43: 87.57653 | HE43: 87.09678 | HF43: 86.70963 | HG43: 44.5238 | HH43: 41.49112 | HI43: 40.66115 | HJ43: 46.4878 | HK43: 46.25377 | HL43: 45.04333 | HM43: 45.49012 | HN43: 41.90516 | HO43: 43.07114 | HP43: 42.23924 | HQ43: 68.33787 | HR43: 69.88535 | HS43: 69.66396 | HT43: 69.6809 | HU43: 69.59016 | HV43: 69.07786 | HW43: 71.24734 | HX43: 66.0789 | HY43: 67.12634 | HZ43: 66.92496
A44: 5042 | B44: SANTAFÉ DE ANTIOQUIA | C44: 1 | D44: EJE CAFETERO | E44: ANTIOQUIA | F44: Occidente | G44: C | H44: Intermedio | I44: Robusto | J44: mediobajo | K44: 6 | L44: G1- Nivel Alto | M44: 65.36991635 | N44: 2.88905662 | O44: 47.43592402 | P44: 74.26991369 | Q44: 76.75303473 | R44: 42.45516715 | S44: =AVERAGE(VLOOKUP($A44,Cont!$A$3:$L$1135,3,FALSE),(100-Base!N44),(100-Base!O44),Base!P44,Base!Q44,Base!R44) -> 73.85885582 | T44: 4. Sostenible (>=70 y <80) | U44: 53.76777462 | V44: 4.898229521 | W44: 48.40942544 | X44: 74.84287881 | Y44: 76.36637843 | Z44: 40.64597031 | AA44: =AVERAGE(VLOOKUP($A44,Cont!$A$3:$L$1135,4,FALSE),(100-Base!V44),(100-Base!W44),Base!X44,Base!Y44,Base!Z44) -> 73.0912621 | AB44: 4. Sostenible (>=70 y <80) | AC44: 46.04 | AD44: 2.15 | AE44: 72.97 | AF44: 72.19 | AG44: 81.97 | AH44: 54.15 | AI44: =AVERAGE(VLOOKUP($A44,Cont!$A$3:$L$1135,5,FALSE),(100-Base!AD44),(100-Base!AE44),Base!AF44,Base!AG44,Base!AH44) -> 72.19833333 | AJ44: 4. Sostenible (>=70 y <80) | AK44: 50.39315852 | AL44: 2.183617796 | AM44: 68.12842934 | AN44: 74.28411236 | AO44: 85.69360493 | AP44: 49.26053013 | AQ44: =AVERAGE(VLOOKUP($A44,Cont!$A$3:$L$1135,6,FALSE),(100-Base!AL44),(100-Base!AM44),Base!AN44,Base!AO44,Base!AP44) -> 73.15436671 | AR44: 4. Sostenible (>=70 y <80) | AS44: 66.07472036 | AT44: 2.572499867 | AU44: 66.59605474 | AV44: 76.3430423 | AW44: 87.18834483 | AX44: 49.81773748 | AY44: =AVERAGE(VLOOKUP($A44,Cont!$A$3:$L$1135,7,FALSE),(100-Base!AT44),(100-Base!AU44),Base!AV44,Base!AW44,Base!AX44) -> 74.030095 | AZ44: 4. Sostenible (>=70 y <80) | BA44: 52.04608732 | BB44: 2.449244528 | BC44: 51.34683527 | BD44: 74.1431576 | BE44: 85.03201352 | BF44: 48.86220306 | BG44: =AVERAGE(VLOOKUP($A44,Cont!$A$3:$L$1135,3,FALSE),(100-Base!BB44),(100-Base!BC44),Base!BD44,Base!BE44,Base!BF44) -> 75.7068824 | BH44: 4. Sostenible (>=70 y <80) | BI44: 0.8 | BJ44: 0.8 | BK44: 0.8 | BL44: 0.8 | BM44: 0.8 | BN44: 0.8 | BO44: 12628.77987 | BP44: 8255.422836 | BQ44: 564.0644073 | BR44: 19524.17282 | BS44: 134.031912 | BT44: 15419.78516 | BU44: 1621.321045 | BV44: 36207.02762 | BW44: 12170.60413 | BX44: 16386.99107 | BY44: 31133.99414 | BZ44: 40563.86076 | CA44: 9429.866623 | CB44: 8051.355611 | CC44: 4329.034739 | CD44: 593.6028925 | CE44: 12118.72351 | CF44: 1.48906496 | CG44: 10751.47872 | CH44: 1324.273035 | CI44: 24948.11848 | CJ44: 7040.192326 | CK44: 9406.629512 | CL44: 18040.81558 | CM44: 23624.02925 | CN44: 5583.213673 | CO44: 10278.71582 | CP44: 4732.08131 | CQ44: 720.6256566 | CR44: 33464.1035 | CS44: 18883.18647 | CT44: 13642.24225 | CU44: 1512.495555 | CV44: 46647.22188 | CW44: 8379.158101 | CX44: 11607.70192 | CY44: 24198.47424 | CZ44: 29520.85733 | DA44: 5322.383085 | DB44: 11106.33236 | DC44: 5596.831671 | DD44: 760.3978745 | DE44: 34822.84656 | DF44: 18245.63533 | DG44: 14007.76907 | DH44: 1334.677223 | DI44: 49301.12428 | DJ44: 10183.58937 | DK44: 13708.97363 | DL44: 41664.77735 | DM44: 48620.63789 | DN44: 6955.860543 | DO44: 10412.43313 | DP44: 5704.909024 | DQ44: 722.2593962 | DR44: 28076.16616 | DS44: 12036.73759 | DT44: 15446.85146 | DU44: 1599.472645 | DV44: 43670.84655 | DW44: 10194.13183 | DX44: 13353.05824 | DY44: 45602.0295 | DZ44: 52302.89877 | EA44: 6700.867126 | EB44: 11568.82473 | EC44: 5706.726964 | ED44: 456.8655826 | EE44: 18653.32666 | EF44: 1631.732535 | EG44: 15512.76898 | EH44: 1684.647728 | EI44: 36670.51562 | EJ44: 10329.60848 | EK44: 13931.97809 | EL44: 40473.79039 | EM44: 47598.29706 | EN44: 7124.506668 | EO44: 232 | EP44: 46 | EQ44: 33 | ER44: 8 | ES44: 73 | ET44: 156 | EU44: 88 | EV44: 83 | EW44: 131 | EX44: 138 | EY44: 1101 | EZ44: 178 | FA44: 125 | FB44: 53 | FC44: 158 | FD44: 712 | FE44: 269 | FF44: 321 | FG44: 972 | FH44: 217 | FI44: 54.42346 | FJ44: 60.12363 | FK44: 62.73397 | FL44: 56.23077 | FM44: 52.42073 | FN44: 54.66744 | FO44: 54.82962 | FP44: 52.54627 | FQ44: 55.87918 | FR44: 48.31459 | FS44: 3.922798 | FT44: 5.870482 | FU44: 6.887506 | FV44: 4.91842 | FW44: 4.66997 | FX44: 3.81103 | FY44: 4.749686 | FZ44: 3.963986 | GA44: 3.588773 | GB44: 5.041183 | GC44: 68.74329 | GD44: 59.84842 | GE44: 57.68191 | GF44: 71.18067 | GG44: 57.81246 | GH44: 67.46651 | GI44: 55.19832 | GJ44: 65.08167 | GK44: 71.2836 | GL44: 52.1961 | GM44: 52.64082 | GN44: 60.20657 | GO44: 59.73359 | GP44: 44.51445 | GQ44: 70.1471 | GR44: 55.17067 | GS44: 58.88792 | GT44: 59.3712 | GU44: 48.60859 | GV44: 74.9332 | GW44: 86.5405 | GX44: 83.90293 | GY44: 82.96947 | GZ44: 86.62191 | HA44: 83.38324 | HB44: 86.25111 | HC44: 83.43092 | HD44: 85.8471 | HE44: 87.09678 | HF44: 81.84073 | HG44: 44.5238 | HH44: 41.49112 | HI44: 40.66115 | HJ44: 39.58741 | HK44: 47.50193 | HL44: 45.04333 | HM44: 45.49012 | HN44: 46.74914 | HO44: 43.07114 | HP44: 53.3083 | HQ44: 68.33787 | HR44: 69.88535 | HS44: 69.66396 | HT44: 65.70256 | HU44: 72.9791 | HV44: 69.07786 | HW44: 71.24734 | HX44: 70.45395 | HY44: 67.12634 | HZ44: 75.46848
A45: 5044 | B45: ANZA | C45: 1 | D45: EJE CAFETERO | E45: ANTIOQUIA | F45: Occidente | G45: E | H45: Intermedio | I45: Robusto | J45: medioalto | K45: 6 | L45: G4- Nivel Medio Bajo | M45: 74.90479138 | N45: 2.299553891 | O45: 74.76638354 | P45: 36.14587933 | Q45: 83.54407177 | R45: 24.5461932 | S45: =AVERAGE(VLOOKUP($A45,Cont!$A$3:$L$1135,3,FALSE),(100-Base!N45),(100-Base!O45),Base!P45,Base!Q45,Base!R45) -> 61.19503448 | T45: 3. Vulnerable (>=60 y <70) | U45: 70.27091534 | V45: 3.061191037 | W45: 81.2372496 | X45: 26.95505739 | Y45: 86.93749349 | Z45: 31.78025522 | AA45: =AVERAGE(VLOOKUP($A45,Cont!$A$3:$L$1135,4,FALSE),(100-Base!V45),(100-Base!W45),Base!X45,Base!Y45,Base!Z45) -> 60.22906091 | AB45: 3. Vulnerable (>=60 y <70) | AC45: 57.23 | AD45: 4.32 | AE45: 73.34 | AF45: 24.75 | AG45: 87.17 | AH45: 31.41 | AI45: =AVERAGE(VLOOKUP($A45,Cont!$A$3:$L$1135,5,FALSE),(100-Base!AD45),(100-Base!AE45),Base!AF45,Base!AG45,Base!AH45) -> 60.945 | AJ45: 3. Vulnerable (>=60 y <70) | AK45: 62.46008865 | AL45: 3.391723988 | AM45: 81.07204538 | AN45: 32.09468399 | AO45: 85.40647447 | AP45: 33.59480412 | AQ45: =AVERAGE(VLOOKUP($A45,Cont!$A$3:$L$1135,6,FALSE),(100-Base!AL45),(100-Base!AM45),Base!AN45,Base!AO45,Base!AP45) -> 61.10536554 | AR45: 3. Vulnerable (>=60 y <70) | AS45: 73.18845092 | AT45: 3.48644288 | AU45: 80.18773463 | AV45: 31.19575157 | AW45: 83.36225249 | AX45: 24.82909954 | AY45: =AVERAGE(VLOOKUP($A45,Cont!$A$3:$L$1135,7,FALSE),(100-Base!AT45),(100-Base!AU45),Base!AV45,Base!AW45,Base!AX45) -> 59.28548768 | AZ45: 2. Riesgo (>=40 y <60) | BA45: 71.17253637 | BB45: 3.662640922 | BC45: 64.27439074 | BD45: 29.50937915 | BE45: 84.25300857 | BF45: 27.58763383 | BG45: =AVERAGE(VLOOKUP($A45,Cont!$A$3:$L$1135,3,FALSE),(100-Base!BB45),(100-Base!BC45),Base!BD45,Base!BE45,Base!BF45) -> 62.23549831 | BH45: 3. Vulnerable (>=60 y <70) | BI45: 0.8 | BJ45: 0.8 | BK45: 0.8 | BL45: 0.8 | BM45: 0.8 | BN45: 0.8 | BO45: 1697.642556 | BP45: 1271.615615 | BQ45: 106.9317818 | BR45: 4650.109841 | BS45: 0 | BT45: 6798.98584 | BU45: 1244.171753 | BV45: 10757.71919 | BW45: 887.1226482 | BX45: 2454.284319 | BY45: 9401.546143 | BZ45: 11253.39709 | CA45: 1851.850948 | CB45: 1342.474649 | CC45: 943.3692243 | CD45: 125.2416646 | CE45: 4091.272421 | CF45: 751.9840145 | CG45: 5454.020211 | CH45: 1016.826451 | CI45: 8891.033008 | CJ45: 439.7224972 | CK45: 1631.317236 | CL45: 7406.774287 | CM45: 8519.654742 | CN45: 1112.880455 | CO45: 1755.802213 | CP45: 1004.811955 | CQ45: 179.234475 | CR45: 4145.807194 | CS45: 548.0064834 | CT45: 5677.565095 | CU45: 1224.39368 | CV45: 10158.77905 | CW45: 510.4442394 | CX45: 2062.58531 | CY45: 9612.948433 | CZ45: 11027.65813 | DA45: 1414.709699 | DB45: 1615.540353 | DC45: 1009.067937 | DD45: 165.9202907 | DE45: 4891.916067 | DF45: 901.4294165 | DG45: 7901.186392 | DH45: 1094.322214 | DI45: 12207.58398 | DJ45: 805.4084662 | DK45: 2509.476231 | DL45: 9752.494665 | DM45: 11418.91727 | DN45: 1666.422607 | DO45: 1703.705043 | DP45: 1254.714998 | DQ45: 139.456439 | DR45: 3999.96343 | DS45: 537.6038559 | DT45: 6078.760721 | DU45: 1023.863125 | DV45: 9527.925481 | DW45: 647.3917162 | DX45: 2075.256062 | DY45: 7816.212437 | DZ45: 9376.201257 | EA45: 1559.988686 | EB45: 1904.801815 | EC45: 1257.678875 | ED45: 162.255492 | EE45: 4430.013628 | EF45: 211.4633306 | EG45: 5964.80771 | EH45: 1256.260128 | EI45: 11563.75204 | EJ45: 687.1147444 | EK45: 2328.462219 | EL45: 9021.313205 | EM45: 10707.40779 | EN45: 1686.094588 | EO45: 956 | EP45: 168 | EQ45: 115 | ER45: 43 | ES45: 248 | ET45: 650 | EU45: 257 | EV45: 458 | EW45: 828 | EX45: 177 | EY45: 1101 | EZ45: 178 | FA45: 125 | FB45: 53 | FC45: 293 | FD45: 712 | FE45: 269 | FF45: 551 | FG45: 972 | FH45: 218 | FI45: 54.42346 | FJ45: 60.12363 | FK45: 62.73397 | FL45: 56.23077 | FM45: 57.14053 | FN45: 54.66744 | FO45: 54.82962 | FP45: 56.51045 | FQ45: 55.87918 | FR45: 57.0719 | FS45: 3.922798 | FT45: 5.870482 | FU45: 6.887506 | FV45: 4.91842 | FW45: 3.387767 | FX45: 3.81103 | FY45: 4.749686 | FZ45: 3.412083 | GA45: 3.588773 | GB45: 3.747513 | GC45: 68.74329 | GD45: 59.84842 | GE45: 57.68191 | GF45: 71.18067 | GG45: 73.24714 | GH45: 67.46651 | GI45: 55.19832 | GJ45: 73.12246 | GK45: 71.2836 | GL45: 76.02158 | GM45: 52.64082 | GN45: 60.20657 | GO45: 59.73359 | GP45: 44.51445 | GQ45: 46.50101 | GR45: 55.17067 | GS45: 58.88792 | GT45: 44.53401 | GU45: 48.60859 | GV45: 44.20174 | GW45: 86.5405 | GX45: 83.90293 | GY45: 82.96947 | GZ45: 86.62191 | HA45: 87.87841 | HB45: 86.25111 | HC45: 83.43092 | HD45: 87.57653 | HE45: 87.09678 | HF45: 88.70966 | HG45: 44.5238 | HH45: 41.49112 | HI45: 40.66115 | HJ45: 39.58741 | HK45: 42.6393 | HL45: 45.04333 | HM45: 45.49012 | HN45: 41.90516 | HO45: 43.07114 | HP45: 40.04123 | HQ45: 68.33787 | HR45: 69.88535 | HS45: 69.66396 | HT45: 65.70256 | HU45: 66.51777 | HV45: 69.07786 | HW45: 71.24734 | HX45: 66.0789 | HY45: 67.12634 | HZ45: 65.3675
A46: 5045 | B46: APARTADÓ | C46: 1 | D46: EJE CAFETERO | E46: ANTIOQUIA | F46: Uraba | G46: C | H46: Intermedio | I46: Robusto | J46: medioalto | K46: 3 | L46: G1- Nivel Alto | M46: 53.97513634 | N46: 13.28393127 | O46: 64.92847694 | P46: 87.57865875 | Q46: 88.48232981 | R46: 45.37066366 | S46: =AVERAGE(VLOOKUP($A46,Cont!$A$3:$L$1135,3,FALSE),(100-Base!N46),(100-Base!O46),Base!P46,Base!Q46,Base!R46) -> 73.869874 | T46: 4. Sostenible (>=70 y <80) | U46: 57.35332483 | V46: 25.33048708 | W46: 69.31531293 | X46: 89.26269404 | Y46: 84.93809071 | Z46: 31.07723906 | AA46: =AVERAGE(VLOOKUP($A46,Cont!$A$3:$L$1135,4,FALSE),(100-Base!V46),(100-Base!W46),Base!X46,Base!Y46,Base!Z46) -> 68.43870397 | AB46: 3. Vulnerable (>=60 y <70) | AC46: 49.36 | AD46: 41.13 | AE46: 61.25 | AF46: 79.03 | AG46: 82.58 | AH46: 14.16 | AI46: =AVERAGE(VLOOKUP($A46,Cont!$A$3:$L$1135,5,FALSE),(100-Base!AD46),(100-Base!AE46),Base!AF46,Base!AG46,Base!AH46) -> 62.23166667 | AJ46: 3. Vulnerable (>=60 y <70) | AK46: 50.61974751 | AL46: 12.56648944 | AM46: 68.90486352 | AN46: 79.27420354 | AO46: 89.7833662 | AP46: 45.23996689 | AQ46: =AVERAGE(VLOOKUP($A46,Cont!$A$3:$L$1135,6,FALSE),(100-Base!AL46),(100-Base!AM46),Base!AN46,Base!AO46,Base!AP46) -> 72.13769728 | AR46: 4. Sostenible (>=70 y <80) | AS46: 54.1067468 | AT46: 12.06694013 | AU46: 65.3877331 | AV46: 85.84432024 | AW46: 90.61427555 | AX46: 47.68587124 | AY46: =AVERAGE(VLOOKUP($A46,Cont!$A$3:$L$1135,7,FALSE),(100-Base!AT46),(100-Base!AU46),Base!AV46,Base!AW46,Base!AX46) -> 74.44829897 | AZ46: 4. Sostenible (>=70 y <80) | BA46: 45.98924077 | BB46: 11.90523027 | BC46: 65.16875575 | BD46: 86.13543212 | BE46: 86.76766082 | BF46: 50.10385153 | BG46: =AVERAGE(VLOOKUP($A46,Cont!$A$3:$L$1135,3,FALSE),(100-Base!BB46),(100-Base!BC46),Base!BD46,Base!BE46,Base!BF46) -> 74.32215974 | BH46: 4. Sostenible (>=70 y <80) | BI46: 0.7 | BJ46: 0.7 | BK46: 0.7 | BL46: 0.7 | BM46: 0.7 | BN46: 0.7 | BO46: 25925.61042 | BP46: 13993.38357 | BQ46: 5776.040527 | BR46: 43481.40932 | BS46: 552.002624 | BT46: 105519.6484 | BU46: 204.0292511 | BV46: 163681.154 | BW46: 32877.40137 | BX46: 37540.42576 | BY46: 157549.5 | BZ46: 178057.5854 | CA46: 20508.08545 | CB46: 20284.08139 | CC46: 11633.59509 | CD46: 8872.88107 | CE46: 35028.46606 | CF46: 57.73448863 | CG46: 88961.69971 | CH46: 84.21475809 | CI46: 128548.2892 | CJ46: 23960.07234 | CK46: 26842.20166 | CL46: 104328.5732 | CM46: 122828.9596 | CN46: 18500.38648 | CO46: 24605.10576 | CP46: 12146.25328 | CQ46: 15959.98207 | CR46: 38803.00291 | CS46: 0 | CT46: 103376.0906 | CU46: 2188.456351 | CV46: 172360.2664 | CW46: 23450.96707 | CX46: 29674.56137 | CY46: 120718.0628 | CZ46: 146190.3445 | DA46: 25472.28167 | DB46: 24225.97962 | DC46: 12263.12971 | DD46: 5230.324072 | DE46: 41621.20294 | DF46: 92.25890251 | DG46: 108331.2354 | DH46: 2378.096028 | DI46: 160803.7295 | DJ46: 25940.74472 | DK46: 32722.80712 | DL46: 157471.6259 | DM46: 175390.6459 | DN46: 17919.02001 | DO46: 27596.59576 | DP46: 13970.10057 | DQ46: 5294.324068 | DR46: 43874.61978 | DS46: 1541.031488 | DT46: 104503.7802 | DU46: 296.4181225 | DV46: 162631.7713 | DW46: 29260.74629 | DX46: 34085.82494 | DY46: 172155.785 | DZ46: 189987.4989 | EA46: 17831.70322 | EB46: 29147.51873 | EC46: 14953.82338 | ED46: 6269.414604 | EE46: 52661.01087 | EF46: 3778.905219 | EG46: 104626.61 | EH46: 160.0467022 | EI46: 166591.4296 | EJ46: 33922.48237 | EK46: 39382.72734 | EL46: 128852.8642 | EM46: 148503.3283 | EN46: 19650.46411 | EO46: 231 | EP46: 45 | EQ46: 32 | ER46: 2 | ES46: 72 | ET46: 155 | EU46: 87 | EV46: 49 | EW46: 14 | EX46: 137 | EY46: 1101 | EZ46: 178 | FA46: 125 | FB46: 11 | FC46: 158 | FD46: 712 | FE46: 269 | FF46: 551 | FG46: 15 | FH46: 217 | FI46: 54.42346 | FJ46: 60.12363 | FK46: 62.73397 | FL46: 68.63535 | FM46: 52.42073 | FN46: 54.66744 | FO46: 54.82962 | FP46: 56.51045 | FQ46: 39.09848 | FR46: 48.31459 | FS46: 3.922798 | FT46: 5.870482 | FU46: 6.887506 | FV46: 7.776885 | FW46: 4.66997 | FX46: 3.81103 | FY46: 4.749686 | FZ46: 3.412083 | GA46: 5.677976 | GB46: 5.041183 | GC46: 68.74329 | GD46: 59.84842 | GE46: 57.68191 | GF46: 71.7641 | GG46: 57.81246 | GH46: 67.46651 | GI46: 55.19832 | GJ46: 73.12246 | GK46: 36.55346 | GL46: 52.1961 | GM46: 52.64082 | GN46: 60.20657 | GO46: 59.73359 | GP46: 62.07912 | GQ46: 70.1471 | GR46: 55.17067 | GS46: 58.88792 | GT46: 44.53401 | GU46: 88.97445 | GV46: 74.9332 | GW46: 86.5405 | GX46: 83.90293 | GY46: 82.96947 | GZ46: 87.9763 | HA46: 83.38324 | HB46: 86.25111 | HC46: 83.43092 | HD46: 87.57653 | HE46: 79.00531 | HF46: 81.84073 | HG46: 44.5238 | HH46: 41.49112 | HI46: 40.66115 | HJ46: 41.55424 | HK46: 47.50193 | HL46: 45.04333 | HM46: 45.49012 | HN46: 41.90516 | HO46: 58.2673 | HP46: 53.3083 | HQ46: 68.33787 | HR46: 69.88535 | HS46: 69.66396 | HT46: 68.67812 | HU46: 72.9791 | HV46: 69.07786 | HW46: 71.24734 | HX46: 66.0789 | HY46: 80.66927 | HZ46: 75.46848
A47: 5051 | B47: ARBOLETES | C47: 1 | D47: EJE CAFETERO | E47: ANTIOQUIA | F47: Uraba | G47: G | H47: Temprano | I47: Robusto | J47: medioalto | K47: 6 | L47: G4- Nivel Medio Bajo | M47: 70.18916979 | N47: 6.90366755 | O47: 77.06996176 | P47: 45.69753189 | Q47: 89.70842182 | R47: 49.67760722 | S47: =AVERAGE(VLOOKUP($A47,Cont!$A$3:$L$1135,3,FALSE),(100-Base!N47),(100-Base!O47),Base!P47,Base!Q47,Base!R47) -> 66.85165527 | T47: 3. Vulnerable (>=60 y <70) | U47: 79.49260652 | V47: 12.02349087 | W47: 73.5672459 | X47: 20.5760168 | Y47: 59.49910454 | Z47: 68.56793577 | AA47: =AVERAGE(VLOOKUP($A47,Cont!$A$3:$L$1135,4,FALSE),(100-Base!V47),(100-Base!W47),Base!X47,Base!Y47,Base!Z47) -> 60.50872006 | AB47: 3. Vulnerable (>=60 y <70) | AC47: 67.97 | AD47: 4.87 | AE47: 89.61 | AF47: 65.66 | AG47: 90.95 | AH47: 27.88 | AI47: =AVERAGE(VLOOKUP($A47,Cont!$A$3:$L$1135,5,FALSE),(100-Base!AD47),(100-Base!AE47),Base!AF47,Base!AG47,Base!AH47) -> 65.00166667 | AJ47: 3. Vulnerable (>=60 y <70) | AK47: 71.65975397 | AL47: 5.472715743 | AM47: 70.9951212 | AN47: 56.43986422 | AO47: 86.41425783 | AP47: 53.09195302 | AQ47: =AVERAGE(VLOOKUP($A47,Cont!$A$3:$L$1135,6,FALSE),(100-Base!AL47),(100-Base!AM47),Base!AN47,Base!AO47,Base!AP47) -> 69.91303969 | AR47: 3. Vulnerable (>=60 y <70) | AS47: 82.45833674 | AT47: 5.089569065 | AU47: 81.31628598 | AV47: 40.32620107 | AW47: 93.55267029 | AX47: 59.83749959 | AY47: =AVERAGE(VLOOKUP($A47,Cont!$A$3:$L$1135,7,FALSE),(100-Base!AT47),(100-Base!AU47),Base!AV47,Base!AW47,Base!AX47) -> 65.83647203 | AZ47: 3. Vulnerable (>=60 y <70) | BA47: 67.99307682 | BB47: 6.078922616 | BC47: 81.57615919 | BD47: 61.40398839 | BE47: 88.38694166 | BF47: 43.23231696 | BG47: =AVERAGE(VLOOKUP($A47,Cont!$A$3:$L$1135,3,FALSE),(100-Base!BB47),(100-Base!BC47),Base!BD47,Base!BE47,Base!BF47) -> 67.56136087 | BH47: 3. Vulnerable (>=60 y <70) | BI47: 0.8 | BJ47: 0.8 | BK47: 0.8 | BL47: 0.8 | BM47: 0.8 | BN47: 0.8 | BO47: 3536.271417 | BP47: 2482.079549 | BQ47: 764.8234253 | BR47: 11078.50892 | BS47: 0 | BT47: 27130.42969 | BU47: 2227.625 | BV47: 38092.73291 | BW47: 3332.276855 | BX47: 7292.028076 | BY47: 31986.06787 | BZ47: 35655.59088 | CA47: 3669.52301 | CB47: 3315.246031 | CC47: 2635.375482 | CD47: 1305.159495 | CE47: 10855.07952 | CF47: 0 | CG47: 17122.2539 | CH47: 1259.910199 | CI47: 24986.88632 | CJ47: 1610.646484 | CK47: 7827.78562 | CL47: 3614.578248 | CM47: 6075.012852 | CN47: 2460.434604 | CO47: 4375.13939 | CP47: 2973.97367 | CQ47: 954.3709298 | CR47: 19610.67383 | CS47: 9355.772656 | CT47: 21769.63007 | CU47: 1273.986033 | CV47: 36157.26056 | CW47: 3232.715077 | CX47: 4923.258075 | CY47: 35680.2788 | CZ47: 39230.75077 | DA47: 3550.471971 | DB47: 3689.925951 | DC47: 2644.191858 | DD47: 839.9212194 | DE47: 15347.43003 | DF47: 3120.719573 | DG47: 22385.81189 | DH47: 2048.267 | DI47: 38812.2423 | DJ47: 3997.813712 | DK47: 7083.315609 | DL47: 21134.20815 | DM47: 24456.85316 | DN47: 3322.645013 | DO47: 6585.624077 | DP47: 2920.327415 | DQ47: 888.8460367 | DR47: 17464.07234 | DS47: 3732.568832 | DT47: 30556.15696 | DU47: 4433.898458 | DV47: 47619.76765 | DW47: 3594.773309 | DX47: 8914.237569 | DY47: 51949.48866 | DZ47: 55529.66653 | EA47: 3580.180824 | EB47: 4955.59103 | EC47: 3131.807875 | ED47: 827.7736432 | EE47: 13617.11105 | EF47: 3091.110767 | EG47: 25406.54014 | EH47: 1802.987649 | EI47: 37143.98772 | EJ47: 4098.423006 | EK47: 6674.522475 | EL47: 28837.84929 | EM47: 32626.82106 | EN47: 3788.971763 | EO47: 616 | EP47: 118 | EQ47: 77 | ER47: 8 | ES47: 28 | ET47: 103 | EU47: 197 | EV47: 234 | EW47: 490 | EX47: 86 | EY47: 1101 | EZ47: 178 | FA47: 125 | FB47: 11 | FC47: 111 | FD47: 320 | FE47: 269 | FF47: 551 | FG47: 972 | FH47: 218 | FI47: 54.42346 | FJ47: 60.12363 | FK47: 62.73397 | FL47: 68.63535 | FM47: 60.43152 | FN47: 57.49088 | FO47: 54.82962 | FP47: 56.51045 | FQ47: 55.87918 | FR47: 57.0719 | FS47: 3.922798 | FT47: 5.870482 | FU47: 6.887506 | FV47: 7.776885 | FW47: 3.666562 | FX47: 3.514691 | FY47: 4.749686 | FZ47: 3.412083 | GA47: 3.588773 | GB47: 3.747513 | GC47: 68.74329 | GD47: 59.84842 | GE47: 57.68191 | GF47: 71.7641 | GG47: 79.6517 | GH47: 77.8087 | GI47: 55.19832 | GJ47: 73.12246 | GK47: 71.2836 | GL47: 76.02158 | GM47: 52.64082 | GN47: 60.20657 | GO47: 59.73359 | GP47: 62.07912 | GQ47: 36.2645 | GR47: 40.05861 | GS47: 58.88792 | GT47: 44.53401 | GU47: 48.60859 | GV47: 44.20174 | GW47: 86.5405 | GX47: 83.90293 | GY47: 82.96947 | GZ47: 87.9763 | HA47: 88.83411 | HB47: 88.44742 | HC47: 83.43092 | HD47: 87.57653 | HE47: 87.09678 | HF47: 88.70966 | HG47: 44.5238 | HH47: 41.49112 | HI47: 40.66115 | HJ47: 41.55424 | HK47: 37.25927 | HL47: 39.99458 | HM47: 45.49012 | HN47: 41.90516 | HO47: 43.07114 | HP47: 40.04123 | HQ47: 68.33787 | HR47: 69.88535 | HS47: 69.66396 | HT47: 68.67812 | HU47: 62.46772 | HV47: 64.21645 | HW47: 71.24734 | HX47: 66.0789 | HY47: 67.12634 | HZ47: 65.3675
A48: 5055 | B48: ARGELIA | C48: 1 | D48: EJE CAFETERO | E48: ANTIOQUIA | F48: Oriente | G48: D | H48: Intermedio | I48: Robusto | J48: medioalto | K48: 6 | L48: G5- Nivel Bajo | M48: 78.88013151 | N48: 0.1656102791 | O48: 71.84895398 | P48: 33.36491063 | Q48: 88.03991908 | R48: 21.84349024 | S48: =AVERAGE(VLOOKUP($A48,Cont!$A$3:$L$1135,3,FALSE),(100-Base!N48),(100-Base!O48),Base!P48,Base!Q48,Base!R48) -> 61.87229262 | T48: 3. Vulnerable (>=60 y <70) | U48: 81.23110612 | V48: 5.406085057 | W48: 84.42709311 | X48: 30.79865986 | Y48: 84.38146866 | Z48: 28.37678355 | AA48: =AVERAGE(VLOOKUP($A48,Cont!$A$3:$L$1135,4,FALSE),(100-Base!V48),(100-Base!W48),Base!X48,Base!Y48,Base!Z48) -> 57.92803388 | AB48: 2. Riesgo (>=40 y <60) | AC48: 72.29 | AD48: 1.55 | AE48: 88.12 | AF48: 33.09 | AG48: 89.06 | AH48: 30.02 | AI48: =AVERAGE(VLOOKUP($A48,Cont!$A$3:$L$1135,5,FALSE),(100-Base!AD48),(100-Base!AE48),Base!AF48,Base!AG48,Base!AH48) -> 60.41666667 | AJ48: 3. Vulnerable (>=60 y <70) | AK48: 78.04939692 | AL48: 1.270867463 | AM48: 78.67647036 | AN48: 28.26912082 | AO48: 85.37450681 | AP48: 15.33660163 | AQ48: =AVERAGE(VLOOKUP($A48,Cont!$A$3:$L$1135,6,FALSE),(100-Base!AL48),(100-Base!AM48),Base!AN48,Base!AO48,Base!AP48) -> 58.17214857 | AR48: 2. Riesgo (>=40 y <60) | AS48: 85.99262347 | AT48: 1.359075002 | AU48: 83.44338008 | AV48: 36.01762993 | AW48: 86.84359192 | AX48: 19.43736107 | AY48: =AVERAGE(VLOOKUP($A48,Cont!$A$3:$L$1135,7,FALSE),(100-Base!AT48),(100-Base!AU48),Base!AV48,Base!AW48,Base!AX48) -> 54.58883508 | AZ48: 2. Riesgo (>=40 y <60) | BA48: 70.39830117 | BB48: 0.819220375 | BC48: 79.95174548 | BD48: 36.87629404 | BE48: 84.39622598 | BF48: 19.15936638 | BG48: =AVERAGE(VLOOKUP($A48,Cont!$A$3:$L$1135,3,FALSE),(100-Base!BB48),(100-Base!BC48),Base!BD48,Base!BE48,Base!BF48) -> 59.94348676 | BH48: 2. Riesgo (>=40 y <60) | BI48: 0.8 | BJ48: 0.8 | BK48: 0.8 | BL48: 0.8 | BM48: 0.8 | BN48: 0.8 | BO48: 1385.09782 | BP48: 1092.566982 | BQ48: 6.620151848 | BR48: 3997.428109 | BS48: 391.464 | BT48: 6442.410156 | BU48: 983.6484985 | BV48: 10880.49613 | BW48: 580.8878918 | BX48: 1741.01438 | BY48: 10016.43164 | BZ48: 11377.14771 | CA48: 1360.716073 | CB48: 1438.286479 | CC48: 1168.336016 | CD48: 99.31901834 | CE48: 1837.170842 | CF48: 60.8541977 | CG48: 5900.179592 | CH48: 1045.071492 | CI48: 8298.40875 | CJ48: 547.0817212 | CK48: 1776.316644 | CL48: 6873.549936 | CM48: 8145.805051 | CN48: 1272.255115 | CO48: 1322.128368 | CP48: 955.7673505 | CQ48: 73.74660464 | CR48: 4764.317201 | CS48: 1178.096314 | CT48: 7077.345897 | CU48: 1018.906325 | CV48: 10525.10352 | CW48: 560.4975864 | CX48: 1694.055741 | CY48: 9649.48366 | CZ48: 10835.03346 | DA48: 1185.549797 | DB48: 1418.314325 | DC48: 1106.985777 | DD48: 63.63043619 | DE48: 5006.85068 | DF48: 1189.562784 | DG48: 6978.119031 | DH48: 948.6977069 | DI48: 11587.174 | DJ48: 563.10133 | DK48: 1991.930819 | DL48: 9844.363377 | DM48: 11530.7997 | DN48: 1686.436325 | DO48: 1307.362886 | DP48: 1044.8908 | DQ48: 53.14209128 | DR48: 3910.166355 | DS48: 585.691302 | DT48: 6744.244162 | DU48: 879.675664 | DV48: 9838.540641 | DW48: 581.6338923 | DX48: 1614.858984 | DY48: 8587.538964 | DZ48: 9888.511975 | EA48: 1300.973011 | EB48: 1511.285125 | EC48: 1058.921102 | ED48: 31.4081166 | EE48: 3833.903252 | EF48: 0 | EG48: 6882.168493 | EH48: 1017.381905 | EI48: 9880.397671 | EJ48: 674.638517 | EK48: 1829.463981 | EL48: 7999.207205 | EM48: 9478.15748 | EN48: 1478.950274 | EO48: 915 | EP48: 166 | EQ48: 113 | ER48: 54 | ES48: 243 | ET48: 629 | EU48: 253 | EV48: 428 | EW48: 787 | EX48: 139 | EY48: 1101 | EZ48: 178 | FA48: 125 | FB48: 60 | FC48: 261 | FD48: 712 | FE48: 269 | FF48: 551 | FG48: 972 | FH48: 218 | FI48: 54.42346 | FJ48: 60.12363 | FK48: 62.73397 | FL48: 53.14977 | FM48: 53.26068 | FN48: 54.66744 | FO48: 54.82962 | FP48: 56.51045 | FQ48: 55.87918 | FR48: 58.40389 | FS48: 3.922798 | FT48: 5.870482 | FU48: 6.887506 | FV48: 4.075324 | FW48: 3.766216 | FX48: 3.81103 | FY48: 4.749686 | FZ48: 3.412083 | GA48: 3.588773 | GB48: 3.420186 | GC48: 68.74329 | GD48: 59.84842 | GE48: 57.68191 | GF48: 61.18362 | GG48: 66.82138 | GH48: 67.46651 | GI48: 55.19832 | GJ48: 73.12246 | GK48: 71.2836 | GL48: 81.85235 | GM48: 52.64082 | GN48: 60.20657 | GO48: 59.73359 | GP48: 53.99952 | GQ48: 55.8371 | GR48: 55.17067 | GS48: 58.88792 | GT48: 44.53401 | GU48: 48.60859 | GV48: 36.81742 | GW48: 86.5405 | GX48: 83.90293 | GY48: 82.96947 | GZ48: 85.67176 | HA48: 86.16039 | HB48: 86.25111 | HC48: 83.43092 | HD48: 87.57653 | HE48: 87.09678 | HF48: 90.55805 | HG48: 44.5238 | HH48: 41.49112 | HI48: 40.66115 | HJ48: 44.6183 | HK48: 46.25377 | HL48: 45.04333 | HM48: 45.49012 | HN48: 41.90516 | HO48: 43.07114 | HP48: 39.49289 | HQ48: 68.33787 | HR48: 69.88535 | HS48: 69.66396 | HT48: 69.83844 | HU48: 69.59016 | HV48: 69.07786 | HW48: 71.24734 | HX48: 66.0789 | HY48: 67.12634 | HZ48: 63.24221
A49: 5059 | B49: ARMENIA | C49: 1 | D49: EJE CAFETERO | E49: ANTIOQUIA | F49: Occidente | G49: E | H49: Intermedio | I49: Robusto | J49: medioalto | K49: 6 | L49: G3- Nivel Medio | M49: 70.64530483 | N49: 4.99400668 | O49: 70.90273871 | P49: 42.38955971 | Q49: 84.30575792 | R49: 33.76319621 | S49: =AVERAGE(VLOOKUP($A49,Cont!$A$3:$L$1135,3,FALSE),(100-Base!N49),(100-Base!O49),Base!P49,Base!Q49,Base!R49) -> 64.09362808 | T49: 3. Vulnerable (>=60 y <70) | U49: 67.19002402 | V49: 11.91922326 | W49: 81.39549689 | X49: 35.90036563 | Y49: 76.6012462 | Z49: 28.97100457 | AA49: =AVERAGE(VLOOKUP($A49,Cont!$A$3:$L$1135,4,FALSE),(100-Base!V49),(100-Base!W49),Base!X49,Base!Y49,Base!Z49) -> 58.02631604 | AB49: 2. Riesgo (>=40 y <60) | AC49: 62.41 | AD49: 9.97 | AE49: 85.6 | AF49: 31.57 | AG49: 79.71 | AH49: 16.79 | AI49: =AVERAGE(VLOOKUP($A49,Cont!$A$3:$L$1135,5,FALSE),(100-Base!AD49),(100-Base!AE49),Base!AF49,Base!AG49,Base!AH49) -> 55.41666667 | AJ49: 2. Riesgo (>=40 y <60) | AK49: 68.17822225 | AL49: 6.062565685 | AM49: 72.38586461 | AN49: 32.30282466 | AO49: 80.82347767 | AP49: 26.73535847 | AQ49: =AVERAGE(VLOOKUP($A49,Cont!$A$3:$L$1135,6,FALSE),(100-Base!AL49),(100-Base!AM49),Base!AN49,Base!AO49,Base!AP49) -> 60.23553842 | AR49: 3. Vulnerable (>=60 y <70) | AS49: 91.66004925 | AT49: 5.866821634 | AU49: 66.07474884 | AV49: 38.44839686 | AW49: 83.97170593 | AX49: 37.08431441 | AY49: =AVERAGE(VLOOKUP($A49,Cont!$A$3:$L$1135,7,FALSE),(100-Base!AT49),(100-Base!AU49),Base!AV49,Base!AW49,Base!AX49) -> 54.87710008 | AZ49: 2. Riesgo (>=40 y <60) | BA49: 63.40119742 | BB49: 5.586521555 | BC49: 86.82718507 | BD49: 32.75861183 | BE49: 83.21407138 | BF49: 43.1027271 | BG49: =AVERAGE(VLOOKUP($A49,Cont!$A$3:$L$1135,3,FALSE),(100-Base!BB49),(100-Base!BC49),Base!BD49,Base!BE49,Base!BF49) -> 61.11028395 | BH49: 3. Vulnerable (>=60 y <70) | BI49: 0.8 | BJ49: 0.8 | BK49: 0.8 | BL49: 0.8 | BM49: 0.8 | BN49: 0.8 | BO49: 1264.006752 | BP49: 892.961423 | BQ49: 150.3938885 | BR49: 3011.487531 | BS49: 0 | BT49: 4173.652832 | BU49: 856.6339722 | BV49: 7094.629765 | BW49: 681.6680145 | BX49: 1608.10355 | BY49: 5721.768311 | BZ49: 6786.924704 | CA49: 1065.156393 | CB49: 1439.219163 | CC49: 967.0117011 | CD49: 366.4515593 | CE49: 3074.458389 | CF49: 0 | CG49: 3978.962894 | CH49: 879.7380881 | CI49: 5969.250349 | CJ49: 622.3881699 | CK49: 1733.654126 | CL49: 4031.263972 | CM49: 5262.661082 | CN49: 1231.39711 | CO49: 1359.512742 | CP49: 848.4581402 | CQ49: 363.4480915 | CR49: 3645.832919 | CS49: 356.2541031 | CT49: 4745.978317 | CU49: 967.9380439 | CV49: 7091.01143 | CW49: 535.9405628 | CX49: 1697.758117 | CY49: 5550.954554 | CZ49: 6963.584636 | DA49: 1412.630082 | DB49: 1482.636997 | DC49: 1010.835547 | DD49: 254.8496458 | DE49: 4203.659953 | DF49: 584.9214419 | DG49: 4255.906699 | DH49: 920.5111431 | DI49: 7959.204902 | DJ49: 672.9070531 | DK49: 2083.121399 | DL49: 6432.454046 | DM49: 7958.645472 | DN49: 1526.191426 | DO49: 1619.811875 | DP49: 1069.033948 | DQ49: 207.413269 | DR49: 3535.360013 | DS49: 0 | DT49: 3808.821689 | DU49: 947.5205761 | DV49: 7198.426804 | DW49: 806.3060316 | DX49: 2097.112273 | DY49: 6912.358731 | DZ49: 8231.771484 | EA49: 1319.412484 | EB49: 1514.358339 | EC49: 718.6140449 | ED49: 217.187018 | EE49: 3887.69677 | EF49: 0 | EG49: 4992.603937 | EH49: 997.6096976 | EI49: 6899.007068 | EJ49: 550.753907 | EK49: 1681.249224 | EL49: 4742.146287 | EM49: 5698.731246 | EN49: 956.5849589 | EO49: 797 | EP49: 145 | EQ49: 94 | ER49: 29 | ES49: 197 | ET49: 567 | EU49: 229 | EV49: 351 | EW49: 670 | EX49: 157 | EY49: 1101 | EZ49: 178 | FA49: 125 | FB49: 53 | FC49: 293 | FD49: 712 | FE49: 269 | FF49: 551 | FG49: 972 | FH49: 218 | FI49: 54.42346 | FJ49: 60.12363 | FK49: 62.73397 | FL49: 56.23077 | FM49: 57.14053 | FN49: 54.66744 | FO49: 54.82962 | FP49: 56.51045 | FQ49: 55.87918 | FR49: 56.21923 | FS49: 3.922798 | FT49: 5.870482 | FU49: 6.887506 | FV49: 4.91842 | FW49: 3.387767 | FX49: 3.81103 | FY49: 4.749686 | FZ49: 3.412083 | GA49: 3.588773 | GB49: 3.439309 | GC49: 68.74329 | GD49: 59.84842 | GE49: 57.68191 | GF49: 71.18067 | GG49: 73.24714 | GH49: 67.46651 | GI49: 55.19832 | GJ49: 73.12246 | GK49: 71.2836 | GL49: 70.97762 | GM49: 52.64082 | GN49: 60.20657 | GO49: 59.73359 | GP49: 44.51445 | GQ49: 46.50101 | GR49: 55.17067 | GS49: 58.88792 | GT49: 44.53401 | GU49: 48.60859 | GV49: 47.92092 | GW49: 86.5405 | GX49: 83.90293 | GY49: 82.96947 | GZ49: 86.62191 | HA49: 87.87841 | HB49: 86.25111 | HC49: 83.43092 | HD49: 87.57653 | HE49: 87.09678 | HF49: 86.70963 | HG49: 44.5238 | HH49: 41.49112 | HI49: 40.66115 | HJ49: 39.58741 | HK49: 42.6393 | HL49: 45.04333 | HM49: 45.49012 | HN49: 41.90516 | HO49: 43.07114 | HP49: 42.23924 | HQ49: 68.33787 | HR49: 69.88535 | HS49: 69.66396 | HT49: 65.70256 | HU49: 66.51777 | HV49: 69.07786 | HW49: 71.24734 | HX49: 66.0789 | HY49: 67.12634 | HZ49: 66.92496
A50: 5079 | B50: BARBOSA | C50: 1 | D50: EJE CAFETERO | E50: ANTIOQUIA | F50: Valle del aburra | G50: D | H50: Intermedio | I50: Robusto | J50: mediobajo | K50: 5 | L50: G1- Nivel Alto | M50: 57.44580904 | N50: 12.72194877 | O50: 37.01772072 | P50: 87.58689547 | Q50: 79.52718601 | R50: 57.93252175 | S50: =AVERAGE(VLOOKUP($A50,Cont!$A$3:$L$1135,3,FALSE),(100-Base!N50),(100-Base!O50),Base!P50,Base!Q50,Base!R50) -> 79.21782229 | T50: 4. Sostenible (>=70 y <80) | U50: 57.72964088 | V50: 6.006213564 | W50: 42.18023735 | X50: 83.91080498 | Y50: 75.60363282 | Z50: 41.02374993 | AA50: =AVERAGE(VLOOKUP($A50,Cont!$A$3:$L$1135,4,FALSE),(100-Base!V50),(100-Base!W50),Base!X50,Base!Y50,Base!Z50) -> 75.39195614 | AB50: 4. Sostenible (>=70 y <80) | AC50: 63.3 | AD50: 6.55 | AE50: 50.66 | AF50: 85.81 | AG50: 82.56 | AH50: 40.97 | AI50: =AVERAGE(VLOOKUP($A50,Cont!$A$3:$L$1135,5,FALSE),(100-Base!AD50),(100-Base!AE50),Base!AF50,Base!AG50,Base!AH50) -> 75.355 | AJ50: 4. Sostenible (>=70 y <80) | AK50: 60.88144987 | AL50: 36.28573627 | AM50: 33.55743642 | AN50: 76.01745059 | AO50: 84.2599466 | AP50: 45.16529555 | AQ50: =AVERAGE(VLOOKUP($A50,Cont!$A$3:$L$1135,6,FALSE),(100-Base!AL50),(100-Base!AM50),Base!AN50,Base!AO50,Base!AP50) -> 72.59992001 | AR50: 4. Sostenible (>=70 y <80) | AS50: 70.220677 | AT50: 13.23112529 | AU50: 46.02476218 | AV50: 87.98696695 | AW50: 79.98412227 | AX50: 42.48067815 | AY50: =AVERAGE(VLOOKUP($A50,Cont!$A$3:$L$1135,7,FALSE),(100-Base!AT50),(100-Base!AU50),Base!AV50,Base!AW50,Base!AX50) -> 75.07671499 | AZ50: 4. Sostenible (>=70 y <80) | BA50: 60.11533265 | BB50: 35.70098459 | BC50: 39.6299249 | BD50: 85.2832128 | BE50: 77.00276805 | BF50: 48.68767929 | BG50: =AVERAGE(VLOOKUP($A50,Cont!$A$3:$L$1135,3,FALSE),(100-Base!BB50),(100-Base!BC50),Base!BD50,Base!BE50,Base!BF50) -> 72.60712511 | BH50: 4. Sostenible (>=70 y <80) | BI50: 0.8 | BJ50: 0.7 | BK50: 0.7 | BL50: 0.7 | BM50: 0.7 | BN50: 0.7 | BO50: 19861.85391 | BP50: 11409.80267 | BQ50: 3959.600159 | BR50: 31124.16368 | BS50: 941.340416 | BT50: 17929.72852 | BU50: 1189.938477 | BV50: 54192.98384 | BW50: 23799.62903 | BX50: 27172.59118 | BY50: 44403.33691 | BZ50: 55834.1608 | CA50: 11430.82388 | CB50: 12543.80622 | CC50: 7241.494286 | CD50: 1134.632726 | CE50: 18890.98204 | CF50: 325.4966843 | CG50: 14465.72213 | CH50: 68.92545139 | CI50: 35230.11058 | CJ50: 13276.43158 | CK50: 15822.07629 | CL50: 28917.32608 | CM50: 38248.59335 | CN50: 9331.267278 | CO50: 13574.53584 | CP50: 8592.321886 | CQ50: 1335.984821 | CR50: 20405.45706 | CS50: 68.74998557 | CT50: 20385.09145 | CU50: 121.5497744 | CV50: 40613.43303 | CW50: 14421.20066 | CX50: 16805.4334 | CY50: 46971.55915 | CZ50: 56892.47783 | DA50: 9920.918678 | DB50: 12743.90672 | DC50: 7758.675182 | DD50: 7976.670628 | DE50: 21982.93723 | DF50: 4.375054664 | DG50: 17960.54201 | DH50: 80.307555 | DI50: 53774.14529 | DJ50: 14117.93795 | DK50: 18571.96978 | DL50: 54516.56117 | DM50: 64700.44591 | DN50: 10183.88474 | DO50: 14098.61069 | DP50: 7623.252942 | DQ50: 2706.082553 | DR50: 20452.39919 | DS50: 29.05302235 | DT50: 18395.89654 | DU50: 79.16826414 | DV50: 40204.70398 | DW50: 15162.58017 | DX50: 17232.75667 | DY50: 39609.34348 | DZ50: 49521.50979 | EA50: 9912.165238 | EB50: 18678.45728 | EC50: 8809.521833 | ED50: 8745.301426 | EE50: 24495.96706 | EF50: 15.936179 | EG50: 16882.34357 | EH50: 940.0690579 | EI50: 45012.32049 | EJ50: 18216.8367 | EK50: 21360.40154 | EL50: 36699.64313 | EM50: 47660.16087 | EN50: 10960.51774 | EO50: 77 | EP50: 13 | EQ50: 13 | ER50: 8 | ES50: 13 | ET50: 36 | EU50: 35 | EV50: 23 | EW50: 10 | EX50: 54 | EY50: 1101 | EZ50: 178 | FA50: 125 | FB50: 10 | FC50: 261 | FD50: 712 | FE50: 269 | FF50: 321 | FG50: 37 | FH50: 217 | FI50: 54.42346 | FJ50: 60.12363 | FK50: 62.73397 | FL50: 42.20321 | FM50: 53.26068 | FN50: 54.66744 | FO50: 54.82962 | FP50: 52.54627 | FQ50: 47.88719 | FR50: 48.31459 | FS50: 3.922798 | FT50: 5.870482 | FU50: 6.887506 | FV50: 10.403 | FW50: 3.766216 | FX50: 3.81103 | FY50: 4.749686 | FZ50: 3.963986 | GA50: 6.619555 | GB50: 5.041183 | GC50: 68.74329 | GD50: 59.84842 | GE50: 57.68191 | GF50: 28.47429 | GG50: 66.82138 | GH50: 67.46651 | GI50: 55.19832 | GJ50: 65.08167 | GK50: 51.05811 | GL50: 52.1961 | GM50: 52.64082 | GN50: 60.20657 | GO50: 59.73359 | GP50: 83.59334 | GQ50: 55.8371 | GR50: 55.17067 | GS50: 58.88792 | GT50: 59.3712 | GU50: 78.8503 | GV50: 74.9332 | GW50: 86.5405 | GX50: 83.90293 | GY50: 82.96947 | GZ50: 76.05038 | HA50: 86.16039 | HB50: 86.25111 | HC50: 83.43092 | HD50: 85.8471 | HE50: 81.33125 | HF50: 81.84073 | HG50: 44.5238 | HH50: 41.49112 | HI50: 40.66115 | HJ50: 59.16648 | HK50: 46.25377 | HL50: 45.04333 | HM50: 45.49012 | HN50: 46.74914 | HO50: 53.71323 | HP50: 53.3083 | HQ50: 68.33787 | HR50: 69.88535 | HS50: 69.66396 | HT50: 79.98882 | HU50: 69.59016 | HV50: 69.07786 | HW50: 71.24734 | HX50: 70.45395 | HY50: 76.03619 | HZ50: 75.46848
A51: 5086 | B51: BELMIRA | C51: 1 | D51: EJE CAFETERO | E51: ANTIOQUIA | F51: Norte | G51: C | H51: Intermedio | I51: Robusto | J51: medioalto | K51: 6 | L51: G3- Nivel Medio | M51: 56.95392505 | N51: 16.1268175 | O51: 48.10703196 | P51: 51.29498424 | Q51: 81.1269171 | R51: 41.63519963 | S51: =AVERAGE(VLOOKUP($A51,Cont!$A$3:$L$1135,3,FALSE),(100-Base!N51),(100-Base!O51),Base!P51,Base!Q51,Base!R51) -> 68.30387525 | T51: 3. Vulnerable (>=60 y <70) | U51: 78.85289197 | V51: 21.52809275 | W51: 58.51424953 | X51: 48.59094997 | Y51: 86.49307257 | Z51: 14.13196544 | AA51: =AVERAGE(VLOOKUP($A51,Cont!$A$3:$L$1135,4,FALSE),(100-Base!V51),(100-Base!W51),Base!X51,Base!Y51,Base!Z51) -> 61.52894095 | AB51: 3. Vulnerable (>=60 y <70) | AC51: 70.24 | AD51: 14.7 | AE51: 64.06 | AF51: 49.83 | AG51: 83.25 | AH51: 28.9 | AI51: =AVERAGE(VLOOKUP($A51,Cont!$A$3:$L$1135,5,FALSE),(100-Base!AD51),(100-Base!AE51),Base!AF51,Base!AG51,Base!AH51) -> 63.87 | AJ51: 3. Vulnerable (>=60 y <70) | AK51: 69.63890801 | AL51: 15.07286368 | AM51: 66.57075922 | AN51: 43.5900411 | AO51: 86.75068794 | AP51: 29.91470998 | AQ51: =AVERAGE(VLOOKUP($A51,Cont!$A$3:$L$1135,6,FALSE),(100-Base!AL51),(100-Base!AM51),Base!AN51,Base!AO51,Base!AP51) -> 63.10196935 | AR51: 3. Vulnerable (>=60 y <70) | AS51: 62.21553733 | AT51: 17.96699468 | AU51: 55.0087625 | AV51: 50.8756007 | AW51: 84.33514718 | AX51: 37.96837744 | AY51: =AVERAGE(VLOOKUP($A51,Cont!$A$3:$L$1135,7,FALSE),(100-Base!AT51),(100-Base!AU51),Base!AV51,Base!AW51,Base!AX51) -> 66.70056135 | AZ51: 3. Vulnerable (>=60 y <70) | BA51: 58.44637435 | BB51: 18.9246651 | BC51: 50.42183781 | BD51: 53.21557571 | BE51: 80.67954354 | BF51: 31.86021542 | BG51: =AVERAGE(VLOOKUP($A51,Cont!$A$3:$L$1135,3,FALSE),(100-Base!BB51),(100-Base!BC51),Base!BD51,Base!BE51,Base!BF51) -> 66.06813863 | BH51: 3. Vulnerable (>=60 y <70) | BI51: 0.8 | BJ51: 0.8 | BK51: 0.8 | BL51: 0.8 | BM51: 0.8 | BN51: 0.8 | BO51: 1902.663618 | BP51: 1083.641611 | BQ51: 610.3680573 | BR51: 3784.801666 | BS51: 16.592098 | BT51: 3297.885986 | BU51: 984.0110474 | BV51: 8935.261554 | BW51: 1338.187531 | BX51: 2608.807762 | BY51: 6545.08374 | BZ51: 8067.709183 | CA51: 1522.625443 | CB51: 1229.224987 | CC51: 969.2794514 | CD51: 687.9119958 | CE51: 3195.415422 | CF51: 429.9175199 | CG51: 3785.446545 | CH51: 562.8702807 | CI51: 8165.932887 | CJ51: 749.5038954 | CK51: 1542.476317 | CL51: 8481.541386 | CM51: 9806.035482 | CN51: 1324.494097 | CO51: 1570.634677 | CP51: 1103.241067 | CQ51: 690.2842033 | CR51: 4697.367423 | CS51: 1001.3508 | CT51: 4557.406886 | CU51: 898.9719999 | CV51: 10081.3983 | CW51: 1094.518128 | CX51: 2196.533598 | CY51: 7759.294577 | CZ51: 9321.027226 | DA51: 1561.732649 | DB51: 1478.448325 | DC51: 1029.575269 | DD51: 696.153946 | DE51: 4618.591135 | DF51: 974.0483378 | DG51: 4441.794872 | DH51: 793.5558416 | DI51: 9327.517252 | DJ51: 958.1104655 | DK51: 2198.003125 | DL51: 10086.36729 | DM51: 11626.84416 | DN51: 1540.476865 | DO51: 1615.946851 | DP51: 984.1271021 | DQ51: 775.7525787 | DR51: 4317.653679 | DS51: 539.6369278 | DT51: 3570.439063 | DU51: 841.8009758 | DV51: 9001.978448 | DW51: 1232.816699 | DX51: 2423.198289 | DY51: 8092.530687 | DZ51: 9595.679761 | EA51: 1503.149208 | EB51: 1788.947833 | EC51: 935.4006214 | ED51: 759.6561063 | EE51: 4014.105942 | EF51: 332.5935725 | EG51: 3184.971842 | EH51: 778.6400405 | EI51: 8520.525316 | EJ51: 1246.943032 | EK51: 2343.191849 | EL51: 6667.371492 | EM51: 8264.01737 | EN51: 1596.645878 | EO51: 531 | EP51: 101 | EQ51: 69 | ER51: 56 | ES51: 128 | ET51: 386 | EU51: 174 | EV51: 183 | EW51: 408 | EX51: 88 | EY51: 1101 | EZ51: 178 | FA51: 125 | FB51: 133 | FC51: 158 | FD51: 712 | FE51: 269 | FF51: 551 | FG51: 972 | FH51: 218 | FI51: 54.42346 | FJ51: 60.12363 | FK51: 62.73397 | FL51: 56.92537 | FM51: 52.42073 | FN51: 54.66744 | FO51: 54.82962 | FP51: 56.51045 | FQ51: 55.87918 | FR51: 56.21923 | FS51: 3.922798 | FT51: 5.870482 | FU51: 6.887506 | FV51: 4.573634 | FW51: 4.66997 | FX51: 3.81103 | FY51: 4.749686 | FZ51: 3.412083 | GA51: 3.588773 | GB51: 3.439309 | GC51: 68.74329 | GD51: 59.84842 | GE51: 57.68191 | GF51: 71.53587 | GG51: 57.81246 | GH51: 67.46651 | GI51: 55.19832 | GJ51: 73.12246 | GK51: 71.2836 | GL51: 70.97762 | GM51: 52.64082 | GN51: 60.20657 | GO51: 59.73359 | GP51: 54.84887 | GQ51: 70.1471 | GR51: 55.17067 | GS51: 58.88792 | GT51: 44.53401 | GU51: 48.60859 | GV51: 47.92092 | GW51: 86.5405 | GX51: 83.90293 | GY51: 82.96947 | GZ51: 86.50879 | HA51: 83.38324 | HB51: 86.25111 | HC51: 83.43092 | HD51: 87.57653 | HE51: 87.09678 | HF51: 86.70963 | HG51: 44.5238 | HH51: 41.49112 | HI51: 40.66115 | HJ51: 41.70697 | HK51: 47.50193 | HL51: 45.04333 | HM51: 45.49012 | HN51: 41.90516 | HO51: 43.07114 | HP51: 42.23924 | HQ51: 68.33787 | HR51: 69.88535 | HS51: 69.66396 | HT51: 67.77946 | HU51: 72.9791 | HV51: 69.07786 | HW51: 71.24734 | HX51: 66.0789 | HY51: 67.12634 | HZ51: 66.92496
A52: 5088 | B52: BELLO | C52: 1 | D52: EJE CAFETERO | E52: ANTIOQUIA | F52: Valle del aburra | G52: B | H52: Robusto | I52: Robusto | J52: bajo | K52: 1 | L52: G1- Nivel Alto | M52: 49.48713224 | N52: 16.08720284 | O52: 53.96482782 | P52: 80.33132487 | Q52: 80.9121991 | R52: 53.46557833 | S52: =AVERAGE(VLOOKUP($A52,Cont!$A$3:$L$1135,3,FALSE),(100-Base!N52),(100-Base!O52),Base!P52,Base!Q52,Base!R52) -> 74.10951194 | T52: 4. Sostenible (>=70 y <80) | U52: 56.89409932 | V52: 7.219169149 | W52: 56.45349502 | X52: 87.17905905 | Y52: 81.48122968 | Z52: 43.53942103 | AA52: =AVERAGE(VLOOKUP($A52,Cont!$A$3:$L$1135,4,FALSE),(100-Base!V52),(100-Base!W52),Base!X52,Base!Y52,Base!Z52) -> 74.7545076 | AB52: 4. Sostenible (>=70 y <80) | AC52: 49.34 | AD52: 9.61 | AE52: 64.16 | AF52: 86.37 | AG52: 80.85 | AH52: 43 | AI52: =AVERAGE(VLOOKUP($A52,Cont!$A$3:$L$1135,5,FALSE),(100-Base!AD52),(100-Base!AE52),Base!AF52,Base!AG52,Base!AH52) -> 72.74166667 | AJ52: 4. Sostenible (>=70 y <80) | AK52: 50.23020057 | AL52: 9.239934222 | AM52: 62.43477492 | AN52: 76.21608226 | AO52: 85.24831575 | AP52: 52.90321642 | AQ52: =AVERAGE(VLOOKUP($A52,Cont!$A$3:$L$1135,6,FALSE),(100-Base!AL52),(100-Base!AM52),Base!AN52,Base!AO52,Base!AP52) -> 73.78215088 | AR52: 4. Sostenible (>=70 y <80) | AS52: 47.46194478 | AT52: 0 | AU52: 57.16361509 | AV52: 82.19920998 | AW52: 86.65569151 | AX52: 59.37475633 | AY52: =AVERAGE(VLOOKUP($A52,Cont!$A$3:$L$1135,7,FALSE),(100-Base!AT52),(100-Base!AU52),Base!AV52,Base!AW52,Base!AX52) -> 78.51100712 | AZ52: 4. Sostenible (>=70 y <80) | BA52: 44.76066677 | BB52: 0 | BC52: 54.23667296 | BD52: 81.59850611 | BE52: 85.58082115 | BF52: 62.62909442 | BG52: =AVERAGE(VLOOKUP($A52,Cont!$A$3:$L$1135,3,FALSE),(100-Base!BB52),(100-Base!BC52),Base!BD52,Base!BE52,Base!BF52) -> 79.26195812 | BH52: 4. Sostenible (>=70 y <80) | BI52: 0.65 | BJ52: 0.65 | BK52: 0.65 | BL52: 0.65 | BM52: 0.65 | BN52: 0.65 | BO52: 123212.6909 | BP52: 60974.42727 | BQ52: 29472.01953 | BR52: 183201.6406 | BS52: 1e-06 | BT52: 229975.9688 | BU52: 602.7434692 | BV52: 427275.9157 | BW52: 130710.6216 | BX52: 162714.3854 | BY52: 320965.5195 | BZ52: 396683.7178 | CA52: 75718.19824 | CB52: 82173.84366 | CC52: 46752.06823 | CD52: 8882.751869 | CE52: 123043.9637 | CF52: 1036.912062 | CG52: 183847.5133 | CH52: 0 | CI52: 327498.6346 | CJ52: 91313.51699 | CK52: 104742.4897 | CL52: 260203.8087 | CM52: 319342.0249 | CN52: 59138.21613 | CO52: 106268.5393 | CP52: 52430.84013 | CQ52: 12952.00849 | CR52: 134832.7229 | CS52: 50.20928777 | CT52: 225129.8331 | CU52: 344.7753971 | CV52: 351523.8699 | CW52: 100521.025 | CX52: 116384.1617 | CY52: 280071.5348 | CZ52: 346408.2517 | DA52: 66336.7169 | DB52: 105706.3721 | DC52: 53096.52272 | DD52: 14370.52548 | DE52: 155526.2747 | DF52: 18.2414067 | DG52: 237861.2255 | DH52: 0 | DI52: 381004.7641 | DJ52: 104994.7304 | DK52: 137759.2856 | DL52: 374935.2989 | DM52: 439815.4915 | DN52: 64880.19258 | DO52: 118193.5984 | DP52: 50891.49376 | DQ52: 0 | DR52: 157495.9366 | DS52: 17.08476781 | DT52: 227979.7736 | DU52: 374.7179255 | DV52: 399505.1546 | DW52: 115782.1084 | DX52: 140855.5048 | DY52: 371595.8004 | DZ52: 428818.7241 | EA52: 57222.88931 | EB52: 125691.9242 | EC52: 50307.95753 | ED52: 0 | EE52: 171997.0222 | EF52: 0 | EG52: 223562.4837 | EH52: 449.4262703 | EI52: 413026.6437 | EJ52: 123894.9732 | EK52: 151834.8547 | EL52: 336775.9118 | EM52: 393517.972 | EN52: 56742.06021 | EO52: 222 | EP52: 41 | EQ52: 30 | ER52: 10 | ES52: 57 | ET52: 63 | EU52: 84 | EV52: 96 | EW52: 21 | EX52: 134 | EY52: 1101 | EZ52: 178 | FA52: 125 | FB52: 10 | FC52: 63 | FD52: 69 | FE52: 269 | FF52: 121 | FG52: 25 | FH52: 217 | FI52: 54.42346 | FJ52: 60.12363 | FK52: 62.73397 | FL52: 42.20321 | FM52: 38.1464 | FN52: 37.72821 | FO52: 54.82962 | FP52: 44.00282 | FQ52: 38.68673 | FR52: 48.31459 | FS52: 3.922798 | FT52: 5.870482 | FU52: 6.887506 | FV52: 10.403 | FW52: 7.012572 | FX52: 6.96879 | FY52: 4.749686 | FZ52: 6.295687 | GA52: 8.885985 | GB52: 5.041183 | GC52: 68.74329 | GD52: 59.84842 | GE52: 57.68191 | GF52: 28.47429 | GG52: 40.05789 | GH52: 39.87551 | GI52: 55.19832 | GJ52: 45.93587 | GK52: 45.96664 | GL52: 52.1961 | GM52: 52.64082 | GN52: 60.20657 | GO52: 59.73359 | GP52: 83.59334 | GQ52: 84.93545 | GR52: 84.88793 | GS52: 58.88792 | GT52: 81.9105 | GU52: 86.66665 | GV52: 74.9332 | GW52: 86.5405 | GX52: 83.90293 | GY52: 82.96947 | GZ52: 76.05038 | HA52: 80.48994 | HB52: 80.68295 | HC52: 83.43092 | HD52: 81.29807 | HE52: 81.78809 | HF52: 81.84073 | HG52: 44.5238 | HH52: 41.49112 | HI52: 40.66115 | HJ52: 59.16648 | HK52: 59.83034 | HL52: 60.16801 | HM52: 45.49012 | HN52: 55.8005 | HO52: 57.56241 | HP52: 53.3083 | HQ52: 68.33787 | HR52: 69.88535 | HS52: 69.66396 | HT52: 79.98882 | HU52: 79.69755 | HV52: 79.81577 | HW52: 71.24734 | HX52: 77.65618 | HY52: 78.52742 | HZ52: 75.46848
A53: 5091 | B53: BETANIA | C53: 1 | D53: EJE CAFETERO | E53: ANTIOQUIA | F53: Suroeste | G53: D | H53: Intermedio | I53: Robusto | J53: medioalto | K53: 6 | L53: G3- Nivel Medio | M53: 69.3717949 | N53: 12.17886094 | O53: 70.33712827 | P53: 54.7804815 | Q53: 76.16014474 | R53: 10.06024696 | S53: =AVERAGE(VLOOKUP($A53,Cont!$A$3:$L$1135,3,FALSE),(100-Base!N53),(100-Base!O53),Base!P53,Base!Q53,Base!R53) -> 59.74748067 | T53: 2. Riesgo (>=40 y <60) | U53: 66.18006235 | V53: 16.75823378 | W53: 64.70820967 | X53: 50.83085016 | Y53: 85.67114034 | Z53: 39.25097223 | AA53: =AVERAGE(VLOOKUP($A53,Cont!$A$3:$L$1135,4,FALSE),(100-Base!V53),(100-Base!W53),Base!X53,Base!Y53,Base!Z53) -> 65.71441988 | AB53: 3. Vulnerable (>=60 y <70) | AC53: 56.86 | AD53: 17.02 | AE53: 75.5 | AF53: 50.57 | AG53: 80.75 | AH53: 17.17 | AI53: =AVERAGE(VLOOKUP($A53,Cont!$A$3:$L$1135,5,FALSE),(100-Base!AD53),(100-Base!AE53),Base!AF53,Base!AG53,Base!AH53) -> 59.32833333 | AJ53: 2. Riesgo (>=40 y <60) | AK53: 67.0348065 | AL53: 15.33071155 | AM53: 77.76225082 | AN53: 53.83461819 | AO53: 79.31353658 | AP53: 20.35404284 | AQ53: =AVERAGE(VLOOKUP($A53,Cont!$A$3:$L$1135,6,FALSE),(100-Base!AL53),(100-Base!AM53),Base!AN53,Base!AO53,Base!AP53) -> 60.06820587 | AR53: 3. Vulnerable (>=60 y <70) | AS53: 56.28038538 | AT53: 14.544185 | AU53: 72.66770477 | AV53: 47.9893545 | AW53: 80.91786297 | AX53: 26.73452248 | AY53: =AVERAGE(VLOOKUP($A53,Cont!$A$3:$L$1135,7,FALSE),(100-Base!AT53),(100-Base!AU53),Base!AV53,Base!AW53,Base!AX53) -> 61.40497503 | AZ53: 3. Vulnerable (>=60 y <70) | BA53: 60.50078055 | BB53: 13.45807768 | BC53: 72.87393619 | BD53: 52.13092563 | BE53: 77.21152699 | BF53: 20.48891085 | BG53: =AVERAGE(VLOOKUP($A53,Cont!$A$3:$L$1135,3,FALSE),(100-Base!BB53),(100-Base!BC53),Base!BD53,Base!BE53,Base!BF53) -> 60.58322494 | BH53: 3. Vulnerable (>=60 y <70) | BI53: 0.8 | BJ53: 0.8 | BK53: 0.8 | BL53: 0.8 | BM53: 0.8 | BN53: 0.8 | BO53: 2151.986624 | BP53: 1492.871747 | BQ53: 611.0963745 | BR53: 5017.680863 | BS53: 616.48256 | BT53: 6485.634766 | BU53: 1016.097839 | BV53: 11541.86326 | BW53: 1490.012024 | BX53: 2719.968834 | BY53: 7815.194031 | BZ53: 10261.52728 | CA53: 2446.333252 | CB53: 2361.401191 | CC53: 1562.77678 | CD53: 838.1374134 | CE53: 5001.346947 | CF53: 60.89890691 | CG53: 6591.442295 | CH53: 1133.185886 | CI53: 12031.74547 | CJ53: 1662.403796 | CK53: 3270.462309 | CL53: 11878.76796 | CM53: 13865.54201 | CN53: 1986.774056 | CO53: 2231.112255 | CP53: 1268.702801 | CQ53: 894.1500175 | CR53: 5255.055638 | CS53: 1047.999033 | CT53: 4740.390032 | CU53: 977.5271857 | CV53: 8961.525168 | CW53: 1263.352081 | CX53: 2498.108516 | CY53: 8681.042464 | CZ53: 10750.16998 | DA53: 2069.127515 | DB53: 2321.878037 | DC53: 1556.466449 | DD53: 756.5535577 | DE53: 4934.888736 | DF53: 623.2482581 | DG53: 6783.451572 | DH53: 911.5438128 | DI53: 10697.02015 | DJ53: 1433.632829 | DK53: 2663.031478 | DL53: 8132.069878 | DM53: 10253.06679 | DN53: 2120.996911 | DO53: 2394.258528 | DP53: 1264.612958 | DQ53: 686.2361463 | DR53: 4718.285303 | DS53: 410.102687 | DT53: 6537.521049 | DU53: 967.8172317 | DV53: 10892.65341 | DW53: 1326.477343 | DX53: 2764.107501 | DY53: 8587.598624 | DZ53: 10612.7346 | EA53: 2025.136653 | EB53: 2445.511778 | EC53: 1453.414915 | ED53: 635.2685563 | EE53: 4720.351387 | EF53: 156.135 | EG53: 6746.156172 | EH53: 1024.424635 | EI53: 10877.29883 | EJ53: 1455.159464 | EK53: 2791.355507 | EL53: 7519.860265 | EM53: 9739.297431 | EN53: 2219.437166 | EO53: 1004 | EP53: 172 | EQ53: 119 | ER53: 23 | ES53: 253 | ET53: 670 | EU53: 262 | EV53: 487 | EW53: 875 | EX53: 202 | EY53: 1101 | EZ53: 178 | FA53: 125 | FB53: 24 | FC53: 261 | FD53: 712 | FE53: 269 | FF53: 551 | FG53: 972 | FH53: 218 | FI53: 54.42346 | FJ53: 60.12363 | FK53: 62.73397 | FL53: 68.4238 | FM53: 53.26068 | FN53: 54.66744 | FO53: 54.82962 | FP53: 56.51045 | FQ53: 55.87918 | FR53: 56.21923 | FS53: 3.922798 | FT53: 5.870482 | FU53: 6.887506 | FV53: 6.101318 | FW53: 3.766216 | FX53: 3.81103 | FY53: 4.749686 | FZ53: 3.412083 | GA53: 3.588773 | GB53: 3.439309 | GC53: 68.74329 | GD53: 59.84842 | GE53: 57.68191 | GF53: 61.53848 | GG53: 66.82138 | GH53: 67.46651 | GI53: 55.19832 | GJ53: 73.12246 | GK53: 71.2836 | GL53: 70.97762 | GM53: 52.64082 | GN53: 60.20657 | GO53: 59.73359 | GP53: 59.97665 | GQ53: 55.8371 | GR53: 55.17067 | GS53: 58.88792 | GT53: 44.53401 | GU53: 48.60859 | GV53: 47.92092 | GW53: 86.5405 | GX53: 83.90293 | GY53: 82.96947 | GZ53: 81.83112 | HA53: 86.16039 | HB53: 86.25111 | HC53: 83.43092 | HD53: 87.57653 | HE53: 87.09678 | HF53: 86.70963 | HG53: 44.5238 | HH53: 41.49112 | HI53: 40.66115 | HJ53: 32.88157 | HK53: 46.25377 | HL53: 45.04333 | HM53: 45.49012 | HN53: 41.90516 | HO53: 43.07114 | HP53: 42.23924 | HQ53: 68.33787 | HR53: 69.88535 | HS53: 69.66396 | HT53: 67.48973 | HU53: 69.59016 | HV53: 69.07786 | HW53: 71.24734 | HX53: 66.0789 | HY53: 67.12634 | HZ53: 66.92496
A54: 5093 | B54: BETULIA | C54: 1 | D54: EJE CAFETERO | E54: ANTIOQUIA | F54: Suroeste | G54: D | H54: Intermedio | I54: Robusto | J54: medioalto | K54: 6 | L54: G4- Nivel Medio Bajo | M54: 77.7464607 | N54: 1.521319138 | O54: 68.03671704 | P54: 51.43838372 | Q54: 85.16561567 | R54: 15.76435602 | S54: =AVERAGE(VLOOKUP($A54,Cont!$A$3:$L$1135,3,FALSE),(100-Base!N54),(100-Base!O54),Base!P54,Base!Q54,Base!R54) -> 63.80171987 | T54: 3. Vulnerable (>=60 y <70) | U54: 69.96703572 | V54: 5.070604365 | W54: 83.45180476 | X54: 31.48843189 | Y54: 85.80553539 | Z54: 34.37461337 | AA54: =AVERAGE(VLOOKUP($A54,Cont!$A$3:$L$1135,4,FALSE),(100-Base!V54),(100-Base!W54),Base!X54,Base!Y54,Base!Z54) -> 60.52436192 | AB54: 3. Vulnerable (>=60 y <70) | AC54: 66.4 | AD54: 3.9 | AE54: 68.09 | AF54: 38.85 | AG54: 88.88 | AH54: 30.59 | AI54: =AVERAGE(VLOOKUP($A54,Cont!$A$3:$L$1135,5,FALSE),(100-Base!AD54),(100-Base!AE54),Base!AF54,Base!AG54,Base!AH54) -> 64.38833333 | AJ54: 3. Vulnerable (>=60 y <70) | AK54: 60.2481797 | AL54: 2.253747551 | AM54: 76.18952275 | AN54: 46.125435 | AO54: 89.95371136 | AP54: 43.61725171 | AQ54: =AVERAGE(VLOOKUP($A54,Cont!$A$3:$L$1135,6,FALSE),(100-Base!AL54),(100-Base!AM54),Base!AN54,Base!AO54,Base!AP54) -> 66.87552129 | AR54: 3. Vulnerable (>=60 y <70) | AS54: 90.34453385 | AT54: 1.383922474 | AU54: 71.43808042 | AV54: 42.1194488 | AW54: 83.68268421 | AX54: 32.90050886 | AY54: =AVERAGE(VLOOKUP($A54,Cont!$A$3:$L$1135,7,FALSE),(100-Base!AT54),(100-Base!AU54),Base!AV54,Base!AW54,Base!AX54) -> 55.69299495 | AZ54: 2. Riesgo (>=40 y <60) | BA54: 71.66959754 | BB54: 0 | BC54: 75.2438341 | BD54: 46.7474432 | BE54: 85.35882304 | BF54: 25.2657879 | BG54: =AVERAGE(VLOOKUP($A54,Cont!$A$3:$L$1135,3,FALSE),(100-Base!BB54),(100-Base!BC54),Base!BD54,Base!BE54,Base!BF54) -> 63.68803667 | BH54: 3. Vulnerable (>=60 y <70) | BI54: 0.8 | BJ54: 0.8 | BK54: 0.8 | BL54: 0.8 | BM54: 0.8 | BN54: 0.8 | BO54: 2644.013215 | BP54: 2055.626695 | BQ54: 87.4091301 | BR54: 5745.61431 | BS54: 0 | BT54: 12104.36426 | BU54: 1250.888794 | BV54: 19629.47895 | BW54: 1722.039642 | BX54: 3347.771679 | BY54: 16189.98682 | BZ54: 19010.00385 | CA54: 2820.017033 | CB54: 2499.722782 | CC54: 1748.981932 | CD54: 275.4049861 | CE54: 5431.403563 | CF54: 60.8541977 | CG54: 10543.60202 | CH54: 1245.068192 | CI54: 14199.24284 | CJ54: 922.9482943 | CK54: 2931.070997 | CL54: 11627.71831 | CM54: 13551.24498 | CN54: 1923.526674 | CO54: 2544.31451 | CP54: 1689.476198 | CQ54: 211.8736187 | CR54: 5437.769542 | CS54: 0 | CT54: 12274.07723 | CU54: 1309.655539 | CV54: 19949.88256 | CW54: 1149.648079 | CX54: 2959.343681 | CY54: 16411.47824 | CZ54: 18465.46975 | DA54: 2053.991509 | DB54: 3056.337644 | DC54: 1841.387796 | DD54: 159.162473 | DE54: 7062.125169 | DF54: 987.0339253 | DG54: 11732.87608 | DH54: 1228.899159 | DI54: 18308.04113 | DJ54: 1699.340818 | DK54: 3684.172991 | DL54: 18599.43236 | DM54: 20676.67034 | DN54: 2077.237984 | DO54: 2979.050155 | DP54: 2056.604943 | DQ54: 88.10857587 | DR54: 6366.583061 | DS54: 645.6492176 | DT54: 11793.80146 | DU54: 1166.403825 | DV54: 19045.66041 | DW54: 1466.437955 | DX54: 3481.617319 | DY54: 11980.83681 | DZ54: 14316.98353 | EA54: 2336.147529 | EB54: 3035.161819 | EC54: 2314.27877 | ED54: 0 | EE54: 6035.729431 | EF54: 0 | EG54: 12279.16213 | EH54: 1287.913897 | EI54: 18030.81434 | EJ54: 1617.43161 | EK54: 3459.935987 | EL54: 15075.09135 | EM54: 17660.84725 | EN54: 2585.755899 | EO54: 821 | EP54: 151 | EQ54: 100 | ER54: 20 | ES54: 230 | ET54: 583 | EU54: 235 | EV54: 365 | EW54: 693 | EX54: 143 | EY54: 1101 | EZ54: 178 | FA54: 125 | FB54: 24 | FC54: 261 | FD54: 712 | FE54: 269 | FF54: 551 | FG54: 972 | FH54: 218 | FI54: 54.42346 | FJ54: 60.12363 | FK54: 62.73397 | FL54: 68.4238 | FM54: 53.26068 | FN54: 54.66744 | FO54: 54.82962 | FP54: 56.51045 | FQ54: 55.87918 | FR54: 57.0719 | FS54: 3.922798 | FT54: 5.870482 | FU54: 6.887506 | FV54: 6.101318 | FW54: 3.766216 | FX54: 3.81103 | FY54: 4.749686 | FZ54: 3.412083 | GA54: 3.588773 | GB54: 3.747513 | GC54: 68.74329 | GD54: 59.84842 | GE54: 57.68191 | GF54: 61.53848 | GG54: 66.82138 | GH54: 67.46651 | GI54: 55.19832 | GJ54: 73.12246 | GK54: 71.2836 | GL54: 76.02158 | GM54: 52.64082 | GN54: 60.20657 | GO54: 59.73359 | GP54: 59.97665 | GQ54: 55.8371 | GR54: 55.17067 | GS54: 58.88792 | GT54: 44.53401 | GU54: 48.60859 | GV54: 44.20174 | GW54: 86.5405 | GX54: 83.90293 | GY54: 82.96947 | GZ54: 81.83112 | HA54: 86.16039 | HB54: 86.25111 | HC54: 83.43092 | HD54: 87.57653 | HE54: 87.09678 | HF54: 88.70966 | HG54: 44.5238 | HH54: 41.49112 | HI54: 40.66115 | HJ54: 32.88157 | HK54: 46.25377 | HL54: 45.04333 | HM54: 45.49012 | HN54: 41.90516 | HO54: 43.07114 | HP54: 40.04123 | HQ54: 68.33787 | HR54: 69.88535 | HS54: 69.66396 | HT54: 67.48973 | HU54: 69.59016 | HV54: 69.07786 | HW54: 71.24734 | HX54: 66.0789 | HY54: 67.12634 | HZ54: 65.3675
A55: 5101 | B55: CIUDAD BOLÍVAR | C55: 1 | D55: EJE CAFETERO | E55: ANTIOQUIA | F55: Suroeste | G55: D | H55: Intermedio | I55: Robusto | J55: mediobajo | K55: 6 | L55: G2- Nivel Medio Alto | M55: 69.02954236 | N55: 10.81273665 | O55: 60.01563258 | P55: 68.77502024 | Q55: 88.33479886 | R55: 55.99615816 | S55: =AVERAGE(VLOOKUP($A55,Cont!$A$3:$L$1135,3,FALSE),(100-Base!N55),(100-Base!O55),Base!P55,Base!Q55,Base!R55) -> 73.71293467 | T55: 4. Sostenible (>=70 y <80) | U55: 64.10268373 | V55: 21.16465884 | W55: 67.36862235 | X55: 60.76425722 | Y55: 78.75232569 | Z55: 31.76216095 | AA55: =AVERAGE(VLOOKUP($A55,Cont!$A$3:$L$1135,4,FALSE),(100-Base!V55),(100-Base!W55),Base!X55,Base!Y55,Base!Z55) -> 63.79091045 | AB55: 3. Vulnerable (>=60 y <70) | AC55: 59.1 | AD55: 10.95 | AE55: 72.99 | AF55: 62.79 | AG55: 82.68 | AH55: 31.57 | AI55: =AVERAGE(VLOOKUP($A55,Cont!$A$3:$L$1135,5,FALSE),(100-Base!AD55),(100-Base!AE55),Base!AF55,Base!AG55,Base!AH55) -> 65.51666667 | AJ55: 3. Vulnerable (>=60 y <70) | AK55: 71.55552645 | AL55: 9.486947506 | AM55: 71.42505018 | AN55: 60.25311547 | AO55: 82.28466914 | AP55: 35.73624552 | AQ55: =AVERAGE(VLOOKUP($A55,Cont!$A$3:$L$1135,6,FALSE),(100-Base!AL55),(100-Base!AM55),Base!AN55,Base!AO55,Base!AP55) -> 66.22700541 | AR55: 3. Vulnerable (>=60 y <70) | AS55: 79.31215646 | AT55: 7.701568232 | AU55: 70.9862883 | AV55: 61.03069258 | AW55: 83.40749547 | AX55: 38.12095299 | AY55: =AVERAGE(VLOOKUP($A55,Cont!$A$3:$L$1135,7,FALSE),(100-Base!AT55),(100-Base!AU55),Base!AV55,Base!AW55,Base!AX55) -> 67.31188075 | AZ55: 3. Vulnerable (>=60 y <70) | BA55: 64.14719944 | BB55: 15.03343666 | BC55: 61.60192893 | BD55: 67.83491365 | BE55: 81.90832602 | BF55: 44.95815144 | BG55: =AVERAGE(VLOOKUP($A55,Cont!$A$3:$L$1135,3,FALSE),(100-Base!BB55),(100-Base!BC55),Base!BD55,Base!BE55,Base!BF55) -> 69.67767092 | BH55: 3. Vulnerable (>=60 y <70) | BI55: 0.8 | BJ55: 0.8 | BK55: 0.8 | BL55: 0.8 | BM55: 0.8 | BN55: 0.8 | BO55: 6223.260067 | BP55: 4295.887944 | BQ55: 1055.411163 | BR55: 9760.814469 | BS55: 89.322984 | BT55: 15797.94238 | BU55: 903.3397827 | BV55: 27977.05269 | BW55: 5385.242737 | BX55: 7830.230682 | BY55: 26091.84229 | BZ55: 29537.44461 | CA55: 3445.602325 | CB55: 4711.78032 | CC55: 3020.377637 | CD55: 1573.258875 | CE55: 7433.424213 | CF55: 0 | CG55: 13031.84103 | CH55: 714.7912788 | CI55: 20405.09637 | CJ55: 3461.268903 | CK55: 5696.225152 | CL55: 14406.69625 | CM55: 18293.6772 | CN55: 3886.980951 | CO55: 6072.588112 | CP55: 3588.833745 | CQ55: 1185.223364 | CR55: 10824.59132 | CS55: 2362.460501 | CT55: 16787.98251 | CU55: 841.7963619 | CV55: 27388.81088 | CW55: 4153.677055 | CX55: 6615.523435 | CY55: 21612.4733 | CZ55: 26139.54274 | DA55: 4527.069441 | DB55: 6210.124194 | DC55: 4443.687061 | DD55: 1139.391753 | DE55: 12010.09864 | DF55: 2670.237592 | DG55: 16759.86079 | DH55: 928.5518038 | DI55: 28503.51541 | DJ55: 4554.203526 | DK55: 7558.453187 | DL55: 22561.53696 | DM55: 27418.88276 | DN55: 4857.345798 | DO55: 6907.578581 | DP55: 3861.102936 | DQ55: 823.127583 | DR55: 10687.79222 | DS55: 1349.151055 | DT55: 16703.01775 | DU55: 969.4747419 | DV55: 26796.22332 | DW55: 4681.168257 | DX55: 7670.187612 | DY55: 23858.47815 | DZ55: 28604.71545 | EA55: 4746.238917 | EB55: 6880.143203 | EC55: 2889.334471 | ED55: 1456.242912 | EE55: 9686.693369 | EF55: 0 | EG55: 14900.79084 | EH55: 960.0785836 | EI55: 25747.3584 | EJ55: 5155.120095 | EK55: 7599.508598 | EL55: 18937.72558 | EM55: 23120.63559 | EN55: 4182.910014 | EO55: 235 | EP55: 47 | EQ55: 34 | ER55: 2 | ES55: 55 | ET55: 159 | EU55: 91 | EV55: 86 | EW55: 134 | EX55: 55 | EY55: 1101 | EZ55: 178 | FA55: 125 | FB55: 24 | FC55: 261 | FD55: 712 | FE55: 269 | FF55: 321 | FG55: 972 | FH55: 217 | FI55: 54.42346 | FJ55: 60.12363 | FK55: 62.73397 | FL55: 68.4238 | FM55: 53.26068 | FN55: 54.66744 | FO55: 54.82962 | FP55: 52.54627 | FQ55: 55.87918 | FR55: 53.15378 | FS55: 3.922798 | FT55: 5.870482 | FU55: 6.887506 | FV55: 6.101318 | FW55: 3.766216 | FX55: 3.81103 | FY55: 4.749686 | FZ55: 3.963986 | GA55: 3.588773 | GB55: 3.74221 | GC55: 68.74329 | GD55: 59.84842 | GE55: 57.68191 | GF55: 61.53848 | GG55: 66.82138 | GH55: 67.46651 | GI55: 55.19832 | GJ55: 65.08167 | GK55: 71.2836 | GL55: 63.64019 | GM55: 52.64082 | GN55: 60.20657 | GO55: 59.73359 | GP55: 59.97665 | GQ55: 55.8371 | GR55: 55.17067 | GS55: 58.88792 | GT55: 59.3712 | GU55: 48.60859 | GV55: 57.61211 | GW55: 86.5405 | GX55: 83.90293 | GY55: 82.96947 | GZ55: 81.83112 | HA55: 86.16039 | HB55: 86.25111 | HC55: 83.43092 | HD55: 85.8471 | HE55: 87.09678 | HF55: 84.95947 | HG55: 44.5238 | HH55: 41.49112 | HI55: 40.66115 | HJ55: 32.88157 | HK55: 46.25377 | HL55: 45.04333 | HM55: 45.49012 | HN55: 46.74914 | HO55: 43.07114 | HP55: 46.6811 | HQ55: 68.33787 | HR55: 69.88535 | HS55: 69.66396 | HT55: 67.48973 | HU55: 69.59016 | HV55: 69.07786 | HW55: 71.24734 | HX55: 70.45395 | HY55: 67.12634 | HZ55: 70.13554
A56: 5107 | B56: BRICEÑO | C56: 1 | D56: EJE CAFETERO | E56: ANTIOQUIA | F56: Norte | G56: F | H56: Temprano | I56: Robusto | J56: medioalto | K56: 6 | L56: G2- Nivel Medio Alto | M56: 30.58958844 | N56: 0.9464817177 | O56: 37.84301848 | P56: 82.54978389 | Q56: 85.60233266 | R56: 72.08421943 | S56: =AVERAGE(VLOOKUP($A56,Cont!$A$3:$L$1135,3,FALSE),(100-Base!N56),(100-Base!O56),Base!P56,Base!Q56,Base!R56) -> 83.57447263 | T56: 5. Solvente (>=80) | U56: 56.00160047 | V56: 16.94590585 | W56: 72.80189144 | X56: 53.52394595 | Y56: 78.84745549 | Z56: 38.84089811 | AA56: =AVERAGE(VLOOKUP($A56,Cont!$A$3:$L$1135,4,FALSE),(100-Base!V56),(100-Base!W56),Base!X56,Base!Y56,Base!Z56) -> 63.57741704 | AB56: 3. Vulnerable (>=60 y <70) | AC56: 29.82 | AD56: 7.74 | AE56: 64.61 | AF56: 69.45 | AG56: 82.22 | AH56: 64.63 | AI56: =AVERAGE(VLOOKUP($A56,Cont!$A$3:$L$1135,5,FALSE),(100-Base!AD56),(100-Base!AE56),Base!AF56,Base!AG56,Base!AH56) -> 73.99166667 | AJ56: 4. Sostenible (>=70 y <80) | AK56: 32.50854449 | AL56: 6.556888668 | AM56: 54.6654632 | AN56: 79.04049873 | AO56: 83.57809847 | AP56: 63.06803933 | AQ56: =AVERAGE(VLOOKUP($A56,Cont!$A$3:$L$1135,6,FALSE),(100-Base!AL56),(100-Base!AM56),Base!AN56,Base!AO56,Base!AP56) -> 77.41071411 | AR56: 4. Sostenible (>=70 y <80) | AS56: 36.24614111 | AT56: 4.075157195 | AU56: 41.8376046 | AV56: 79.75865006 | AW56: 85.3001767 | AX56: 67.93053863 | AY56: =AVERAGE(VLOOKUP($A56,Cont!$A$3:$L$1135,7,FALSE),(100-Base!AT56),(100-Base!AU56),Base!AV56,Base!AW56,Base!AX56) -> 81.17943393 | AZ56: 5. Solvente (>=80) | BA56: 27.76208095 | BB56: 2.535027916 | BC56: 42.95788272 | BD56: 83.01217961 | BE56: 85.00478025 | BF56: 73.57663911 | BG56: =AVERAGE(VLOOKUP($A56,Cont!$A$3:$L$1135,3,FALSE),(100-Base!BB56),(100-Base!BC56),Base!BD56,Base!BE56,Base!BF56) -> 82.68344806 | BH56: 5. Solvente (>=80) | BI56: 0.8 | BJ56: 0.8 | BK56: 0.8 | BL56: 0.8 | BM56: 0.8 | BN56: 0.8 | BO56: 11301.58692 | BP56: 3457.108927 | BQ56: 147.6691914 | BR56: 15601.90637 | BS56: 0 | BT56: 7432.949219 | BU56: 1734.059448 | BV56: 24223.77769 | BW56: 10527.06111 | BX56: 12752.37877 | BY56: 21165.78809 | BZ56: 24725.71416 | CA56: 3559.926073 | CB56: 2495.536262 | CC56: 1397.540247 | CD56: 912.3335835 | CE56: 5383.799435 | CF56: 65.99575645 | CG56: 5984.713525 | CH56: 1178.858824 | CI56: 9930.467414 | CJ56: 1653.823354 | CK56: 3089.875614 | CL56: 7044.126736 | CM56: 8933.866911 | CN56: 1889.740175 | CO56: 5866.996637 | CP56: 1749.653515 | CQ56: 828.4660403 | CR56: 10701.3337 | CS56: 1532.300039 | CT56: 7176.792279 | CU56: 1503.787235 | CV56: 15807.0955 | CW56: 4529.890642 | CX56: 6522.453652 | CY56: 10665.41615 | CZ56: 12972.33147 | DA56: 2306.915329 | DB56: 6722.285682 | DC56: 2185.317232 | DD56: 677.976004 | DE56: 10339.90416 | DF56: 405.3315551 | DG56: 7222.954179 | DH56: 1398.03382 | DI56: 16511.92366 | DJ56: 5834.32489 | DK56: 7381.437344 | DL56: 13874.34036 | DM56: 16600.4499 | DN56: 2726.109537 | DO56: 7666.24715 | DP56: 2612.186273 | DQ56: 503.896634 | DR56: 12365.08428 | DS56: 639.4046819 | DT56: 7367.164308 | DU56: 1558.293485 | DV56: 22861.87858 | DW56: 7445.017232 | DX56: 9334.431813 | DY56: 17370.70215 | DZ56: 20364.20406 | EA56: 2993.502178 | EB56: 9479.211568 | EC56: 2364.13788 | ED56: 326.0598432 | EE56: 12862.17959 | EF56: 0 | EG56: 7000.459492 | EH56: 1403.546437 | EI56: 19563.36159 | EJ56: 8529.563451 | EK56: 10275.07468 | EL56: 15390.88376 | EM56: 18105.90382 | EN56: 2715.020065 | EO56: 25 | EP56: 5 | EQ56: 5 | ER56: 1 | ES56: 1 | ET56: 1 | EU56: 14 | EV56: 1 | EW56: 10 | EX56: 5 | EY56: 1101 | EZ56: 178 | FA56: 125 | FB56: 133 | FC56: 209 | FD56: 320 | FE56: 269 | FF56: 551 | FG56: 972 | FH56: 217 | FI56: 54.42346 | FJ56: 60.12363 | FK56: 62.73397 | FL56: 56.92537 | FM56: 55.94317 | FN56: 57.49088 | FO56: 54.82962 | FP56: 56.51045 | FQ56: 55.87918 | FR56: 53.15378 | FS56: 3.922798 | FT56: 5.870482 | FU56: 6.887506 | FV56: 4.573634 | FW56: 3.434033 | FX56: 3.514691 | FY56: 4.749686 | FZ56: 3.412083 | GA56: 3.588773 | GB56: 3.74221 | GC56: 68.74329 | GD56: 59.84842 | GE56: 57.68191 | GF56: 71.53587 | GG56: 76.82989 | GH56: 77.8087 | GI56: 55.19832 | GJ56: 73.12246 | GK56: 71.2836 | GL56: 63.64019 | GM56: 52.64082 | GN56: 60.20657 | GO56: 59.73359 | GP56: 54.84887 | GQ56: 42.07367 | GR56: 40.05861 | GS56: 58.88792 | GT56: 44.53401 | GU56: 48.60859 | GV56: 57.61211 | GW56: 86.5405 | GX56: 83.90293 | GY56: 82.96947 | GZ56: 86.50879 | HA56: 88.24205 | HB56: 88.44742 | HC56: 83.43092 | HD56: 87.57653 | HE56: 87.09678 | HF56: 84.95947 | HG56: 44.5238 | HH56: 41.49112 | HI56: 40.66115 | HJ56: 41.70697 | HK56: 41.44729 | HL56: 39.99458 | HM56: 45.49012 | HN56: 41.90516 | HO56: 43.07114 | HP56: 46.6811 | HQ56: 68.33787 | HR56: 69.88535 | HS56: 69.66396 | HT56: 67.77946 | HU56: 65.14521 | HV56: 64.21645 | HW56: 71.24734 | HX56: 66.0789 | HY56: 67.12634 | HZ56: 70.13554
A57: 5113 | B57: BURITICÁ | C57: 1 | D57: EJE CAFETERO | E57: ANTIOQUIA | F57: Occidente | G57: E | H57: Intermedio | I57: Robusto | J57: medioalto | K57: 6 | L57: G3- Nivel Medio | M57: 71.94947627 | N57: 3.991826597 | O57: 75.21916921 | P57: 25.54573096 | Q57: 88.68939736 | R57: 40.6589883 | S57: =AVERAGE(VLOOKUP($A57,Cont!$A$3:$L$1135,3,FALSE),(100-Base!N57),(100-Base!O57),Base!P57,Base!Q57,Base!R57) -> 62.61385347 | T57: 3. Vulnerable (>=60 y <70) | U57: 71.60214314 | V57: 12.06849659 | W57: 70.95261215 | X57: 25.94655012 | Y57: 75.52716551 | Z57: 24.85098739 | AA57: =AVERAGE(VLOOKUP($A57,Cont!$A$3:$L$1135,4,FALSE),(100-Base!V57),(100-Base!W57),Base!X57,Base!Y57,Base!Z57) -> 57.21726571 | AB57: 2. Riesgo (>=40 y <60) | AC57: 65.14 | AD57: 5.21 | AE57: 76.08 | AF57: 30.47 | AG57: 82.94 | AH57: 25.43 | AI57: =AVERAGE(VLOOKUP($A57,Cont!$A$3:$L$1135,5,FALSE),(100-Base!AD57),(100-Base!AE57),Base!AF57,Base!AG57,Base!AH57) -> 59.59166667 | AJ57: 2. Riesgo (>=40 y <60) | AK57: 71.41966889 | AL57: 4.53265229 | AM57: 74.2887446 | AN57: 38.61398099 | AO57: 85.80358472 | AP57: 44.7866749 | AQ57: =AVERAGE(VLOOKUP($A57,Cont!$A$3:$L$1135,6,FALSE),(100-Base!AL57),(100-Base!AM57),Base!AN57,Base!AO57,Base!AP57) -> 65.06380729 | AR57: 3. Vulnerable (>=60 y <70) | AS57: 82.46357966 | AT57: 4.357176264 | AU57: 67.73528311 | AV57: 40.90341712 | AW57: 81.82121681 | AX57: 33.59039174 | AY57: =AVERAGE(VLOOKUP($A57,Cont!$A$3:$L$1135,7,FALSE),(100-Base!AT57),(100-Base!AU57),Base!AV57,Base!AW57,Base!AX57) -> 61.98411133 | AZ57: 3. Vulnerable (>=60 y <70) | BA57: 64.06012772 | BB57: 3.79247279 | BC57: 87.14876157 | BD57: 27.73289034 | BE57: 82.95994219 | BF57: 34.61014623 | BG57: =AVERAGE(VLOOKUP($A57,Cont!$A$3:$L$1135,3,FALSE),(100-Base!BB57),(100-Base!BC57),Base!BD57,Base!BE57,Base!BF57) -> 59.06029073 | BH57: 2. Riesgo (>=40 y <60) | BI57: 0.8 | BJ57: 0.8 | BK57: 0.8 | BL57: 0.8 | BM57: 0.8 | BN57: 0.8 | BO57: 2171.088472 | BP57: 1562.086785 | BQ57: 251.1142082 | BR57: 6290.709331 | BS57: 280.577376 | BT57: 8282.527344 | BU57: 1819.872314 | BV57: 13803.63163 | BW57: 659.0778465 | BX57: 2579.992123 | BY57: 12004.92041 | BZ57: 13535.91384 | CA57: 1530.993427 | CB57: 2084.995215 | CC57: 1492.901258 | CD57: 567.0654946 | CE57: 4698.725232 | CF57: 424.4406421 | CG57: 5154.971507 | CH57: 1518.869856 | CI57: 10004.25748 | CJ57: 609.1691478 | CK57: 2347.784754 | CL57: 5445.032419 | CM57: 7209.36948 | CN57: 1764.337061 | CO57: 2269.075322 | CP57: 1478.023926 | CQ57: 364.4047981 | CR57: 6994.062592 | CS57: 1518.93703 | CT57: 6829.939106 | CU57: 1686.659775 | CV57: 13191.06324 | CW57: 790.7209423 | CX57: 2595.214209 | CY57: 9405.47255 | CZ57: 11340.59817 | DA57: 1935.12562 | DB57: 2487.547994 | DC57: 1776.598541 | DD57: 331.429236 | DE57: 7312.037518 | DF57: 1255.030171 | DG57: 7021.936721 | DH57: 1654.94607 | DI57: 13369.33746 | DJ57: 1266.067156 | DK57: 3278.779147 | DL57: 10941.64963 | DM57: 12751.97262 | DN57: 1810.322989 | DO57: 2466.803891 | DP57: 1632.896975 | DQ57: 290.9088735 | DR57: 6676.545935 | DS57: 807.2296849 | DT57: 7305.200799 | DU57: 1682.983316 | DV57: 14461.31638 | DW57: 1336.416089 | DX57: 3267.248066 | DY57: 9765.942623 | DZ57: 11935.70921 | EA57: 2169.766591 | EB57: 1981.996926 | EC57: 1241.043211 | ED57: 213.5989254 | EE57: 5632.180828 | EF57: 727.8212207 | EG57: 7179.335034 | EH57: 1674.017016 | EI57: 10994.04409 | EJ57: 657.8925178 | EK57: 2372.246491 | EL57: 7552.096938 | EM57: 9103.305449 | EN57: 1551.208511 | EO57: 878 | EP57: 161 | EQ57: 109 | ER57: 39 | ES57: 219 | ET57: 610 | EU57: 247 | EV57: 406 | EW57: 750 | EX57: 179 | EY57: 1101 | EZ57: 178 | FA57: 125 | FB57: 53 | FC57: 293 | FD57: 712 | FE57: 269 | FF57: 551 | FG57: 972 | FH57: 218 | FI57: 54.42346 | FJ57: 60.12363 | FK57: 62.73397 | FL57: 56.23077 | FM57: 57.14053 | FN57: 54.66744 | FO57: 54.82962 | FP57: 56.51045 | FQ57: 55.87918 | FR57: 56.21923 | FS57: 3.922798 | FT57: 5.870482 | FU57: 6.887506 | FV57: 4.91842 | FW57: 3.387767 | FX57: 3.81103 | FY57: 4.749686 | FZ57: 3.412083 | GA57: 3.588773 | GB57: 3.439309 | GC57: 68.74329 | GD57: 59.84842 | GE57: 57.68191 | GF57: 71.18067 | GG57: 73.24714 | GH57: 67.46651 | GI57: 55.19832 | GJ57: 73.12246 | GK57: 71.2836 | GL57: 70.97762 | GM57: 52.64082 | GN57: 60.20657 | GO57: 59.73359 | GP57: 44.51445 | GQ57: 46.50101 | GR57: 55.17067 | GS57: 58.88792 | GT57: 44.53401 | GU57: 48.60859 | GV57: 47.92092 | GW57: 86.5405 | GX57: 83.90293 | GY57: 82.96947 | GZ57: 86.62191 | HA57: 87.87841 | HB57: 86.25111 | HC57: 83.43092 | HD57: 87.57653 | HE57: 87.09678 | HF57: 86.70963 | HG57: 44.5238 | HH57: 41.49112 | HI57: 40.66115 | HJ57: 39.58741 | HK57: 42.6393 | HL57: 45.04333 | HM57: 45.49012 | HN57: 41.90516 | HO57: 43.07114 | HP57: 42.23924 | HQ57: 68.33787 | HR57: 69.88535 | HS57: 69.66396 | HT57: 65.70256 | HU57: 66.51777 | HV57: 69.07786 | HW57: 71.24734 | HX57: 66.0789 | HY57: 67.12634 | HZ57: 66.92496
A58: 5120 | B58: CÁCERES | C58: 1 | D58: EJE CAFETERO | E58: ANTIOQUIA | F58: Bajo cauca | G58: E | H58: Intermedio | I58: Robusto | J58: alto | K58: 6 | L58: G4- Nivel Medio Bajo | M58: 78.95031325 | N58: 12.25846247 | O58: 77.40774478 | P58: 53.10022794 | Q58: 87.63608969 | R58: 21.74248668 | S58: =AVERAGE(VLOOKUP($A58,Cont!$A$3:$L$1135,3,FALSE),(100-Base!N58),(100-Base!O58),Base!P58,Base!Q58,Base!R58) -> 62.13543284 | T58: 3. Vulnerable (>=60 y <70) | U58: 72.43028751 | V58: 0 | W58: 76.36872856 | X58: 60.28342282 | Y58: 89.40811916 | Z58: 33.75352415 | AA58: =AVERAGE(VLOOKUP($A58,Cont!$A$3:$L$1135,4,FALSE),(100-Base!V58),(100-Base!W58),Base!X58,Base!Y58,Base!Z58) -> 67.84605626 | AB58: 3. Vulnerable (>=60 y <70) | AC58: 64.04 | AD58: 2.14 | AE58: 75.38 | AF58: 64.04 | AG58: 95.11 | AH58: 49.65 | AI58: =AVERAGE(VLOOKUP($A58,Cont!$A$3:$L$1135,5,FALSE),(100-Base!AD58),(100-Base!AE58),Base!AF58,Base!AG58,Base!AH58) -> 71.88 | AJ58: 4. Sostenible (>=70 y <80) | AK58: 82.16990186 | AL58: 4.526966729 | AM58: 78.45289776 | AN58: 67.86934279 | AO58: 87.99438277 | AP58: 34.38789209 | AQ58: =AVERAGE(VLOOKUP($A58,Cont!$A$3:$L$1135,6,FALSE),(100-Base!AL58),(100-Base!AM58),Base!AN58,Base!AO58,Base!AP58) -> 66.07037397 | AR58: 3. Vulnerable (>=60 y <70) | AS58: 75.62188189 | AT58: 6.116189223 | AU58: 74.15027922 | AV58: 62.13521284 | AW58: 91.96472397 | AX58: 50.32441299 | AY58: =AVERAGE(VLOOKUP($A58,Cont!$A$3:$L$1135,7,FALSE),(100-Base!AT58),(100-Base!AU58),Base!AV58,Base!AW58,Base!AX58) -> 70.69298023 | AZ58: 4. Sostenible (>=70 y <80) | BA58: 120.8793032 | BB58: 7.356640141 | BC58: 78.90401456 | BD58: 61.22629971 | BE58: 86.80219479 | BF58: 17.88301001 | BG58: =AVERAGE(VLOOKUP($A58,Cont!$A$3:$L$1135,3,FALSE),(100-Base!BB58),(100-Base!BC58),Base!BD58,Base!BE58,Base!BF58) -> 63.27514164 | BH58: 3. Vulnerable (>=60 y <70) | BI58: 0.8 | BJ58: 0.8 | BK58: 0.8 | BL58: 0.8 | BM58: 0.8 | BN58: 0.8 | BO58: 3689.582596 | BP58: 2912.937017 | BQ58: 1164.475861 | BR58: 9499.363103 | BS58: 0 | BT58: 21045.84961 | BU58: 1896.647095 | BV58: 29638.50293 | BW58: 2615.85672 | BX58: 4926.262695 | BY58: 27325.66602 | BZ58: 31180.8367 | CA58: 3855.170685 | CB58: 3189.850367 | CC58: 2310.417792 | CD58: 0 | CE58: 6777.020276 | CF58: 0 | CG58: 17881.72532 | CH58: 1198.768082 | CI58: 24984.69434 | CJ58: 2199.031014 | CK58: 3647.820431 | CL58: 20398.58787 | CM58: 22815.14035 | CN58: 2416.552481 | CO58: 3168.219094 | CP58: 2028.963008 | CQ58: 379.8011662 | CR58: 17762.07556 | CS58: 10276.45467 | CT58: 19507.76111 | CU58: 1281.313296 | CV58: 41211.35164 | CW58: 3029.497556 | CX58: 4730.841093 | CY58: 46312.0941 | CZ58: 48694.2326 | DA58: 2382.138499 | DB58: 4077.784727 | DC58: 3350.711709 | DD58: 530.7836829 | DE58: 11724.93006 | DF58: 3846.092654 | DG58: 18638.4044 | DH58: 1204.598046 | DI58: 30195.30925 | DJ58: 3543.677374 | DK58: 5221.322659 | DL58: 25109.32159 | DM58: 28535.14145 | DN58: 3425.819858 | DO58: 1615.038935 | DP58: 2126.788138 | DQ58: 731.1721328 | DR58: 11954.70101 | DS58: 3798.782973 | DT58: 17097.27929 | DU58: 1196.738458 | DV58: 29794.62809 | DW58: 3521.146293 | DX58: 5666.909186 | DY58: 32218.82743 | DZ58: 35033.89899 | EA58: 2815.07048 | EB58: 2289.449842 | EC58: 2767.471016 | ED58: 779.0168463 | EE58: 10589.30206 | EF58: 2806.679791 | EG58: 19830.84687 | EH58: 1232.959582 | EI58: 30252.56241 | EJ58: 2576.334454 | EK58: 4207.888547 | EL58: 22726.16955 | EM58: 26181.56097 | EN58: 3455.391417 | EO58: 906 | EP58: 165 | EQ58: 112 | ER58: 5 | ES58: 230 | ET58: 624 | EU58: 252 | EV58: 63 | EW58: 778 | EX58: 165 | EY58: 1101 | EZ58: 178 | FA58: 125 | FB58: 6 | FC58: 293 | FD58: 712 | FE58: 269 | FF58: 108 | FG58: 972 | FH58: 218 | FI58: 54.42346 | FJ58: 60.12363 | FK58: 62.73397 | FL58: 71.71782 | FM58: 57.14053 | FN58: 54.66744 | FO58: 54.82962 | FP58: 61.15504 | FQ58: 55.87918 | FR58: 57.0719 | FS58: 3.922798 | FT58: 5.870482 | FU58: 6.887506 | FV58: 8.668035 | FW58: 3.387767 | FX58: 3.81103 | FY58: 4.749686 | FZ58: 3.747457 | GA58: 3.588773 | GB58: 3.747513 | GC58: 68.74329 | GD58: 59.84842 | GE58: 57.68191 | GF58: 72.29187 | GG58: 73.24714 | GH58: 67.46651 | GI58: 55.19832 | GJ58: 82.83726 | GK58: 71.2836 | GL58: 76.02158 | GM58: 52.64082 | GN58: 60.20657 | GO58: 59.73359 | GP58: 57.90823 | GQ58: 46.50101 | GR58: 55.17067 | GS58: 58.88792 | GT58: 41.20349 | GU58: 48.60859 | GV58: 44.20174 | GW58: 86.5405 | GX58: 83.90293 | GY58: 82.96947 | GZ58: 87.35349 | HA58: 87.87841 | HB58: 86.25111 | HC58: 83.43092 | HD58: 89.18923 | HE58: 87.09678 | HF58: 88.70966 | HG58: 44.5238 | HH58: 41.49112 | HI58: 40.66115 | HJ58: 39.01711 | HK58: 42.6393 | HL58: 45.04333 | HM58: 45.49012 | HN58: 38.63546 | HO58: 43.07114 | HP58: 40.04123 | HQ58: 68.33787 | HR58: 69.88535 | HS58: 69.66396 | HT58: 66.41365 | HU58: 66.51777 | HV58: 69.07786 | HW58: 71.24734 | HX58: 63.13335 | HY58: 67.12634 | HZ58: 65.3675
A59: 5125 | B59: CAICEDO | C59: 1 | D59: EJE CAFETERO | E59: ANTIOQUIA | F59: Suroeste | G59: F | H59: Temprano | I59: Robusto | J59: medioalto | K59: 6 | L59: G4- Nivel Medio Bajo | M59: 70.18034727 | N59: 1.38677189 | O59: 65.16239496 | P59: 25.26626035 | Q59: 85.72503599 | R59: 41.0938726 | S59: =AVERAGE(VLOOKUP($A59,Cont!$A$3:$L$1135,3,FALSE),(100-Base!N59),(100-Base!O59),Base!P59,Base!Q59,Base!R59) -> 64.25600035 | T59: 3. Vulnerable (>=60 y <70) | U59: 65.07670331 | V59: 1.923059462 | W59: 82.07566973 | X59: 13.09317825 | Y59: 85.93632494 | Z59: 43.76749171 | AA59: =AVERAGE(VLOOKUP($A59,Cont!$A$3:$L$1135,4,FALSE),(100-Base!V59),(100-Base!W59),Base!X59,Base!Y59,Base!Z59) -> 59.79971095 | AB59: 2. Riesgo (>=40 y <60) | AC59: 54.95 | AD59: 1.5 | AE59: 87.21 | AF59: 11.94 | AG59: 85.13 | AH59: 28.49 | AI59: =AVERAGE(VLOOKUP($A59,Cont!$A$3:$L$1135,5,FALSE),(100-Base!AD59),(100-Base!AE59),Base!AF59,Base!AG59,Base!AH59) -> 56.14166667 | AJ59: 2. Riesgo (>=40 y <60) | AK59: 73.56954645 | AL59: 2.474975557 | AM59: 81.00371655 | AN59: 20.83191856 | AO59: 87.09496442 | AP59: 35.04903798 | AQ59: =AVERAGE(VLOOKUP($A59,Cont!$A$3:$L$1135,6,FALSE),(100-Base!AL59),(100-Base!AM59),Base!AN59,Base!AO59,Base!AP59) -> 59.91620481 | AR59: 2. Riesgo (>=40 y <60) | AS59: 81.72184861 | AT59: 0.6910727316 | AU59: 64.7937914 | AV59: 25.50118234 | AW59: 86.27677378 | AX59: 33.14017997 | AY59: =AVERAGE(VLOOKUP($A59,Cont!$A$3:$L$1135,7,FALSE),(100-Base!AT59),(100-Base!AU59),Base!AV59,Base!AW59,Base!AX59) -> 61.80400481 | AZ59: 3. Vulnerable (>=60 y <70) | BA59: 57.53139029 | BB59: 1.928956334 | BC59: 69.75656641 | BD59: 23.46936161 | BE59: 85.87387033 | BF59: 25.59164612 | BG59: =AVERAGE(VLOOKUP($A59,Cont!$A$3:$L$1135,3,FALSE),(100-Base!BB59),(100-Base!BC59),Base!BD59,Base!BE59,Base!BF59) -> 60.54155922 | BH59: 3. Vulnerable (>=60 y <70) | BI59: 0.8 | BJ59: 0.8 | BK59: 0.8 | BL59: 0.8 | BM59: 0.8 | BN59: 0.8 | BO59: 2245.128295 | BP59: 1575.638834 | BQ59: 75.22133446 | BR59: 5424.203867 | BS59: 328.986624 | BT59: 7075.750488 | BU59: 1346.619873 | BV59: 13430.07265 | BW59: 675.397419 | BX59: 2673.119843 | BY59: 9456.089111 | BZ59: 11030.72049 | CA59: 1574.63138 | CB59: 2094.418922 | CC59: 1362.978788 | CD59: 84.17004888 | CE59: 4376.882283 | CF59: 60.8541977 | CG59: 6360.618597 | CH59: 1430.562963 | CI59: 9566.825083 | CJ59: 290.3912637 | CK59: 2217.882154 | CL59: 7620.858113 | CM59: 8868.028879 | CN59: 1247.170766 | CO59: 2157.170725 | CP59: 1185.473045 | CQ59: 79.45428215 | CR59: 5302.563982 | CS59: 676.8038508 | CT59: 7468.145764 | CU59: 1326.710347 | CV59: 10860.77953 | CW59: 268.9187183 | CX59: 2251.590452 | CY59: 9216.649216 | CZ59: 10826.81854 | DA59: 1610.169329 | DB59: 2026.312245 | DC59: 1490.748729 | DD59: 138.932505 | DE59: 5613.489985 | DF59: 924.4518323 | DG59: 7335.427771 | DH59: 1302.145676 | DI59: 11804.42785 | DJ59: 499.6941956 | DK59: 2398.695032 | DL59: 10514.64134 | DM59: 12072.61684 | DN59: 1557.975499 | DO59: 2080.248727 | DP59: 1415.09783 | DQ59: 33.285632 | DR59: 4816.516527 | DS59: 63.22497871 | DT59: 6358.629003 | DU59: 1223.639691 | DV59: 11799.73197 | DW59: 665.1149346 | DX59: 2608.172955 | DY59: 10963.24879 | DZ59: 12707.06853 | EA59: 1743.819737 | EB59: 1766.912844 | EC59: 1314.458929 | ED59: 93.6841227 | EE59: 4856.725942 | EF59: 110.1542834 | EG59: 6914.301076 | EH59: 1314.296549 | EI59: 11954.07449 | EJ59: 533.8838554 | EK59: 2274.812005 | EL59: 10289.75554 | EM59: 11982.4057 | EN59: 1692.650167 | EO59: 788 | EP59: 144 | EQ59: 93 | ER59: 19 | ES59: 110 | ET59: 155 | EU59: 228 | EV59: 343 | EW59: 661 | EX59: 136 | EY59: 1101 | EZ59: 178 | FA59: 125 | FB59: 24 | FC59: 209 | FD59: 320 | FE59: 269 | FF59: 551 | FG59: 972 | FH59: 218 | FI59: 54.42346 | FJ59: 60.12363 | FK59: 62.73397 | FL59: 68.4238 | FM59: 55.94317 | FN59: 57.49088 | FO59: 54.82962 | FP59: 56.51045 | FQ59: 55.87918 | FR59: 57.0719 | FS59: 3.922798 | FT59: 5.870482 | FU59: 6.887506 | FV59: 6.101318 | FW59: 3.434033 | FX59: 3.514691 | FY59: 4.749686 | FZ59: 3.412083 | GA59: 3.588773 | GB59: 3.747513 | GC59: 68.74329 | GD59: 59.84842 | GE59: 57.68191 | GF59: 61.53848 | GG59: 76.82989 | GH59: 77.8087 | GI59: 55.19832 | GJ59: 73.12246 | GK59: 71.2836 | GL59: 76.02158 | GM59: 52.64082 | GN59: 60.20657 | GO59: 59.73359 | GP59: 59.97665 | GQ59: 42.07367 | GR59: 40.05861 | GS59: 58.88792 | GT59: 44.53401 | GU59: 48.60859 | GV59: 44.20174 | GW59: 86.5405 | GX59: 83.90293 | GY59: 82.96947 | GZ59: 81.83112 | HA59: 88.24205 | HB59: 88.44742 | HC59: 83.43092 | HD59: 87.57653 | HE59: 87.09678 | HF59: 88.70966 | HG59: 44.5238 | HH59: 41.49112 | HI59: 40.66115 | HJ59: 32.88157 | HK59: 41.44729 | HL59: 39.99458 | HM59: 45.49012 | HN59: 41.90516 | HO59: 43.07114 | HP59: 40.04123 | HQ59: 68.33787 | HR59: 69.88535 | HS59: 69.66396 | HT59: 67.48973 | HU59: 65.14521 | HV59: 64.21645 | HW59: 71.24734 | HX59: 66.0789 | HY59: 67.12634 | HZ59: 65.3675
A60: 5129 | B60: CALDAS | C60: 1 | D60: EJE CAFETERO | E60: ANTIOQUIA | F60: Valle del aburra | G60: B | H60: Robusto | I60: Robusto | J60: bajo | K60: 3 | L60: G1- Nivel Alto | M60: 38.20490823 | N60: 12.20011078 | O60: 43.0575023 | P60: 80.19571731 | Q60: 76.0866608 | R60: 54.78425443 | S60: =AVERAGE(VLOOKUP($A60,Cont!$A$3:$L$1135,3,FALSE),(100-Base!N60),(100-Base!O60),Base!P60,Base!Q60,Base!R60) -> 75.96816991 | T60: 4. Sostenible (>=70 y <80) | U60: 46.12812562 | V60: 12.89261565 | W60: 36.31959106 | X60: 91.22352799 | Y60: 72.72816857 | Z60: 38.94708435 | AA60: =AVERAGE(VLOOKUP($A60,Cont!$A$3:$L$1135,4,FALSE),(100-Base!V60),(100-Base!W60),Base!X60,Base!Y60,Base!Z60) -> 75.61442903 | AB60: 4. Sostenible (>=70 y <80) | AC60: 48.45 | AD60: 8.56 | AE60: 33.74 | AF60: 89.42 | AG60: 83.1 | AH60: 41.09 | AI60: =AVERAGE(VLOOKUP($A60,Cont!$A$3:$L$1135,5,FALSE),(100-Base!AD60),(100-Base!AE60),Base!AF60,Base!AG60,Base!AH60) -> 78.55166667 | AJ60: 4. Sostenible (>=70 y <80) | AK60: 49.98880243 | AL60: 9.867887376 | AM60: 46.35978215 | AN60: 92.22973481 | AO60: 76.4223833 | AP60: 39.81839502 | AQ60: =AVERAGE(VLOOKUP($A60,Cont!$A$3:$L$1135,6,FALSE),(100-Base!AL60),(100-Base!AM60),Base!AN60,Base!AO60,Base!AP60) -> 75.37380727 | AR60: 4. Sostenible (>=70 y <80) | AS60: 45.41583168 | AT60: 10.60289351 | AU60: 30.54413794 | AV60: 94.47824409 | AW60: 76.35885398 | AX60: 46.92405203 | AY60: =AVERAGE(VLOOKUP($A60,Cont!$A$3:$L$1135,7,FALSE),(100-Base!AT60),(100-Base!AU60),Base!AV60,Base!AW60,Base!AX60) -> 79.43568644 | AZ60: 4. Sostenible (>=70 y <80) | BA60: 40.45864079 | BB60: 15.02551839 | BC60: 40.17201183 | BD60: 83.28956477 | BE60: 74.68099652 | BF60: 51.65768995 | BG60: =AVERAGE(VLOOKUP($A60,Cont!$A$3:$L$1135,3,FALSE),(100-Base!BB60),(100-Base!BC60),Base!BD60,Base!BE60,Base!BF60) -> 75.7384535 | BH60: 4. Sostenible (>=70 y <80) | BI60: 0.7 | BJ60: 0.7 | BK60: 0.7 | BL60: 0.7 | BM60: 0.7 | BN60: 0.7 | BO60: 22171.76599 | BP60: 8470.702848 | BQ60: 4206.045166 | BR60: 34475.46701 | BS60: 1904.960981 | BT60: 21948.89258 | BU60: 421.0405579 | BV60: 56377.85013 | BW60: 22747.81323 | BX60: 28365.37161 | BY60: 40808.10938 | BZ60: 53633.72363 | CA60: 12825.61426 | CB60: 15368.82326 | CC60: 7089.350099 | CD60: 2516.959423 | CE60: 19522.48862 | CF60: 120.7558409 | CG60: 12866.49865 | CH60: 0 | CI60: 35758.26189 | CJ60: 14672.18303 | CK60: 16083.77066 | CL60: 26186.81189 | CM60: 36006.42282 | CN60: 9819.610936 | CO60: 15586.03965 | CP60: 7550.855311 | CQ60: 1782.613068 | CR60: 20830.40481 | CS60: 21.42967927 | CT60: 15431.53763 | CU60: 198.4956023 | CV60: 46385.75177 | CW60: 15761.24159 | CX60: 17626.44969 | CY60: 51076.18713 | CZ60: 61460.01193 | DA60: 10383.8248 | DB60: 18420.0975 | DC60: 9207.986148 | DD60: 2344.11302 | DE60: 23754.96325 | DF60: 224.4911782 | DG60: 23301.98967 | DH60: 0 | DI60: 50747.60872 | DJ60: 18870.49371 | DK60: 20460.3144 | DL60: 39911.37987 | DM60: 52224.72546 | DN60: 12313.34559 | DO60: 22209.57483 | DP60: 8974.163737 | DQ60: 3003.826025 | DR60: 28330.24789 | DS60: 4.223584347 | DT60: 17821.31595 | DU60: 127.3437724 | DV60: 58776.85409 | DW60: 24045.22111 | DX60: 25450.53711 | DY60: 43630.03703 | DZ60: 57138.15292 | EA60: 13508.11374 | EB60: 23328.14396 | EC60: 7757.003307 | ED60: 4303.21904 | EE60: 28639.40483 | EF60: 4.8422668 | EG60: 16927.8132 | EH60: 1346.945418 | EI60: 45503.32447 | EJ60: 20915.76549 | EK60: 25112.10804 | EL60: 35807.50543 | EM60: 47947.27856 | EN60: 12139.77313 | EO60: 156 | EP60: 24 | EQ60: 21 | ER60: 9 | ES60: 49 | ET60: 55 | EU60: 63 | EV60: 80 | EW60: 13 | EX60: 104 | EY60: 1101 | EZ60: 178 | FA60: 125 | FB60: 10 | FC60: 63 | FD60: 69 | FE60: 269 | FF60: 121 | FG60: 15 | FH60: 217 | FI60: 54.42346 | FJ60: 60.12363 | FK60: 62.73397 | FL60: 42.20321 | FM60: 38.1464 | FN60: 37.72821 | FO60: 54.82962 | FP60: 44.00282 | FQ60: 39.09848 | FR60: 48.31459 | FS60: 3.922798 | FT60: 5.870482 | FU60: 6.887506 | FV60: 10.403 | FW60: 7.012572 | FX60: 6.96879 | FY60: 4.749686 | FZ60: 6.295687 | GA60: 5.677976 | GB60: 5.041183 | GC60: 68.74329 | GD60: 59.84842 | GE60: 57.68191 | GF60: 28.47429 | GG60: 40.05789 | GH60: 39.87551 | GI60: 55.19832 | GJ60: 45.93587 | GK60: 36.55346 | GL60: 52.1961 | GM60: 52.64082 | GN60: 60.20657 | GO60: 59.73359 | GP60: 83.59334 | GQ60: 84.93545 | GR60: 84.88793 | GS60: 58.88792 | GT60: 81.9105 | GU60: 88.97445 | GV60: 74.9332 | GW60: 86.5405 | GX60: 83.90293 | GY60: 82.96947 | GZ60: 76.05038 | HA60: 80.48994 | HB60: 80.68295 | HC60: 83.43092 | HD60: 81.29807 | HE60: 79.00531 | HF60: 81.84073 | HG60: 44.5238 | HH60: 41.49112 | HI60: 40.66115 | HJ60: 59.16648 | HK60: 59.83034 | HL60: 60.16801 | HM60: 45.49012 | HN60: 55.8005 | HO60: 58.2673 | HP60: 53.3083 | HQ60: 68.33787 | HR60: 69.88535 | HS60: 69.66396 | HT60: 79.98882 | HU60: 79.69755 | HV60: 79.81577 | HW60: 71.24734 | HX60: 77.65618 | HY60: 80.66927 | HZ60: 75.46848
A61: 5134 | B61: CAMPAMENTO | C61: 1 | D61: EJE CAFETERO | E61: ANTIOQUIA | F61: Norte | G61: F | H61: Temprano | I61: Robusto | J61: medioalto | K61: 6 | L61: G3- Nivel Medio | M61: 77.74010739 | N61: 8.26572382 | O61: 66.82297633 | P61: 26.50901961 | Q61: 77.84500224 | R61: 7.27114051 | S61: =AVERAGE(VLOOKUP($A61,Cont!$A$3:$L$1135,3,FALSE),(100-Base!N61),(100-Base!O61),Base!P61,Base!Q61,Base!R61) -> 56.08941037 | T61: 2. Riesgo (>=40 y <60) | U61: 79.15692261 | V61: 5.85245978 | W61: 84.29714694 | X61: 17.1312246 | Y61: 71.91411406 | Z61: 17.57438529 | AA61: =AVERAGE(VLOOKUP($A61,Cont!$A$3:$L$1135,4,FALSE),(100-Base!V61),(100-Base!W61),Base!X61,Base!Y61,Base!Z61) -> 52.74501954 | AB61: 2. Riesgo (>=40 y <60) | AC61: 72.76 | AD61: 4.66 | AE61: 84.16 | AF61: 22.7 | AG61: 75.57 | AH61: 13.93 | AI61: =AVERAGE(VLOOKUP($A61,Cont!$A$3:$L$1135,5,FALSE),(100-Base!AD61),(100-Base!AE61),Base!AF61,Base!AG61,Base!AH61) -> 53.89666667 | AJ61: 2. Riesgo (>=40 y <60) | AK61: 78.77560709 | AL61: 3.153058871 | AM61: 82.86097227 | AN61: 29.06248126 | AO61: 79.88146537 | AP61: 22.6345631 | AQ61: =AVERAGE(VLOOKUP($A61,Cont!$A$3:$L$1135,6,FALSE),(100-Base!AL61),(100-Base!AM61),Base!AN61,Base!AO61,Base!AP61) -> 57.59407977 | AR61: 2. Riesgo (>=40 y <60) | AS61: 70.76310092 | AT61: 2.821758968 | AU61: 76.27092296 | AV61: 32.55582361 | AW61: 83.69691098 | AX61: 33.62931137 | AY61: =AVERAGE(VLOOKUP($A61,Cont!$A$3:$L$1135,7,FALSE),(100-Base!AT61),(100-Base!AU61),Base!AV61,Base!AW61,Base!AX61) -> 61.79822734 | AZ61: 3. Vulnerable (>=60 y <70) | BA61: 69.63759772 | BB61: 8.903597401 | BC61: 78.94397879 | BD61: 30.01548535 | BE61: 76.84962841 | BF61: 23.11603281 | BG61: =AVERAGE(VLOOKUP($A61,Cont!$A$3:$L$1135,3,FALSE),(100-Base!BB61),(100-Base!BC61),Base!BD61,Base!BE61,Base!BF61) -> 57.02226173 | BH61: 2. Riesgo (>=40 y <60) | BI61: 0.8 | BJ61: 0.8 | BK61: 0.8 | BL61: 0.8 | BM61: 0.8 | BN61: 0.8 | BO61: 3276.11554 | BP61: 2546.855739 | BQ61: 671.0883026 | BR61: 8118.929658 | BS61: 623.51456 | BT61: 8537.925781 | BU61: 2119.399414 | BV61: 16881.67809 | BW61: 1008.213726 | BX61: 3803.285603 | BY61: 12391.75684 | BZ61: 15918.5002 | CA61: 3526.743362 | CB61: 2919.767019 | CC61: 2311.19772 | CD61: 405.4559965 | CE61: 6927.958701 | CF61: 611.071773 | CG61: 7613.880148 | CH61: 1780.898488 | CI61: 11869.73791 | CJ61: 554.724344 | CK61: 3238.089261 | CL61: 6834.032155 | CM61: 9503.047134 | CN61: 2669.014979 | CO61: 2894.077209 | CP61: 2105.821112 | CQ61: 324.6872633 | CR61: 6964.471391 | CS61: 345.7567704 | CT61: 8530.372813 | CU61: 1878.585546 | CV61: 12778.66329 | CW61: 753.2611698 | CX61: 3318.645726 | CY61: 8836.644814 | CZ61: 11692.87078 | DA61: 2856.225968 | DB61: 2732.956675 | DC61: 2152.903212 | DD61: 241.2861545 | DE61: 7652.446858 | DF61: 1057.450589 | DG61: 7860.524473 | DH61: 1749.38139 | DI61: 12873.80073 | DJ61: 991.4506621 | DK61: 3411.445339 | DL61: 10479.36767 | DM61: 13118.64726 | DN61: 2639.279591 | DO61: 2671.429869 | DP61: 2020.588089 | DQ61: 212.5989152 | DR61: 7534.269385 | DS61: 936.5607596 | DT61: 7153.263196 | DU61: 1698.854189 | DV61: 12834.08926 | DW61: 1177.224435 | DX61: 3616.01814 | DY61: 12321.01425 | DZ61: 14720.9906 | EA61: 2399.976081 | EB61: 3001.277661 | EC61: 2127.467405 | ED61: 665.9496563 | EE61: 7479.557153 | EF61: 252.9558218 | EG61: 7920.900287 | EH61: 1968.423554 | EI61: 12847.43918 | EJ61: 1085.820149 | EK61: 3617.533204 | EL61: 9232.772116 | EM61: 12014.07516 | EN61: 2781.303042 | EO61: 1070 | EP61: 178 | EQ61: 125 | ER61: 131 | ES61: 204 | ET61: 299 | EU61: 268 | EV61: 536 | EW61: 941 | EX61: 215 | EY61: 1101 | EZ61: 178 | FA61: 125 | FB61: 133 | FC61: 209 | FD61: 320 | FE61: 269 | FF61: 551 | FG61: 972 | FH61: 218 | FI61: 54.42346 | FJ61: 60.12363 | FK61: 62.73397 | FL61: 56.92537 | FM61: 55.94317 | FN61: 57.49088 | FO61: 54.82962 | FP61: 56.51045 | FQ61: 55.87918 | FR61: 56.21923 | FS61: 3.922798 | FT61: 5.870482 | FU61: 6.887506 | FV61: 4.573634 | FW61: 3.434033 | FX61: 3.514691 | FY61: 4.749686 | FZ61: 3.412083 | GA61: 3.588773 | GB61: 3.439309 | GC61: 68.74329 | GD61: 59.84842 | GE61: 57.68191 | GF61: 71.53587 | GG61: 76.82989 | GH61: 77.8087 | GI61: 55.19832 | GJ61: 73.12246 | GK61: 71.2836 | GL61: 70.97762 | GM61: 52.64082 | GN61: 60.20657 | GO61: 59.73359 | GP61: 54.84887 | GQ61: 42.07367 | GR61: 40.05861 | GS61: 58.88792 | GT61: 44.53401 | GU61: 48.60859 | GV61: 47.92092 | GW61: 86.5405 | GX61: 83.90293 | GY61: 82.96947 | GZ61: 86.50879 | HA61: 88.24205 | HB61: 88.44742 | HC61: 83.43092 | HD61: 87.57653 | HE61: 87.09678 | HF61: 86.70963 | HG61: 44.5238 | HH61: 41.49112 | HI61: 40.66115 | HJ61: 41.70697 | HK61: 41.44729 | HL61: 39.99458 | HM61: 45.49012 | HN61: 41.90516 | HO61: 43.07114 | HP61: 42.23924 | HQ61: 68.33787 | HR61: 69.88535 | HS61: 69.66396 | HT61: 67.77946 | HU61: 65.14521 | HV61: 64.21645 | HW61: 71.24734 | HX61: 66.0789 | HY61: 67.12634 | HZ61: 66.92496
A62: 5138 | B62: CAÑASGORDAS | C62: 1 | D62: EJE CAFETERO | E62: ANTIOQUIA | F62: Occidente | G62: D | H62: Intermedio | I62: Robusto | J62: medioalto | K62: 6 | L62: G4- Nivel Medio Bajo | M62: 56.69711391 | N62: 12.3161994 | O62: 74.82464993 | P62: 44.90654098 | Q62: 87.40371989 | R62: 33.13077401 | S62: =AVERAGE(VLOOKUP($A62,Cont!$A$3:$L$1135,3,FALSE),(100-Base!N62),(100-Base!O62),Base!P62,Base!Q62,Base!R62) -> 63.05003092 | T62: 3. Vulnerable (>=60 y <70) | U62: 69.81415822 | V62: 5.395874216 | W62: 78.2462719 | X62: 27.44920397 | Y62: 86.684743 | Z62: 28.63064654 | AA62: =AVERAGE(VLOOKUP($A62,Cont!$A$3:$L$1135,4,FALSE),(100-Base!V62),(100-Base!W62),Base!X62,Base!Y62,Base!Z62) -> 59.85374123 | AB62: 2. Riesgo (>=40 y <60) | AC62: 62.95 | AD62: 4.78 | AE62: 85.43 | AF62: 33.91 | AG62: 90.56 | AH62: 35.88 | AI62: =AVERAGE(VLOOKUP($A62,Cont!$A$3:$L$1135,5,FALSE),(100-Base!AD62),(100-Base!AE62),Base!AF62,Base!AG62,Base!AH62) -> 61.69 | AJ62: 3. Vulnerable (>=60 y <70) | AK62: 65.77141461 | AL62: 3.6710153 | AM62: 86.26779627 | AN62: 47.64154008 | AO62: 92.32755273 | AP62: 34.3923065 | AQ62: =AVERAGE(VLOOKUP($A62,Cont!$A$3:$L$1135,6,FALSE),(100-Base!AL62),(100-Base!AM62),Base!AN62,Base!AO62,Base!AP62) -> 64.07043129 | AR62: 3. Vulnerable (>=60 y <70) | AS62: 71.96668633 | AT62: 4.497104133 | AU62: 82.2379652 | AV62: 44.52797039 | AW62: 92.10809903 | AX62: 38.91810299 | AY62: =AVERAGE(VLOOKUP($A62,Cont!$A$3:$L$1135,7,FALSE),(100-Base!AT62),(100-Base!AU62),Base!AV62,Base!AW62,Base!AX62) -> 64.80318385 | AZ62: 3. Vulnerable (>=60 y <70) | BA62: 58.39444226 | BB62: 6.373063135 | BC62: 75.6595427 | BD62: 42.52330921 | BE62: 89.96849878 | BF62: 37.48871718 | BG62: =AVERAGE(VLOOKUP($A62,Cont!$A$3:$L$1135,3,FALSE),(100-Base!BB62),(100-Base!BC62),Base!BD62,Base!BE62,Base!BF62) -> 64.65798655 | BH62: 3. Vulnerable (>=60 y <70) | BI62: 0.8 | BJ62: 0.8 | BK62: 0.8 | BL62: 0.8 | BM62: 0.8 | BN62: 0.8 | BO62: 2783.031804 | BP62: 1577.898712 | BQ62: 844.5002136 | BR62: 6856.824788 | BS62: 723.383744 | BT62: 12618.48926 | BU62: 1838.490723 | BV62: 20287.91814 | BW62: 1666.123489 | BX62: 3710.20224 | BY62: 17215.17676 | BZ62: 19696.16028 | CA62: 2480.983521 | CB62: 2251.196723 | CC62: 1571.654042 | CD62: 328.0376575 | CE62: 6079.416317 | CF62: 730.9682036 | CG62: 10223.05812 | CH62: 1284.90782 | CI62: 15641.55563 | CJ62: 732.9875694 | CK62: 2670.341807 | CL62: 12407.14136 | CM62: 14312.94704 | CN62: 1905.805683 | CO62: 2724.960981 | CP62: 1715.482984 | CQ62: 531.3293441 | CR62: 11105.6261 | CS62: 4998.97158 | CT62: 16376.30872 | CU62: 1456.140006 | CV62: 26724.7715 | CW62: 1144.555637 | CX62: 3374.88697 | CY62: 20766.48492 | CZ62: 22930.58891 | DA62: 2164.103999 | DB62: 2708.842431 | DC62: 1781.643986 | DD62: 555.117703 | DE62: 15121.63959 | DF62: 8850.840771 | DG62: 13167.08479 | DH62: 1321.269712 | DI62: 27054.35433 | DJ62: 1732.00047 | DK62: 3635.483796 | DL62: 28702.14769 | DM62: 31087.30476 | DN62: 2385.157066 | DO62: 2750.61143 | DP62: 1747.533665 | DQ62: 520.0336503 | DR62: 11563.74485 | DS62: 5421.638262 | DT62: 12788.26294 | DU62: 1637.246087 | DV62: 24133.80153 | DW62: 1635.908576 | DX62: 3673.889841 | DY62: 26191.16674 | DZ62: 28435.24913 | EA62: 2244.081712 | EB62: 3099.802459 | EC62: 1667.960019 | ED62: 797.0868703 | EE62: 12507.12339 | EF62: 5634.496831 | EG62: 12279.92615 | EH62: 1757.194294 | EI62: 26000.17998 | EJ62: 1709.937434 | EK62: 4021.176776 | EL62: 22544.26707 | EM62: 25057.95626 | EN62: 2513.689187 | EO62: 853 | EP62: 158 | EQ62: 106 | ER62: 35 | ES62: 236 | ET62: 600 | EU62: 243 | EV62: 383 | EW62: 725 | EX62: 152 | EY62: 1101 | EZ62: 178 | FA62: 125 | FB62: 53 | FC62: 261 | FD62: 712 | FE62: 269 | FF62: 551 | FG62: 972 | FH62: 218 | FI62: 54.42346 | FJ62: 60.12363 | FK62: 62.73397 | FL62: 56.23077 | FM62: 53.26068 | FN62: 54.66744 | FO62: 54.82962 | FP62: 56.51045 | FQ62: 55.87918 | FR62: 57.0719 | FS62: 3.922798 | FT62: 5.870482 | FU62: 6.887506 | FV62: 4.91842 | FW62: 3.766216 | FX62: 3.81103 | FY62: 4.749686 | FZ62: 3.412083 | GA62: 3.588773 | GB62: 3.747513 | GC62: 68.74329 | GD62: 59.84842 | GE62: 57.68191 | GF62: 71.18067 | GG62: 66.82138 | GH62: 67.46651 | GI62: 55.19832 | GJ62: 73.12246 | GK62: 71.2836 | GL62: 76.02158 | GM62: 52.64082 | GN62: 60.20657 | GO62: 59.73359 | GP62: 44.51445 | GQ62: 55.8371 | GR62: 55.17067 | GS62: 58.88792 | GT62: 44.53401 | GU62: 48.60859 | GV62: 44.20174 | GW62: 86.5405 | GX62: 83.90293 | GY62: 82.96947 | GZ62: 86.62191 | HA62: 86.16039 | HB62: 86.25111 | HC62: 83.43092 | HD62: 87.57653 | HE62: 87.09678 | HF62: 88.70966 | HG62: 44.5238 | HH62: 41.49112 | HI62: 40.66115 | HJ62: 39.58741 | HK62: 46.25377 | HL62: 45.04333 | HM62: 45.49012 | HN62: 41.90516 | HO62: 43.07114 | HP62: 40.04123 | HQ62: 68.33787 | HR62: 69.88535 | HS62: 69.66396 | HT62: 65.70256 | HU62: 69.59016 | HV62: 69.07786 | HW62: 71.24734 | HX62: 66.0789 | HY62: 67.12634 | HZ62: 65.3675
